Workbook

Sheet Instructions
A1: Instructions
A2: North Dakota Stockwater Design Workbook | AX2: Version - | AY2: 2013-06-21
A3: ND Stockwater Design
A4: 3.9
A5: 2022-06-30
A6: Introduction:
A7: This workbook is used in making hydraulic calculations for stockwater design of pipelines, pumps, and watering facilities. It also has the ability to assemble a complete construction package that includes a coversheet, design plan sheet, pipeline profile sheet, conservation practice specifications, and O&M plans.
A8: A knowledge of pipeline and pump hydraulics and NRCS-ND Conservation Practice Standards for Livestock Pipeline; CPS-516, Pumping Plant; CPS-533, and Watering Facility; CPS-614 is needed to properly use this workbook and achieve an adequate stockwater design.
A9: VB Code and Macros:
A10: This is a Macro enabled workbook (xlsm) with ActiveX Control command buttons with Visual Basic Code. The workbook will not function correctly if macros are disabled. Many USDA-NRCS computers have a security feature setting that disables active content such as macros.
A11: If the "Security Warning" is displayed upon opening the workbook, click on "Options..." and select the "Enable this content" radio button.
A12: The Cut/Copy/Paste functions have been disabled from this workbook. These commands have shown to occasionally corrupt the workbook and cause other features not to work as intended.
A13: The "Workbook Setup" worksheet sets up the workbook for the ability to create a complete stockwater design package. The worksheet includes:
C14: The Make Save Folder button creates a Stockwater_Documents folder in the H:\Documents that will store all the necessary PDFs documents to generate the construction package. The Download Docs button downloads, from the North Dakota NRCS Engineering website, all stockwater PDF documents that could be included in the construction package
A16: The "Title Page" worksheet is the place to document the information of the contract. This includes landowner/producer info, project location, designer, and field office info.
A17: The "Import" worksheet can be used to aid the designer in the import of survey data for the use in pipeline design. The worksheet contains:
C18: The "Import" button imports a survey data file to build the pipeline profile station & elevation information. The survey file must be in the format of PENZD to import correctly. The "Export" buttons transfer the imported survey data to the desired pipeline section tab for design. The "Clear" button will clear any data located in the Station and Elevation columns.
A19: The "ENG-39" worksheet is for the documentation of the watering system demands and to size the necessary watering facilities. The worksheet contains:
C21: Watering facility calculators can be used to compute the storage volumes of, perimeter distances, and number of drinking spaces for a given watering facility type.
C24: The Clear Data command button prompts the user to clear all inputs from the worksheet.
A25: The "Main" and "Spur" worksheets are for the design of the livestock pipeline. The pipeline is designed by calculating the necessary total head of the system to achieve the desired flow rate with a minimum clearance head over the critical (most often the highest) point along the pipeline profile. The worksheets contain:
B27: Pumped and Gravity radio buttons are available for the user to select which type of system is being designed. The selection will determine the how the pipeline will be calculated. Pressure Reducer and Booster Pump check boxes are available for the user to select if one of those options is desired in part of the design. The user is then able to enter information for the selected component and have it applied to the pipeline calculations.
C28: The TDH or Total Dynamic Head button runs the pipeline design and calculates the required total head needed to achieve the desired flow rate with a minimum clearance head over the critical point along the pipeline profile.
C29: The Reset button clears all user entered data.
C30: The Tank Height button located on the "Spur 1" and "Spur 2" worksheets calculates the required stand height needed when the spurs are designed as gravity. It also recomputes the design TDH on the "Main" worksheet to account for pumping into the storage tank.
A31: The "Pump" worksheet is for the design of the pumping plant component of the stockwater system. An estimated pump size is calculated from information computed by the pipeline design and the losses in the piping at the well. This sheet is for planning/design only and should not be analyzed during checkout. The worksheet contains:
C32: The Reset Chart button resets the losses in the piping at the well to the default pipe fittings and components common in well and pump installation.
A34: The "Curve" worksheet plots the pump curves from a chosen pump model and size selected by the user. The user is able to choose up to 3 pumps from a list of pumps that have been preloaded into the spreadsheet. There is also an option for the user to input a pump manually if the pump curve data is known. A systems curve is calculated from the previous data entered in the pipeline design. The intersection of the two curves is calculated to display the operating point of the chosen pump. The worksheet contains:
C35: The Clear Pump Info button clears all selected pump options.
C37: The Check Off TDH button updates the hydraulics of the main pipeline section with the max off pressure setting when a pressure tank is used. A new "Main (Max TDH)" worksheet is displayed to show the higher pressure.
A39: The "Pressure" worksheet calculates the minimum pressure tank volume and pressure rating. The worksheet also calculates the minimum pressure switch cut-in and cut-out settings. The worksheet contains:
C40: The Override buttons replace and override the pressure switch cut-in and cut-out calculated in the pipeline design. The Re-Set button will reset the pressure cut-in and cut-out values to what was calculated in the pipeline design.
A44: The "Coversheet" worksheet is the coversheet for the complete construction package. The coversheet includes a location map, general construction notes, index of other drawings within the construction package, the NRCS practice certification, and a Engineering Job Approval Authority chart for the practices designed. The worksheet contains:
C45: The Clip Location Map allows the user to insert a property location map. The Index Drawings button will populate the Index of Drawings table with the drawings that are to be included in the construction package.
A47: The "Profile Sheet" worksheet displays the plotted pipeline profile designed. The worksheet also plots and labels the location of any pipeline appurtenances selected by the user.
C48: The Add to Profiles button plots and labels the location of any pipeline appurtenances selected by the user. The Clear Chart button clears all labels and selections of pipeline appurtenances previously chosen by the user.
A51: The "Design Plan" worksheet includes a summary of the design data, a table of pipe appurtenances and locations, a table of quantities, and a plan map of the practices designed. The worksheet contains:
C52: The Populate Table of Quantities button generates the design components and their quantities to successfully construct the stockwater design. The Import Plan Map button allows the user to insert an engineering plan map.
A55: The "Drawings" worksheet generates a construction package that includes standard drawings, construction specifications, and Operation and Maintenance Plans. The worksheet includes:
A57: The Construction Package button compiles the standard drawings, ND_ENG sheets, practice specifications, and operation & maintenance documents selected by the user and creates a single merged PDF named "Design Documents for Producer Name.PDF" and saves to a file folder chosen by the user. The Design/Planning Package button compiles the design data sheets completed by the user for the design and creates a single merged PDF named "Supporting Documents for Producer Name.PDF" and saves to a file folder chosen by the user.
A59: Worksheet Format:
A61: White | B61: Grey | C61: White cells with black lettering and Grey cells are locked and can not be changed by user.
A63: Blue | C63: Blue cells with blue lettering are user inputs.
A65: Red | B65: Triangles | C65: Cells with Red Triangles in the upper right corner have comments or help with data entry.
A67: Blue t | B67: o Red | C67: Cells that Change Color will be accompanied by a corresponding message for the user.
A69: Dropdown Box | C69: Some cells have Dropdown Boxes. Click on the cell and adjacent down arrow to select an item from the list. Use the slider to move up and down the list.
A70: Printing:
A71: Some cell borders, blanks, etc. may not appear on printouts from various printers. If so, go to the Page Layout ribbon, click the arrow adjacent to Page Setup and set the "Print quality" to a lesser value, i.e. 300-dpi.
A72: Instructions for data input:
A73: The Blue cells are user inputs for entering known values. Most are self explanatory, and many have comments (red triangles) and dropdown boxes included.
A74: Do not use space bar to clear inputs from data entry cells. Use either the "Del" key or "Editing - Clear Contents".
A75: End of Instructions

Sheet Workbook Setup
A1: Workbook Setup
A2: North Dakota Stockwater Design Workbook | AA2: ZIP file for County Maps | AF2: https://www.nrcs.usda.gov/sites/default/files/2022-10/NRCS%20ND%20Counties.zip
A3: =Version -> 3.9 | AA3: ZIP file for all PDFs | AF3: https://www.nrcs.usda.gov/sites/default/files/2022-10/NRCS%20ND%20Stockwater%20PDFs.zip
AA4: ZIP file for PNGs of Drawing PDFs | AF4: https://www.nrcs.usda.gov/sites/default/files/2022-10/NRCS%20ND%20Stockwater%20PNGs.zip
D5: NRCS_Stockwater_Documents folder successfully made on the C:\ drive
D8: The files found in the NRCS_Stockwater_Documents folder are: | L8: Download Instructions:
L9: After the initial setup of the workbook, a blank version should be saved that will include all the standard drawings. This file can then be used as a template for the development of future designs. There may be occasions when the documents will need to be replaced due to updates. When notified, this can be accomplished by selecting the "Workbook Setup" option again. During updates you will be asked about duplicate files. When asked; please select the following options.
L19: 1. Check the box in the lower left hand corner: "Do this for the next __ conflicts"
L21: 2. Click the button "Copy and Replace"

Sheet Title Page
A6: U.S. DEPARTMENT OF AGRICULTURE
A7: NATURAL RESOURCES CONSERVATION SERVICE
A9: North Dakota Stockwater Design Workbook
A16: for
B26: Section: | F26: County: | G26: Select County
B28: Township: | F28: Range:
E30: Conservation District, North Dakota
A33: Prepared By:
F35: Field Office | K35: =IF(G26="Select County","",IF(F35="State Office","North Dakota", IF(F35="Field Office",VLOOKUP(G26,A79:C131,2,FALSE),IF(F35="Area Office",IF(VLOOKUP(G26,A79:C131,3,FALSE)=1,"Devils Lake",IF(VLOOKUP(G26,A79:C131,3,FALSE)=2,"Jamestown",IF(VLOOKUP(G26,A79:C131,3,FALSE)=3,"Dickinson",""))))))) -> 
C37: Planned By:
D38: Planning Approved By:
C39: Date:
C41: Designed By:
C42: Date:
F45: Maximum Engineering Job Class: | G45: =max_EJAA -> I
A47: =IF(A13="STOCKWATER PIPELINE",CONCATENATE("CLASS ",#REF!," PIPELINE DESIGN"),IF(A13="STOCKWATER PIPELINE AND WATERING FACILITIES",CONCATENATE("CLASS ",#REF!," PIPELINE/WATERING FACILITY DESIGN"),IF(A13="WATERING FACILITIES",CONCATENATE("CLASS ",#REF!," WATERING FACILITY DESIGN"),""))) -> 
A49: Note: The indivdual checking the design should enter their information on the "Main" tab.
A50: Note: The indivdual approving the design should enter their information on the "ND_ENG_1" tab.
A74: Field Office
A75: Area Office
A76: State Office
A78: Select County | E78: <Select Field Office> | H78: WELL
A79: Adams | B79: Hettinger | C79: 3 | E79: Ashley | H79: WELL AND PIPELINE
A80: Barnes | B80: Valley City | C80: 2 | E80: Beach | H80: WELL AND PUMP
A81: Benson | B81: Minnewaukan | C81: 1 | E81: Beulah | H81: WELL, PUMP, AND PIPELINE
A82: Billings | B82: Beach | C82: 3 | E82: Bismarck | H82: WELL, PUMP, AND WATERING FACILITIES
A83: Bottineau | B83: Bottineau | C83: 1 | E83: Bottineau | H83: WELL, PUMP, PIPELINE, AND WATERING FACILITIES
A84: Bowman | B84: Bowman | C84: 3 | E84: Bowbells | H84: PUMP
A85: Burke | B85: Bowbells | C85: 3 | E85: Bowman | H85: PUMP AND PIPELINE
A86: Burleigh | B86: Bismarck | C86: 2 | E86: Cando | H86: PUMP AND WATERING FACILITIES
A87: Cass | B87: Fargo | C87: 2 | E87: Carrington | H87: PUMP, PIPELINE, AND WATERING FACILITIES
A88: Cavalier | B88: Langdon | C88: 1 | E88: Carson | H88: LIVESTOCK PIPELINE
A89: Dickey | B89: Ellendale | C89: 2 | E89: Cavalier | H89: LIVESTOCK PIPELINE AND WATERING FACILITIES
A90: Divide | B90: Crosby | C90: 3 | E90: Center | H90: WATERING FACILITIES
A91: Dunn | B91: Killdeer | C91: 3 | E91: Cooperstown
A92: Eddy | B92: New Rockford | C92: 1 | E92: Crosby | H92: =CONCATENATE(Producer," ",A13) -> 
A93: Emmons | B93: Linton | C93: 2 | E93: Devils Lake
A94: Foster | B94: Carrington | C94: 1 | E94: Dickinson
A95: Golden Valley | B95: Beach | C95: 3 | E95: Dickinson | H95: <Design Level>
A96: Grand Forks | B96: Grand Forks | C96: 1 | E96: Ellendale | H96: Planning of
A97: Grant | B97: Carson | C97: 3 | E97: Fargo | H97: Preliminary Design of
A98: Griggs | B98: Cooperstown | C98: 1 | E98: Fessenden | H98: Final Design of
A99: Hettinger | B99: Mott | C99: 3 | E99: Finley | H99: As-Built Documentation of
A100: Kidder | B100: Steele | C100: 2 | E100: Forman
A101: LaMoure | B101: La Moure | C101: 2 | E101: Fort Yates
A102: Logan | B102: Napoleon | C102: 2 | E102: Garrison/Turtle Lake
A103: McHenry | B103: Bottineau | C103: 1 | E103: Grand Forks
A104: McIntosh | B104: Ashley | C104: 2 | E104: Hettinger
A105: McKenzie | B105: Watford City | C105: 3 | E105: Hillsboro
A106: McLean | B106: Garrison/Turtle Lake | C106: 2 | E106: Jamestown
A107: Mercer | B107: Beulah | C107: 3 | E107: Killdeer
A108: Morton | B108: Mandan | C108: 2 | E108: La Moure
A109: Mountrail | B109: Stanley | C109: 3 | E109: Lakota
A110: Nelson | B110: Lakota | C110: 1 | E110: Langdon
A111: Oliver | B111: Center | C111: 2 | E111: Linton
A112: Pembina | B112: Cavalier | C112: 1 | E112: Lisbon
A113: Pierce | B113: Rugby | C113: 1 | E113: Mandan
A114: Ramsey | B114: Devils Lake | C114: 1 | E114: Minnewaukan
A115: Ransom | B115: Lisbon | C115: 2 | E115: Minot
A116: Renville | B116: Mohall | C116: 3 | E116: Mohall
A117: Richland | B117: Wahpeton | C117: 2 | E117: Mott
A118: Rolette | B118: Rolla | C118: 1 | E118: Mott
A119: Sargent | B119: Forman | C119: 2 | E119: Napoleon
A120: Sheridan | B120: McClusky | C120: 2 | E120: New Rockford
A121: Sioux | B121: Selfridge | C121: 3 | E121: Park River
A122: Slope | B122: Mott | C122: 3 | E122: Rolla
A123: Stark | B123: Dickinson | C123: 3 | E123: Rugby
A124: Steele | B124: Finley | C124: 1 | E124: Selfridge
A125: Stutsman | B125: Jamestown | C125: 2 | E125: Stanley
A126: Towner | B126: Cando | C126: 1 | E126: Steele
A127: Traill | B127: Hillsboro | C127: 1 | E127: Towner
A128: Walsh | B128: Park River | C128: 1 | E128: Valley City
A129: Ward | B129: Minot | C129: 3 | E129: Wahpeton
A130: Wells | B130: Fessenden | C130: 1 | E130: Watford City
A131: Williams | B131: Williston | C131: 3 | E131: Williston

Sheet ENG-39
A1: United States Department of Agriculture | V1: =Instructions!A3 -> ND Stockwater Design | AM1: Animal | AN1: Gal/Day | AP1: Code | AS1: Job Class | AV1: 1 | AW1: 2 | AX1: 3 | AY1: 4 | AZ1: 5
B2: Natural Resources Conservation Service | T2: =Version -> 3.9 | AM2: Beef - Lactating Cow and Calf | AN2: =IF($V$23="",AO2,IF(AND($V$23="Yes",$AO$33=0.5),AO2/2,AO2)) -> 20 | AO2: 20 | AP2: 1 | AS2: Pipeline | AT2: Length | AU2: miles | AV2: 0 | AW2: 0.5 | AX2: 2 | AY2: 5 | AZ2: 30
T3: North Dakota | AM3: Beef - Bred/Dry Cow or Heifer | AN3: 15 | AO3: 15 | AP3: 2 | AT3: Diameter | AU3: inches | AV3: 0 | AW3: 1.5 | AX3: 2 | AY3: 4 | AZ3: 8
AM4: Beef - Growers (600 lb avg) | AN4: 13 | AO4: 13 | AP4: 3 | AT4: Pressure | AU4: psi | AV4: 0 | AW4: 125 | AX4: 160 | AY4: 200 | AZ4: 300
A5: WATERING SYSTEM RESOURCE INVENTORY and WATERING FACILITY DESIGN WORKSHEET | AM5: Beef - Yearlings/Finishers (800 lb avg) | AN5: 18 | AO5: 18 | AP5: 4 | AS5: Stock Tank | AT5: Capacity | AU5: gal | AV5: 0 | AW5: 1200 | AX5: 3000 | AY5: 6000 | AZ5: All
A6: ND-ENG-39 | AM6: Bulls | AN6: 19 | AO6: 19 | AP6: 5 | AS6: Storage Tank | AT6: Capacity | AU6: gal | AV6: 0 | AW6: 0 | AX6: 8000 | AY6: 20000 | AZ6: All
A7: Producer: | C7: =IF(Producer="","",Producer) ->  | M7: Field Office: | Q7: <Select Field Office> | AM7: Dairy - Lactating Cows | AN7: 25 | AO7: 25 | AP7: 6 | AS7: Pumping Plant (Low Volume) | AT7: Design Capacity | AU7: GPM | AV7: 0 | AW7: 5 | AX7: 10 | AY7: 20 | AZ7: 30
A8: Contract No.: | M8: CIN(s): | AM8: Dairy - Dry Cows | AN8: 17 | AO8: 17 | AP8: 7 | AT8: Static Head | AU8: psi | AV8: 0 | AW8: 100 | AX8: 200 | AY8: 300 | AZ8: 400
A9: Location: | C9: =CONCATENATE("Section ",Section," Township ",Township," Range ",Range) -> Section Township Range | M9: Field(s) No.: | AM9: Horses | AN9: 18 | AO9: 18 | AP9: 8
A10: Designed by: | C10: =IF(Designer="","",Designer) ->  | M10: Date: | Q10: =IF(Dsgn_Date="","",Dsgn_Date) ->  | AM10: Hogs | AN10: 3 | AO10: 3 | AP10: 9
A11: Checked by: | M11: Date: | AM11: Sheep and Goats | AN11: 2 | AO11: 2 | AP11: 10 | AU11: Mileage | AV11: Diameter | AW11: Pressure | AX11: Flow | BB11: Mileage | BC11: Diameter | BD11: Pressure | BE11: Flow
A12: Planned Watering System Description: | AM12: Elk | AN12: 8 | AO12: 8 | AP12: 11 | AS12: Main | AU12: =Main!B9/5280 -> 0 | AV12: =MAX(Main!$D$11:$D$248) -> 0 | AW12: =MAX(Main!R13:R252) -> 0 | AX12: =MAX(Main!$F$11:$F$248) -> 0 | AZ12: Spur 6 | BB12: ='Spur 6'!$B$9/5280 -> 0 | BC12: =MAX('Spur 6'!$D$11:$D$248) -> 0 | BD12: =MAX('Spur 6'!$R$10:$R$249) -> 0 | BE12: =MAX('Spur 6'!$F$11:$F$248) -> 0
AM13: Deer/Antelope | AN13: 2 | AO13: 2 | AP13: 12 | AS13: Spur 1 | AU13: ='Spur 1'!$B$9/5280 -> 0 | AV13: =MAX('Spur 1'!$D$11:$D$248) -> 0 | AW13: =MAX('Spur 1'!$R$10:$R$249) -> 0 | AX13: =MAX('Spur 1'!$F$11:$F$248) -> 0 | AZ13: Spur 7 | BB13: ='Spur 7'!$B$9/5280 -> 0 | BC13: =MAX('Spur 7'!$D$11:$D$248) -> 0 | BD13: =MAX('Spur 7'!$R$10:$R$249) -> 0 | BE13: =MAX('Spur 7'!$F$11:$F$248) -> 0
AM14: Upland Game Birds | AN14: 5 | AO14: 5 | AP14: 13 | AS14: Spur 2 | AU14: ='Spur 2'!$B$9/5280 -> 0 | AV14: =MAX('Spur 2'!$D$11:$D$248) -> 0 | AW14: =MAX('Spur 2'!$R$10:$R$249) -> 0 | AX14: =MAX('Spur 2'!$F$11:$F$248) -> 0 | AZ14: Spur 8 | BB14: ='Spur 8'!$B$9/5280 -> 0 | BC14: =MAX('Spur 8'!$D$11:$D$248) -> 0 | BD14: =MAX('Spur 8'!$R$10:$R$249) -> 0 | BE14: =MAX('Spur 8'!$F$11:$F$248) -> 0
A15: Type of Livestock | F15: Number of | J15: Water | Q15: Daily | U15: Required Drinking Spaces | AM15: Other | AP15: 14 | AS15: Spur 3 | AU15: ='Spur 3'!$B$9/5280 -> 0 | AV15: =MAX('Spur 3'!$D$11:$D$248) -> 0 | AW15: =MAX('Spur 3'!$R$10:$R$249) -> 0 | AX15: =MAX('Spur 3'!$F$11:$F$248) -> 0 | AZ15: Spur 9 | BB15: ='Spur 9'!$B$9/5280 -> 0 | BC15: =MAX('Spur 9'!$D$11:$D$248) -> 0 | BD15: =MAX('Spur 9'!$R$10:$R$249) -> 0 | BE15: =MAX('Spur 9'!$F$11:$F$248) -> 0
F16: Livestock | J16: Requirement | Q16: Water Use | AN16: =IF($V$23="",AO16,IF(AND($V$23="Yes",$AO$33=0.5),AO16/2,AO16)) -> 0 | AP16: 15 | AS16: Spur 4 | AU16: ='Spur 4'!$B$9/5280 -> 0 | AV16: =MAX('Spur 4'!$D$11:$D$248) -> 0 | AW16: =MAX('Spur 4'!$R$10:$R$249) -> 0 | AX16: =MAX('Spur 4'!$F$11:$F$248) -> 0 | AZ16: Spur10 | BB16: ='Spur 10'!$B$9/5280 -> 0 | BC16: =MAX('Spur 10'!$D$11:$D$248) -> 0 | BD16: =MAX('Spur 10'!$R$10:$R$249) -> 0 | BE16: =MAX('Spur 10'!$F$11:$F$248) -> 0
I17: x | J17: =IF(ISTEXT(A17),VLOOKUP(A17,$AM$2:$AN$19,2,FALSE),) -> 0 | M17: gpd | N17: =CONCATENATE("=") -> = | Q17: =J17*F17 -> 0 | T17: gals. | U17: =_xlfn.IFNA(IF(AND(VLOOKUP(A17,Animal_Demand,4,FALSE)<=5,VLOOKUP($H$24,Grazing_System,2,FALSE)=1),ROUNDUP(F17/20,0),IF(AND(VLOOKUP(A17,Animal_Demand,4,FALSE)<=5,VLOOKUP($H$24,Grazing_System,2,FALSE)=2),ROUNDUP(F17/40,0),IF(AND(VLOOKUP(A17,Animal_Demand,4,FALSE)<=5,VLOOKUP($H$24,Grazing_System,2,FALSE)=3),ROUNDUP(F17/100,0),"No Requirement"))),"") ->  | W17: =_xlfn.IFNA(IF(AND(VLOOKUP(A17,Animal_Demand,4,FALSE)<=5,VLOOKUP($H$24,Grazing_System,2,FALSE)=1),ROUNDUP(F17/20,0),IF(AND(VLOOKUP(A17,Animal_Demand,4,FALSE)<=5,VLOOKUP($H$24,Grazing_System,2,FALSE)=2),ROUNDUP(F17/40,0),IF(AND(VLOOKUP(A17,Animal_Demand,4,FALSE)<=5,VLOOKUP($H$24,Grazing_System,2,FALSE)=3),ROUNDUP(F17/100,0),"No Requirement"))),"") ->  | AM17: Buffalo | AN17: 15 | AO17: 15 | AP17: 1 | AS17: Spur 5 | AU17: ='Spur 5'!$B$9/5280 -> 0 | AV17: =MAX('Spur 5'!$D$11:$D$248) -> 0 | AW17: =MAX('Spur 5'!$R$10:$R$249) -> 0 | AX17: =MAX('Spur 5'!$F$11:$F$248) -> 0 | AZ17: Main + Spurs | BB17: =SUM(AU12:AU17,BB12:BB16) -> 0 | BC17: =MAX(AV12:AV17,BC12:BC16) -> 0 | BD17: =MAX(AW12:AW17,BD12:BD16) -> 0 | BE17: =MAX(AX12:AX17,BE12:BE16) -> 0
I18: x | J18: =IF(ISTEXT(A18),VLOOKUP(A18,$AM$2:$AN$19,2,FALSE),) -> 0 | M18: gpd | N18: =CONCATENATE("=") -> = | Q18: =J18*F18 -> 0 | T18: gals. | U18: =_xlfn.IFNA(IF(AND(VLOOKUP(A18,Animal_Demand,4,FALSE)<=5,VLOOKUP($H$24,Grazing_System,2,FALSE)=1),ROUNDUP(F18/20,0),IF(AND(VLOOKUP(A18,Animal_Demand,4,FALSE)<=5,VLOOKUP($H$24,Grazing_System,2,FALSE)=2),ROUNDUP(F18/40,0),IF(AND(VLOOKUP(A18,Animal_Demand,4,FALSE)<=5,VLOOKUP($H$24,Grazing_System,2,FALSE)=3),ROUNDUP(F18/100,0),"No Requirement"))),"") ->  | W18: =_xlfn.IFNA(IF(AND(VLOOKUP(A18,Animal_Demand,4,FALSE)<=5,VLOOKUP($H$24,Grazing_System,2,FALSE)=1),ROUNDUP(F18/20,0),IF(AND(VLOOKUP(A18,Animal_Demand,4,FALSE)<=5,VLOOKUP($H$24,Grazing_System,2,FALSE)=2),ROUNDUP(F18/40,0),IF(AND(VLOOKUP(A18,Animal_Demand,4,FALSE)<=5,VLOOKUP($H$24,Grazing_System,2,FALSE)=3),ROUNDUP(F18/100,0),"No Requirement"))),"") ->  | AN18: 0 | AP18: 17 | AS18: Main + Spurs | AU18: =SUM(AU12:AU14) -> 0 | AV18: =MAX(AV12:AV14) -> 0 | AW18: =MAX(AW12:AW14) -> 0 | AX18: =+MAX(AX12:AX14) -> 0
I19: x | J19: 0 | M19: gpd | N19: =CONCATENATE("=") -> = | Q19: =J19*F19 -> 0 | T19: gals. | U19: =_xlfn.IFNA(IF(AND(VLOOKUP(A19,Animal_Demand,4,FALSE)<=5,VLOOKUP($H$24,Grazing_System,2,FALSE)=1),ROUNDUP(F19/20,0),IF(AND(VLOOKUP(A19,Animal_Demand,4,FALSE)<=5,VLOOKUP($H$24,Grazing_System,2,FALSE)=2),ROUNDUP(F19/40,0),IF(AND(VLOOKUP(A19,Animal_Demand,4,FALSE)<=5,VLOOKUP($H$24,Grazing_System,2,FALSE)=3),ROUNDUP(F19/100,0),"No Requirement"))),"") ->  | W19: =_xlfn.IFNA(IF(AND(VLOOKUP(A19,Animal_Demand,4,FALSE)<=5,VLOOKUP($H$24,Grazing_System,2,FALSE)=1),ROUNDUP(F19/20,0),IF(AND(VLOOKUP(A19,Animal_Demand,4,FALSE)<=5,VLOOKUP($H$24,Grazing_System,2,FALSE)=2),ROUNDUP(F19/40,0),IF(AND(VLOOKUP(A19,Animal_Demand,4,FALSE)<=5,VLOOKUP($H$24,Grazing_System,2,FALSE)=3),ROUNDUP(F19/100,0),"No Requirement"))),"") ->  | AN19: 0 | AP19: 18
I20: x | J20: 0 | M20: gpd | N20: =CONCATENATE("=") -> = | Q20: =J20*F20 -> 0 | T20: gals. | U20: =_xlfn.IFNA(IF(AND(VLOOKUP(A20,Animal_Demand,4,FALSE)<=5,VLOOKUP($H$24,Grazing_System,2,FALSE)=1),ROUNDUP(F20/20,0),IF(AND(VLOOKUP(A20,Animal_Demand,4,FALSE)<=5,VLOOKUP($H$24,Grazing_System,2,FALSE)=2),ROUNDUP(F20/40,0),IF(AND(VLOOKUP(A20,Animal_Demand,4,FALSE)<=5,VLOOKUP($H$24,Grazing_System,2,FALSE)=3),ROUNDUP(F20/100,0),"No Requirement"))),"") ->  | W20: =_xlfn.IFNA(IF(AND(VLOOKUP(A20,Animal_Demand,4,FALSE)<=5,VLOOKUP($H$24,Grazing_System,2,FALSE)=1),ROUNDUP(F20/20,0),IF(AND(VLOOKUP(A20,Animal_Demand,4,FALSE)<=5,VLOOKUP($H$24,Grazing_System,2,FALSE)=2),ROUNDUP(F20/40,0),IF(AND(VLOOKUP(A20,Animal_Demand,4,FALSE)<=5,VLOOKUP($H$24,Grazing_System,2,FALSE)=3),ROUNDUP(F20/100,0),"No Requirement"))),"") ->  | AS20: Job Class | AV20: Project | AW20: JA
N21: Total: = | Q21: =SUM(Q17:Q20) -> 0 | T21: gals. | U21: =SUM(U17:V20) -> 0 | AM21: Stocking / Grazing System | AN21: Code | AS21: Pipeline | AT21: Length | AU21: miles | AV21: =$BB$17 -> 0 | AW21: =IF(AV21<=AV2,$AV$1,IF(AV21<=AW2,$AW$1,IF(AV21<=AX2,$AX$1,IF(AV21<=AY2,$AY$1,IF(AV21<=AZ2,$AZ$1,"SO Approval"))))) -> 1
AL22: Reliable Power (e.g. Electric Grid / Generator / Rural Water) | AM22: Range/Pasture with greater than 1/2 mile max travel to water | AN22: 1 | AT22: Diameter | AU22: inches | AV22: =$BC$17 -> 0 | AW22: =IF(AV22<=AV3,$AV$1,IF(AV22<=AW3,$AW$1,IF(AV22<=AX3,$AX$1,IF(AV22<=AY3,$AY$1,IF(AV22<=AZ3,$AZ$1,"X"))))) -> 1
A23: Grazing Dates Livestock Utilize System: | H23: From: | K23: to | P23: =IF(OR(I23="",L23=""),"",IF(AO33=0.5,"50% animal water requirement reduction?","")) ->  | AL23: Solar / Wind Power | AM23: Range/Pasture with less than 1/2 mile max travel to water | AN23: 2 | AT23: Pressure | AU23: psi | AV23: =$BD$17 -> 0 | AW23: 1
A24: Type of Stocking / Grazing System: | AM24: Lots or High Density / Intensively Managed Grazing Systems | AN24: 3 | AS24: Stock Tank | AT24: Capacity | AU24: gal | AV24: =MAX(IF(AND(ISNUMBER(R32),No_Rnd>0),R32/No_Rnd,0),IF(AND(ISNUMBER(R33),No_Rec>0),R33/No_Rec,0),IF(AND(ISNUMBER(R34),No_Tire>0),R34/No_Tire,0)) -> 0 | AW24: 1
A25: Source of Water Supply: | AS25: Storage Tank | AT25: Capacity | AU25: gal | AV25: =$I$52 -> 0 | AW25: 1
AM26: Watering Facility Type | AS26: Pumping Plant (Low Volume) | AT26: Design Capacity | AU26: GPM | AV26: =PumpQ -> 0 | AW26: 1
A27: Source Water Surface Elevation: | J27: ft | M27: ND SWC Well Data | AM27: Round | AT27: Static Head | AU27: psi | AV27: =$BD$17 -> 0 | AW27: 1
A28: Source Max Flow Rate: | J28: gpm | AM28: Rectangle/Square | AV28: MAX JA | AW28: =ROMAN(MAX(AW21:AW27)) -> I
AM29: Heavy Equipment Tire
A30: Watering Facility Sizing and Delivery Requirements:
A31: Watering Facility Type: | E31: Perimeter | I31: Volume | N31: # of Facilities | U31: Actual Drinking Spaces | AM31: Month | AN31: #
D32: : | H32: ft | L32: gals | M32: x | Q32: ="=" -> = | R32: =I32*N32 -> 0 | T32: gals. | U32: =IF(AND(ISNUMBER(E32),R32>0),(E32/1)*No_Rnd,"") ->  | AM32: January | AN32: 4 | AO32: =IF(ISTEXT(I23),VLOOKUP(I23,AM32:AN43,2,FALSE),"") ->  | AP32: =IF(ISTEXT(L23),VLOOKUP(L23,AM32:AN43,2,FALSE),"") -> 
D33: : | H33: ft | L33: gals | M33: x | Q33: ="=" -> = | R33: =I33*N33 -> 0 | T33: gals. | U33: =IF(AND(ISNUMBER(E33),R33>0),ROUNDUP(E33/1.5,0)*No_Rec,"") ->  | AM33: February | AN33: 5 | AO33: =IF(AND(AO32<=7,AP32<=7,AO32<=AP32),0.5,1) -> 1
D34: : | H34: ft | L34: gals | M34: x | Q34: ="=" -> = | R34: =I34*N34 -> 0 | T34: gals. | U34: =IF(AND(ISNUMBER(E34),R34>0),(E34/1)*No_Tire,"") ->  | AM34: March | AN34: 6
D35: : | E35: Rqrd. Drinking Spaces: | K35: # of Spaces per Waterer: | Q35: x | T35: waters | U35: =IF(AND(I35>0,R35>0),P35*R35,0) -> 0 | AM35: April | AN35: 7
Q36: Total Watering Facility Volume (WFV) = | R36: =SUM(R32:S34) -> 0 | T36: gals. | U36: =SUM(U32:V35) -> 0 | AM36: May | AN36: 8
N37: =IF(U36<U21,"* Additional space is required for drinking access! Increase tank perimeter or provide more tanks.","*") -> * | AM37: June | AN37: 9
A38: Total Daily Water Use (WU): | E38: Use 10% for evaporation and spillage? | AM38: July | AN38: 10
L39: =IF(I39="yes","WU = Daily Water Use + 10% Added for Evaporation and Spillage","WU = Daily Water Use") -> WU = Daily Water Use | AM39: August | AN39: 11
L40: WU = | N40: =Q21 -> 0 | P40: =IF(I39="yes"," x 1.1"," x 1.0") -> x 1.0 | R40: ="=" -> = | S40: =IF(I39="yes",N40*1.1,N40*1) -> 0 | U40: gals. / day | AM40: September | AN40: 12
AM41: October | AN41: 1
A42: Water Source Also Provide Domestic Use? | K42: =IF(H42="Yes","# of Households:","") ->  | AM42: November | AN42: 2
AM43: December | AN43: 3
A44: 12-Hour Watering System Flow Rate (Q12): Q12 = WU / (12hr/day * 60) = | O44: =IF(H24="","",IF(OR(No_Drnkrs>0,Drnk_Sp>0,R34>0,R33>0,R32>0),ROUND(S40/(12*60),1))) ->  | Q44: gpm | R44: =IF(G45>H28,"* Design flow rate exceeds the max flow rate of the water source!","*") -> *
A45: Design Water Delivery Flow Rate (Q): | I45: gpm | J45: Flow Delivery Period: | O45: =IF(ISNUMBER(PipeQ),S40/PipeQ/60,"") ->  | Q45: hr/day | AN45: Data Validation:
A46: Minimum Pump Flowrate (Qpump_min): | G46: =IF(H42="Yes",P42*10+PipeQ,PipeQ) -> 0 | I46: gpm | J46: =IF(A17="","*",IF(AND(O45>24,PipeQ<(U21*2),VLOOKUP(H24,Grazing_System,2,FALSE)=3),"* Design Watering System Flow Rate (Q) < the Number of Required Drinking Spaces x 2GPM!",IF(G45<O44,"* Q < Q12: See Required Storage (RS) and Additional Storage (ASmin) for storage needed.","*"))) -> * | O46: =IF(A17="","*",IF(OR(H24="",VLOOKUP(H25,Water_Supply,3)=2),"*",IF(AND(G45>=(2*U21),VLOOKUP(H24,Grazing_System,2,FALSE)=3,No_Drnkrs>0),"* A flow rate of 2 gpm per drinking space has been met and may be used as a substitute for storage.",IF(AND(G45>=(2*U21),VLOOKUP(H24,Grazing_System,2,FALSE)=2),"* A flow rate of 2 gpm per drinking space has been met and may be used as a substitute for storage.",IF(AND(G45>=(2*U21),No_Drnkrs>0),"* A flow rate of 2 gpm per drinking space has been met and may be used as a substitute for storage.","*"))))) -> * | AM46: Required Storage: 1 = with inflow, 2 = without inflow | AN46: =IF(OR(H24="",H25=""),1,IF(AND(OR(VLOOKUP(H24,Grazing_System,2,FALSE)=1,VLOOKUP(H24,Grazing_System,2,FALSE)=2),VLOOKUP(H25,Water_Supply,3)=1),1,2)) -> 1
A47: Design Pump Flow Rate (Qpump): | I47: gpm
A48: =IF(PumpQ<G46,"* Qpump < Qpump_min","*") -> * | O48: =IF(O45="","*",IF(O45>24,"* Inadequate Design: Design Delivery Period > 24hrs!","*")) -> *
A49: =IF(LEN(O46)>2,"Calculated Days of Storage (DScalc):","Required Days of Storage in Pasture (DSmin):") -> Required Days of Storage in Pasture (DSmin): | H49: =IF(OR(H24="",H25=""),"",IF(VLOOKUP(H25,Water_Supply,3)=2,3,IF(VLOOKUP(H24,Grazing_System,2,FALSE)=1,1,IF(VLOOKUP(H24,Grazing_System,2,FALSE)=2,0.5,IF(VLOOKUP(H24,Grazing_System,2,FALSE)=3,0,"NA"))))) ->  | I49: day(s) | J49: Design (DS): | O49: day(s) | Q49: =IF(OR(M49>=H49,O46<>"*"),"*","* Min. days of required storage not met!") -> *
A50: =IF(A17="","",IF(LEN(O46)>2,"Calculated Storage If Substitute For Flow Rate Is Not Desired (CS):",IF(OR(H24="",H25="",VLOOKUP(H25,Water_Supply,3,FALSE)=2),"Required Storage in Pasture (RS): RS = DS x WU =",IF(OR(G45>=(2*U21),AND(VLOOKUP(H24,Grazing_System,2,FALSE)=3,U35>0,U32="",U33="",U34="",U35*2>O44,PipeQ>O44)),"",IF(AND(OR(VLOOKUP(H24,Grazing_System,2,FALSE)=1,VLOOKUP(H24,Grazing_System,2,FALSE)=2),VLOOKUP(H25,Water_Supply,3)=1),"Required Min. Storage in Pasture (RS): RS = DS x WU - Inflow =",IF(AND(VLOOKUP(H24,Grazing_System,2,FALSE)=3,VLOOKUP(H25,Water_Supply,3)=2),"Required Storage in Pasture (RS): RS = DU x WU - (Q x 60 x 12) =",IF(VLOOKUP(H24,Grazing_System,2,FALSE)=3,"Required Storage in Pasture (RS): RS = WU - (Q x 60 x 12) =","Required Storage in Pasture (RS): RS = DS x WU ="))))))) ->  | K50: =IF(A50="","",IF(AND(VLOOKUP(H24,Grazing_System,2,FALSE)=3,VLOOKUP(H25,Water_Supply,3)=2),M49,IF(VLOOKUP(H24,Grazing_System,2,FALSE)=3,S40,M49))) ->  | L50: =IF(A50="","",IF(AND(VLOOKUP(H24,Grazing_System,2,FALSE)=3,VLOOKUP(H25,Water_Supply,3)=2),"x",IF(VLOOKUP(H24,Grazing_System,2,FALSE)=3,"-","x"))) ->  | M50: =IF(A50="","",IF(AND(VLOOKUP(H24,Grazing_System,2,FALSE)=3,VLOOKUP(H25,Water_Supply,3)=2),S40,IF(VLOOKUP(H24,Grazing_System,2,FALSE)=3,PipeQ*60*12,S40))) ->  | O50: =IF(A50="","",IF(AND(VLOOKUP(H24,Grazing_System,2,FALSE)=3,VLOOKUP(H25,Water_Supply,3)=2),"-",IF(AN46=1,"-","="))) ->  | P50: =IF(OR(H24="",H25=""),"",IF(A50="","",IF(AND(VLOOKUP(H24,Grazing_System,2,FALSE)=3,VLOOKUP(H25,Water_Supply,3)=2),PipeQ*60*12,IF(AND(VLOOKUP(H25,Water_Supply,3)=2,OR(VLOOKUP(H24,Grazing_System,2,FALSE)=1,VLOOKUP(H24,Grazing_System,2,FALSE)=2)),S40*M49,IF(VLOOKUP(H24,Grazing_System,2,FALSE)=1,G45*60*6,IF(VLOOKUP(H24,Grazing_System,2,FALSE)=2,G45*60*1,IF(VLOOKUP(H24,Grazing_System,2,FALSE)=3,S40-PipeQ*60*12,""))))))) ->  | R50: =IF(A50="","",IF(AND(VLOOKUP(H24,Grazing_System,2,FALSE)=3,VLOOKUP(H25,Water_Supply,3)=2),"=",IF(AN46=1,"=","gals."))) ->  | S50: =IF(OR(H24="",H25=""),"",IF(A50="","",IF(AND(VLOOKUP(H24,Grazing_System,2,FALSE)=3,VLOOKUP(H25,Water_Supply,3)=2),M49*S40-PipeQ*60*12,IF(OR(VLOOKUP(H25,Water_Supply,3)=2,VLOOKUP(H24,Grazing_System,2,FALSE)=3),"",MAX(0,IF(VLOOKUP(H24,Grazing_System,2,FALSE)=1,S40*M49-G45*60*6,IF(VLOOKUP(H24,Grazing_System,2,FALSE)=2,S40*M49-G45*60*1,""))))))) ->  | U50: =IF(A50="","",IF(AN46=1,"gals.","")) -> 
A51: Required Additional Storage (ASmin): AS = RS-WFV = | I51: =IF(P50="",0,IF(OR(VLOOKUP(H24,Grazing_System,2,FALSE)=3,VLOOKUP(H25,Water_Supply,3,FALSE)=2),P50-R36,IF(P50="","",IF(AN46=1,MAX(0,S50-R36),MAX(0,P50-R36))))) -> 0 | K51: gals. | L51: =IF(AND(I52>=0,I51>0,I52<I51),"* Min. additional storage not met: Consider providing more volume in the watering facilities, design a storage tank, or increase system flow rate.","*") -> *
A52: =IF(I52>0,IF(AND(I52/PipeQ/60>24,M49<=1),"* Delivery > 24hr; NOT FEASIBLE!",IF(AND(I52/M49/24/60>PipeQ,M49>1),"* Delivery > 24hr; NOT FEASIBLE!","*")),"*") -> * | F52: Design (AS) = | K52: gals.
A53: Field | B53: Existing Water Sources | K53: Dependability/Quality
A54: No.
A58: ND-ENG-39 | J58: 1 | T58: February, 2019
A59: ND-ENG-39 (Back)
A62: Planned Watering System Description (Continued):
A74: Design Notes:

Sheet Import
A1: Station | B1: Elevation | C1: Length | AB1: FALSE | AC1: Point | AD1: Northing | AE1: Easting | AF1: Elevation | AG1: Code | AH1: =MAX(AH2:AH237) -> 223 | AI1: Point | AJ1: Northing | AK1: Easting | AL1: Elevation | AM1: Code | AN1: \\Usda.net\nrcs\HOME\NDBIS\NRCS\Nicholas.Reynolds\Desktop\Wendy Stockwater Test\Spur1South.csv
D2: Point Number Range for Survey Import | I2: Instructions | AA2: 1 | AB2: 0 | AC2: =IF($AA2>$AH$1,"",VLOOKUP($AA2,$AH$2:$AM$237,2,FALSE)) -> 0 | AD2: =IF($AA2>$AH$1,"",VLOOKUP($AA2,$AH$2:$AM$237,3,FALSE)) -> 0 | AE2: =IF($AA2>$AH$1,"",VLOOKUP($AA2,$AH$2:$AM$237,4,FALSE)) -> 0 | AF2: =IF($AA2>$AH$1,"",VLOOKUP($AA2,$AH$2:$AM$237,5,FALSE)) -> 0 | AG2: =IF($AA2>$AH$1,"",VLOOKUP($AA2,$AH$2:$AM$237,6,FALSE)) -> 0 | AH2: =IF(AND(AI2>=$E$3,AI2<=$G$3),1,0) -> 0 | AI2: 1500 | AJ2: 16930175.33 | AK2: 1327728.441 | AL2: 1848.5897 | AM2: Spur | AN2: 1 | AO2: South
F3: to | AA3: 2 | AB3: =IF($AA3>$AH$1,"",AB2+SQRT(ABS($AD3-$AD2)^2+ABS($AE3-$AE2)^2)) -> 0 | AC3: =IF($AA3>$AH$1,"",VLOOKUP($AA3,$AH$2:$AM$237,2,FALSE)) -> 0 | AD3: =IF($AA3>$AH$1,"",VLOOKUP($AA3,$AH$2:$AM$237,3,FALSE)) -> 0 | AE3: =IF($AA3>$AH$1,"",VLOOKUP($AA3,$AH$2:$AM$237,4,FALSE)) -> 0 | AF3: =IF($AA3>$AH$1,"",VLOOKUP($AA3,$AH$2:$AM$237,5,FALSE)) -> 0 | AG3: =IF($AA3>$AH$1,"",VLOOKUP($AA3,$AH$2:$AM$237,6,FALSE)) -> 0 | AH3: =IF(AND(AI3>=$E$3,AI3<=$G$3),MAX(AH$2:AH2)+1,0) -> 0 | AI3: 1501 | AJ3: 16930176.14 | AK3: 1327520.528 | AL3: 1856.1403 | AM3: Spur | AN3: 1 | AO3: South
AA4: 3 | AB4: =IF($AA4>$AH$1,"",AB3+SQRT(ABS($AD4-$AD3)^2+ABS($AE4-$AE3)^2)) -> 0 | AC4: 0 | AD4: 0 | AE4: 0 | AF4: 0 | AG4: 0 | AH4: =IF(AND(AI4>=$E$3,AI4<=$G$3),MAX(AH$2:AH3)+1,0) -> 0 | AI4: 1502 | AJ4: 16930179.72 | AK4: 1327354.926 | AL4: 1849.4739 | AM4: Spur | AN4: 1 | AO4: South
I5: Import a .txt or .csv file with the format PNEZD or manually input the numbers. | AA5: 4 | AB5: 0 | AC5: 0 | AD5: 0 | AE5: 0 | AF5: 0 | AG5: 0 | AH5: =IF(AND(AI5>=$E$3,AI5<=$G$3),MAX(AH$2:AH4)+1,0) -> 0 | AI5: 1503 | AJ5: 16930185.64 | AK5: 1327215.207 | AL5: 1858.7267 | AM5: Spur | AN5: 1 | AO5: South
E6: =IF(OR(AND(E3="",G3=""),A2="",B2=""),"",IF(E3>G3,"* Note: Point number range is not in accending order.",IF(E3<Min_Pt,"Entered start survey point is outside the extents of the survey file.",IF(G3>Max_Pt,"Entered end survey point is outside the extents of the survey file.",IF(OR(B2<>VLOOKUP(E3,AI2:AL237,4),INDEX(B2:B237,MATCH(9.999E+307,B2:B237))<>VLOOKUP(G3,AI2:AL237,4)),"* Note: Survey import range has changed. Please click the IMPORT button to import the new values. If the entire survey file is desired then leave the point range values empty.",IF(OR(E3<>Min_Pt,G3<>Max_Pt),"* Note: Only the entered point range is being used.","* Note: All points of the survey file are being used.")))))) ->  | J6: 1. Choose the point number range from the survey data file for the pipeline profile section desired. | AA6: 5 | AB6: 0 | AC6: 0 | AD6: 0 | AE6: 0 | AF6: 0 | AG6: 0 | AH6: =IF(AND(AI6>=$E$3,AI6<=$G$3),MAX(AH$2:AH5)+1,0) -> 0 | AI6: 1504 | AJ6: 16930184.31 | AK6: 1327077.614 | AL6: 1862.7302 | AM6: Spur | AN6: 1 | AO6: South
K7: a. If the full survey data file is the desired pipeline profile section then leave the point number range empty. | AA7: 6 | AB7: 0 | AC7: 0 | AD7: 0 | AE7: 0 | AF7: 0 | AG7: 0 | AH7: =IF(AND(AI7>=$E$3,AI7<=$G$3),MAX(AH$2:AH6)+1,0) -> 0 | AI7: 1505 | AJ7: 16930187.61 | AK7: 1326973.353 | AL7: 1860.3928 | AM7: Spur | AN7: 1 | AO7: South
J8: 2. Click the Import button | AA8: 7 | AB8: 0 | AC8: 0 | AD8: 0 | AE8: 0 | AF8: 0 | AG8: 0 | AH8: =IF(AND(AI8>=$E$3,AI8<=$G$3),MAX(AH$2:AH7)+1,0) -> 0 | AI8: 1506 | AJ8: 16930195.99 | AK8: 1326825.569 | AL8: 1862 | AM8: Spur | AN8: 1 | AO8: South
K9: a. A message will appear with a reminder of the necessary file format. | AA9: 8 | AB9: 0 | AC9: 0 | AD9: 0 | AE9: 0 | AF9: 0 | AG9: 0 | AH9: =IF(AND(AI9>=$E$3,AI9<=$G$3),MAX(AH$2:AH8)+1,0) -> 0 | AI9: 1507 | AJ9: 16930196.6 | AK9: 1326708.678 | AL9: 1867.611 | AM9: Spur | AN9: 1 | AO9: South
K10: b. A windows explorer box will appear to select the desired survey file | AA10: 9 | AB10: 0 | AC10: 0 | AD10: 0 | AE10: 0 | AF10: 0 | AG10: 0 | AH10: =IF(AND(AI10>=$E$3,AI10<=$G$3),MAX(AH$2:AH9)+1,0) -> 0 | AI10: 1508 | AJ10: 16930200.87 | AK10: 1326605.723 | AL10: 1877.8661 | AM10: Spur | AN10: 1 | AO10: South
K11: c. An user input box will appear asking to "Please enter the row in the survey file to start the import." | AA11: 10 | AB11: 0 | AC11: 0 | AD11: 0 | AE11: 0 | AF11: 0 | AG11: 0 | AH11: =IF(AND(AI11>=$E$3,AI11<=$G$3),MAX(AH$2:AH10)+1,0) -> 0 | AI11: 1509 | AJ11: 16930207.54 | AK11: 1326506.007 | AL11: 1883 | AM11: Spur | AN11: 1 | AO11: South
F12: 1 | L12: < Enter 1 if the entire survey file is to be imported | AA12: 11 | AB12: 0 | AC12: 0 | AD12: 0 | AE12: 0 | AF12: 0 | AG12: 0 | AH12: =IF(AND(AI12>=$E$3,AI12<=$G$3),MAX(AH$2:AH11)+1,0) -> 0 | AI12: 1510 | AJ12: 16930211.04 | AK12: 1326376.055 | AL12: 1880.9915 | AM12: Spur | AN12: 1 | AO12: South
L13: < Some survey files may include a header above the survey data. This is not a desired input. Enter the number | AA13: 12 | AB13: 0 | AC13: 0 | AD13: 0 | AE13: 0 | AF13: 0 | AG13: 0 | AH13: =IF(AND(AI13>=$E$3,AI13<=$G$3),MAX(AH$2:AH12)+1,0) -> 0 | AI13: 1511 | AJ13: 16930249.87 | AK13: 1326117.967 | AL13: 1890 | AM13: Spur | AN13: 1 | AO13: South
M14: of the row that the survey data starts. | AA14: 13 | AB14: 0 | AC14: 0 | AD14: 0 | AE14: 0 | AF14: 0 | AG14: 0 | AH14: =IF(AND(AI14>=$E$3,AI14<=$G$3),MAX(AH$2:AH13)+1,0) -> 0 | AI14: 1512 | AJ14: 16930292.83 | AK14: 1326055.906 | AL14: 1889.672 | AM14: Spur | AN14: 1 | AO14: South
L15: < The first few shots in the survey may be base station or temporary benchmark shots. These may not be | AA15: 14 | AB15: 0 | AC15: 0 | AD15: 0 | AE15: 0 | AF15: 0 | AG15: 0 | AH15: =IF(AND(AI15>=$E$3,AI15<=$G$3),MAX(AH$2:AH14)+1,0) -> 1
M16: desired for data import. Enter the number of the row that the desired survey data starts. | AA16: 15 | AB16: 0 | AC16: 0 | AD16: 0 | AE16: 0 | AF16: 0 | AG16: 0 | AH16: =IF(AND(AI16>=$E$3,AI16<=$G$3),MAX(AH$2:AH15)+1,0) -> 2
AA17: 16 | AB17: 0 | AC17: 0 | AD17: 0 | AE17: 0 | AF17: 0 | AG17: 0 | AH17: =IF(AND(AI17>=$E$3,AI17<=$G$3),MAX(AH$2:AH16)+1,0) -> 3
I18: Station-Elevation Data can also be manually entered. | AA18: 17 | AB18: 0 | AC18: 0 | AD18: 0 | AE18: 0 | AF18: 0 | AG18: 0 | AH18: =IF(AND(AI18>=$E$3,AI18<=$G$3),MAX(AH$2:AH17)+1,0) -> 4
J19: During manual entry of survey data enter stationing as a numeric value. DO NOT USE THE + SYMBOL!!! | AA19: 18 | AB19: 0 | AC19: 0 | AD19: 0 | AE19: 0 | AF19: 0 | AG19: 0 | AH19: =IF(AND(AI19>=$E$3,AI19<=$G$3),MAX(AH$2:AH18)+1,0) -> 5
AA20: 19 | AB20: 0 | AC20: 0 | AD20: 0 | AE20: 0 | AF20: 0 | AG20: 0 | AH20: =IF(AND(AI20>=$E$3,AI20<=$G$3),MAX(AH$2:AH19)+1,0) -> 6
I21: Data can be manipulated after it is imported and before exported. | AA21: 20 | AB21: 0 | AC21: 0 | AD21: 0 | AE21: 0 | AF21: 0 | AG21: 0 | AH21: =IF(AND(AI21>=$E$3,AI21<=$G$3),MAX(AH$2:AH20)+1,0) -> 7
AA22: 21 | AB22: 0 | AC22: 0 | AD22: 0 | AE22: 0 | AF22: 0 | AG22: 0 | AH22: =IF(AND(AI22>=$E$3,AI22<=$G$3),MAX(AH$2:AH21)+1,0) -> 8
I23: Export the station and elevation data to the desired tab by clicking on the appropriate bottom. | AA23: 22 | AB23: 0 | AC23: 0 | AD23: 0 | AE23: 0 | AF23: 0 | AG23: 0 | AH23: =IF(AND(AI23>=$E$3,AI23<=$G$3),MAX(AH$2:AH22)+1,0) -> 9
AA24: 23 | AB24: 0 | AC24: 0 | AD24: 0 | AE24: 0 | AF24: 0 | AG24: 0 | AH24: =IF(AND(AI24>=$E$3,AI24<=$G$3),MAX(AH$2:AH23)+1,0) -> 10
I25: Stations vs Lengths User may select to use either stationing or measured lengths to insert data. If lengths are used, the first length | AA25: 24 | AB25: 0 | AC25: 0 | AD25: 0 | AE25: 0 | AF25: 0 | AG25: 0 | AH25: =IF(AND(AI25>=$E$3,AI25<=$G$3),MAX(AH$2:AH24)+1,0) -> 11
I26: is to be 0 in order to set the first station as Station 0+00. The remaining lengths will set the corresponding stations. | AA26: 25 | AB26: 0 | AC26: 0 | AD26: 0 | AE26: 0 | AF26: 0 | AG26: 0 | AH26: =IF(AND(AI26>=$E$3,AI26<=$G$3),MAX(AH$2:AH25)+1,0) -> 12
I27: I.E. A second length of 100 sets the second station to Station 1+00, the third length of 100 sets the third station to Station 2+00, etc..... | AA27: 26 | AB27: 0 | AC27: 0 | AD27: 0 | AE27: 0 | AF27: 0 | AG27: 0 | AH27: =IF(AND(AI27>=$E$3,AI27<=$G$3),MAX(AH$2:AH26)+1,0) -> 13
AA28: 27 | AB28: 0 | AC28: 0 | AD28: 0 | AE28: 0 | AF28: 0 | AG28: 0 | AH28: =IF(AND(AI28>=$E$3,AI28<=$G$3),MAX(AH$2:AH27)+1,0) -> 14
I29: Error Cannot run the macro ……. | AA29: 28 | AB29: 0 | AC29: 0 | AD29: 0 | AE29: 0 | AF29: 0 | AG29: 0 | AH29: =IF(AND(AI29>=$E$3,AI29<=$G$3),MAX(AH$2:AH28)+1,0) -> 15
J30: Change Excel Options "Trust Center Setting", "Macro Settings", Y Enable all macros | AA30: 29 | AB30: 0 | AC30: 0 | AD30: 0 | AE30: 0 | AF30: 0 | AG30: 0 | AH30: =IF(AND(AI30>=$E$3,AI30<=$G$3),MAX(AH$2:AH29)+1,0) -> 16
AA31: 30 | AB31: 0 | AC31: 0 | AD31: 0 | AE31: 0 | AF31: 0 | AG31: 0 | AH31: =IF(AND(AI31>=$E$3,AI31<=$G$3),MAX(AH$2:AH30)+1,0) -> 17
AA32: 31 | AB32: 0 | AC32: 0 | AD32: 0 | AE32: 0 | AF32: 0 | AG32: 0 | AH32: =IF(AND(AI32>=$E$3,AI32<=$G$3),MAX(AH$2:AH31)+1,0) -> 18
AA33: 32 | AB33: 0 | AC33: 0 | AD33: 0 | AE33: 0 | AF33: 0 | AG33: 0 | AH33: =IF(AND(AI33>=$E$3,AI33<=$G$3),MAX(AH$2:AH32)+1,0) -> 19
AA34: 33 | AB34: 0 | AC34: 0 | AD34: 0 | AE34: 0 | AF34: 0 | AG34: 0 | AH34: =IF(AND(AI34>=$E$3,AI34<=$G$3),MAX(AH$2:AH33)+1,0) -> 20
AA35: 34 | AB35: 0 | AC35: 0 | AD35: 0 | AE35: 0 | AF35: 0 | AG35: 0 | AH35: =IF(AND(AI35>=$E$3,AI35<=$G$3),MAX(AH$2:AH34)+1,0) -> 21
AA36: 35 | AB36: 0 | AC36: 0 | AD36: 0 | AE36: 0 | AF36: 0 | AG36: 0 | AH36: =IF(AND(AI36>=$E$3,AI36<=$G$3),MAX(AH$2:AH35)+1,0) -> 22
AA37: 36 | AB37: 0 | AC37: 0 | AD37: 0 | AE37: 0 | AF37: 0 | AG37: 0 | AH37: =IF(AND(AI37>=$E$3,AI37<=$G$3),MAX(AH$2:AH36)+1,0) -> 23
AA38: 37 | AB38: 0 | AC38: 0 | AD38: 0 | AE38: 0 | AF38: 0 | AG38: 0 | AH38: =IF(AND(AI38>=$E$3,AI38<=$G$3),MAX(AH$2:AH37)+1,0) -> 24
AA39: 38 | AB39: 0 | AC39: 0 | AD39: 0 | AE39: 0 | AF39: 0 | AG39: 0 | AH39: =IF(AND(AI39>=$E$3,AI39<=$G$3),MAX(AH$2:AH38)+1,0) -> 25
AA40: 39 | AB40: 0 | AC40: 0 | AD40: 0 | AE40: 0 | AF40: 0 | AG40: 0 | AH40: =IF(AND(AI40>=$E$3,AI40<=$G$3),MAX(AH$2:AH39)+1,0) -> 26
AA41: 40 | AB41: 0 | AC41: 0 | AD41: 0 | AE41: 0 | AF41: 0 | AG41: 0 | AH41: =IF(AND(AI41>=$E$3,AI41<=$G$3),MAX(AH$2:AH40)+1,0) -> 27
AA42: 41 | AB42: 0 | AC42: 0 | AD42: 0 | AE42: 0 | AF42: 0 | AG42: 0 | AH42: =IF(AND(AI42>=$E$3,AI42<=$G$3),MAX(AH$2:AH41)+1,0) -> 28
AA43: 42 | AB43: 0 | AC43: 0 | AD43: 0 | AE43: 0 | AF43: 0 | AG43: 0 | AH43: =IF(AND(AI43>=$E$3,AI43<=$G$3),MAX(AH$2:AH42)+1,0) -> 29
AA44: 43 | AB44: 0 | AC44: 0 | AD44: 0 | AE44: 0 | AF44: 0 | AG44: 0 | AH44: =IF(AND(AI44>=$E$3,AI44<=$G$3),MAX(AH$2:AH43)+1,0) -> 30
AA45: 44 | AB45: 0 | AC45: 0 | AD45: 0 | AE45: 0 | AF45: 0 | AG45: 0 | AH45: =IF(AND(AI45>=$E$3,AI45<=$G$3),MAX(AH$2:AH44)+1,0) -> 31
AA46: 45 | AB46: 0 | AC46: 0 | AD46: 0 | AE46: 0 | AF46: 0 | AG46: 0 | AH46: =IF(AND(AI46>=$E$3,AI46<=$G$3),MAX(AH$2:AH45)+1,0) -> 32
AA47: 46 | AB47: 0 | AC47: 0 | AD47: 0 | AE47: 0 | AF47: 0 | AG47: 0 | AH47: =IF(AND(AI47>=$E$3,AI47<=$G$3),MAX(AH$2:AH46)+1,0) -> 33
AA48: 47 | AB48: 0 | AC48: 0 | AD48: 0 | AE48: 0 | AF48: 0 | AG48: 0 | AH48: =IF(AND(AI48>=$E$3,AI48<=$G$3),MAX(AH$2:AH47)+1,0) -> 34
AA49: 48 | AB49: 0 | AC49: 0 | AD49: 0 | AE49: 0 | AF49: 0 | AG49: 0 | AH49: =IF(AND(AI49>=$E$3,AI49<=$G$3),MAX(AH$2:AH48)+1,0) -> 35
AA50: 49 | AB50: 0 | AC50: 0 | AD50: 0 | AE50: 0 | AF50: 0 | AG50: 0 | AH50: =IF(AND(AI50>=$E$3,AI50<=$G$3),MAX(AH$2:AH49)+1,0) -> 36
AA51: 50 | AB51: 0 | AC51: 0 | AD51: 0 | AE51: 0 | AF51: 0 | AG51: 0 | AH51: =IF(AND(AI51>=$E$3,AI51<=$G$3),MAX(AH$2:AH50)+1,0) -> 37
AA52: 51 | AB52: 0 | AC52: 0 | AD52: 0 | AE52: 0 | AF52: 0 | AG52: 0 | AH52: =IF(AND(AI52>=$E$3,AI52<=$G$3),MAX(AH$2:AH51)+1,0) -> 38
AA53: 52 | AB53: 0 | AC53: 0 | AD53: 0 | AE53: 0 | AF53: 0 | AG53: 0 | AH53: =IF(AND(AI53>=$E$3,AI53<=$G$3),MAX(AH$2:AH52)+1,0) -> 39
AA54: 53 | AB54: 0 | AC54: 0 | AD54: 0 | AE54: 0 | AF54: 0 | AG54: 0 | AH54: =IF(AND(AI54>=$E$3,AI54<=$G$3),MAX(AH$2:AH53)+1,0) -> 40
AA55: 54 | AB55: 0 | AC55: 0 | AD55: 0 | AE55: 0 | AF55: 0 | AG55: 0 | AH55: =IF(AND(AI55>=$E$3,AI55<=$G$3),MAX(AH$2:AH54)+1,0) -> 41
AA56: 55 | AB56: 0 | AC56: 0 | AD56: 0 | AE56: 0 | AF56: 0 | AG56: 0 | AH56: =IF(AND(AI56>=$E$3,AI56<=$G$3),MAX(AH$2:AH55)+1,0) -> 42
AA57: 56 | AB57: 0 | AC57: 0 | AD57: 0 | AE57: 0 | AF57: 0 | AG57: 0 | AH57: =IF(AND(AI57>=$E$3,AI57<=$G$3),MAX(AH$2:AH56)+1,0) -> 43
AA58: 57 | AB58: 0 | AC58: 0 | AD58: 0 | AE58: 0 | AF58: 0 | AG58: 0 | AH58: =IF(AND(AI58>=$E$3,AI58<=$G$3),MAX(AH$2:AH57)+1,0) -> 44
AA59: 58 | AB59: 0 | AC59: 0 | AD59: 0 | AE59: 0 | AF59: 0 | AG59: 0 | AH59: =IF(AND(AI59>=$E$3,AI59<=$G$3),MAX(AH$2:AH58)+1,0) -> 45
AA60: 59 | AB60: 0 | AC60: 0 | AD60: 0 | AE60: 0 | AF60: 0 | AG60: 0 | AH60: =IF(AND(AI60>=$E$3,AI60<=$G$3),MAX(AH$2:AH59)+1,0) -> 46
AA61: 60 | AB61: 0 | AC61: 0 | AD61: 0 | AE61: 0 | AF61: 0 | AG61: 0 | AH61: =IF(AND(AI61>=$E$3,AI61<=$G$3),MAX(AH$2:AH60)+1,0) -> 47
AA62: 61 | AB62: 0 | AC62: 0 | AD62: 0 | AE62: 0 | AF62: 0 | AG62: 0 | AH62: =IF(AND(AI62>=$E$3,AI62<=$G$3),MAX(AH$2:AH61)+1,0) -> 48
AA63: 62 | AB63: 0 | AC63: 0 | AD63: 0 | AE63: 0 | AF63: 0 | AG63: 0 | AH63: =IF(AND(AI63>=$E$3,AI63<=$G$3),MAX(AH$2:AH62)+1,0) -> 49
AA64: 63 | AB64: 0 | AC64: 0 | AD64: 0 | AE64: 0 | AF64: 0 | AG64: 0 | AH64: =IF(AND(AI64>=$E$3,AI64<=$G$3),MAX(AH$2:AH63)+1,0) -> 50
AA65: 64 | AB65: 0 | AC65: 0 | AD65: 0 | AE65: 0 | AF65: 0 | AG65: 0 | AH65: =IF(AND(AI65>=$E$3,AI65<=$G$3),MAX(AH$2:AH64)+1,0) -> 51
AA66: 65 | AB66: 0 | AC66: 0 | AD66: 0 | AE66: 0 | AF66: 0 | AG66: 0 | AH66: =IF(AND(AI66>=$E$3,AI66<=$G$3),MAX(AH$2:AH65)+1,0) -> 52
AA67: 66 | AB67: 0 | AC67: =IF($AA67>$AH$1,"",VLOOKUP($AA67,$AH$2:$AM$237,2,FALSE)) -> 0 | AD67: =IF($AA67>$AH$1,"",VLOOKUP($AA67,$AH$2:$AM$237,3,FALSE)) -> 0 | AE67: =IF($AA67>$AH$1,"",VLOOKUP($AA67,$AH$2:$AM$237,4,FALSE)) -> 0 | AF67: =IF($AA67>$AH$1,"",VLOOKUP($AA67,$AH$2:$AM$237,5,FALSE)) -> 0 | AG67: =IF($AA67>$AH$1,"",VLOOKUP($AA67,$AH$2:$AM$237,6,FALSE)) -> 0 | AH67: =IF(AND(AI67>=$E$3,AI67<=$G$3),MAX(AH$2:AH66)+1,0) -> 53
AA68: 67 | AB68: =IF($AA68>$AH$1,"",AB67+SQRT(ABS($AD68-$AD67)^2+ABS($AE68-$AE67)^2)) -> 0 | AC68: 0 | AD68: 0 | AE68: 0 | AF68: 0 | AG68: 0 | AH68: =IF(AND(AI68>=$E$3,AI68<=$G$3),MAX(AH$2:AH67)+1,0) -> 54
AA69: 68 | AB69: 0 | AC69: 0 | AD69: 0 | AE69: 0 | AF69: 0 | AG69: 0 | AH69: =IF(AND(AI69>=$E$3,AI69<=$G$3),MAX(AH$2:AH68)+1,0) -> 55
AA70: 69 | AB70: 0 | AC70: 0 | AD70: 0 | AE70: 0 | AF70: 0 | AG70: 0 | AH70: =IF(AND(AI70>=$E$3,AI70<=$G$3),MAX(AH$2:AH69)+1,0) -> 56
AA71: 70 | AB71: 0 | AC71: 0 | AD71: 0 | AE71: 0 | AF71: 0 | AG71: 0 | AH71: =IF(AND(AI71>=$E$3,AI71<=$G$3),MAX(AH$2:AH70)+1,0) -> 57
AA72: 71 | AB72: 0 | AC72: 0 | AD72: 0 | AE72: 0 | AF72: 0 | AG72: 0 | AH72: =IF(AND(AI72>=$E$3,AI72<=$G$3),MAX(AH$2:AH71)+1,0) -> 58
AA73: 72 | AB73: 0 | AC73: 0 | AD73: 0 | AE73: 0 | AF73: 0 | AG73: 0 | AH73: =IF(AND(AI73>=$E$3,AI73<=$G$3),MAX(AH$2:AH72)+1,0) -> 59
AA74: 73 | AB74: 0 | AC74: 0 | AD74: 0 | AE74: 0 | AF74: 0 | AG74: 0 | AH74: =IF(AND(AI74>=$E$3,AI74<=$G$3),MAX(AH$2:AH73)+1,0) -> 60
AA75: 74 | AB75: 0 | AC75: 0 | AD75: 0 | AE75: 0 | AF75: 0 | AG75: 0 | AH75: =IF(AND(AI75>=$E$3,AI75<=$G$3),MAX(AH$2:AH74)+1,0) -> 61
AA76: 75 | AB76: 0 | AC76: 0 | AD76: 0 | AE76: 0 | AF76: 0 | AG76: 0 | AH76: =IF(AND(AI76>=$E$3,AI76<=$G$3),MAX(AH$2:AH75)+1,0) -> 62
AA77: 76 | AB77: 0 | AC77: 0 | AD77: 0 | AE77: 0 | AF77: 0 | AG77: 0 | AH77: =IF(AND(AI77>=$E$3,AI77<=$G$3),MAX(AH$2:AH76)+1,0) -> 63
AA78: 77 | AB78: 0 | AC78: 0 | AD78: 0 | AE78: 0 | AF78: 0 | AG78: 0 | AH78: =IF(AND(AI78>=$E$3,AI78<=$G$3),MAX(AH$2:AH77)+1,0) -> 64
AA79: 78 | AB79: 0 | AC79: 0 | AD79: 0 | AE79: 0 | AF79: 0 | AG79: 0 | AH79: =IF(AND(AI79>=$E$3,AI79<=$G$3),MAX(AH$2:AH78)+1,0) -> 65
AA80: 79 | AB80: 0 | AC80: 0 | AD80: 0 | AE80: 0 | AF80: 0 | AG80: 0 | AH80: =IF(AND(AI80>=$E$3,AI80<=$G$3),MAX(AH$2:AH79)+1,0) -> 66
AA81: 80 | AB81: 0 | AC81: 0 | AD81: 0 | AE81: 0 | AF81: 0 | AG81: 0 | AH81: =IF(AND(AI81>=$E$3,AI81<=$G$3),MAX(AH$2:AH80)+1,0) -> 67
AA82: 81 | AB82: 0 | AC82: 0 | AD82: 0 | AE82: 0 | AF82: 0 | AG82: 0 | AH82: =IF(AND(AI82>=$E$3,AI82<=$G$3),MAX(AH$2:AH81)+1,0) -> 68
AA83: 82 | AB83: 0 | AC83: 0 | AD83: 0 | AE83: 0 | AF83: 0 | AG83: 0 | AH83: =IF(AND(AI83>=$E$3,AI83<=$G$3),MAX(AH$2:AH82)+1,0) -> 69
AA84: 83 | AB84: 0 | AC84: 0 | AD84: 0 | AE84: 0 | AF84: 0 | AG84: 0 | AH84: =IF(AND(AI84>=$E$3,AI84<=$G$3),MAX(AH$2:AH83)+1,0) -> 70
AA85: 84 | AB85: 0 | AC85: 0 | AD85: 0 | AE85: 0 | AF85: 0 | AG85: 0 | AH85: =IF(AND(AI85>=$E$3,AI85<=$G$3),MAX(AH$2:AH84)+1,0) -> 71
AA86: 85 | AB86: 0 | AC86: 0 | AD86: 0 | AE86: 0 | AF86: 0 | AG86: 0 | AH86: =IF(AND(AI86>=$E$3,AI86<=$G$3),MAX(AH$2:AH85)+1,0) -> 72
AA87: 86 | AB87: 0 | AC87: 0 | AD87: 0 | AE87: 0 | AF87: 0 | AG87: 0 | AH87: =IF(AND(AI87>=$E$3,AI87<=$G$3),MAX(AH$2:AH86)+1,0) -> 73
AA88: 87 | AB88: 0 | AC88: 0 | AD88: 0 | AE88: 0 | AF88: 0 | AG88: 0 | AH88: =IF(AND(AI88>=$E$3,AI88<=$G$3),MAX(AH$2:AH87)+1,0) -> 74
AA89: 88 | AB89: 0 | AC89: 0 | AD89: 0 | AE89: 0 | AF89: 0 | AG89: 0 | AH89: =IF(AND(AI89>=$E$3,AI89<=$G$3),MAX(AH$2:AH88)+1,0) -> 75
AA90: 89 | AB90: 0 | AC90: 0 | AD90: 0 | AE90: 0 | AF90: 0 | AG90: 0 | AH90: =IF(AND(AI90>=$E$3,AI90<=$G$3),MAX(AH$2:AH89)+1,0) -> 76
AA91: 90 | AB91: 0 | AC91: 0 | AD91: 0 | AE91: 0 | AF91: 0 | AG91: 0 | AH91: =IF(AND(AI91>=$E$3,AI91<=$G$3),MAX(AH$2:AH90)+1,0) -> 77
AA92: 91 | AB92: 0 | AC92: 0 | AD92: 0 | AE92: 0 | AF92: 0 | AG92: 0 | AH92: =IF(AND(AI92>=$E$3,AI92<=$G$3),MAX(AH$2:AH91)+1,0) -> 78
AA93: 92 | AB93: 0 | AC93: 0 | AD93: 0 | AE93: 0 | AF93: 0 | AG93: 0 | AH93: =IF(AND(AI93>=$E$3,AI93<=$G$3),MAX(AH$2:AH92)+1,0) -> 79
AA94: 93 | AB94: 0 | AC94: 0 | AD94: 0 | AE94: 0 | AF94: 0 | AG94: 0 | AH94: =IF(AND(AI94>=$E$3,AI94<=$G$3),MAX(AH$2:AH93)+1,0) -> 80
AA95: 94 | AB95: 0 | AC95: 0 | AD95: 0 | AE95: 0 | AF95: 0 | AG95: 0 | AH95: =IF(AND(AI95>=$E$3,AI95<=$G$3),MAX(AH$2:AH94)+1,0) -> 81
AA96: 95 | AB96: 0 | AC96: 0 | AD96: 0 | AE96: 0 | AF96: 0 | AG96: 0 | AH96: =IF(AND(AI96>=$E$3,AI96<=$G$3),MAX(AH$2:AH95)+1,0) -> 82
AA97: 96 | AB97: 0 | AC97: 0 | AD97: 0 | AE97: 0 | AF97: 0 | AG97: 0 | AH97: =IF(AND(AI97>=$E$3,AI97<=$G$3),MAX(AH$2:AH96)+1,0) -> 83
AA98: 97 | AB98: 0 | AC98: 0 | AD98: 0 | AE98: 0 | AF98: 0 | AG98: 0 | AH98: =IF(AND(AI98>=$E$3,AI98<=$G$3),MAX(AH$2:AH97)+1,0) -> 84
AA99: 98 | AB99: 0 | AC99: 0 | AD99: 0 | AE99: 0 | AF99: 0 | AG99: 0 | AH99: =IF(AND(AI99>=$E$3,AI99<=$G$3),MAX(AH$2:AH98)+1,0) -> 85
AA100: 99 | AB100: 0 | AC100: 0 | AD100: 0 | AE100: 0 | AF100: 0 | AG100: 0 | AH100: =IF(AND(AI100>=$E$3,AI100<=$G$3),MAX(AH$2:AH99)+1,0) -> 86
AA101: 100 | AB101: 0 | AC101: 0 | AD101: 0 | AE101: 0 | AF101: 0 | AG101: 0 | AH101: =IF(AND(AI101>=$E$3,AI101<=$G$3),MAX(AH$2:AH100)+1,0) -> 87
AA102: 101 | AB102: 0 | AC102: 0 | AD102: 0 | AE102: 0 | AF102: 0 | AG102: 0 | AH102: =IF(AND(AI102>=$E$3,AI102<=$G$3),MAX(AH$2:AH101)+1,0) -> 88
AA103: 102 | AB103: 0 | AC103: 0 | AD103: 0 | AE103: 0 | AF103: 0 | AG103: 0 | AH103: =IF(AND(AI103>=$E$3,AI103<=$G$3),MAX(AH$2:AH102)+1,0) -> 89
AA104: 103 | AB104: 0 | AC104: 0 | AD104: 0 | AE104: 0 | AF104: 0 | AG104: 0 | AH104: =IF(AND(AI104>=$E$3,AI104<=$G$3),MAX(AH$2:AH103)+1,0) -> 90
AA105: 104 | AB105: 0 | AC105: 0 | AD105: 0 | AE105: 0 | AF105: 0 | AG105: 0 | AH105: =IF(AND(AI105>=$E$3,AI105<=$G$3),MAX(AH$2:AH104)+1,0) -> 91
AA106: 105 | AB106: 0 | AC106: 0 | AD106: 0 | AE106: 0 | AF106: 0 | AG106: 0 | AH106: =IF(AND(AI106>=$E$3,AI106<=$G$3),MAX(AH$2:AH105)+1,0) -> 92
AA107: 106 | AB107: 0 | AC107: 0 | AD107: 0 | AE107: 0 | AF107: 0 | AG107: 0 | AH107: =IF(AND(AI107>=$E$3,AI107<=$G$3),MAX(AH$2:AH106)+1,0) -> 93
AA108: 107 | AB108: 0 | AC108: 0 | AD108: 0 | AE108: 0 | AF108: 0 | AG108: 0 | AH108: =IF(AND(AI108>=$E$3,AI108<=$G$3),MAX(AH$2:AH107)+1,0) -> 94
AA109: 108 | AB109: 0 | AC109: 0 | AD109: 0 | AE109: 0 | AF109: 0 | AG109: 0 | AH109: =IF(AND(AI109>=$E$3,AI109<=$G$3),MAX(AH$2:AH108)+1,0) -> 95
AA110: 109 | AB110: 0 | AC110: 0 | AD110: 0 | AE110: 0 | AF110: 0 | AG110: 0 | AH110: =IF(AND(AI110>=$E$3,AI110<=$G$3),MAX(AH$2:AH109)+1,0) -> 96
AA111: 110 | AB111: 0 | AC111: 0 | AD111: 0 | AE111: 0 | AF111: 0 | AG111: 0 | AH111: =IF(AND(AI111>=$E$3,AI111<=$G$3),MAX(AH$2:AH110)+1,0) -> 97
AA112: 111 | AB112: 0 | AC112: 0 | AD112: 0 | AE112: 0 | AF112: 0 | AG112: 0 | AH112: =IF(AND(AI112>=$E$3,AI112<=$G$3),MAX(AH$2:AH111)+1,0) -> 98
AA113: 112 | AB113: 0 | AC113: 0 | AD113: 0 | AE113: 0 | AF113: 0 | AG113: 0 | AH113: =IF(AND(AI113>=$E$3,AI113<=$G$3),MAX(AH$2:AH112)+1,0) -> 99
AA114: 113 | AB114: 0 | AC114: 0 | AD114: 0 | AE114: 0 | AF114: 0 | AG114: 0 | AH114: =IF(AND(AI114>=$E$3,AI114<=$G$3),MAX(AH$2:AH113)+1,0) -> 100
AA115: 114 | AB115: 0 | AC115: 0 | AD115: 0 | AE115: 0 | AF115: 0 | AG115: 0 | AH115: =IF(AND(AI115>=$E$3,AI115<=$G$3),MAX(AH$2:AH114)+1,0) -> 101
AA116: 115 | AB116: 0 | AC116: 0 | AD116: 0 | AE116: 0 | AF116: 0 | AG116: 0 | AH116: =IF(AND(AI116>=$E$3,AI116<=$G$3),MAX(AH$2:AH115)+1,0) -> 102
AA117: 116 | AB117: 0 | AC117: 0 | AD117: 0 | AE117: 0 | AF117: 0 | AG117: 0 | AH117: =IF(AND(AI117>=$E$3,AI117<=$G$3),MAX(AH$2:AH116)+1,0) -> 103
AA118: 117 | AB118: 0 | AC118: 0 | AD118: 0 | AE118: 0 | AF118: 0 | AG118: 0 | AH118: =IF(AND(AI118>=$E$3,AI118<=$G$3),MAX(AH$2:AH117)+1,0) -> 104
AA119: 118 | AB119: 0 | AC119: 0 | AD119: 0 | AE119: 0 | AF119: 0 | AG119: 0 | AH119: =IF(AND(AI119>=$E$3,AI119<=$G$3),MAX(AH$2:AH118)+1,0) -> 105
AA120: 119 | AB120: 0 | AC120: 0 | AD120: 0 | AE120: 0 | AF120: 0 | AG120: 0 | AH120: =IF(AND(AI120>=$E$3,AI120<=$G$3),MAX(AH$2:AH119)+1,0) -> 106
AA121: 120 | AB121: 0 | AC121: 0 | AD121: 0 | AE121: 0 | AF121: 0 | AG121: 0 | AH121: =IF(AND(AI121>=$E$3,AI121<=$G$3),MAX(AH$2:AH120)+1,0) -> 107
AA122: 121 | AB122: 0 | AC122: 0 | AD122: 0 | AE122: 0 | AF122: 0 | AG122: 0 | AH122: =IF(AND(AI122>=$E$3,AI122<=$G$3),MAX(AH$2:AH121)+1,0) -> 108
AA123: 122 | AB123: 0 | AC123: 0 | AD123: 0 | AE123: 0 | AF123: 0 | AG123: 0 | AH123: =IF(AND(AI123>=$E$3,AI123<=$G$3),MAX(AH$2:AH122)+1,0) -> 109
AA124: 123 | AB124: 0 | AC124: 0 | AD124: 0 | AE124: 0 | AF124: 0 | AG124: 0 | AH124: =IF(AND(AI124>=$E$3,AI124<=$G$3),MAX(AH$2:AH123)+1,0) -> 110
AA125: 124 | AB125: 0 | AC125: 0 | AD125: 0 | AE125: 0 | AF125: 0 | AG125: 0 | AH125: =IF(AND(AI125>=$E$3,AI125<=$G$3),MAX(AH$2:AH124)+1,0) -> 111
AA126: 125 | AB126: 0 | AC126: 0 | AD126: 0 | AE126: 0 | AF126: 0 | AG126: 0 | AH126: =IF(AND(AI126>=$E$3,AI126<=$G$3),MAX(AH$2:AH125)+1,0) -> 112
AA127: 126 | AB127: 0 | AC127: 0 | AD127: 0 | AE127: 0 | AF127: 0 | AG127: 0 | AH127: =IF(AND(AI127>=$E$3,AI127<=$G$3),MAX(AH$2:AH126)+1,0) -> 113
AA128: 127 | AB128: 0 | AC128: 0 | AD128: 0 | AE128: 0 | AF128: 0 | AG128: 0 | AH128: =IF(AND(AI128>=$E$3,AI128<=$G$3),MAX(AH$2:AH127)+1,0) -> 114
AA129: 128 | AB129: 0 | AC129: 0 | AD129: 0 | AE129: 0 | AF129: 0 | AG129: 0 | AH129: =IF(AND(AI129>=$E$3,AI129<=$G$3),MAX(AH$2:AH128)+1,0) -> 115
AA130: 129 | AB130: 0 | AC130: 0 | AD130: 0 | AE130: 0 | AF130: 0 | AG130: 0 | AH130: =IF(AND(AI130>=$E$3,AI130<=$G$3),MAX(AH$2:AH129)+1,0) -> 116
AA131: 130 | AB131: 0 | AC131: =IF($AA131>$AH$1,"",VLOOKUP($AA131,$AH$2:$AM$237,2,FALSE)) -> 0 | AD131: =IF($AA131>$AH$1,"",VLOOKUP($AA131,$AH$2:$AM$237,3,FALSE)) -> 0 | AE131: =IF($AA131>$AH$1,"",VLOOKUP($AA131,$AH$2:$AM$237,4,FALSE)) -> 0 | AF131: =IF($AA131>$AH$1,"",VLOOKUP($AA131,$AH$2:$AM$237,5,FALSE)) -> 0 | AG131: =IF($AA131>$AH$1,"",VLOOKUP($AA131,$AH$2:$AM$237,6,FALSE)) -> 0 | AH131: =IF(AND(AI131>=$E$3,AI131<=$G$3),MAX(AH$2:AH130)+1,0) -> 117
AA132: 131 | AB132: =IF($AA132>$AH$1,"",AB131+SQRT(ABS($AD132-$AD131)^2+ABS($AE132-$AE131)^2)) -> 0 | AC132: 0 | AD132: 0 | AE132: 0 | AF132: 0 | AG132: 0 | AH132: =IF(AND(AI132>=$E$3,AI132<=$G$3),MAX(AH$2:AH131)+1,0) -> 118
AA133: 132 | AB133: 0 | AC133: 0 | AD133: 0 | AE133: 0 | AF133: 0 | AG133: 0 | AH133: =IF(AND(AI133>=$E$3,AI133<=$G$3),MAX(AH$2:AH132)+1,0) -> 119
AA134: 133 | AB134: 0 | AC134: 0 | AD134: 0 | AE134: 0 | AF134: 0 | AG134: 0 | AH134: =IF(AND(AI134>=$E$3,AI134<=$G$3),MAX(AH$2:AH133)+1,0) -> 120
AA135: 134 | AB135: 0 | AC135: 0 | AD135: 0 | AE135: 0 | AF135: 0 | AG135: 0 | AH135: =IF(AND(AI135>=$E$3,AI135<=$G$3),MAX(AH$2:AH134)+1,0) -> 121
AA136: 135 | AB136: 0 | AC136: 0 | AD136: 0 | AE136: 0 | AF136: 0 | AG136: 0 | AH136: =IF(AND(AI136>=$E$3,AI136<=$G$3),MAX(AH$2:AH135)+1,0) -> 122
AA137: 136 | AB137: 0 | AC137: 0 | AD137: 0 | AE137: 0 | AF137: 0 | AG137: 0 | AH137: =IF(AND(AI137>=$E$3,AI137<=$G$3),MAX(AH$2:AH136)+1,0) -> 123
AA138: 137 | AB138: 0 | AC138: 0 | AD138: 0 | AE138: 0 | AF138: 0 | AG138: 0 | AH138: =IF(AND(AI138>=$E$3,AI138<=$G$3),MAX(AH$2:AH137)+1,0) -> 124
AA139: 138 | AB139: 0 | AC139: 0 | AD139: 0 | AE139: 0 | AF139: 0 | AG139: 0 | AH139: =IF(AND(AI139>=$E$3,AI139<=$G$3),MAX(AH$2:AH138)+1,0) -> 125
AA140: 139 | AB140: 0 | AC140: 0 | AD140: 0 | AE140: 0 | AF140: 0 | AG140: 0 | AH140: =IF(AND(AI140>=$E$3,AI140<=$G$3),MAX(AH$2:AH139)+1,0) -> 126
AA141: 140 | AB141: 0 | AC141: 0 | AD141: 0 | AE141: 0 | AF141: 0 | AG141: 0 | AH141: =IF(AND(AI141>=$E$3,AI141<=$G$3),MAX(AH$2:AH140)+1,0) -> 127
AA142: 141 | AB142: 0 | AC142: 0 | AD142: 0 | AE142: 0 | AF142: 0 | AG142: 0 | AH142: =IF(AND(AI142>=$E$3,AI142<=$G$3),MAX(AH$2:AH141)+1,0) -> 128
AA143: 142 | AB143: 0 | AC143: 0 | AD143: 0 | AE143: 0 | AF143: 0 | AG143: 0 | AH143: =IF(AND(AI143>=$E$3,AI143<=$G$3),MAX(AH$2:AH142)+1,0) -> 129
AA144: 143 | AB144: 0 | AC144: 0 | AD144: 0 | AE144: 0 | AF144: 0 | AG144: 0 | AH144: =IF(AND(AI144>=$E$3,AI144<=$G$3),MAX(AH$2:AH143)+1,0) -> 130
AA145: 144 | AB145: 0 | AC145: 0 | AD145: 0 | AE145: 0 | AF145: 0 | AG145: 0 | AH145: =IF(AND(AI145>=$E$3,AI145<=$G$3),MAX(AH$2:AH144)+1,0) -> 131
AA146: 145 | AB146: 0 | AC146: 0 | AD146: 0 | AE146: 0 | AF146: 0 | AG146: 0 | AH146: =IF(AND(AI146>=$E$3,AI146<=$G$3),MAX(AH$2:AH145)+1,0) -> 132
AA147: 146 | AB147: 0 | AC147: 0 | AD147: 0 | AE147: 0 | AF147: 0 | AG147: 0 | AH147: =IF(AND(AI147>=$E$3,AI147<=$G$3),MAX(AH$2:AH146)+1,0) -> 133
AA148: 147 | AB148: 0 | AC148: 0 | AD148: 0 | AE148: 0 | AF148: 0 | AG148: 0 | AH148: =IF(AND(AI148>=$E$3,AI148<=$G$3),MAX(AH$2:AH147)+1,0) -> 134
AA149: 148 | AB149: 0 | AC149: 0 | AD149: 0 | AE149: 0 | AF149: 0 | AG149: 0 | AH149: =IF(AND(AI149>=$E$3,AI149<=$G$3),MAX(AH$2:AH148)+1,0) -> 135
AA150: 149 | AB150: 0 | AC150: 0 | AD150: 0 | AE150: 0 | AF150: 0 | AG150: 0 | AH150: =IF(AND(AI150>=$E$3,AI150<=$G$3),MAX(AH$2:AH149)+1,0) -> 136
AA151: 150 | AB151: 0 | AC151: 0 | AD151: 0 | AE151: 0 | AF151: 0 | AG151: 0 | AH151: =IF(AND(AI151>=$E$3,AI151<=$G$3),MAX(AH$2:AH150)+1,0) -> 137
AA152: 151 | AB152: 0 | AC152: 0 | AD152: 0 | AE152: 0 | AF152: 0 | AG152: 0 | AH152: =IF(AND(AI152>=$E$3,AI152<=$G$3),MAX(AH$2:AH151)+1,0) -> 138
AA153: 152 | AB153: 0 | AC153: 0 | AD153: 0 | AE153: 0 | AF153: 0 | AG153: 0 | AH153: =IF(AND(AI153>=$E$3,AI153<=$G$3),MAX(AH$2:AH152)+1,0) -> 139
AA154: 153 | AB154: 0 | AC154: 0 | AD154: 0 | AE154: 0 | AF154: 0 | AG154: 0 | AH154: =IF(AND(AI154>=$E$3,AI154<=$G$3),MAX(AH$2:AH153)+1,0) -> 140
AA155: 154 | AB155: 0 | AC155: 0 | AD155: 0 | AE155: 0 | AF155: 0 | AG155: 0 | AH155: =IF(AND(AI155>=$E$3,AI155<=$G$3),MAX(AH$2:AH154)+1,0) -> 141
AA156: 155 | AB156: 0 | AC156: 0 | AD156: 0 | AE156: 0 | AF156: 0 | AG156: 0 | AH156: =IF(AND(AI156>=$E$3,AI156<=$G$3),MAX(AH$2:AH155)+1,0) -> 142
AA157: 156 | AB157: 0 | AC157: 0 | AD157: 0 | AE157: 0 | AF157: 0 | AG157: 0 | AH157: =IF(AND(AI157>=$E$3,AI157<=$G$3),MAX(AH$2:AH156)+1,0) -> 143
AA158: 157 | AB158: 0 | AC158: 0 | AD158: 0 | AE158: 0 | AF158: 0 | AG158: 0 | AH158: =IF(AND(AI158>=$E$3,AI158<=$G$3),MAX(AH$2:AH157)+1,0) -> 144
AA159: 158 | AB159: 0 | AC159: 0 | AD159: 0 | AE159: 0 | AF159: 0 | AG159: 0 | AH159: =IF(AND(AI159>=$E$3,AI159<=$G$3),MAX(AH$2:AH158)+1,0) -> 145
AA160: 159 | AB160: 0 | AC160: 0 | AD160: 0 | AE160: 0 | AF160: 0 | AG160: 0 | AH160: =IF(AND(AI160>=$E$3,AI160<=$G$3),MAX(AH$2:AH159)+1,0) -> 146
AA161: 160 | AB161: 0 | AC161: 0 | AD161: 0 | AE161: 0 | AF161: 0 | AG161: 0 | AH161: =IF(AND(AI161>=$E$3,AI161<=$G$3),MAX(AH$2:AH160)+1,0) -> 147
AA162: 161 | AB162: 0 | AC162: 0 | AD162: 0 | AE162: 0 | AF162: 0 | AG162: 0 | AH162: =IF(AND(AI162>=$E$3,AI162<=$G$3),MAX(AH$2:AH161)+1,0) -> 148
AA163: 162 | AB163: 0 | AC163: 0 | AD163: 0 | AE163: 0 | AF163: 0 | AG163: 0 | AH163: =IF(AND(AI163>=$E$3,AI163<=$G$3),MAX(AH$2:AH162)+1,0) -> 149
AA164: 163 | AB164: 0 | AC164: 0 | AD164: 0 | AE164: 0 | AF164: 0 | AG164: 0 | AH164: =IF(AND(AI164>=$E$3,AI164<=$G$3),MAX(AH$2:AH163)+1,0) -> 150
AA165: 164 | AB165: 0 | AC165: 0 | AD165: 0 | AE165: 0 | AF165: 0 | AG165: 0 | AH165: =IF(AND(AI165>=$E$3,AI165<=$G$3),MAX(AH$2:AH164)+1,0) -> 151
AA166: 165 | AB166: 0 | AC166: 0 | AD166: 0 | AE166: 0 | AF166: 0 | AG166: 0 | AH166: =IF(AND(AI166>=$E$3,AI166<=$G$3),MAX(AH$2:AH165)+1,0) -> 152
AA167: 166 | AB167: 0 | AC167: 0 | AD167: 0 | AE167: 0 | AF167: 0 | AG167: 0 | AH167: =IF(AND(AI167>=$E$3,AI167<=$G$3),MAX(AH$2:AH166)+1,0) -> 153
AA168: 167 | AB168: 0 | AC168: 0 | AD168: 0 | AE168: 0 | AF168: 0 | AG168: 0 | AH168: =IF(AND(AI168>=$E$3,AI168<=$G$3),MAX(AH$2:AH167)+1,0) -> 154
AA169: 168 | AB169: 0 | AC169: 0 | AD169: 0 | AE169: 0 | AF169: 0 | AG169: 0 | AH169: =IF(AND(AI169>=$E$3,AI169<=$G$3),MAX(AH$2:AH168)+1,0) -> 155
AA170: 169 | AB170: 0 | AC170: 0 | AD170: 0 | AE170: 0 | AF170: 0 | AG170: 0 | AH170: =IF(AND(AI170>=$E$3,AI170<=$G$3),MAX(AH$2:AH169)+1,0) -> 156
AA171: 170 | AB171: 0 | AC171: 0 | AD171: 0 | AE171: 0 | AF171: 0 | AG171: 0 | AH171: =IF(AND(AI171>=$E$3,AI171<=$G$3),MAX(AH$2:AH170)+1,0) -> 157
AA172: 171 | AB172: 0 | AC172: 0 | AD172: 0 | AE172: 0 | AF172: 0 | AG172: 0 | AH172: =IF(AND(AI172>=$E$3,AI172<=$G$3),MAX(AH$2:AH171)+1,0) -> 158
AA173: 172 | AB173: 0 | AC173: 0 | AD173: 0 | AE173: 0 | AF173: 0 | AG173: 0 | AH173: =IF(AND(AI173>=$E$3,AI173<=$G$3),MAX(AH$2:AH172)+1,0) -> 159
AA174: 173 | AB174: 0 | AC174: 0 | AD174: 0 | AE174: 0 | AF174: 0 | AG174: 0 | AH174: =IF(AND(AI174>=$E$3,AI174<=$G$3),MAX(AH$2:AH173)+1,0) -> 160
AA175: 174 | AB175: 0 | AC175: 0 | AD175: 0 | AE175: 0 | AF175: 0 | AG175: 0 | AH175: =IF(AND(AI175>=$E$3,AI175<=$G$3),MAX(AH$2:AH174)+1,0) -> 161
AA176: 175 | AB176: 0 | AC176: 0 | AD176: 0 | AE176: 0 | AF176: 0 | AG176: 0 | AH176: =IF(AND(AI176>=$E$3,AI176<=$G$3),MAX(AH$2:AH175)+1,0) -> 162
AA177: 176 | AB177: 0 | AC177: 0 | AD177: 0 | AE177: 0 | AF177: 0 | AG177: 0 | AH177: =IF(AND(AI177>=$E$3,AI177<=$G$3),MAX(AH$2:AH176)+1,0) -> 163
AA178: 177 | AB178: 0 | AC178: 0 | AD178: 0 | AE178: 0 | AF178: 0 | AG178: 0 | AH178: =IF(AND(AI178>=$E$3,AI178<=$G$3),MAX(AH$2:AH177)+1,0) -> 164
AA179: 178 | AB179: 0 | AC179: 0 | AD179: 0 | AE179: 0 | AF179: 0 | AG179: 0 | AH179: =IF(AND(AI179>=$E$3,AI179<=$G$3),MAX(AH$2:AH178)+1,0) -> 165
AA180: 179 | AB180: 0 | AC180: 0 | AD180: 0 | AE180: 0 | AF180: 0 | AG180: 0 | AH180: =IF(AND(AI180>=$E$3,AI180<=$G$3),MAX(AH$2:AH179)+1,0) -> 166
AA181: 180 | AB181: 0 | AC181: 0 | AD181: 0 | AE181: 0 | AF181: 0 | AG181: 0 | AH181: =IF(AND(AI181>=$E$3,AI181<=$G$3),MAX(AH$2:AH180)+1,0) -> 167
AA182: 181 | AB182: 0 | AC182: 0 | AD182: 0 | AE182: 0 | AF182: 0 | AG182: 0 | AH182: =IF(AND(AI182>=$E$3,AI182<=$G$3),MAX(AH$2:AH181)+1,0) -> 168
AA183: 182 | AB183: 0 | AC183: 0 | AD183: 0 | AE183: 0 | AF183: 0 | AG183: 0 | AH183: =IF(AND(AI183>=$E$3,AI183<=$G$3),MAX(AH$2:AH182)+1,0) -> 169
AA184: 183 | AB184: 0 | AC184: 0 | AD184: 0 | AE184: 0 | AF184: 0 | AG184: 0 | AH184: =IF(AND(AI184>=$E$3,AI184<=$G$3),MAX(AH$2:AH183)+1,0) -> 170
AA185: 184 | AB185: 0 | AC185: 0 | AD185: 0 | AE185: 0 | AF185: 0 | AG185: 0 | AH185: =IF(AND(AI185>=$E$3,AI185<=$G$3),MAX(AH$2:AH184)+1,0) -> 171
AA186: 185 | AB186: 0 | AC186: 0 | AD186: 0 | AE186: 0 | AF186: 0 | AG186: 0 | AH186: =IF(AND(AI186>=$E$3,AI186<=$G$3),MAX(AH$2:AH185)+1,0) -> 172
AA187: 186 | AB187: 0 | AC187: 0 | AD187: 0 | AE187: 0 | AF187: 0 | AG187: 0 | AH187: =IF(AND(AI187>=$E$3,AI187<=$G$3),MAX(AH$2:AH186)+1,0) -> 173
AA188: 187 | AB188: 0 | AC188: 0 | AD188: 0 | AE188: 0 | AF188: 0 | AG188: 0 | AH188: =IF(AND(AI188>=$E$3,AI188<=$G$3),MAX(AH$2:AH187)+1,0) -> 174
AA189: 188 | AB189: 0 | AC189: 0 | AD189: 0 | AE189: 0 | AF189: 0 | AG189: 0 | AH189: =IF(AND(AI189>=$E$3,AI189<=$G$3),MAX(AH$2:AH188)+1,0) -> 175
AA190: 189 | AB190: 0 | AC190: 0 | AD190: 0 | AE190: 0 | AF190: 0 | AG190: 0 | AH190: =IF(AND(AI190>=$E$3,AI190<=$G$3),MAX(AH$2:AH189)+1,0) -> 176
AA191: 190 | AB191: 0 | AC191: 0 | AD191: 0 | AE191: 0 | AF191: 0 | AG191: 0 | AH191: =IF(AND(AI191>=$E$3,AI191<=$G$3),MAX(AH$2:AH190)+1,0) -> 177
AA192: 191 | AB192: 0 | AC192: 0 | AD192: 0 | AE192: 0 | AF192: 0 | AG192: 0 | AH192: =IF(AND(AI192>=$E$3,AI192<=$G$3),MAX(AH$2:AH191)+1,0) -> 178
AA193: 192 | AB193: 0 | AC193: 0 | AD193: 0 | AE193: 0 | AF193: 0 | AG193: 0 | AH193: =IF(AND(AI193>=$E$3,AI193<=$G$3),MAX(AH$2:AH192)+1,0) -> 179
AA194: 193 | AB194: 0 | AC194: 0 | AD194: 0 | AE194: 0 | AF194: 0 | AG194: 0 | AH194: =IF(AND(AI194>=$E$3,AI194<=$G$3),MAX(AH$2:AH193)+1,0) -> 180
AA195: 194 | AB195: 0 | AC195: =IF($AA195>$AH$1,"",VLOOKUP($AA195,$AH$2:$AM$237,2,FALSE)) -> 0 | AD195: =IF($AA195>$AH$1,"",VLOOKUP($AA195,$AH$2:$AM$237,3,FALSE)) -> 0 | AE195: =IF($AA195>$AH$1,"",VLOOKUP($AA195,$AH$2:$AM$237,4,FALSE)) -> 0 | AF195: =IF($AA195>$AH$1,"",VLOOKUP($AA195,$AH$2:$AM$237,5,FALSE)) -> 0 | AG195: =IF($AA195>$AH$1,"",VLOOKUP($AA195,$AH$2:$AM$237,6,FALSE)) -> 0 | AH195: =IF(AND(AI195>=$E$3,AI195<=$G$3),MAX(AH$2:AH194)+1,0) -> 181
AA196: 195 | AB196: =IF($AA196>$AH$1,"",AB195+SQRT(ABS($AD196-$AD195)^2+ABS($AE196-$AE195)^2)) -> 0 | AC196: 0 | AD196: 0 | AE196: 0 | AF196: 0 | AG196: 0 | AH196: =IF(AND(AI196>=$E$3,AI196<=$G$3),MAX(AH$2:AH195)+1,0) -> 182
AA197: 196 | AB197: 0 | AC197: 0 | AD197: 0 | AE197: 0 | AF197: 0 | AG197: 0 | AH197: =IF(AND(AI197>=$E$3,AI197<=$G$3),MAX(AH$2:AH196)+1,0) -> 183
AA198: 197 | AB198: 0 | AC198: 0 | AD198: 0 | AE198: 0 | AF198: 0 | AG198: 0 | AH198: =IF(AND(AI198>=$E$3,AI198<=$G$3),MAX(AH$2:AH197)+1,0) -> 184
AA199: 198 | AB199: 0 | AC199: 0 | AD199: 0 | AE199: 0 | AF199: 0 | AG199: 0 | AH199: =IF(AND(AI199>=$E$3,AI199<=$G$3),MAX(AH$2:AH198)+1,0) -> 185
AA200: 199 | AB200: 0 | AC200: 0 | AD200: 0 | AE200: 0 | AF200: 0 | AG200: 0 | AH200: =IF(AND(AI200>=$E$3,AI200<=$G$3),MAX(AH$2:AH199)+1,0) -> 186
... 39 more rows

Sheet Main
A1: Stockwater Pipeline Hydraulic Computation Worksheet | O1: =IF(A311=1,"Total Dynamic Head (ft) =",IF(A311=2,"Tank Stand Height (ft) =",IF(A311=3,"Head at Water Meter (ft)","Head at Spring (ft)"))) -> Total Dynamic Head (ft) = | T1: DSN BY: | U1: =IF(Designer="","",Designer) ->  | V1: =IF(OR(A311=2,A311=3,A311=4),C10,0) -> 0 | W1: =IF(A311=1,"NOTE: The TDH is calculated with losses at the well included. Therefore, the estimated pipe sizes/material should be entered on the 'Pump' sheet and the TDH should be recalculated to include the plumbing losses at the well.",IF(A311=2,"Note: The TDH button can be used to determine additional elevation required for a water storage tank on a gravity fed system.","")) -> NOTE: The TDH is calculated with losses at the well included. Therefore, the estimated pipe sizes/material should be entered on the 'Pump' sheet and the TDH should be recalculated to include the plumbing losses at the well. | AD1: =IF(P311<24.5,P311,0) -> 0 | AE1: =IF(OR(A311=1,A311=2),MAX(AF1:AP1),0) -> 0 | AF1: 0 | AG1: 0 | AH1: 0 | AI1: 0 | AJ1: 0 | AK1: 0 | AL1: 0 | AM1: 0 | AN1: 0 | AO1: 0 | AP1: 0 | AQ1: =MIN(P311-Pump_Loss,IF('Spur 1'!P311<>0,'Spur 1'!P311-Pump_Loss,100),IF('Spur 2'!P311<>0,'Spur 2'!P311-Pump_Loss,100),IF('Spur 3'!P311<>0,'Spur 3'!P311-Pump_Loss,100),IF('Spur 4'!P311<>0,'Spur 4'!P311-Pump_Loss,100),IF('Spur 5'!P311<>0,'Spur 5'!P311-Pump_Loss,100),IF('Spur 6'!P311<>0,'Spur 6'!P311-Pump_Loss,100),IF('Spur 7'!P311<>0,'Spur 7'!P311-Pump_Loss,100),IF('Spur 8'!P311<>0,'Spur 8'!P311-Pump_Loss,100),IF('Spur 9'!P311<>0,'Spur 9'!P311-Pump_Loss,100),IF('Spur 10'!P311<>0,'Spur 10'!P311-Pump_Loss,100)) -> 0 | AR1: =INDEX(AF1:AP2,2,MATCH(MAX(AF1:AP1),AF1:AP1,0)) -> Main
A2: Producer: | B2: =Producer -> 0 | O2: =IF(A311=1,"Source Water Surface (ft) =","Existing Ground Elev (ft) =") -> Source Water Surface (ft) = | T2: DATE: | U2: =IF(Dsgn_Date="","",Dsgn_Date) ->  | AF2: Main | AG2: Spur 1 | AH2: Spur 2 | AI2: Spur 3 | AJ2: Spur 4 | AK2: Spur 5 | AL2: Spur 6 | AM2: Spur 7 | AN2: Spur 8 | AO2: Spur 9 | AP2: Spur 10 | AQ2: Clearance Head at Critical Point | AR2: Line where Critical Point Occurs
A3: Line: | B3: Main | O3: Avg Burial Depth (ft) = | T3: CHECKED: | Y3: Critical Point
K4: =IF(OR($C$311=TRUE,$F$311=TRUE),"Station","") ->  | M4: =IF(OR($C$311=TRUE,$F$311=TRUE),"Pressure","") ->  | Q4: # of Spurs off Main Line = | R4: 0 | T4: DATE: | Y4: Station | Z4: Grnd Elev | AA4: Pipe Elev | AB4: Cum. Friction
D5: =IF(A311=3,"Pressure at Water Meter (psi):","") ->  | I5: =IF(C311=TRUE,"Reducer Info:","") ->  | Q5: =IF(A311=2,"Tank Height =","") ->  | Y5: =INDEX(A10:A249,MATCH(P311,P10:P249,0)) ->  | Z5: =INDEX(C10:C249,MATCH(P311,P10:P249,0)) ->  | AA5: =INDEX(AF10:AF249,MATCH(P311,P10:P249,0)) ->  | AB5: =INDEX(AB10:AB249,MATCH(Y5,Stations,0)) -> 
D6: =IF(E11="Custom",'Pipe Tables'!B50,"") ->  | F6: =IF(ISNUMBER(F5),F5*2.3067,"") ->  | G6: =IF(A311=3,"ft of Water","") ->  | I6: =IF(F311=TRUE,"Booster Pump:","") ->  | O6: =IF(F311=TRUE,"*Hydraulic Pressure","") -> 
A7: Station ft. | B7: Length ft. | C7: Ground Elev ft. | D7: Pipe Data | F7: Flow gpm | G7: Pipe Rating | H7: I.D. inches | I7: c | J7: Friction ft./ft. | K7: Line Friction ft. | L7: PRD Fall-off psi | M7: HGL elev. | N7: SGL elev. | O7: Vel ft./sec. | P7: Working Head ft. | Q7: Working Pressure psi | R7: Static Pressure psi | S7: Comments | W7: Reset and Clear the sheet
D8: Size | E8: Material | AB8: Cumulative Friction | AD8: Pipe | AI8: Tracks Changes in User Selections | AL8: Calculated Values Based on User Selections | AP8: Values Used in Analysis
B9: =SUM(B11:B248) -> 0 | AF9: Pipe Invert Elevations | AG9: SGL | AH9: HGL | AI9: Size | AJ9: Material | AK9: Flow Rate | AL9: Rating | AM9: ID | AN9: c | AO9: Friction | AP9: Size | AQ9: Material | AR9: Flow Rate | AS9: Rating
M10: =IF(OR(AF10="",R2=""),"",IF(AND($C$311=TRUE,$K$5=A10),($M$5*144/62.4+AF10)-((L10*144/62.4)),IF(AND($F$311=TRUE,$K$6=A10, A311=1),R1+R2+($M$6*144/62.4)-L10*144/62.4,IF(AND($F$311=TRUE,$K$6=A10, A311=2),$M$6*144/62.4+R1+R2-L10*144/62.4,IF(AND($F$311=TRUE,$K$6=A10,OR(A311=3,A311=4)),R1+AF10+($M$6*144/62.4)-L10*144/62.4,IF(A311=2,R1+R2-L10*144/62.4,IF(OR(A311=3,A311=4),R1+AF10-L10*144/62.4,R1+R2-L10*144/62.4))))))) ->  | N10: =IF(OR(AF10="",R2=""),"",IF(AND($K$5=$A10,$C$311=TRUE),$M$5*144/62.4+AF10,IF(AND($K$6=$A10,$F$311=TRUE,A311=1,Pump!F17="Yes"),$M$6*144/62.4+(Pump!J50*144/62.4)+(AF10-Main!R2)+R2-L10*144/62.4,IF(AND($K$6=$A10,$F$311=TRUE,A311=1,Pump!F17="No"),$M$6*144/62.4+Pump!L33+R2-L10*144/62.4,IF(AND($K$6=$A10,$F$311=TRUE,A311=2),$M$6*144/62.4+R1+R2+TankHeight-L10*144/62.4,IF(AND($K$6=$A10,$F$311=TRUE,OR(A311=3,A311=4)),$M$6*144/62.4+R1+AF10-L10*144/62.4,IF(OR(A311=3,A311=4),R1+AF10-L10*144/62.4,IF(A311=2,R1+R2+TankHeight-L10*144/62.4,IF(AND(A311=1,Pump!F17="Yes"),Pump!J50*144/62.4+(AF10-Main!R2)+R2-L10*144/62.4,R1+R2-L10*144/62.4))))))))) ->  | P10: =IF(M10="","",M10-AF10) ->  | Q10: =IF(P10="","",P10*62.4/144) ->  | R10: =IF(N10="","",(N10-AF10)*62.4/144) ->  | S10: =IF(System_Type=1,"Pump",IF(System_Type=2,"Tank",IF(System_Type=3,"Rural Water","Spring Box"))) -> Pump | V10: =IF(R10="","",IF(P10<0,$O$316,IF(R10>G11,$O$317,IF(R10>75,$O$318,"")))) ->  | AF10: =IF(OR(A10="",$R$3="",AM11=""),"",C10-$R$3) ->  | AG10: =IF(AF10="","",N10) ->  | AH10: =IF(OR(AF10="",$R$2=""),"",IF(AND($A$311=1,Pump!$F$17="Yes"),IF(In_PSI<>Calc_Low_Press,IF(AND($C$311=TRUE,$K$5=A10),($M$5*144/62.4+AF10)-((L10*144/62.4)),IF(AND($F$311=TRUE,$K$6=A10),In_PSI*144/62.4+R2+(AF10-R2)+($M$6*144/62.4),In_PSI*144/62.4+R2+(AF10-R2))),M10),Main!M10)) -> 
B11: =IF(AND(A12>0,C10<>"",C12>0),SQRT((A12-A10)^2+(C12-C10)^2),"") ->  | G11: =IF(OR($A10="",AI11=0),"",AL11) ->  | H11: =IF(OR($A10="",AI11=0,AJ11=0),"",AM11) ->  | I11: =IF(OR($A10="",AI11=0,AJ11=0),"",AN11) ->  | J11: =IF(AND(A12<>"",OR(AK11<>0,AJ11<>0,AI11<>0)),AO11,"") ->  | K11: =IF(OR(A12="",AR11="",AM11=""),"",(10.44*B11*(AR11^1.85))/((AN11^1.85)*(AM11^4.8655))) ->  | O11: =IF(OR(A12="",AR11="",AM11="",$R$2=""),"",(AR11/7.48/60)/(PI()*((AM11/2)/12)^2)) ->  | AD11: =IF(ISNUMBER(SEARCH(3408,Main!E11)),'Pipe Tables'!$E$32,IF(ISNUMBER(SEARCH(4710,Main!E11)),'Pipe Tables'!$E$32,IF(ISNUMBER(SEARCH('Pipe Tables'!$E$33,Main!E11)),'Pipe Tables'!$E$33,IF(ISNUMBER(SEARCH('Pipe Tables'!$E$34,Main!E11)),'Pipe Tables'!$E$34,IF(ISNUMBER(SEARCH('Pipe Tables'!$E$35,Main!E11)),'Pipe Tables'!$E$35))))) -> FALSE | AI11: =D11 -> 0 | AJ11: =E11 -> 0 | AK11: =F11 -> 0 | AL11: =IF(AQ11=0,"",HLOOKUP(AQ11,Pipe_Pressure,MATCH(AP11,Pipe_Press_Size,0),FALSE)) ->  | AM11: =IF(OR(AP11=0,AQ11=0),"",VLOOKUP(AP11,Pipe_Diameter,MATCH(AQ11,Pipe_Diam_Material,0))) ->  | AN11: =IF(A12="","",VLOOKUP(AD11,Hazen_Williams,2)) ->  | AO11: =IF(OR(A12="",AR11="",AM11=""),"",((10.44*(AR11^1.85))/((AN11^1.85)*(AM11^4.8655)))) ->  | AP11: =IF(A12<>"",AI11,0) -> 0 | AQ11: =IF(A12<>"",AJ11,0) -> 0 | AR11: =IF($A12<>"",AK11,0) -> 0 | AS11: =IF(AND($A12<>"",AL13=0),AL11,IF(AND($A12<>"",AL13<>0),AL13,0)) -> 0
M12: =IF(OR(AF12="",$R$2=""),"",IF(AND($C$311=TRUE,$K$5=A12),($M$5*144/62.4+AF12)-((L12*144/62.4)),IF(AND($F$311=TRUE,$K$6=A12),M10-K11+($M$6*144/62.4)-(O11^2/64.4),M10-K11-(O11^2/64.4)-L12*144/62.4))) ->  | N12: =IF(B11="","",IF(AND($K$5=$A12,$C$311=TRUE),$M$5*144/62.4+AF12,IF(AND($K$6=$A12,$F$311=TRUE),$M$6*144/62.4+N10-L12*144/62.4,N10-L12*144/62.4))) ->  | P12: =IF(M12="","",M12-AF12) ->  | Q12: =IF(P12="","",P12*62.4/144) ->  | R12: =IF(N12="","",(N12-AF12)*62.4/144) ->  | V12: =IF(R12="","",IF(P12<0,$O$316,IF(R12>G13,$O$317,IF(R12>75,$O$318,"")))) ->  | AB12: =K11 ->  | AF12: =IF(OR(A12="",$R$3="",AM11=""),"",C12-$R$3) ->  | AG12: =IF(AF12="","",N12) ->  | AH12: =IF(OR(AF12="",$R$2=""),"",IF(AND($A$311=1,Pump!$F$17="Yes"),IF(AND($C$311=TRUE,$K$5=A12),($M$5*144/62.4+AF12)-((L12*144/62.4)),IF(AND($F$311=TRUE,$K$6=A12),AH10-K11+($M$6*144/62.4)-(O11^2/64.4),AH10-K11-(O11^2/64.4))),AH10-K11-(O11^2/64.4))) -> 
B13: =IF(AND(A14>0,C14>0),SQRT((A14-A12)^2+(C14-C12)^2),"") ->  | G13: =IF(OR(A12="",AI13=0),"",AL13) ->  | H13: =IF(OR($A12="",AI13=0,AJ13=0),"",AM13) ->  | I13: =IF(OR($A12="",AI13=0,AJ13=0),"",AN13) ->  | J13: =IF(AND(A14<>"",OR(AK13<>0,AJ13<>0,AI13<>0)),AO13,"") ->  | K13: =IF(OR(A14="",AR13="",AM13=""),"",(10.44*B13*(AR13^1.85))/((AN13^1.85)*(AM13^4.8655))) ->  | O13: =IF(OR(A14="",AR13="",AM13="",$R$2=""),"",(AR13/7.48/60)/(PI()*((AM13/2)/12)^2)) ->  | AD13: =IF(A14="","",IF(E13="",AD11,IF(ISNUMBER(SEARCH(3408,Main!E13)),'Pipe Tables'!$E$32,IF(ISNUMBER(SEARCH(4710,Main!E13)),'Pipe Tables'!$E$32,IF(ISNUMBER(SEARCH('Pipe Tables'!$E$33,Main!E13)),'Pipe Tables'!$E$33,IF(ISNUMBER(SEARCH('Pipe Tables'!$E$34,Main!E13)),'Pipe Tables'!$E$34,IF(ISNUMBER(SEARCH('Pipe Tables'!$E$35,Main!E13)),'Pipe Tables'!$E$35))))))) ->  | AI13: =D13 -> 0 | AJ13: =E13 -> 0 | AK13: =F13 -> 0 | AL13: =IF(AQ13=0,"",HLOOKUP(AQ13,Pipe_Pressure,MATCH(AP13,Pipe_Press_Size,0),FALSE)) ->  | AM13: =IF(OR(AP13=0,AQ13=0),"",VLOOKUP(AP13,Pipe_Diameter,MATCH(AQ13,Pipe_Diam_Material,0))) ->  | AN13: =IF(A14="","",VLOOKUP(AD13,Hazen_Williams,2)) ->  | AO13: =IF(OR(A14="",AR13="",AM13=""),"",((10.44*(AR13^1.85))/((AN13^1.85)*(AM13^4.8655)))) ->  | AP13: =IF(AND($A14<>"",AI13=0),AP11,IF(AND($A14<>"",AI13<>0),AI13,0)) -> 0 | AQ13: =IF(AND($A14<>"",AJ13=0),AQ11,IF(AND($A14<>"",AJ13<>0),AJ13,0)) -> 0 | AR13: =IF(AND($A14<>"",AK13=0),AR11,IF(AND($A14<>"",AK13<>0),AK13,0)) -> 0 | AS13: =IF(AND($A14<>"",AL13=0),AS11,IF(AND($A14<>"",AL13<>0),AL13,0)) -> 0
M14: =IF(OR(AF14="",$R$2=""),"",IF(AND($C$311=TRUE,$K$5=A14),($M$5*144/62.4+AF14)-((L14*144/62.4)),IF(AND($F$311=TRUE,$K$6=A14),M12-K13+($M$6*144/62.4)-(O13^2/64.4),M12-K13-(O13^2/64.4)-L14*144/62.4))) ->  | N14: =IF(B13="","",IF(AND($K$5=$A14,$C$311=TRUE),$M$5*144/62.4+AF14,IF(AND($K$6=$A14,$F$311=TRUE),$M$6*144/62.4+N12-L14*144/62.4,N12-L14*144/62.4))) ->  | P14: =IF(M14="","",M14-AF14) ->  | Q14: =IF(P14="","",P14*62.4/144) ->  | R14: =IF(N14="","",(N14-AF14)*62.4/144) ->  | V14: =IF(R14="","",IF(P14<0,$O$316,IF(R14>G15,$O$317,IF(R14>75,$O$318,"")))) ->  | AB14: =IF(K13="","",K13+AB12) ->  | AF14: =IF(OR(A14="",$R$3="",AM13=""),"",C14-$R$3) ->  | AG14: =IF(AF14="","",N14) ->  | AH14: =IF(OR(AF14="",$R$2=""),"",IF(AND($A$311=1,Pump!$F$17="Yes"),IF(AND($C$311=TRUE,$K$5=A14),($M$5*144/62.4+AF14)-((L14*144/62.4)),IF(AND($F$311=TRUE,$K$6=A14),AH12-K13+($M$6*144/62.4)-(O13^2/64.4),AH12-K13-(O13^2/64.4))),AH12-K13-(O13^2/64.4))) -> 
B15: =IF(AND(A16>0,C16>0),SQRT((A16-A14)^2+(C16-C14)^2),"") ->  | G15: =IF(OR(A14="",AI15=0),"",AL15) ->  | H15: =IF(OR($A14="",AI15=0,AJ15=0),"",AM15) ->  | I15: =IF(OR($A14="",AI15=0,AJ15=0),"",AN15) ->  | J15: =IF(AND(A16<>"",OR(AK15<>0,AJ15<>0,AI15<>0)),AO15,"") ->  | K15: =IF(OR(A16="",AR15="",AM15=""),"",(10.44*B15*(AR15^1.85))/((AN15^1.85)*(AM15^4.8655))) ->  | O15: =IF(OR(A16="",AR15="",AM15="",$R$2=""),"",(AR15/7.48/60)/(PI()*((AM15/2)/12)^2)) ->  | AD15: =IF(A16="","",IF(E15="",AD13,IF(ISNUMBER(SEARCH(3408,Main!E15)),'Pipe Tables'!$E$32,IF(ISNUMBER(SEARCH(4710,Main!E15)),'Pipe Tables'!$E$32,IF(ISNUMBER(SEARCH('Pipe Tables'!$E$33,Main!E15)),'Pipe Tables'!$E$33,IF(ISNUMBER(SEARCH('Pipe Tables'!$E$34,Main!E15)),'Pipe Tables'!$E$34,IF(ISNUMBER(SEARCH('Pipe Tables'!$E$35,Main!E15)),'Pipe Tables'!$E$35))))))) ->  | AI15: =D15 -> 0 | AJ15: =E15 -> 0 | AK15: =F15 -> 0 | AL15: =IF(AQ15=0,"",HLOOKUP(AQ15,Pipe_Pressure,MATCH(AP15,Pipe_Press_Size,0),FALSE)) ->  | AM15: =IF(OR(AP15=0,AQ15=0),"",VLOOKUP(AP15,Pipe_Diameter,MATCH(AQ15,Pipe_Diam_Material,0))) ->  | AN15: =IF(A16="","",VLOOKUP(AD15,Hazen_Williams,2)) ->  | AO15: =IF(OR(A16="",AR15="",AM15=""),"",((10.44*(AR15^1.85))/((AN15^1.85)*(AM15^4.8655)))) ->  | AP15: =IF(AND($A16<>"",AI15=0),AP13,IF(AND($A16<>"",AI15<>0),AI15,0)) -> 0 | AQ15: =IF(AND($A16<>"",AJ15=0),AQ13,IF(AND($A16<>"",AJ15<>0),AJ15,0)) -> 0 | AR15: =IF(AND($A16<>"",AK15=0),AR13,IF(AND($A16<>"",AK15<>0),AK15,0)) -> 0 | AS15: =IF(AND($A16<>"",AL15=0),AS13,IF(AND($A16<>"",AL15<>0),AL15,0)) -> 0
M16: =IF(OR(AF16="",$R$2=""),"",IF(AND($C$311=TRUE,$K$5=A16),($M$5*144/62.4+AF16)-((L16*144/62.4)),IF(AND($F$311=TRUE,$K$6=A16),M14-K15+($M$6*144/62.4)-(O15^2/64.4),M14-K15-(O15^2/64.4)-L16*144/62.4))) ->  | N16: =IF(B15="","",IF(AND($K$5=$A16,$C$311=TRUE),$M$5*144/62.4+AF16,IF(AND($K$6=$A16,$F$311=TRUE),$M$6*144/62.4+N14-L16*144/62.4,N14-L16*144/62.4))) ->  | P16: =IF(M16="","",M16-AF16) ->  | Q16: =IF(P16="","",P16*62.4/144) ->  | R16: =IF(N16="","",(N16-AF16)*62.4/144) ->  | V16: =IF(R16="","",IF(P16<0,$O$316,IF(R16>G17,$O$317,IF(R16>75,$O$318,"")))) ->  | AB16: =IF(K15="","",K15+AB14) ->  | AF16: =IF(OR(A16="",$R$3="",AM15=""),"",C16-$R$3) ->  | AG16: =IF(AF16="","",N16) ->  | AH16: =IF(OR(AF16="",$R$2=""),"",IF(AND($A$311=1,Pump!$F$17="Yes"),IF(AND($C$311=TRUE,$K$5=A16),($M$5*144/62.4+AF16)-((L16*144/62.4)),IF(AND($F$311=TRUE,$K$6=A16),AH14-K15+($M$6*144/62.4)-(O15^2/64.4),AH14-K15-(O15^2/64.4))),AH14-K15-(O15^2/64.4))) -> 
B17: =IF(AND(A18>0,C18>0),SQRT((A18-A16)^2+(C18-C16)^2),"") ->  | G17: =IF(OR(A16="",AI17=0),"",AL17) ->  | H17: =IF(OR($A16="",AI17=0,AJ17=0),"",AM17) ->  | I17: =IF(OR($A16="",AI17=0,AJ17=0),"",AN17) ->  | J17: =IF(AND(A18<>"",OR(AK17<>0,AJ17<>0,AI17<>0)),AO17,"") ->  | K17: =IF(OR(A18="",AR17="",AM17=""),"",(10.44*B17*(AR17^1.85))/((AN17^1.85)*(AM17^4.8655))) ->  | O17: =IF(OR(A18="",AR17="",AM17="",$R$2=""),"",(AR17/7.48/60)/(PI()*((AM17/2)/12)^2)) ->  | AD17: =IF(A18="","",IF(E17="",AD15,IF(ISNUMBER(SEARCH(3408,Main!E17)),'Pipe Tables'!$E$32,IF(ISNUMBER(SEARCH(4710,Main!E17)),'Pipe Tables'!$E$32,IF(ISNUMBER(SEARCH('Pipe Tables'!$E$33,Main!E17)),'Pipe Tables'!$E$33,IF(ISNUMBER(SEARCH('Pipe Tables'!$E$34,Main!E17)),'Pipe Tables'!$E$34,IF(ISNUMBER(SEARCH('Pipe Tables'!$E$35,Main!E17)),'Pipe Tables'!$E$35))))))) ->  | AI17: =D17 -> 0 | AJ17: =E17 -> 0 | AK17: =F17 -> 0 | AL17: =IF(AQ17=0,"",HLOOKUP(AQ17,Pipe_Pressure,MATCH(AP17,Pipe_Press_Size,0),FALSE)) ->  | AM17: =IF(OR(AP17=0,AQ17=0),"",VLOOKUP(AP17,Pipe_Diameter,MATCH(AQ17,Pipe_Diam_Material,0))) ->  | AN17: =IF(A18="","",VLOOKUP(AD17,Hazen_Williams,2)) ->  | AO17: =IF(OR(A18="",AR17="",AM17=""),"",((10.44*(AR17^1.85))/((AN17^1.85)*(AM17^4.8655)))) ->  | AP17: =IF(AND($A18<>"",AI17=0),AP15,IF(AND($A18<>"",AI17<>0),AI17,0)) -> 0 | AQ17: =IF(AND($A18<>"",AJ17=0),AQ15,IF(AND($A18<>"",AJ17<>0),AJ17,0)) -> 0 | AR17: =IF(AND($A18<>"",AK17=0),AR15,IF(AND($A18<>"",AK17<>0),AK17,0)) -> 0 | AS17: =IF(AND($A18<>"",AL17=0),AS15,IF(AND($A18<>"",AL17<>0),AL17,0)) -> 0
M18: =IF(OR(AF18="",$R$2=""),"",IF(AND($C$311=TRUE,$K$5=A18),($M$5*144/62.4+AF18)-((L18*144/62.4)),IF(AND($F$311=TRUE,$K$6=A18),M16-K17+($M$6*144/62.4)-(O17^2/64.4),M16-K17-(O17^2/64.4)-L18*144/62.4))) ->  | N18: =IF(B17="","",IF(AND($K$5=$A18,$C$311=TRUE),$M$5*144/62.4+AF18,IF(AND($K$6=$A18,$F$311=TRUE),$M$6*144/62.4+N16-L18*144/62.4,N16-L18*144/62.4))) ->  | P18: =IF(M18="","",M18-AF18) ->  | Q18: =IF(P18="","",P18*62.4/144) ->  | R18: =IF(N18="","",(N18-AF18)*62.4/144) ->  | V18: =IF(R18="","",IF(P18<0,$O$316,IF(R18>G19,$O$317,IF(R18>75,$O$318,"")))) ->  | AB18: =IF(K17="","",K17+AB16) ->  | AF18: =IF(OR(A18="",$R$3="",AM17=""),"",C18-$R$3) ->  | AG18: =IF(AF18="","",N18) ->  | AH18: =IF(OR(AF18="",$R$2=""),"",IF(AND($A$311=1,Pump!$F$17="Yes"),IF(AND($C$311=TRUE,$K$5=A18),($M$5*144/62.4+AF18)-((L18*144/62.4)),IF(AND($F$311=TRUE,$K$6=A18),AH16-K17+($M$6*144/62.4)-(O17^2/64.4),AH16-K17-(O17^2/64.4))),AH16-K17-(O17^2/64.4))) -> 
B19: =IF(AND(A20>0,C20>0),SQRT((A20-A18)^2+(C20-C18)^2),"") ->  | G19: =IF(OR(A18="",AI19=0),"",AL19) ->  | H19: =IF(OR($A18="",AI19=0,AJ19=0),"",AM19) ->  | I19: =IF(OR($A18="",AI19=0,AJ19=0),"",AN19) ->  | J19: =IF(AND(A20<>"",OR(AK19<>0,AJ19<>0,AI19<>0)),AO19,"") ->  | K19: =IF(OR(A20="",AR19="",AM19=""),"",(10.44*B19*(AR19^1.85))/((AN19^1.85)*(AM19^4.8655))) ->  | O19: =IF(OR(A20="",AR19="",AM19="",$R$2=""),"",(AR19/7.48/60)/(PI()*((AM19/2)/12)^2)) ->  | AD19: =IF(A20="","",IF(E19="",AD17,IF(ISNUMBER(SEARCH(3408,Main!E19)),'Pipe Tables'!$E$32,IF(ISNUMBER(SEARCH(4710,Main!E19)),'Pipe Tables'!$E$32,IF(ISNUMBER(SEARCH('Pipe Tables'!$E$33,Main!E19)),'Pipe Tables'!$E$33,IF(ISNUMBER(SEARCH('Pipe Tables'!$E$34,Main!E19)),'Pipe Tables'!$E$34,IF(ISNUMBER(SEARCH('Pipe Tables'!$E$35,Main!E19)),'Pipe Tables'!$E$35))))))) ->  | AI19: =D19 -> 0 | AJ19: =E19 -> 0 | AK19: =F19 -> 0 | AL19: =IF(AQ19=0,"",HLOOKUP(AQ19,Pipe_Pressure,MATCH(AP19,Pipe_Press_Size,0),FALSE)) ->  | AM19: =IF(OR(AP19=0,AQ19=0),"",VLOOKUP(AP19,Pipe_Diameter,MATCH(AQ19,Pipe_Diam_Material,0))) ->  | AN19: =IF(A20="","",VLOOKUP(AD19,Hazen_Williams,2)) ->  | AO19: =IF(OR(A20="",AR19="",AM19=""),"",((10.44*(AR19^1.85))/((AN19^1.85)*(AM19^4.8655)))) ->  | AP19: =IF(AND($A20<>"",AI19=0),AP17,IF(AND($A20<>"",AI19<>0),AI19,0)) -> 0 | AQ19: =IF(AND($A20<>"",AJ19=0),AQ17,IF(AND($A20<>"",AJ19<>0),AJ19,0)) -> 0 | AR19: =IF(AND($A20<>"",AK19=0),AR17,IF(AND($A20<>"",AK19<>0),AK19,0)) -> 0 | AS19: =IF(AND($A20<>"",AL19=0),AS17,IF(AND($A20<>"",AL19<>0),AL19,0)) -> 0
M20: =IF(OR(AF20="",$R$2=""),"",IF(AND($C$311=TRUE,$K$5=A20),($M$5*144/62.4+AF20)-((L20*144/62.4)),IF(AND($F$311=TRUE,$K$6=A20),M18-K19+($M$6*144/62.4)-(O19^2/64.4),M18-K19-(O19^2/64.4)-L20*144/62.4))) ->  | N20: =IF(B19="","",IF(AND($K$5=$A20,$C$311=TRUE),$M$5*144/62.4+AF20,IF(AND($K$6=$A20,$F$311=TRUE),$M$6*144/62.4+N18-L20*144/62.4,N18-L20*144/62.4))) ->  | P20: =IF(M20="","",M20-AF20) ->  | Q20: =IF(P20="","",P20*62.4/144) ->  | R20: =IF(N20="","",(N20-AF20)*62.4/144) ->  | V20: =IF(R20="","",IF(P20<0,$O$316,IF(R20>G21,$O$317,IF(R20>75,$O$318,"")))) ->  | AB20: =IF(K19="","",K19+AB18) ->  | AF20: =IF(OR(A20="",$R$3="",AM19=""),"",C20-$R$3) ->  | AG20: =IF(AF20="","",N20) ->  | AH20: =IF(OR(AF20="",$R$2=""),"",IF(AND($A$311=1,Pump!$F$17="Yes"),IF(AND($C$311=TRUE,$K$5=A20),($M$5*144/62.4+AF20)-((L20*144/62.4)),IF(AND($F$311=TRUE,$K$6=A20),AH18-K19+($M$6*144/62.4)-(O19^2/64.4),AH18-K19-(O19^2/64.4))),AH18-K19-(O19^2/64.4))) -> 
B21: =IF(AND(A22>0,C22>0),SQRT((A22-A20)^2+(C22-C20)^2),"") ->  | G21: =IF(OR(A20="",AI21=0),"",AL21) ->  | H21: =IF(OR($A20="",AI21=0,AJ21=0),"",AM21) ->  | I21: =IF(OR($A20="",AI21=0,AJ21=0),"",AN21) ->  | J21: =IF(AND(A22<>"",OR(AK21<>0,AJ21<>0,AI21<>0)),AO21,"") ->  | K21: =IF(OR(A22="",AR21="",AM21=""),"",(10.44*B21*(AR21^1.85))/((AN21^1.85)*(AM21^4.8655))) ->  | O21: =IF(OR(A22="",AR21="",AM21="",$R$2=""),"",(AR21/7.48/60)/(PI()*((AM21/2)/12)^2)) ->  | AD21: =IF(A22="","",IF(E21="",AD19,IF(ISNUMBER(SEARCH(3408,Main!E21)),'Pipe Tables'!$E$32,IF(ISNUMBER(SEARCH(4710,Main!E21)),'Pipe Tables'!$E$32,IF(ISNUMBER(SEARCH('Pipe Tables'!$E$33,Main!E21)),'Pipe Tables'!$E$33,IF(ISNUMBER(SEARCH('Pipe Tables'!$E$34,Main!E21)),'Pipe Tables'!$E$34,IF(ISNUMBER(SEARCH('Pipe Tables'!$E$35,Main!E21)),'Pipe Tables'!$E$35))))))) ->  | AI21: =D21 -> 0 | AJ21: =E21 -> 0 | AK21: =F21 -> 0 | AL21: =IF(AQ21=0,"",HLOOKUP(AQ21,Pipe_Pressure,MATCH(AP21,Pipe_Press_Size,0),FALSE)) ->  | AM21: =IF(OR(AP21=0,AQ21=0),"",VLOOKUP(AP21,Pipe_Diameter,MATCH(AQ21,Pipe_Diam_Material,0))) ->  | AN21: =IF(A22="","",VLOOKUP(AD21,Hazen_Williams,2)) ->  | AO21: =IF(OR(A22="",AR21="",AM21=""),"",((10.44*(AR21^1.85))/((AN21^1.85)*(AM21^4.8655)))) ->  | AP21: =IF(AND($A22<>"",AI21=0),AP19,IF(AND($A22<>"",AI21<>0),AI21,0)) -> 0 | AQ21: =IF(AND($A22<>"",AJ21=0),AQ19,IF(AND($A22<>"",AJ21<>0),AJ21,0)) -> 0 | AR21: =IF(AND($A22<>"",AK21=0),AR19,IF(AND($A22<>"",AK21<>0),AK21,0)) -> 0 | AS21: =IF(AND($A22<>"",AL21=0),AS19,IF(AND($A22<>"",AL21<>0),AL21,0)) -> 0
M22: =IF(OR(AF22="",$R$2=""),"",IF(AND($C$311=TRUE,$K$5=A22),($M$5*144/62.4+AF22)-((L22*144/62.4)),IF(AND($F$311=TRUE,$K$6=A22),M20-K21+($M$6*144/62.4)-(O21^2/64.4),M20-K21-(O21^2/64.4)-L22*144/62.4))) ->  | N22: =IF(B21="","",IF(AND($K$5=$A22,$C$311=TRUE),$M$5*144/62.4+AF22,IF(AND($K$6=$A22,$F$311=TRUE),$M$6*144/62.4+N20-L22*144/62.4,N20-L22*144/62.4))) ->  | P22: =IF(M22="","",M22-AF22) ->  | Q22: =IF(P22="","",P22*62.4/144) ->  | R22: =IF(N22="","",(N22-AF22)*62.4/144) ->  | V22: =IF(R22="","",IF(P22<0,$O$316,IF(R22>G23,$O$317,IF(R22>75,$O$318,"")))) ->  | AB22: =IF(K21="","",K21+AB20) ->  | AF22: =IF(OR(A22="",$R$3="",AM21=""),"",C22-$R$3) ->  | AG22: =IF(AF22="","",N22) ->  | AH22: =IF(OR(AF22="",$R$2=""),"",IF(AND($A$311=1,Pump!$F$17="Yes"),IF(AND($C$311=TRUE,$K$5=A22),($M$5*144/62.4+AF22)-((L22*144/62.4)),IF(AND($F$311=TRUE,$K$6=A22),AH20-K21+($M$6*144/62.4)-(O21^2/64.4),AH20-K21-(O21^2/64.4))),AH20-K21-(O21^2/64.4))) -> 
B23: =IF(AND(A24>0,C24>0),SQRT((A24-A22)^2+(C24-C22)^2),"") ->  | G23: =IF(OR(A22="",AI23=0),"",AL23) ->  | H23: =IF(OR($A22="",AI23=0,AJ23=0),"",AM23) ->  | I23: =IF(OR($A22="",AI23=0,AJ23=0),"",AN23) ->  | J23: =IF(AND(A24<>"",OR(AK23<>0,AJ23<>0,AI23<>0)),AO23,"") ->  | K23: =IF(OR(A24="",AR23="",AM23=""),"",(10.44*B23*(AR23^1.85))/((AN23^1.85)*(AM23^4.8655))) ->  | O23: =IF(OR(A24="",AR23="",AM23="",$R$2=""),"",(AR23/7.48/60)/(PI()*((AM23/2)/12)^2)) ->  | AD23: =IF(A24="","",IF(E23="",AD21,IF(ISNUMBER(SEARCH(3408,Main!E23)),'Pipe Tables'!$E$32,IF(ISNUMBER(SEARCH(4710,Main!E23)),'Pipe Tables'!$E$32,IF(ISNUMBER(SEARCH('Pipe Tables'!$E$33,Main!E23)),'Pipe Tables'!$E$33,IF(ISNUMBER(SEARCH('Pipe Tables'!$E$34,Main!E23)),'Pipe Tables'!$E$34,IF(ISNUMBER(SEARCH('Pipe Tables'!$E$35,Main!E23)),'Pipe Tables'!$E$35))))))) ->  | AI23: =D23 -> 0 | AJ23: =E23 -> 0 | AK23: =F23 -> 0 | AL23: =IF(AQ23=0,"",HLOOKUP(AQ23,Pipe_Pressure,MATCH(AP23,Pipe_Press_Size,0),FALSE)) ->  | AM23: =IF(OR(AP23=0,AQ23=0),"",VLOOKUP(AP23,Pipe_Diameter,MATCH(AQ23,Pipe_Diam_Material,0))) ->  | AN23: =IF(A24="","",VLOOKUP(AD23,Hazen_Williams,2)) ->  | AO23: =IF(OR(A24="",AR23="",AM23=""),"",((10.44*(AR23^1.85))/((AN23^1.85)*(AM23^4.8655)))) ->  | AP23: =IF(AND($A24<>"",AI23=0),AP21,IF(AND($A24<>"",AI23<>0),AI23,0)) -> 0 | AQ23: =IF(AND($A24<>"",AJ23=0),AQ21,IF(AND($A24<>"",AJ23<>0),AJ23,0)) -> 0 | AR23: =IF(AND($A24<>"",AK23=0),AR21,IF(AND($A24<>"",AK23<>0),AK23,0)) -> 0 | AS23: =IF(AND($A24<>"",AL23=0),AS21,IF(AND($A24<>"",AL23<>0),AL23,0)) -> 0
M24: =IF(OR(AF24="",$R$2=""),"",IF(AND($C$311=TRUE,$K$5=A24),($M$5*144/62.4+AF24)-((L24*144/62.4)),IF(AND($F$311=TRUE,$K$6=A24),M22-K23+($M$6*144/62.4)-(O23^2/64.4),M22-K23-(O23^2/64.4)-L24*144/62.4))) ->  | N24: =IF(B23="","",IF(AND($K$5=$A24,$C$311=TRUE),$M$5*144/62.4+AF24,IF(AND($K$6=$A24,$F$311=TRUE),$M$6*144/62.4+N22-L24*144/62.4,N22-L24*144/62.4))) ->  | P24: =IF(M24="","",M24-AF24) ->  | Q24: =IF(P24="","",P24*62.4/144) ->  | R24: =IF(N24="","",(N24-AF24)*62.4/144) ->  | V24: =IF(R24="","",IF(P24<0,$O$316,IF(R24>G25,$O$317,IF(R24>75,$O$318,"")))) ->  | AB24: =IF(K23="","",K23+AB22) ->  | AF24: =IF(OR(A24="",$R$3="",AM23=""),"",C24-$R$3) ->  | AG24: =IF(AF24="","",N24) ->  | AH24: =IF(OR(AF24="",$R$2=""),"",IF(AND($A$311=1,Pump!$F$17="Yes"),IF(AND($C$311=TRUE,$K$5=A24),($M$5*144/62.4+AF24)-((L24*144/62.4)),IF(AND($F$311=TRUE,$K$6=A24),AH22-K23+($M$6*144/62.4)-(O23^2/64.4),AH22-K23-(O23^2/64.4))),AH22-K23-(O23^2/64.4))) -> 
B25: =IF(AND(A26>0,C26>0),SQRT((A26-A24)^2+(C26-C24)^2),"") ->  | G25: =IF(OR(A24="",AI25=0),"",AL25) ->  | H25: =IF(OR($A24="",AI25=0,AJ25=0),"",AM25) ->  | I25: =IF(OR($A24="",AI25=0,AJ25=0),"",AN25) ->  | J25: =IF(AND(A26<>"",OR(AK25<>0,AJ25<>0,AI25<>0)),AO25,"") ->  | K25: =IF(OR(A26="",AR25="",AM25=""),"",(10.44*B25*(AR25^1.85))/((AN25^1.85)*(AM25^4.8655))) ->  | O25: =IF(OR(A26="",AR25="",AM25="",$R$2=""),"",(AR25/7.48/60)/(PI()*((AM25/2)/12)^2)) ->  | AD25: =IF(A26="","",IF(E25="",AD23,IF(ISNUMBER(SEARCH(3408,Main!E25)),'Pipe Tables'!$E$32,IF(ISNUMBER(SEARCH(4710,Main!E25)),'Pipe Tables'!$E$32,IF(ISNUMBER(SEARCH('Pipe Tables'!$E$33,Main!E25)),'Pipe Tables'!$E$33,IF(ISNUMBER(SEARCH('Pipe Tables'!$E$34,Main!E25)),'Pipe Tables'!$E$34,IF(ISNUMBER(SEARCH('Pipe Tables'!$E$35,Main!E25)),'Pipe Tables'!$E$35))))))) ->  | AI25: =D25 -> 0 | AJ25: =E25 -> 0 | AK25: =F25 -> 0 | AL25: =IF(AQ25=0,"",HLOOKUP(AQ25,Pipe_Pressure,MATCH(AP25,Pipe_Press_Size,0),FALSE)) ->  | AM25: =IF(OR(AP25=0,AQ25=0),"",VLOOKUP(AP25,Pipe_Diameter,MATCH(AQ25,Pipe_Diam_Material,0))) ->  | AN25: =IF(A26="","",VLOOKUP(AD25,Hazen_Williams,2)) ->  | AO25: =IF(OR(A26="",AR25="",AM25=""),"",((10.44*(AR25^1.85))/((AN25^1.85)*(AM25^4.8655)))) ->  | AP25: =IF(AND($A26<>"",AI25=0),AP23,IF(AND($A26<>"",AI25<>0),AI25,0)) -> 0 | AQ25: =IF(AND($A26<>"",AJ25=0),AQ23,IF(AND($A26<>"",AJ25<>0),AJ25,0)) -> 0 | AR25: =IF(AND($A26<>"",AK25=0),AR23,IF(AND($A26<>"",AK25<>0),AK25,0)) -> 0 | AS25: =IF(AND($A26<>"",AL25=0),AS23,IF(AND($A26<>"",AL25<>0),AL25,0)) -> 0
M26: =IF(OR(AF26="",$R$2=""),"",IF(AND($C$311=TRUE,$K$5=A26),($M$5*144/62.4+AF26)-((L26*144/62.4)),IF(AND($F$311=TRUE,$K$6=A26),M24-K25+($M$6*144/62.4)-(O25^2/64.4),M24-K25-(O25^2/64.4)-L26*144/62.4))) ->  | N26: =IF(B25="","",IF(AND($K$5=$A26,$C$311=TRUE),$M$5*144/62.4+AF26,IF(AND($K$6=$A26,$F$311=TRUE),$M$6*144/62.4+N24-L26*144/62.4,N24-L26*144/62.4))) ->  | P26: =IF(M26="","",M26-AF26) ->  | Q26: =IF(P26="","",P26*62.4/144) ->  | R26: =IF(N26="","",(N26-AF26)*62.4/144) ->  | V26: =IF(R26="","",IF(P26<0,$O$316,IF(R26>G27,$O$317,IF(R26>75,$O$318,"")))) ->  | AB26: =IF(K25="","",K25+AB24) ->  | AF26: =IF(OR(A26="",$R$3="",AM25=""),"",C26-$R$3) ->  | AG26: =IF(AF26="","",N26) ->  | AH26: =IF(OR(AF26="",$R$2=""),"",IF(AND($A$311=1,Pump!$F$17="Yes"),IF(AND($C$311=TRUE,$K$5=A26),($M$5*144/62.4+AF26)-((L26*144/62.4)),IF(AND($F$311=TRUE,$K$6=A26),AH24-K25+($M$6*144/62.4)-(O25^2/64.4),AH24-K25-(O25^2/64.4))),AH24-K25-(O25^2/64.4))) -> 
B27: =IF(AND(A28>0,C28>0),SQRT((A28-A26)^2+(C28-C26)^2),"") ->  | G27: =IF(OR(A26="",AI27=0),"",AL27) ->  | H27: =IF(OR($A26="",AI27=0,AJ27=0),"",AM27) ->  | I27: =IF(OR($A26="",AI27=0,AJ27=0),"",AN27) ->  | J27: =IF(AND(A28<>"",OR(AK27<>0,AJ27<>0,AI27<>0)),AO27,"") ->  | K27: =IF(OR(A28="",AR27="",AM27=""),"",(10.44*B27*(AR27^1.85))/((AN27^1.85)*(AM27^4.8655))) ->  | O27: =IF(OR(A28="",AR27="",AM27="",$R$2=""),"",(AR27/7.48/60)/(PI()*((AM27/2)/12)^2)) ->  | AD27: =IF(A28="","",IF(E27="",AD25,IF(ISNUMBER(SEARCH(3408,Main!E27)),'Pipe Tables'!$E$32,IF(ISNUMBER(SEARCH(4710,Main!E27)),'Pipe Tables'!$E$32,IF(ISNUMBER(SEARCH('Pipe Tables'!$E$33,Main!E27)),'Pipe Tables'!$E$33,IF(ISNUMBER(SEARCH('Pipe Tables'!$E$34,Main!E27)),'Pipe Tables'!$E$34,IF(ISNUMBER(SEARCH('Pipe Tables'!$E$35,Main!E27)),'Pipe Tables'!$E$35))))))) ->  | AI27: =D27 -> 0 | AJ27: =E27 -> 0 | AK27: =F27 -> 0 | AL27: =IF(AQ27=0,"",HLOOKUP(AQ27,Pipe_Pressure,MATCH(AP27,Pipe_Press_Size,0),FALSE)) ->  | AM27: =IF(OR(AP27=0,AQ27=0),"",VLOOKUP(AP27,Pipe_Diameter,MATCH(AQ27,Pipe_Diam_Material,0))) ->  | AN27: =IF(A28="","",VLOOKUP(AD27,Hazen_Williams,2)) ->  | AO27: =IF(OR(A28="",AR27="",AM27=""),"",((10.44*(AR27^1.85))/((AN27^1.85)*(AM27^4.8655)))) ->  | AP27: =IF(AND($A28<>"",AI27=0),AP25,IF(AND($A28<>"",AI27<>0),AI27,0)) -> 0 | AQ27: =IF(AND($A28<>"",AJ27=0),AQ25,IF(AND($A28<>"",AJ27<>0),AJ27,0)) -> 0 | AR27: =IF(AND($A28<>"",AK27=0),AR25,IF(AND($A28<>"",AK27<>0),AK27,0)) -> 0 | AS27: =IF(AND($A28<>"",AL27=0),AS25,IF(AND($A28<>"",AL27<>0),AL27,0)) -> 0
M28: =IF(OR(AF28="",$R$2=""),"",IF(AND($C$311=TRUE,$K$5=A28),($M$5*144/62.4+AF28)-((L28*144/62.4)),IF(AND($F$311=TRUE,$K$6=A28),M26-K27+($M$6*144/62.4)-(O27^2/64.4),M26-K27-(O27^2/64.4)-L28*144/62.4))) ->  | N28: =IF(B27="","",IF(AND($K$5=$A28,$C$311=TRUE),$M$5*144/62.4+AF28,IF(AND($K$6=$A28,$F$311=TRUE),$M$6*144/62.4+N26-L28*144/62.4,N26-L28*144/62.4))) ->  | P28: =IF(M28="","",M28-AF28) ->  | Q28: =IF(P28="","",P28*62.4/144) ->  | R28: =IF(N28="","",(N28-AF28)*62.4/144) ->  | V28: =IF(R28="","",IF(P28<0,$O$316,IF(R28>G29,$O$317,IF(R28>75,$O$318,"")))) ->  | AB28: =IF(K27="","",K27+AB26) ->  | AF28: =IF(OR(A28="",$R$3="",AM27=""),"",C28-$R$3) ->  | AG28: =IF(AF28="","",N28) ->  | AH28: =IF(OR(AF28="",$R$2=""),"",IF(AND($A$311=1,Pump!$F$17="Yes"),IF(AND($C$311=TRUE,$K$5=A28),($M$5*144/62.4+AF28)-((L28*144/62.4)),IF(AND($F$311=TRUE,$K$6=A28),AH26-K27+($M$6*144/62.4)-(O27^2/64.4),AH26-K27-(O27^2/64.4))),AH26-K27-(O27^2/64.4))) -> 
B29: =IF(AND(A30>0,C30>0),SQRT((A30-A28)^2+(C30-C28)^2),"") ->  | G29: =IF(OR(A28="",AI29=0),"",AL29) ->  | H29: =IF(OR($A28="",AI29=0,AJ29=0),"",AM29) ->  | I29: =IF(OR($A28="",AI29=0,AJ29=0),"",AN29) ->  | J29: =IF(AND(A30<>"",OR(AK29<>0,AJ29<>0,AI29<>0)),AO29,"") ->  | K29: =IF(OR(A30="",AR29="",AM29=""),"",(10.44*B29*(AR29^1.85))/((AN29^1.85)*(AM29^4.8655))) ->  | O29: =IF(OR(A30="",AR29="",AM29="",$R$2=""),"",(AR29/7.48/60)/(PI()*((AM29/2)/12)^2)) ->  | AD29: =IF(A30="","",IF(E29="",AD27,IF(ISNUMBER(SEARCH(3408,Main!E29)),'Pipe Tables'!$E$32,IF(ISNUMBER(SEARCH(4710,Main!E29)),'Pipe Tables'!$E$32,IF(ISNUMBER(SEARCH('Pipe Tables'!$E$33,Main!E29)),'Pipe Tables'!$E$33,IF(ISNUMBER(SEARCH('Pipe Tables'!$E$34,Main!E29)),'Pipe Tables'!$E$34,IF(ISNUMBER(SEARCH('Pipe Tables'!$E$35,Main!E29)),'Pipe Tables'!$E$35))))))) ->  | AI29: =D29 -> 0 | AJ29: =E29 -> 0 | AK29: =F29 -> 0 | AL29: =IF(AQ29=0,"",HLOOKUP(AQ29,Pipe_Pressure,MATCH(AP29,Pipe_Press_Size,0),FALSE)) ->  | AM29: =IF(OR(AP29=0,AQ29=0),"",VLOOKUP(AP29,Pipe_Diameter,MATCH(AQ29,Pipe_Diam_Material,0))) ->  | AN29: =IF(A30="","",VLOOKUP(AD29,Hazen_Williams,2)) ->  | AO29: =IF(OR(A30="",AR29="",AM29=""),"",((10.44*(AR29^1.85))/((AN29^1.85)*(AM29^4.8655)))) ->  | AP29: =IF(AND($A30<>"",AI29=0),AP27,IF(AND($A30<>"",AI29<>0),AI29,0)) -> 0 | AQ29: =IF(AND($A30<>"",AJ29=0),AQ27,IF(AND($A30<>"",AJ29<>0),AJ29,0)) -> 0 | AR29: =IF(AND($A30<>"",AK29=0),AR27,IF(AND($A30<>"",AK29<>0),AK29,0)) -> 0 | AS29: =IF(AND($A30<>"",AL29=0),AS27,IF(AND($A30<>"",AL29<>0),AL29,0)) -> 0
M30: =IF(OR(AF30="",$R$2=""),"",IF(AND($C$311=TRUE,$K$5=A30),($M$5*144/62.4+AF30)-((L30*144/62.4)),IF(AND($F$311=TRUE,$K$6=A30),M28-K29+($M$6*144/62.4)-(O29^2/64.4),M28-K29-(O29^2/64.4)-L30*144/62.4))) ->  | N30: =IF(B29="","",IF(AND($K$5=$A30,$C$311=TRUE),$M$5*144/62.4+AF30,IF(AND($K$6=$A30,$F$311=TRUE),$M$6*144/62.4+N28-L30*144/62.4,N28-L30*144/62.4))) ->  | P30: =IF(M30="","",M30-AF30) ->  | Q30: =IF(P30="","",P30*62.4/144) ->  | R30: =IF(N30="","",(N30-AF30)*62.4/144) ->  | V30: =IF(R30="","",IF(P30<0,$O$316,IF(R30>G31,$O$317,IF(R30>75,$O$318,"")))) ->  | AB30: =IF(K29="","",K29+AB28) ->  | AF30: =IF(OR(A30="",$R$3="",AM29=""),"",C30-$R$3) ->  | AG30: =IF(AF30="","",N30) ->  | AH30: =IF(OR(AF30="",$R$2=""),"",IF(AND($A$311=1,Pump!$F$17="Yes"),IF(AND($C$311=TRUE,$K$5=A30),($M$5*144/62.4+AF30)-((L30*144/62.4)),IF(AND($F$311=TRUE,$K$6=A30),AH28-K29+($M$6*144/62.4)-(O29^2/64.4),AH28-K29-(O29^2/64.4))),AH28-K29-(O29^2/64.4))) -> 
B31: =IF(AND(A32>0,C32>0),SQRT((A32-A30)^2+(C32-C30)^2),"") ->  | G31: =IF(OR(A30="",AI31=0),"",AL31) ->  | H31: =IF(OR($A30="",AI31=0,AJ31=0),"",AM31) ->  | I31: =IF(OR($A30="",AI31=0,AJ31=0),"",AN31) ->  | J31: =IF(AND(A32<>"",OR(AK31<>0,AJ31<>0,AI31<>0)),AO31,"") ->  | K31: =IF(OR(A32="",AR31="",AM31=""),"",(10.44*B31*(AR31^1.85))/((AN31^1.85)*(AM31^4.8655))) ->  | O31: =IF(OR(A32="",AR31="",AM31="",$R$2=""),"",(AR31/7.48/60)/(PI()*((AM31/2)/12)^2)) ->  | AD31: =IF(A32="","",IF(E31="",AD29,IF(ISNUMBER(SEARCH(3408,Main!E31)),'Pipe Tables'!$E$32,IF(ISNUMBER(SEARCH(4710,Main!E31)),'Pipe Tables'!$E$32,IF(ISNUMBER(SEARCH('Pipe Tables'!$E$33,Main!E31)),'Pipe Tables'!$E$33,IF(ISNUMBER(SEARCH('Pipe Tables'!$E$34,Main!E31)),'Pipe Tables'!$E$34,IF(ISNUMBER(SEARCH('Pipe Tables'!$E$35,Main!E31)),'Pipe Tables'!$E$35))))))) ->  | AI31: =D31 -> 0 | AJ31: =E31 -> 0 | AK31: =F31 -> 0 | AL31: =IF(AQ31=0,"",HLOOKUP(AQ31,Pipe_Pressure,MATCH(AP31,Pipe_Press_Size,0),FALSE)) ->  | AM31: =IF(OR(AP31=0,AQ31=0),"",VLOOKUP(AP31,Pipe_Diameter,MATCH(AQ31,Pipe_Diam_Material,0))) ->  | AN31: =IF(A32="","",VLOOKUP(AD31,Hazen_Williams,2)) ->  | AO31: =IF(OR(A32="",AR31="",AM31=""),"",((10.44*(AR31^1.85))/((AN31^1.85)*(AM31^4.8655)))) ->  | AP31: =IF(AND($A32<>"",AI31=0),AP29,IF(AND($A32<>"",AI31<>0),AI31,0)) -> 0 | AQ31: =IF(AND($A32<>"",AJ31=0),AQ29,IF(AND($A32<>"",AJ31<>0),AJ31,0)) -> 0 | AR31: =IF(AND($A32<>"",AK31=0),AR29,IF(AND($A32<>"",AK31<>0),AK31,0)) -> 0 | AS31: =IF(AND($A32<>"",AL31=0),AS29,IF(AND($A32<>"",AL31<>0),AL31,0)) -> 0
M32: =IF(OR(AF32="",$R$2=""),"",IF(AND($C$311=TRUE,$K$5=A32),($M$5*144/62.4+AF32)-((L32*144/62.4)),IF(AND($F$311=TRUE,$K$6=A32),M30-K31+($M$6*144/62.4)-(O31^2/64.4),M30-K31-(O31^2/64.4)-L32*144/62.4))) ->  | N32: =IF(B31="","",IF(AND($K$5=$A32,$C$311=TRUE),$M$5*144/62.4+AF32,IF(AND($K$6=$A32,$F$311=TRUE),$M$6*144/62.4+N30-L32*144/62.4,N30-L32*144/62.4))) ->  | P32: =IF(M32="","",M32-AF32) ->  | Q32: =IF(P32="","",P32*62.4/144) ->  | R32: =IF(N32="","",(N32-AF32)*62.4/144) ->  | V32: =IF(R32="","",IF(P32<0,$O$316,IF(R32>G33,$O$317,IF(R32>75,$O$318,"")))) ->  | AB32: =IF(K31="","",K31+AB30) ->  | AF32: =IF(OR(A32="",$R$3="",AM31=""),"",C32-$R$3) ->  | AG32: =IF(AF32="","",N32) ->  | AH32: =IF(OR(AF32="",$R$2=""),"",IF(AND($A$311=1,Pump!$F$17="Yes"),IF(AND($C$311=TRUE,$K$5=A32),($M$5*144/62.4+AF32)-((L32*144/62.4)),IF(AND($F$311=TRUE,$K$6=A32),AH30-K31+($M$6*144/62.4)-(O31^2/64.4),AH30-K31-(O31^2/64.4))),AH30-K31-(O31^2/64.4))) -> 
B33: =IF(AND(A34>0,C34>0),SQRT((A34-A32)^2+(C34-C32)^2),"") ->  | G33: =IF(OR(A32="",AI33=0),"",AL33) ->  | H33: =IF(OR($A32="",AI33=0,AJ33=0),"",AM33) ->  | I33: =IF(OR($A32="",AI33=0,AJ33=0),"",AN33) ->  | J33: =IF(AND(A34<>"",OR(AK33<>0,AJ33<>0,AI33<>0)),AO33,"") ->  | K33: =IF(OR(A34="",AR33="",AM33=""),"",(10.44*B33*(AR33^1.85))/((AN33^1.85)*(AM33^4.8655))) ->  | O33: =IF(OR(A34="",AR33="",AM33="",$R$2=""),"",(AR33/7.48/60)/(PI()*((AM33/2)/12)^2)) ->  | AD33: =IF(A34="","",IF(E33="",AD31,IF(ISNUMBER(SEARCH(3408,Main!E33)),'Pipe Tables'!$E$32,IF(ISNUMBER(SEARCH(4710,Main!E33)),'Pipe Tables'!$E$32,IF(ISNUMBER(SEARCH('Pipe Tables'!$E$33,Main!E33)),'Pipe Tables'!$E$33,IF(ISNUMBER(SEARCH('Pipe Tables'!$E$34,Main!E33)),'Pipe Tables'!$E$34,IF(ISNUMBER(SEARCH('Pipe Tables'!$E$35,Main!E33)),'Pipe Tables'!$E$35))))))) ->  | AI33: =D33 -> 0 | AJ33: =E33 -> 0 | AK33: =F33 -> 0 | AL33: =IF(AQ33=0,"",HLOOKUP(AQ33,Pipe_Pressure,MATCH(AP33,Pipe_Press_Size,0),FALSE)) ->  | AM33: =IF(OR(AP33=0,AQ33=0),"",VLOOKUP(AP33,Pipe_Diameter,MATCH(AQ33,Pipe_Diam_Material,0))) ->  | AN33: =IF(A34="","",VLOOKUP(AD33,Hazen_Williams,2)) ->  | AO33: =IF(OR(A34="",AR33="",AM33=""),"",((10.44*(AR33^1.85))/((AN33^1.85)*(AM33^4.8655)))) ->  | AP33: =IF(AND($A34<>"",AI33=0),AP31,IF(AND($A34<>"",AI33<>0),AI33,0)) -> 0 | AQ33: =IF(AND($A34<>"",AJ33=0),AQ31,IF(AND($A34<>"",AJ33<>0),AJ33,0)) -> 0 | AR33: =IF(AND($A34<>"",AK33=0),AR31,IF(AND($A34<>"",AK33<>0),AK33,0)) -> 0 | AS33: =IF(AND($A34<>"",AL33=0),AS31,IF(AND($A34<>"",AL33<>0),AL33,0)) -> 0
M34: =IF(OR(AF34="",$R$2=""),"",IF(AND($C$311=TRUE,$K$5=A34),($M$5*144/62.4+AF34)-((L34*144/62.4)),IF(AND($F$311=TRUE,$K$6=A34),M32-K33+($M$6*144/62.4)-(O33^2/64.4),M32-K33-(O33^2/64.4)-L34*144/62.4))) ->  | N34: =IF(B33="","",IF(AND($K$5=$A34,$C$311=TRUE),$M$5*144/62.4+AF34,IF(AND($K$6=$A34,$F$311=TRUE),$M$6*144/62.4+N32-L34*144/62.4,N32-L34*144/62.4))) ->  | P34: =IF(M34="","",M34-AF34) ->  | Q34: =IF(P34="","",P34*62.4/144) ->  | R34: =IF(N34="","",(N34-AF34)*62.4/144) ->  | V34: =IF(R34="","",IF(P34<0,$O$316,IF(R34>G35,$O$317,IF(R34>75,$O$318,"")))) ->  | AB34: =IF(K33="","",K33+AB32) ->  | AF34: =IF(OR(A34="",$R$3="",AM33=""),"",C34-$R$3) ->  | AG34: =IF(AF34="","",N34) ->  | AH34: =IF(OR(AF34="",$R$2=""),"",IF(AND($A$311=1,Pump!$F$17="Yes"),IF(AND($C$311=TRUE,$K$5=A34),($M$5*144/62.4+AF34)-((L34*144/62.4)),IF(AND($F$311=TRUE,$K$6=A34),AH32-K33+($M$6*144/62.4)-(O33^2/64.4),AH32-K33-(O33^2/64.4))),AH32-K33-(O33^2/64.4))) -> 
B35: =IF(AND(A36>0,C36>0),SQRT((A36-A34)^2+(C36-C34)^2),"") ->  | G35: =IF(OR(A34="",AI35=0),"",AL35) ->  | H35: =IF(OR($A34="",AI35=0,AJ35=0),"",AM35) ->  | I35: =IF(OR($A34="",AI35=0,AJ35=0),"",AN35) ->  | J35: =IF(AND(A36<>"",OR(AK35<>0,AJ35<>0,AI35<>0)),AO35,"") ->  | K35: =IF(OR(A36="",AR35="",AM35=""),"",(10.44*B35*(AR35^1.85))/((AN35^1.85)*(AM35^4.8655))) ->  | O35: =IF(OR(A36="",AR35="",AM35="",$R$2=""),"",(AR35/7.48/60)/(PI()*((AM35/2)/12)^2)) ->  | AD35: =IF(A36="","",IF(E35="",AD33,IF(ISNUMBER(SEARCH(3408,Main!E35)),'Pipe Tables'!$E$32,IF(ISNUMBER(SEARCH(4710,Main!E35)),'Pipe Tables'!$E$32,IF(ISNUMBER(SEARCH('Pipe Tables'!$E$33,Main!E35)),'Pipe Tables'!$E$33,IF(ISNUMBER(SEARCH('Pipe Tables'!$E$34,Main!E35)),'Pipe Tables'!$E$34,IF(ISNUMBER(SEARCH('Pipe Tables'!$E$35,Main!E35)),'Pipe Tables'!$E$35))))))) ->  | AI35: =D35 -> 0 | AJ35: =E35 -> 0 | AK35: =F35 -> 0 | AL35: =IF(AQ35=0,"",HLOOKUP(AQ35,Pipe_Pressure,MATCH(AP35,Pipe_Press_Size,0),FALSE)) ->  | AM35: =IF(OR(AP35=0,AQ35=0),"",VLOOKUP(AP35,Pipe_Diameter,MATCH(AQ35,Pipe_Diam_Material,0))) ->  | AN35: =IF(A36="","",VLOOKUP(AD35,Hazen_Williams,2)) ->  | AO35: =IF(OR(A36="",AR35="",AM35=""),"",((10.44*(AR35^1.85))/((AN35^1.85)*(AM35^4.8655)))) ->  | AP35: =IF(AND($A36<>"",AI35=0),AP33,IF(AND($A36<>"",AI35<>0),AI35,0)) -> 0 | AQ35: =IF(AND($A36<>"",AJ35=0),AQ33,IF(AND($A36<>"",AJ35<>0),AJ35,0)) -> 0 | AR35: =IF(AND($A36<>"",AK35=0),AR33,IF(AND($A36<>"",AK35<>0),AK35,0)) -> 0 | AS35: =IF(AND($A36<>"",AL35=0),AS33,IF(AND($A36<>"",AL35<>0),AL35,0)) -> 0
M36: =IF(OR(AF36="",$R$2=""),"",IF(AND($C$311=TRUE,$K$5=A36),($M$5*144/62.4+AF36)-((L36*144/62.4)),IF(AND($F$311=TRUE,$K$6=A36),M34-K35+($M$6*144/62.4)-(O35^2/64.4),M34-K35-(O35^2/64.4)-L36*144/62.4))) ->  | N36: =IF(B35="","",IF(AND($K$5=$A36,$C$311=TRUE),$M$5*144/62.4+AF36,IF(AND($K$6=$A36,$F$311=TRUE),$M$6*144/62.4+N34-L36*144/62.4,N34-L36*144/62.4))) ->  | P36: =IF(M36="","",M36-AF36) ->  | Q36: =IF(P36="","",P36*62.4/144) ->  | R36: =IF(N36="","",(N36-AF36)*62.4/144) ->  | V36: =IF(R36="","",IF(P36<0,$O$316,IF(R36>G37,$O$317,IF(R36>75,$O$318,"")))) ->  | AB36: =IF(K35="","",K35+AB34) ->  | AF36: =IF(OR(A36="",$R$3="",AM35=""),"",C36-$R$3) ->  | AG36: =IF(AF36="","",N36) ->  | AH36: =IF(OR(AF36="",$R$2=""),"",IF(AND($A$311=1,Pump!$F$17="Yes"),IF(AND($C$311=TRUE,$K$5=A36),($M$5*144/62.4+AF36)-((L36*144/62.4)),IF(AND($F$311=TRUE,$K$6=A36),AH34-K35+($M$6*144/62.4)-(O35^2/64.4),AH34-K35-(O35^2/64.4))),AH34-K35-(O35^2/64.4))) -> 
B37: =IF(AND(A38>0,C38>0),SQRT((A38-A36)^2+(C38-C36)^2),"") ->  | G37: =IF(OR(A36="",AI37=0),"",AL37) ->  | H37: =IF(OR($A36="",AI37=0,AJ37=0),"",AM37) ->  | I37: =IF(OR($A36="",AI37=0,AJ37=0),"",AN37) ->  | J37: =IF(AND(A38<>"",OR(AK37<>0,AJ37<>0,AI37<>0)),AO37,"") ->  | K37: =IF(OR(A38="",AR37="",AM37=""),"",(10.44*B37*(AR37^1.85))/((AN37^1.85)*(AM37^4.8655))) ->  | O37: =IF(OR(A38="",AR37="",AM37="",$R$2=""),"",(AR37/7.48/60)/(PI()*((AM37/2)/12)^2)) ->  | AD37: =IF(A38="","",IF(E37="",AD35,IF(ISNUMBER(SEARCH(3408,Main!E37)),'Pipe Tables'!$E$32,IF(ISNUMBER(SEARCH(4710,Main!E37)),'Pipe Tables'!$E$32,IF(ISNUMBER(SEARCH('Pipe Tables'!$E$33,Main!E37)),'Pipe Tables'!$E$33,IF(ISNUMBER(SEARCH('Pipe Tables'!$E$34,Main!E37)),'Pipe Tables'!$E$34,IF(ISNUMBER(SEARCH('Pipe Tables'!$E$35,Main!E37)),'Pipe Tables'!$E$35))))))) ->  | AI37: =D37 -> 0 | AJ37: =E37 -> 0 | AK37: =F37 -> 0 | AL37: =IF(AQ37=0,"",HLOOKUP(AQ37,Pipe_Pressure,MATCH(AP37,Pipe_Press_Size,0),FALSE)) ->  | AM37: =IF(OR(AP37=0,AQ37=0),"",VLOOKUP(AP37,Pipe_Diameter,MATCH(AQ37,Pipe_Diam_Material,0))) ->  | AN37: =IF(A38="","",VLOOKUP(AD37,Hazen_Williams,2)) ->  | AO37: =IF(OR(A38="",AR37="",AM37=""),"",((10.44*(AR37^1.85))/((AN37^1.85)*(AM37^4.8655)))) ->  | AP37: =IF(AND($A38<>"",AI37=0),AP35,IF(AND($A38<>"",AI37<>0),AI37,0)) -> 0 | AQ37: =IF(AND($A38<>"",AJ37=0),AQ35,IF(AND($A38<>"",AJ37<>0),AJ37,0)) -> 0 | AR37: =IF(AND($A38<>"",AK37=0),AR35,IF(AND($A38<>"",AK37<>0),AK37,0)) -> 0 | AS37: =IF(AND($A38<>"",AL37=0),AS35,IF(AND($A38<>"",AL37<>0),AL37,0)) -> 0
M38: =IF(OR(AF38="",$R$2=""),"",IF(AND($C$311=TRUE,$K$5=A38),($M$5*144/62.4+AF38)-((L38*144/62.4)),IF(AND($F$311=TRUE,$K$6=A38),M36-K37+($M$6*144/62.4)-(O37^2/64.4),M36-K37-(O37^2/64.4)-L38*144/62.4))) ->  | N38: =IF(B37="","",IF(AND($K$5=$A38,$C$311=TRUE),$M$5*144/62.4+AF38,IF(AND($K$6=$A38,$F$311=TRUE),$M$6*144/62.4+N36-L38*144/62.4,N36-L38*144/62.4))) ->  | P38: =IF(M38="","",M38-AF38) ->  | Q38: =IF(P38="","",P38*62.4/144) ->  | R38: =IF(N38="","",(N38-AF38)*62.4/144) ->  | V38: =IF(R38="","",IF(P38<0,$O$316,IF(R38>G39,$O$317,IF(R38>75,$O$318,"")))) ->  | AB38: =IF(K37="","",K37+AB36) ->  | AF38: =IF(OR(A38="",$R$3="",AM37=""),"",C38-$R$3) ->  | AG38: =IF(AF38="","",N38) ->  | AH38: =IF(OR(AF38="",$R$2=""),"",IF(AND($A$311=1,Pump!$F$17="Yes"),IF(AND($C$311=TRUE,$K$5=A38),($M$5*144/62.4+AF38)-((L38*144/62.4)),IF(AND($F$311=TRUE,$K$6=A38),AH36-K37+($M$6*144/62.4)-(O37^2/64.4),AH36-K37-(O37^2/64.4))),AH36-K37-(O37^2/64.4))) -> 
B39: =IF(AND(A40>0,C40>0),SQRT((A40-A38)^2+(C40-C38)^2),"") ->  | G39: =IF(OR(A38="",AI39=0),"",AL39) ->  | H39: =IF(OR($A38="",AI39=0,AJ39=0),"",AM39) ->  | I39: =IF(OR($A38="",AI39=0,AJ39=0),"",AN39) ->  | J39: =IF(AND(A40<>"",OR(AK39<>0,AJ39<>0,AI39<>0)),AO39,"") ->  | K39: =IF(OR(A40="",AR39="",AM39=""),"",(10.44*B39*(AR39^1.85))/((AN39^1.85)*(AM39^4.8655))) ->  | O39: =IF(OR(A40="",AR39="",AM39="",$R$2=""),"",(AR39/7.48/60)/(PI()*((AM39/2)/12)^2)) ->  | AD39: =IF(A40="","",IF(E39="",AD37,IF(ISNUMBER(SEARCH(3408,Main!E39)),'Pipe Tables'!$E$32,IF(ISNUMBER(SEARCH(4710,Main!E39)),'Pipe Tables'!$E$32,IF(ISNUMBER(SEARCH('Pipe Tables'!$E$33,Main!E39)),'Pipe Tables'!$E$33,IF(ISNUMBER(SEARCH('Pipe Tables'!$E$34,Main!E39)),'Pipe Tables'!$E$34,IF(ISNUMBER(SEARCH('Pipe Tables'!$E$35,Main!E39)),'Pipe Tables'!$E$35))))))) ->  | AI39: =D39 -> 0 | AJ39: =E39 -> 0 | AK39: =F39 -> 0 | AL39: =IF(AQ39=0,"",HLOOKUP(AQ39,Pipe_Pressure,MATCH(AP39,Pipe_Press_Size,0),FALSE)) ->  | AM39: =IF(OR(AP39=0,AQ39=0),"",VLOOKUP(AP39,Pipe_Diameter,MATCH(AQ39,Pipe_Diam_Material,0))) ->  | AN39: =IF(A40="","",VLOOKUP(AD39,Hazen_Williams,2)) ->  | AO39: =IF(OR(A40="",AR39="",AM39=""),"",((10.44*(AR39^1.85))/((AN39^1.85)*(AM39^4.8655)))) ->  | AP39: =IF(AND($A40<>"",AI39=0),AP37,IF(AND($A40<>"",AI39<>0),AI39,0)) -> 0 | AQ39: =IF(AND($A40<>"",AJ39=0),AQ37,IF(AND($A40<>"",AJ39<>0),AJ39,0)) -> 0 | AR39: =IF(AND($A40<>"",AK39=0),AR37,IF(AND($A40<>"",AK39<>0),AK39,0)) -> 0 | AS39: =IF(AND($A40<>"",AL39=0),AS37,IF(AND($A40<>"",AL39<>0),AL39,0)) -> 0
M40: =IF(OR(AF40="",$R$2=""),"",IF(AND($C$311=TRUE,$K$5=A40),($M$5*144/62.4+AF40)-((L40*144/62.4)),IF(AND($F$311=TRUE,$K$6=A40),M38-K39+($M$6*144/62.4)-(O39^2/64.4),M38-K39-(O39^2/64.4)-L40*144/62.4))) ->  | N40: =IF(B39="","",IF(AND($K$5=$A40,$C$311=TRUE),$M$5*144/62.4+AF40,IF(AND($K$6=$A40,$F$311=TRUE),$M$6*144/62.4+N38-L40*144/62.4,N38-L40*144/62.4))) ->  | P40: =IF(M40="","",M40-AF40) ->  | Q40: =IF(P40="","",P40*62.4/144) ->  | R40: =IF(N40="","",(N40-AF40)*62.4/144) ->  | V40: =IF(R40="","",IF(P40<0,$O$316,IF(R40>G41,$O$317,IF(R40>75,$O$318,"")))) ->  | AB40: =IF(K39="","",K39+AB38) ->  | AF40: =IF(OR(A40="",$R$3="",AM39=""),"",C40-$R$3) ->  | AG40: =IF(AF40="","",N40) ->  | AH40: =IF(OR(AF40="",$R$2=""),"",IF(AND($A$311=1,Pump!$F$17="Yes"),IF(AND($C$311=TRUE,$K$5=A40),($M$5*144/62.4+AF40)-((L40*144/62.4)),IF(AND($F$311=TRUE,$K$6=A40),AH38-K39+($M$6*144/62.4)-(O39^2/64.4),AH38-K39-(O39^2/64.4))),AH38-K39-(O39^2/64.4))) -> 
B41: =IF(AND(A42>0,C42>0),SQRT((A42-A40)^2+(C42-C40)^2),"") ->  | G41: =IF(OR(A40="",AI41=0),"",AL41) ->  | H41: =IF(OR($A40="",AI41=0,AJ41=0),"",AM41) ->  | I41: =IF(OR($A40="",AI41=0,AJ41=0),"",AN41) ->  | J41: =IF(AND(A42<>"",OR(AK41<>0,AJ41<>0,AI41<>0)),AO41,"") ->  | K41: =IF(OR(A42="",AR41="",AM41=""),"",(10.44*B41*(AR41^1.85))/((AN41^1.85)*(AM41^4.8655))) ->  | O41: =IF(OR(A42="",AR41="",AM41="",$R$2=""),"",(AR41/7.48/60)/(PI()*((AM41/2)/12)^2)) ->  | AD41: =IF(A42="","",IF(E41="",AD39,IF(ISNUMBER(SEARCH(3408,Main!E41)),'Pipe Tables'!$E$32,IF(ISNUMBER(SEARCH(4710,Main!E41)),'Pipe Tables'!$E$32,IF(ISNUMBER(SEARCH('Pipe Tables'!$E$33,Main!E41)),'Pipe Tables'!$E$33,IF(ISNUMBER(SEARCH('Pipe Tables'!$E$34,Main!E41)),'Pipe Tables'!$E$34,IF(ISNUMBER(SEARCH('Pipe Tables'!$E$35,Main!E41)),'Pipe Tables'!$E$35))))))) ->  | AI41: =D41 -> 0 | AJ41: =E41 -> 0 | AK41: =F41 -> 0 | AL41: =IF(AQ41=0,"",HLOOKUP(AQ41,Pipe_Pressure,MATCH(AP41,Pipe_Press_Size,0),FALSE)) ->  | AM41: =IF(OR(AP41=0,AQ41=0),"",VLOOKUP(AP41,Pipe_Diameter,MATCH(AQ41,Pipe_Diam_Material,0))) ->  | AN41: =IF(A42="","",VLOOKUP(AD41,Hazen_Williams,2)) ->  | AO41: =IF(OR(A42="",AR41="",AM41=""),"",((10.44*(AR41^1.85))/((AN41^1.85)*(AM41^4.8655)))) ->  | AP41: =IF(AND($A42<>"",AI41=0),AP39,IF(AND($A42<>"",AI41<>0),AI41,0)) -> 0 | AQ41: =IF(AND($A42<>"",AJ41=0),AQ39,IF(AND($A42<>"",AJ41<>0),AJ41,0)) -> 0 | AR41: =IF(AND($A42<>"",AK41=0),AR39,IF(AND($A42<>"",AK41<>0),AK41,0)) -> 0 | AS41: =IF(AND($A42<>"",AL41=0),AS39,IF(AND($A42<>"",AL41<>0),AL41,0)) -> 0
M42: =IF(OR(AF42="",$R$2=""),"",IF(AND($C$311=TRUE,$K$5=A42),($M$5*144/62.4+AF42)-((L42*144/62.4)),IF(AND($F$311=TRUE,$K$6=A42),M40-K41+($M$6*144/62.4)-(O41^2/64.4),M40-K41-(O41^2/64.4)-L42*144/62.4))) ->  | N42: =IF(B41="","",IF(AND($K$5=$A42,$C$311=TRUE),$M$5*144/62.4+AF42,IF(AND($K$6=$A42,$F$311=TRUE),$M$6*144/62.4+N40-L42*144/62.4,N40-L42*144/62.4))) ->  | P42: =IF(M42="","",M42-AF42) ->  | Q42: =IF(P42="","",P42*62.4/144) ->  | R42: =IF(N42="","",(N42-AF42)*62.4/144) ->  | V42: =IF(R42="","",IF(P42<0,$O$316,IF(R42>G43,$O$317,IF(R42>75,$O$318,"")))) ->  | AB42: =IF(K41="","",K41+AB40) ->  | AF42: =IF(OR(A42="",$R$3="",AM41=""),"",C42-$R$3) ->  | AG42: =IF(AF42="","",N42) ->  | AH42: =IF(OR(AF42="",$R$2=""),"",IF(AND($A$311=1,Pump!$F$17="Yes"),IF(AND($C$311=TRUE,$K$5=A42),($M$5*144/62.4+AF42)-((L42*144/62.4)),IF(AND($F$311=TRUE,$K$6=A42),AH40-K41+($M$6*144/62.4)-(O41^2/64.4),AH40-K41-(O41^2/64.4))),AH40-K41-(O41^2/64.4))) -> 
B43: =IF(AND(A44>0,C44>0),SQRT((A44-A42)^2+(C44-C42)^2),"") ->  | G43: =IF(OR(A42="",AI43=0),"",AL43) ->  | H43: =IF(OR($A42="",AI43=0,AJ43=0),"",AM43) ->  | I43: =IF(OR($A42="",AI43=0,AJ43=0),"",AN43) ->  | J43: =IF(AND(A44<>"",OR(AK43<>0,AJ43<>0,AI43<>0)),AO43,"") ->  | K43: =IF(OR(A44="",AR43="",AM43=""),"",(10.44*B43*(AR43^1.85))/((AN43^1.85)*(AM43^4.8655))) ->  | O43: =IF(OR(A44="",AR43="",AM43="",$R$2=""),"",(AR43/7.48/60)/(PI()*((AM43/2)/12)^2)) ->  | AD43: =IF(A44="","",IF(E43="",AD41,IF(ISNUMBER(SEARCH(3408,Main!E43)),'Pipe Tables'!$E$32,IF(ISNUMBER(SEARCH(4710,Main!E43)),'Pipe Tables'!$E$32,IF(ISNUMBER(SEARCH('Pipe Tables'!$E$33,Main!E43)),'Pipe Tables'!$E$33,IF(ISNUMBER(SEARCH('Pipe Tables'!$E$34,Main!E43)),'Pipe Tables'!$E$34,IF(ISNUMBER(SEARCH('Pipe Tables'!$E$35,Main!E43)),'Pipe Tables'!$E$35))))))) ->  | AI43: =D43 -> 0 | AJ43: =E43 -> 0 | AK43: =F43 -> 0 | AL43: =IF(AQ43=0,"",HLOOKUP(AQ43,Pipe_Pressure,MATCH(AP43,Pipe_Press_Size,0),FALSE)) ->  | AM43: =IF(OR(AP43=0,AQ43=0),"",VLOOKUP(AP43,Pipe_Diameter,MATCH(AQ43,Pipe_Diam_Material,0))) ->  | AN43: =IF(A44="","",VLOOKUP(AD43,Hazen_Williams,2)) ->  | AO43: =IF(OR(A44="",AR43="",AM43=""),"",((10.44*(AR43^1.85))/((AN43^1.85)*(AM43^4.8655)))) ->  | AP43: =IF(AND($A44<>"",AI43=0),AP41,IF(AND($A44<>"",AI43<>0),AI43,0)) -> 0 | AQ43: =IF(AND($A44<>"",AJ43=0),AQ41,IF(AND($A44<>"",AJ43<>0),AJ43,0)) -> 0 | AR43: =IF(AND($A44<>"",AK43=0),AR41,IF(AND($A44<>"",AK43<>0),AK43,0)) -> 0 | AS43: =IF(AND($A44<>"",AL43=0),AS41,IF(AND($A44<>"",AL43<>0),AL43,0)) -> 0
M44: =IF(OR(AF44="",$R$2=""),"",IF(AND($C$311=TRUE,$K$5=A44),($M$5*144/62.4+AF44)-((L44*144/62.4)),IF(AND($F$311=TRUE,$K$6=A44),M42-K43+($M$6*144/62.4)-(O43^2/64.4),M42-K43-(O43^2/64.4)-L44*144/62.4))) ->  | N44: =IF(B43="","",IF(AND($K$5=$A44,$C$311=TRUE),$M$5*144/62.4+AF44,IF(AND($K$6=$A44,$F$311=TRUE),$M$6*144/62.4+N42-L44*144/62.4,N42-L44*144/62.4))) ->  | P44: =IF(M44="","",M44-AF44) ->  | Q44: =IF(P44="","",P44*62.4/144) ->  | R44: =IF(N44="","",(N44-AF44)*62.4/144) ->  | V44: =IF(R44="","",IF(P44<0,$O$316,IF(R44>G45,$O$317,IF(R44>75,$O$318,"")))) ->  | AB44: =IF(K43="","",K43+AB42) ->  | AF44: =IF(OR(A44="",$R$3="",AM43=""),"",C44-$R$3) ->  | AG44: =IF(AF44="","",N44) ->  | AH44: =IF(OR(AF44="",$R$2=""),"",IF(AND($A$311=1,Pump!$F$17="Yes"),IF(AND($C$311=TRUE,$K$5=A44),($M$5*144/62.4+AF44)-((L44*144/62.4)),IF(AND($F$311=TRUE,$K$6=A44),AH42-K43+($M$6*144/62.4)-(O43^2/64.4),AH42-K43-(O43^2/64.4))),AH42-K43-(O43^2/64.4))) -> 
B45: =IF(AND(A46>0,C46>0),SQRT((A46-A44)^2+(C46-C44)^2),"") ->  | G45: =IF(OR(A44="",AI45=0),"",AL45) ->  | H45: =IF(OR($A44="",AI45=0,AJ45=0),"",AM45) ->  | I45: =IF(OR($A44="",AI45=0,AJ45=0),"",AN45) ->  | J45: =IF(AND(A46<>"",OR(AK45<>0,AJ45<>0,AI45<>0)),AO45,"") ->  | K45: =IF(OR(A46="",AR45="",AM45=""),"",(10.44*B45*(AR45^1.85))/((AN45^1.85)*(AM45^4.8655))) ->  | O45: =IF(OR(A46="",AR45="",AM45="",$R$2=""),"",(AR45/7.48/60)/(PI()*((AM45/2)/12)^2)) ->  | AD45: =IF(A46="","",IF(E45="",AD43,IF(ISNUMBER(SEARCH(3408,Main!E45)),'Pipe Tables'!$E$32,IF(ISNUMBER(SEARCH(4710,Main!E45)),'Pipe Tables'!$E$32,IF(ISNUMBER(SEARCH('Pipe Tables'!$E$33,Main!E45)),'Pipe Tables'!$E$33,IF(ISNUMBER(SEARCH('Pipe Tables'!$E$34,Main!E45)),'Pipe Tables'!$E$34,IF(ISNUMBER(SEARCH('Pipe Tables'!$E$35,Main!E45)),'Pipe Tables'!$E$35))))))) ->  | AI45: =D45 -> 0 | AJ45: =E45 -> 0 | AK45: =F45 -> 0 | AL45: =IF(AQ45=0,"",HLOOKUP(AQ45,Pipe_Pressure,MATCH(AP45,Pipe_Press_Size,0),FALSE)) ->  | AM45: =IF(OR(AP45=0,AQ45=0),"",VLOOKUP(AP45,Pipe_Diameter,MATCH(AQ45,Pipe_Diam_Material,0))) ->  | AN45: =IF(A46="","",VLOOKUP(AD45,Hazen_Williams,2)) ->  | AO45: =IF(OR(A46="",AR45="",AM45=""),"",((10.44*(AR45^1.85))/((AN45^1.85)*(AM45^4.8655)))) ->  | AP45: =IF(AND($A46<>"",AI45=0),AP43,IF(AND($A46<>"",AI45<>0),AI45,0)) -> 0 | AQ45: =IF(AND($A46<>"",AJ45=0),AQ43,IF(AND($A46<>"",AJ45<>0),AJ45,0)) -> 0 | AR45: =IF(AND($A46<>"",AK45=0),AR43,IF(AND($A46<>"",AK45<>0),AK45,0)) -> 0 | AS45: =IF(AND($A46<>"",AL45=0),AS43,IF(AND($A46<>"",AL45<>0),AL45,0)) -> 0
M46: =IF(OR(AF46="",$R$2=""),"",IF(AND($C$311=TRUE,$K$5=A46),($M$5*144/62.4+AF46)-((L46*144/62.4)),IF(AND($F$311=TRUE,$K$6=A46),M44-K45+($M$6*144/62.4)-(O45^2/64.4),M44-K45-(O45^2/64.4)-L46*144/62.4))) ->  | N46: =IF(B45="","",IF(AND($K$5=$A46,$C$311=TRUE),$M$5*144/62.4+AF46,IF(AND($K$6=$A46,$F$311=TRUE),$M$6*144/62.4+N44-L46*144/62.4,N44-L46*144/62.4))) ->  | P46: =IF(M46="","",M46-AF46) ->  | Q46: =IF(P46="","",P46*62.4/144) ->  | R46: =IF(N46="","",(N46-AF46)*62.4/144) ->  | V46: =IF(R46="","",IF(P46<0,$O$316,IF(R46>G47,$O$317,IF(R46>75,$O$318,"")))) ->  | AB46: =IF(K45="","",K45+AB44) ->  | AF46: =IF(OR(A46="",$R$3="",AM45=""),"",C46-$R$3) ->  | AG46: =IF(AF46="","",N46) ->  | AH46: =IF(OR(AF46="",$R$2=""),"",IF(AND($A$311=1,Pump!$F$17="Yes"),IF(AND($C$311=TRUE,$K$5=A46),($M$5*144/62.4+AF46)-((L46*144/62.4)),IF(AND($F$311=TRUE,$K$6=A46),AH44-K45+($M$6*144/62.4)-(O45^2/64.4),AH44-K45-(O45^2/64.4))),AH44-K45-(O45^2/64.4))) -> 
B47: =IF(AND(A48>0,C48>0),SQRT((A48-A46)^2+(C48-C46)^2),"") ->  | G47: =IF(OR(A46="",AI47=0),"",AL47) ->  | H47: =IF(OR($A46="",AI47=0,AJ47=0),"",AM47) ->  | I47: =IF(OR($A46="",AI47=0,AJ47=0),"",AN47) ->  | J47: =IF(AND(A48<>"",OR(AK47<>0,AJ47<>0,AI47<>0)),AO47,"") ->  | K47: =IF(OR(A48="",AR47="",AM47=""),"",(10.44*B47*(AR47^1.85))/((AN47^1.85)*(AM47^4.8655))) ->  | O47: =IF(OR(A48="",AR47="",AM47="",$R$2=""),"",(AR47/7.48/60)/(PI()*((AM47/2)/12)^2)) ->  | AD47: =IF(A48="","",IF(E47="",AD45,IF(ISNUMBER(SEARCH(3408,Main!E47)),'Pipe Tables'!$E$32,IF(ISNUMBER(SEARCH(4710,Main!E47)),'Pipe Tables'!$E$32,IF(ISNUMBER(SEARCH('Pipe Tables'!$E$33,Main!E47)),'Pipe Tables'!$E$33,IF(ISNUMBER(SEARCH('Pipe Tables'!$E$34,Main!E47)),'Pipe Tables'!$E$34,IF(ISNUMBER(SEARCH('Pipe Tables'!$E$35,Main!E47)),'Pipe Tables'!$E$35))))))) ->  | AI47: =D47 -> 0 | AJ47: =E47 -> 0 | AK47: =F47 -> 0 | AL47: =IF(AQ47=0,"",HLOOKUP(AQ47,Pipe_Pressure,MATCH(AP47,Pipe_Press_Size,0),FALSE)) ->  | AM47: =IF(OR(AP47=0,AQ47=0),"",VLOOKUP(AP47,Pipe_Diameter,MATCH(AQ47,Pipe_Diam_Material,0))) ->  | AN47: =IF(A48="","",VLOOKUP(AD47,Hazen_Williams,2)) ->  | AO47: =IF(OR(A48="",AR47="",AM47=""),"",((10.44*(AR47^1.85))/((AN47^1.85)*(AM47^4.8655)))) ->  | AP47: =IF(AND($A48<>"",AI47=0),AP45,IF(AND($A48<>"",AI47<>0),AI47,0)) -> 0 | AQ47: =IF(AND($A48<>"",AJ47=0),AQ45,IF(AND($A48<>"",AJ47<>0),AJ47,0)) -> 0 | AR47: =IF(AND($A48<>"",AK47=0),AR45,IF(AND($A48<>"",AK47<>0),AK47,0)) -> 0 | AS47: =IF(AND($A48<>"",AL47=0),AS45,IF(AND($A48<>"",AL47<>0),AL47,0)) -> 0
M48: =IF(OR(AF48="",$R$2=""),"",IF(AND($C$311=TRUE,$K$5=A48),($M$5*144/62.4+AF48)-((L48*144/62.4)),IF(AND($F$311=TRUE,$K$6=A48),M46-K47+($M$6*144/62.4)-(O47^2/64.4),M46-K47-(O47^2/64.4)-L48*144/62.4))) ->  | N48: =IF(B47="","",IF(AND($K$5=$A48,$C$311=TRUE),$M$5*144/62.4+AF48,IF(AND($K$6=$A48,$F$311=TRUE),$M$6*144/62.4+N46-L48*144/62.4,N46-L48*144/62.4))) ->  | P48: =IF(M48="","",M48-AF48) ->  | Q48: =IF(P48="","",P48*62.4/144) ->  | R48: =IF(N48="","",(N48-AF48)*62.4/144) ->  | V48: =IF(R48="","",IF(P48<0,$O$316,IF(R48>G49,$O$317,IF(R48>75,$O$318,"")))) ->  | AB48: =IF(K47="","",K47+AB46) ->  | AF48: =IF(OR(A48="",$R$3="",AM47=""),"",C48-$R$3) ->  | AG48: =IF(AF48="","",N48) ->  | AH48: =IF(OR(AF48="",$R$2=""),"",IF(AND($A$311=1,Pump!$F$17="Yes"),IF(AND($C$311=TRUE,$K$5=A48),($M$5*144/62.4+AF48)-((L48*144/62.4)),IF(AND($F$311=TRUE,$K$6=A48),AH46-K47+($M$6*144/62.4)-(O47^2/64.4),AH46-K47-(O47^2/64.4))),AH46-K47-(O47^2/64.4))) -> 
B49: =IF(AND(A50>0,C50>0),SQRT((A50-A48)^2+(C50-C48)^2),"") ->  | G49: =IF(OR(A48="",AI49=0),"",AL49) ->  | H49: =IF(OR($A48="",AI49=0,AJ49=0),"",AM49) ->  | I49: =IF(OR($A48="",AI49=0,AJ49=0),"",AN49) ->  | J49: =IF(AND(A50<>"",OR(AK49<>0,AJ49<>0,AI49<>0)),AO49,"") ->  | K49: =IF(OR(A50="",AR49="",AM49=""),"",(10.44*B49*(AR49^1.85))/((AN49^1.85)*(AM49^4.8655))) ->  | O49: =IF(OR(A50="",AR49="",AM49="",$R$2=""),"",(AR49/7.48/60)/(PI()*((AM49/2)/12)^2)) ->  | AD49: =IF(A50="","",IF(E49="",AD47,IF(ISNUMBER(SEARCH(3408,Main!E49)),'Pipe Tables'!$E$32,IF(ISNUMBER(SEARCH(4710,Main!E49)),'Pipe Tables'!$E$32,IF(ISNUMBER(SEARCH('Pipe Tables'!$E$33,Main!E49)),'Pipe Tables'!$E$33,IF(ISNUMBER(SEARCH('Pipe Tables'!$E$34,Main!E49)),'Pipe Tables'!$E$34,IF(ISNUMBER(SEARCH('Pipe Tables'!$E$35,Main!E49)),'Pipe Tables'!$E$35))))))) ->  | AI49: =D49 -> 0 | AJ49: =E49 -> 0 | AK49: =F49 -> 0 | AL49: =IF(AQ49=0,"",HLOOKUP(AQ49,Pipe_Pressure,MATCH(AP49,Pipe_Press_Size,0),FALSE)) ->  | AM49: =IF(OR(AP49=0,AQ49=0),"",VLOOKUP(AP49,Pipe_Diameter,MATCH(AQ49,Pipe_Diam_Material,0))) ->  | AN49: =IF(A50="","",VLOOKUP(AD49,Hazen_Williams,2)) ->  | AO49: =IF(OR(A50="",AR49="",AM49=""),"",((10.44*(AR49^1.85))/((AN49^1.85)*(AM49^4.8655)))) ->  | AP49: =IF(AND($A50<>"",AI49=0),AP47,IF(AND($A50<>"",AI49<>0),AI49,0)) -> 0 | AQ49: =IF(AND($A50<>"",AJ49=0),AQ47,IF(AND($A50<>"",AJ49<>0),AJ49,0)) -> 0 | AR49: =IF(AND($A50<>"",AK49=0),AR47,IF(AND($A50<>"",AK49<>0),AK49,0)) -> 0 | AS49: =IF(AND($A50<>"",AL49=0),AS47,IF(AND($A50<>"",AL49<>0),AL49,0)) -> 0
M50: =IF(OR(AF50="",$R$2=""),"",IF(AND($C$311=TRUE,$K$5=A50),($M$5*144/62.4+AF50)-((L50*144/62.4)),IF(AND($F$311=TRUE,$K$6=A50),M48-K49+($M$6*144/62.4)-(O49^2/64.4),M48-K49-(O49^2/64.4)-L50*144/62.4))) ->  | N50: =IF(B49="","",IF(AND($K$5=$A50,$C$311=TRUE),$M$5*144/62.4+AF50,IF(AND($K$6=$A50,$F$311=TRUE),$M$6*144/62.4+N48-L50*144/62.4,N48-L50*144/62.4))) ->  | P50: =IF(M50="","",M50-AF50) ->  | Q50: =IF(P50="","",P50*62.4/144) ->  | R50: =IF(N50="","",(N50-AF50)*62.4/144) ->  | V50: =IF(R50="","",IF(P50<0,$O$316,IF(R50>G51,$O$317,IF(R50>75,$O$318,"")))) ->  | AB50: =IF(K49="","",K49+AB48) ->  | AF50: =IF(OR(A50="",$R$3="",AM49=""),"",C50-$R$3) ->  | AG50: =IF(AF50="","",N50) ->  | AH50: =IF(OR(AF50="",$R$2=""),"",IF(AND($A$311=1,Pump!$F$17="Yes"),IF(AND($C$311=TRUE,$K$5=A50),($M$5*144/62.4+AF50)-((L50*144/62.4)),IF(AND($F$311=TRUE,$K$6=A50),AH48-K49+($M$6*144/62.4)-(O49^2/64.4),AH48-K49-(O49^2/64.4))),AH48-K49-(O49^2/64.4))) -> 
B51: =IF(AND(A52>0,C52>0),SQRT((A52-A50)^2+(C52-C50)^2),"") ->  | G51: =IF(OR(A50="",AI51=0),"",AL51) ->  | H51: =IF(OR($A50="",AI51=0,AJ51=0),"",AM51) ->  | I51: =IF(OR($A50="",AI51=0,AJ51=0),"",AN51) ->  | J51: =IF(AND(A52<>"",OR(AK51<>0,AJ51<>0,AI51<>0)),AO51,"") ->  | K51: =IF(OR(A52="",AR51="",AM51=""),"",(10.44*B51*(AR51^1.85))/((AN51^1.85)*(AM51^4.8655))) ->  | O51: =IF(OR(A52="",AR51="",AM51="",$R$2=""),"",(AR51/7.48/60)/(PI()*((AM51/2)/12)^2)) ->  | AD51: =IF(A52="","",IF(E51="",AD49,IF(ISNUMBER(SEARCH(3408,Main!E51)),'Pipe Tables'!$E$32,IF(ISNUMBER(SEARCH(4710,Main!E51)),'Pipe Tables'!$E$32,IF(ISNUMBER(SEARCH('Pipe Tables'!$E$33,Main!E51)),'Pipe Tables'!$E$33,IF(ISNUMBER(SEARCH('Pipe Tables'!$E$34,Main!E51)),'Pipe Tables'!$E$34,IF(ISNUMBER(SEARCH('Pipe Tables'!$E$35,Main!E51)),'Pipe Tables'!$E$35))))))) ->  | AI51: =D51 -> 0 | AJ51: =E51 -> 0 | AK51: =F51 -> 0 | AL51: =IF(AQ51=0,"",HLOOKUP(AQ51,Pipe_Pressure,MATCH(AP51,Pipe_Press_Size,0),FALSE)) ->  | AM51: =IF(OR(AP51=0,AQ51=0),"",VLOOKUP(AP51,Pipe_Diameter,MATCH(AQ51,Pipe_Diam_Material,0))) ->  | AN51: =IF(A52="","",VLOOKUP(AD51,Hazen_Williams,2)) ->  | AO51: =IF(OR(A52="",AR51="",AM51=""),"",((10.44*(AR51^1.85))/((AN51^1.85)*(AM51^4.8655)))) ->  | AP51: =IF(AND($A52<>"",AI51=0),AP49,IF(AND($A52<>"",AI51<>0),AI51,0)) -> 0 | AQ51: =IF(AND($A52<>"",AJ51=0),AQ49,IF(AND($A52<>"",AJ51<>0),AJ51,0)) -> 0 | AR51: =IF(AND($A52<>"",AK51=0),AR49,IF(AND($A52<>"",AK51<>0),AK51,0)) -> 0 | AS51: =IF(AND($A52<>"",AL51=0),AS49,IF(AND($A52<>"",AL51<>0),AL51,0)) -> 0
M52: =IF(OR(AF52="",$R$2=""),"",IF(AND($C$311=TRUE,$K$5=A52),($M$5*144/62.4+AF52)-((L52*144/62.4)),IF(AND($F$311=TRUE,$K$6=A52),M50-K51+($M$6*144/62.4)-(O51^2/64.4),M50-K51-(O51^2/64.4)-L52*144/62.4))) ->  | N52: =IF(B51="","",IF(AND($K$5=$A52,$C$311=TRUE),$M$5*144/62.4+AF52,IF(AND($K$6=$A52,$F$311=TRUE),$M$6*144/62.4+N50-L52*144/62.4,N50-L52*144/62.4))) ->  | P52: =IF(M52="","",M52-AF52) ->  | Q52: =IF(P52="","",P52*62.4/144) ->  | R52: =IF(N52="","",(N52-AF52)*62.4/144) ->  | V52: =IF(R52="","",IF(P52<0,$O$316,IF(R52>G53,$O$317,IF(R52>75,$O$318,"")))) ->  | AB52: =IF(K51="","",K51+AB50) ->  | AF52: =IF(OR(A52="",$R$3="",AM51=""),"",C52-$R$3) ->  | AG52: =IF(AF52="","",N52) ->  | AH52: =IF(OR(AF52="",$R$2=""),"",IF(AND($A$311=1,Pump!$F$17="Yes"),IF(AND($C$311=TRUE,$K$5=A52),($M$5*144/62.4+AF52)-((L52*144/62.4)),IF(AND($F$311=TRUE,$K$6=A52),AH50-K51+($M$6*144/62.4)-(O51^2/64.4),AH50-K51-(O51^2/64.4))),AH50-K51-(O51^2/64.4))) -> 
B53: =IF(AND(A54>0,C54>0),SQRT((A54-A52)^2+(C54-C52)^2),"") ->  | G53: =IF(OR(A52="",AI53=0),"",AL53) ->  | H53: =IF(OR($A52="",AI53=0,AJ53=0),"",AM53) ->  | I53: =IF(OR($A52="",AI53=0,AJ53=0),"",AN53) ->  | J53: =IF(AND(A54<>"",OR(AK53<>0,AJ53<>0,AI53<>0)),AO53,"") ->  | K53: =IF(OR(A54="",AR53="",AM53=""),"",(10.44*B53*(AR53^1.85))/((AN53^1.85)*(AM53^4.8655))) ->  | O53: =IF(OR(A54="",AR53="",AM53="",$R$2=""),"",(AR53/7.48/60)/(PI()*((AM53/2)/12)^2)) ->  | AD53: =IF(A54="","",IF(E53="",AD51,IF(ISNUMBER(SEARCH(3408,Main!E53)),'Pipe Tables'!$E$32,IF(ISNUMBER(SEARCH(4710,Main!E53)),'Pipe Tables'!$E$32,IF(ISNUMBER(SEARCH('Pipe Tables'!$E$33,Main!E53)),'Pipe Tables'!$E$33,IF(ISNUMBER(SEARCH('Pipe Tables'!$E$34,Main!E53)),'Pipe Tables'!$E$34,IF(ISNUMBER(SEARCH('Pipe Tables'!$E$35,Main!E53)),'Pipe Tables'!$E$35))))))) ->  | AI53: =D53 -> 0 | AJ53: =E53 -> 0 | AK53: =F53 -> 0 | AL53: =IF(AQ53=0,"",HLOOKUP(AQ53,Pipe_Pressure,MATCH(AP53,Pipe_Press_Size,0),FALSE)) ->  | AM53: =IF(OR(AP53=0,AQ53=0),"",VLOOKUP(AP53,Pipe_Diameter,MATCH(AQ53,Pipe_Diam_Material,0))) ->  | AN53: =IF(A54="","",VLOOKUP(AD53,Hazen_Williams,2)) ->  | AO53: =IF(OR(A54="",AR53="",AM53=""),"",((10.44*(AR53^1.85))/((AN53^1.85)*(AM53^4.8655)))) ->  | AP53: =IF(AND($A54<>"",AI53=0),AP51,IF(AND($A54<>"",AI53<>0),AI53,0)) -> 0 | AQ53: =IF(AND($A54<>"",AJ53=0),AQ51,IF(AND($A54<>"",AJ53<>0),AJ53,0)) -> 0 | AR53: =IF(AND($A54<>"",AK53=0),AR51,IF(AND($A54<>"",AK53<>0),AK53,0)) -> 0 | AS53: =IF(AND($A54<>"",AL53=0),AS51,IF(AND($A54<>"",AL53<>0),AL53,0)) -> 0
M54: =IF(OR(AF54="",$R$2=""),"",IF(AND($C$311=TRUE,$K$5=A54),($M$5*144/62.4+AF54)-((L54*144/62.4)),IF(AND($F$311=TRUE,$K$6=A54),M52-K53+($M$6*144/62.4)-(O53^2/64.4),M52-K53-(O53^2/64.4)-L54*144/62.4))) ->  | N54: =IF(B53="","",IF(AND($K$5=$A54,$C$311=TRUE),$M$5*144/62.4+AF54,IF(AND($K$6=$A54,$F$311=TRUE),$M$6*144/62.4+N52-L54*144/62.4,N52-L54*144/62.4))) ->  | P54: =IF(M54="","",M54-AF54) ->  | Q54: =IF(P54="","",P54*62.4/144) ->  | R54: =IF(N54="","",(N54-AF54)*62.4/144) ->  | V54: =IF(R54="","",IF(P54<0,$O$316,IF(R54>G55,$O$317,IF(R54>75,$O$318,"")))) ->  | AB54: =IF(K53="","",K53+AB52) ->  | AF54: =IF(OR(A54="",$R$3="",AM53=""),"",C54-$R$3) ->  | AG54: =IF(AF54="","",N54) ->  | AH54: =IF(OR(AF54="",$R$2=""),"",IF(AND($A$311=1,Pump!$F$17="Yes"),IF(AND($C$311=TRUE,$K$5=A54),($M$5*144/62.4+AF54)-((L54*144/62.4)),IF(AND($F$311=TRUE,$K$6=A54),AH52-K53+($M$6*144/62.4)-(O53^2/64.4),AH52-K53-(O53^2/64.4))),AH52-K53-(O53^2/64.4))) -> 
B55: =IF(AND(A56>0,C56>0),SQRT((A56-A54)^2+(C56-C54)^2),"") ->  | G55: =IF(OR(A54="",AI55=0),"",AL55) ->  | H55: =IF(OR($A54="",AI55=0,AJ55=0),"",AM55) ->  | I55: =IF(OR($A54="",AI55=0,AJ55=0),"",AN55) ->  | J55: =IF(AND(A56<>"",OR(AK55<>0,AJ55<>0,AI55<>0)),AO55,"") ->  | K55: =IF(OR(A56="",AR55="",AM55=""),"",(10.44*B55*(AR55^1.85))/((AN55^1.85)*(AM55^4.8655))) ->  | O55: =IF(OR(A56="",AR55="",AM55="",$R$2=""),"",(AR55/7.48/60)/(PI()*((AM55/2)/12)^2)) ->  | AD55: =IF(A56="","",IF(E55="",AD53,IF(ISNUMBER(SEARCH(3408,Main!E55)),'Pipe Tables'!$E$32,IF(ISNUMBER(SEARCH(4710,Main!E55)),'Pipe Tables'!$E$32,IF(ISNUMBER(SEARCH('Pipe Tables'!$E$33,Main!E55)),'Pipe Tables'!$E$33,IF(ISNUMBER(SEARCH('Pipe Tables'!$E$34,Main!E55)),'Pipe Tables'!$E$34,IF(ISNUMBER(SEARCH('Pipe Tables'!$E$35,Main!E55)),'Pipe Tables'!$E$35))))))) ->  | AI55: =D55 -> 0 | AJ55: =E55 -> 0 | AK55: =F55 -> 0 | AL55: =IF(AQ55=0,"",HLOOKUP(AQ55,Pipe_Pressure,MATCH(AP55,Pipe_Press_Size,0),FALSE)) ->  | AM55: =IF(OR(AP55=0,AQ55=0),"",VLOOKUP(AP55,Pipe_Diameter,MATCH(AQ55,Pipe_Diam_Material,0))) ->  | AN55: =IF(A56="","",VLOOKUP(AD55,Hazen_Williams,2)) ->  | AO55: =IF(OR(A56="",AR55="",AM55=""),"",((10.44*(AR55^1.85))/((AN55^1.85)*(AM55^4.8655)))) ->  | AP55: =IF(AND($A56<>"",AI55=0),AP53,IF(AND($A56<>"",AI55<>0),AI55,0)) -> 0 | AQ55: =IF(AND($A56<>"",AJ55=0),AQ53,IF(AND($A56<>"",AJ55<>0),AJ55,0)) -> 0 | AR55: =IF(AND($A56<>"",AK55=0),AR53,IF(AND($A56<>"",AK55<>0),AK55,0)) -> 0 | AS55: =IF(AND($A56<>"",AL55=0),AS53,IF(AND($A56<>"",AL55<>0),AL55,0)) -> 0
M56: =IF(OR(AF56="",$R$2=""),"",IF(AND($C$311=TRUE,$K$5=A56),($M$5*144/62.4+AF56)-((L56*144/62.4)),IF(AND($F$311=TRUE,$K$6=A56),M54-K55+($M$6*144/62.4)-(O55^2/64.4),M54-K55-(O55^2/64.4)-L56*144/62.4))) ->  | N56: =IF(B55="","",IF(AND($K$5=$A56,$C$311=TRUE),$M$5*144/62.4+AF56,IF(AND($K$6=$A56,$F$311=TRUE),$M$6*144/62.4+N54-L56*144/62.4,N54-L56*144/62.4))) ->  | P56: =IF(M56="","",M56-AF56) ->  | Q56: =IF(P56="","",P56*62.4/144) ->  | R56: =IF(N56="","",(N56-AF56)*62.4/144) ->  | V56: =IF(R56="","",IF(P56<0,$O$316,IF(R56>G57,$O$317,IF(R56>75,$O$318,"")))) ->  | AB56: =IF(K55="","",K55+AB54) ->  | AF56: =IF(OR(A56="",$R$3="",AM55=""),"",C56-$R$3) ->  | AG56: =IF(AF56="","",N56) ->  | AH56: =IF(OR(AF56="",$R$2=""),"",IF(AND($A$311=1,Pump!$F$17="Yes"),IF(AND($C$311=TRUE,$K$5=A56),($M$5*144/62.4+AF56)-((L56*144/62.4)),IF(AND($F$311=TRUE,$K$6=A56),AH54-K55+($M$6*144/62.4)-(O55^2/64.4),AH54-K55-(O55^2/64.4))),AH54-K55-(O55^2/64.4))) -> 
B57: =IF(AND(A58>0,C58>0),SQRT((A58-A56)^2+(C58-C56)^2),"") ->  | G57: =IF(OR(A56="",AI57=0),"",AL57) ->  | H57: =IF(OR($A56="",AI57=0,AJ57=0),"",AM57) ->  | I57: =IF(OR($A56="",AI57=0,AJ57=0),"",AN57) ->  | J57: =IF(AND(A58<>"",OR(AK57<>0,AJ57<>0,AI57<>0)),AO57,"") ->  | K57: =IF(OR(A58="",AR57="",AM57=""),"",(10.44*B57*(AR57^1.85))/((AN57^1.85)*(AM57^4.8655))) ->  | O57: =IF(OR(A58="",AR57="",AM57="",$R$2=""),"",(AR57/7.48/60)/(PI()*((AM57/2)/12)^2)) ->  | AD57: =IF(A58="","",IF(E57="",AD55,IF(ISNUMBER(SEARCH(3408,Main!E57)),'Pipe Tables'!$E$32,IF(ISNUMBER(SEARCH(4710,Main!E57)),'Pipe Tables'!$E$32,IF(ISNUMBER(SEARCH('Pipe Tables'!$E$33,Main!E57)),'Pipe Tables'!$E$33,IF(ISNUMBER(SEARCH('Pipe Tables'!$E$34,Main!E57)),'Pipe Tables'!$E$34,IF(ISNUMBER(SEARCH('Pipe Tables'!$E$35,Main!E57)),'Pipe Tables'!$E$35))))))) ->  | AI57: =D57 -> 0 | AJ57: =E57 -> 0 | AK57: =F57 -> 0 | AL57: =IF(AQ57=0,"",HLOOKUP(AQ57,Pipe_Pressure,MATCH(AP57,Pipe_Press_Size,0),FALSE)) ->  | AM57: =IF(OR(AP57=0,AQ57=0),"",VLOOKUP(AP57,Pipe_Diameter,MATCH(AQ57,Pipe_Diam_Material,0))) ->  | AN57: =IF(A58="","",VLOOKUP(AD57,Hazen_Williams,2)) ->  | AO57: =IF(OR(A58="",AR57="",AM57=""),"",((10.44*(AR57^1.85))/((AN57^1.85)*(AM57^4.8655)))) ->  | AP57: =IF(AND($A58<>"",AI57=0),AP55,IF(AND($A58<>"",AI57<>0),AI57,0)) -> 0 | AQ57: =IF(AND($A58<>"",AJ57=0),AQ55,IF(AND($A58<>"",AJ57<>0),AJ57,0)) -> 0 | AR57: =IF(AND($A58<>"",AK57=0),AR55,IF(AND($A58<>"",AK57<>0),AK57,0)) -> 0 | AS57: =IF(AND($A58<>"",AL57=0),AS55,IF(AND($A58<>"",AL57<>0),AL57,0)) -> 0
M58: =IF(OR(AF58="",$R$2=""),"",IF(AND($C$311=TRUE,$K$5=A58),($M$5*144/62.4+AF58)-((L58*144/62.4)),IF(AND($F$311=TRUE,$K$6=A58),M56-K57+($M$6*144/62.4)-(O57^2/64.4),M56-K57-(O57^2/64.4)-L58*144/62.4))) ->  | N58: =IF(B57="","",IF(AND($K$5=$A58,$C$311=TRUE),$M$5*144/62.4+AF58,IF(AND($K$6=$A58,$F$311=TRUE),$M$6*144/62.4+N56-L58*144/62.4,N56-L58*144/62.4))) ->  | P58: =IF(M58="","",M58-AF58) ->  | Q58: =IF(P58="","",P58*62.4/144) ->  | R58: =IF(N58="","",(N58-AF58)*62.4/144) ->  | V58: =IF(R58="","",IF(P58<0,$O$316,IF(R58>G59,$O$317,IF(R58>75,$O$318,"")))) ->  | AB58: =IF(K57="","",K57+AB56) ->  | AF58: =IF(OR(A58="",$R$3="",AM57=""),"",C58-$R$3) ->  | AG58: =IF(AF58="","",N58) ->  | AH58: =IF(OR(AF58="",$R$2=""),"",IF(AND($A$311=1,Pump!$F$17="Yes"),IF(AND($C$311=TRUE,$K$5=A58),($M$5*144/62.4+AF58)-((L58*144/62.4)),IF(AND($F$311=TRUE,$K$6=A58),AH56-K57+($M$6*144/62.4)-(O57^2/64.4),AH56-K57-(O57^2/64.4))),AH56-K57-(O57^2/64.4))) -> 
B59: =IF(AND(A60>0,C60>0),SQRT((A60-A58)^2+(C60-C58)^2),"") ->  | G59: =IF(OR(A58="",AI59=0),"",AL59) ->  | H59: =IF(OR($A58="",AI59=0,AJ59=0),"",AM59) ->  | I59: =IF(OR($A58="",AI59=0,AJ59=0),"",AN59) ->  | J59: =IF(AND(A60<>"",OR(AK59<>0,AJ59<>0,AI59<>0)),AO59,"") ->  | K59: =IF(OR(A60="",AR59="",AM59=""),"",(10.44*B59*(AR59^1.85))/((AN59^1.85)*(AM59^4.8655))) ->  | O59: =IF(OR(A60="",AR59="",AM59="",$R$2=""),"",(AR59/7.48/60)/(PI()*((AM59/2)/12)^2)) ->  | AD59: =IF(A60="","",IF(E59="",AD57,IF(ISNUMBER(SEARCH(3408,Main!E59)),'Pipe Tables'!$E$32,IF(ISNUMBER(SEARCH(4710,Main!E59)),'Pipe Tables'!$E$32,IF(ISNUMBER(SEARCH('Pipe Tables'!$E$33,Main!E59)),'Pipe Tables'!$E$33,IF(ISNUMBER(SEARCH('Pipe Tables'!$E$34,Main!E59)),'Pipe Tables'!$E$34,IF(ISNUMBER(SEARCH('Pipe Tables'!$E$35,Main!E59)),'Pipe Tables'!$E$35))))))) ->  | AI59: =D59 -> 0 | AJ59: =E59 -> 0 | AK59: =F59 -> 0 | AL59: =IF(AQ59=0,"",HLOOKUP(AQ59,Pipe_Pressure,MATCH(AP59,Pipe_Press_Size,0),FALSE)) ->  | AM59: =IF(OR(AP59=0,AQ59=0),"",VLOOKUP(AP59,Pipe_Diameter,MATCH(AQ59,Pipe_Diam_Material,0))) ->  | AN59: =IF(A60="","",VLOOKUP(AD59,Hazen_Williams,2)) ->  | AO59: =IF(OR(A60="",AR59="",AM59=""),"",((10.44*(AR59^1.85))/((AN59^1.85)*(AM59^4.8655)))) ->  | AP59: =IF(AND($A60<>"",AI59=0),AP57,IF(AND($A60<>"",AI59<>0),AI59,0)) -> 0 | AQ59: =IF(AND($A60<>"",AJ59=0),AQ57,IF(AND($A60<>"",AJ59<>0),AJ59,0)) -> 0 | AR59: =IF(AND($A60<>"",AK59=0),AR57,IF(AND($A60<>"",AK59<>0),AK59,0)) -> 0 | AS59: =IF(AND($A60<>"",AL59=0),AS57,IF(AND($A60<>"",AL59<>0),AL59,0)) -> 0
M60: =IF(OR(AF60="",$R$2=""),"",IF(AND($C$311=TRUE,$K$5=A60),($M$5*144/62.4+AF60)-((L60*144/62.4)),IF(AND($F$311=TRUE,$K$6=A60),M58-K59+($M$6*144/62.4)-(O59^2/64.4),M58-K59-(O59^2/64.4)-L60*144/62.4))) ->  | N60: =IF(B59="","",IF(AND($K$5=$A60,$C$311=TRUE),$M$5*144/62.4+AF60,IF(AND($K$6=$A60,$F$311=TRUE),$M$6*144/62.4+N58-L60*144/62.4,N58-L60*144/62.4))) ->  | P60: =IF(M60="","",M60-AF60) ->  | Q60: =IF(P60="","",P60*62.4/144) ->  | R60: =IF(N60="","",(N60-AF60)*62.4/144) ->  | V60: =IF(R60="","",IF(P60<0,$O$316,IF(R60>G61,$O$317,IF(R60>75,$O$318,"")))) ->  | AB60: =IF(K59="","",K59+AB58) ->  | AF60: =IF(OR(A60="",$R$3="",AM59=""),"",C60-$R$3) ->  | AG60: =IF(AF60="","",N60) ->  | AH60: =IF(OR(AF60="",$R$2=""),"",IF(AND($A$311=1,Pump!$F$17="Yes"),IF(AND($C$311=TRUE,$K$5=A60),($M$5*144/62.4+AF60)-((L60*144/62.4)),IF(AND($F$311=TRUE,$K$6=A60),AH58-K59+($M$6*144/62.4)-(O59^2/64.4),AH58-K59-(O59^2/64.4))),AH58-K59-(O59^2/64.4))) -> 
B61: =IF(AND(A62>0,C62>0),SQRT((A62-A60)^2+(C62-C60)^2),"") ->  | G61: =IF(OR(A60="",AI61=0),"",AL61) ->  | H61: =IF(OR($A60="",AI61=0,AJ61=0),"",AM61) ->  | I61: =IF(OR($A60="",AI61=0,AJ61=0),"",AN61) ->  | J61: =IF(AND(A62<>"",OR(AK61<>0,AJ61<>0,AI61<>0)),AO61,"") ->  | K61: =IF(OR(A62="",AR61="",AM61=""),"",(10.44*B61*(AR61^1.85))/((AN61^1.85)*(AM61^4.8655))) ->  | O61: =IF(OR(A62="",AR61="",AM61="",$R$2=""),"",(AR61/7.48/60)/(PI()*((AM61/2)/12)^2)) ->  | AD61: =IF(A62="","",IF(E61="",AD59,IF(ISNUMBER(SEARCH(3408,Main!E61)),'Pipe Tables'!$E$32,IF(ISNUMBER(SEARCH(4710,Main!E61)),'Pipe Tables'!$E$32,IF(ISNUMBER(SEARCH('Pipe Tables'!$E$33,Main!E61)),'Pipe Tables'!$E$33,IF(ISNUMBER(SEARCH('Pipe Tables'!$E$34,Main!E61)),'Pipe Tables'!$E$34,IF(ISNUMBER(SEARCH('Pipe Tables'!$E$35,Main!E61)),'Pipe Tables'!$E$35))))))) ->  | AI61: =D61 -> 0 | AJ61: =E61 -> 0 | AK61: =F61 -> 0 | AL61: =IF(AQ61=0,"",HLOOKUP(AQ61,Pipe_Pressure,MATCH(AP61,Pipe_Press_Size,0),FALSE)) ->  | AM61: =IF(OR(AP61=0,AQ61=0),"",VLOOKUP(AP61,Pipe_Diameter,MATCH(AQ61,Pipe_Diam_Material,0))) ->  | AN61: =IF(A62="","",VLOOKUP(AD61,Hazen_Williams,2)) ->  | AO61: =IF(OR(A62="",AR61="",AM61=""),"",((10.44*(AR61^1.85))/((AN61^1.85)*(AM61^4.8655)))) ->  | AP61: =IF(AND($A62<>"",AI61=0),AP59,IF(AND($A62<>"",AI61<>0),AI61,0)) -> 0 | AQ61: =IF(AND($A62<>"",AJ61=0),AQ59,IF(AND($A62<>"",AJ61<>0),AJ61,0)) -> 0 | AR61: =IF(AND($A62<>"",AK61=0),AR59,IF(AND($A62<>"",AK61<>0),AK61,0)) -> 0 | AS61: =IF(AND($A62<>"",AL61=0),AS59,IF(AND($A62<>"",AL61<>0),AL61,0)) -> 0
M62: =IF(OR(AF62="",$R$2=""),"",IF(AND($C$311=TRUE,$K$5=A62),($M$5*144/62.4+AF62)-((L62*144/62.4)),IF(AND($F$311=TRUE,$K$6=A62),M60-K61+($M$6*144/62.4)-(O61^2/64.4),M60-K61-(O61^2/64.4)-L62*144/62.4))) ->  | N62: =IF(B61="","",IF(AND($K$5=$A62,$C$311=TRUE),$M$5*144/62.4+AF62,IF(AND($K$6=$A62,$F$311=TRUE),$M$6*144/62.4+N60-L62*144/62.4,N60-L62*144/62.4))) ->  | P62: =IF(M62="","",M62-AF62) ->  | Q62: =IF(P62="","",P62*62.4/144) ->  | R62: =IF(N62="","",(N62-AF62)*62.4/144) ->  | V62: =IF(R62="","",IF(P62<0,$O$316,IF(R62>G63,$O$317,IF(R62>75,$O$318,"")))) ->  | AB62: =IF(K61="","",K61+AB60) ->  | AF62: =IF(OR(A62="",$R$3="",AM61=""),"",C62-$R$3) ->  | AG62: =IF(AF62="","",N62) ->  | AH62: =IF(OR(AF62="",$R$2=""),"",IF(AND($A$311=1,Pump!$F$17="Yes"),IF(AND($C$311=TRUE,$K$5=A62),($M$5*144/62.4+AF62)-((L62*144/62.4)),IF(AND($F$311=TRUE,$K$6=A62),AH60-K61+($M$6*144/62.4)-(O61^2/64.4),AH60-K61-(O61^2/64.4))),AH60-K61-(O61^2/64.4))) -> 
B63: =IF(AND(A64>0,C64>0),SQRT((A64-A62)^2+(C64-C62)^2),"") ->  | G63: =IF(OR(A62="",AI63=0),"",AL63) ->  | H63: =IF(OR($A62="",AI63=0,AJ63=0),"",AM63) ->  | I63: =IF(OR($A62="",AI63=0,AJ63=0),"",AN63) ->  | J63: =IF(AND(A64<>"",OR(AK63<>0,AJ63<>0,AI63<>0)),AO63,"") ->  | K63: =IF(OR(A64="",AR63="",AM63=""),"",(10.44*B63*(AR63^1.85))/((AN63^1.85)*(AM63^4.8655))) ->  | O63: =IF(OR(A64="",AR63="",AM63="",$R$2=""),"",(AR63/7.48/60)/(PI()*((AM63/2)/12)^2)) ->  | AD63: =IF(A64="","",IF(E63="",AD61,IF(ISNUMBER(SEARCH(3408,Main!E63)),'Pipe Tables'!$E$32,IF(ISNUMBER(SEARCH(4710,Main!E63)),'Pipe Tables'!$E$32,IF(ISNUMBER(SEARCH('Pipe Tables'!$E$33,Main!E63)),'Pipe Tables'!$E$33,IF(ISNUMBER(SEARCH('Pipe Tables'!$E$34,Main!E63)),'Pipe Tables'!$E$34,IF(ISNUMBER(SEARCH('Pipe Tables'!$E$35,Main!E63)),'Pipe Tables'!$E$35))))))) ->  | AI63: =D63 -> 0 | AJ63: =E63 -> 0 | AK63: =F63 -> 0 | AL63: =IF(AQ63=0,"",HLOOKUP(AQ63,Pipe_Pressure,MATCH(AP63,Pipe_Press_Size,0),FALSE)) ->  | AM63: =IF(OR(AP63=0,AQ63=0),"",VLOOKUP(AP63,Pipe_Diameter,MATCH(AQ63,Pipe_Diam_Material,0))) ->  | AN63: =IF(A64="","",VLOOKUP(AD63,Hazen_Williams,2)) ->  | AO63: =IF(OR(A64="",AR63="",AM63=""),"",((10.44*(AR63^1.85))/((AN63^1.85)*(AM63^4.8655)))) ->  | AP63: =IF(AND($A64<>"",AI63=0),AP61,IF(AND($A64<>"",AI63<>0),AI63,0)) -> 0 | AQ63: =IF(AND($A64<>"",AJ63=0),AQ61,IF(AND($A64<>"",AJ63<>0),AJ63,0)) -> 0 | AR63: =IF(AND($A64<>"",AK63=0),AR61,IF(AND($A64<>"",AK63<>0),AK63,0)) -> 0 | AS63: =IF(AND($A64<>"",AL63=0),AS61,IF(AND($A64<>"",AL63<>0),AL63,0)) -> 0
M64: =IF(OR(AF64="",$R$2=""),"",IF(AND($C$311=TRUE,$K$5=A64),($M$5*144/62.4+AF64)-((L64*144/62.4)),IF(AND($F$311=TRUE,$K$6=A64),M62-K63+($M$6*144/62.4)-(O63^2/64.4),M62-K63-(O63^2/64.4)-L64*144/62.4))) ->  | N64: =IF(B63="","",IF(AND($K$5=$A64,$C$311=TRUE),$M$5*144/62.4+AF64,IF(AND($K$6=$A64,$F$311=TRUE),$M$6*144/62.4+N62-L64*144/62.4,N62-L64*144/62.4))) ->  | P64: =IF(M64="","",M64-AF64) ->  | Q64: =IF(P64="","",P64*62.4/144) ->  | R64: =IF(N64="","",(N64-AF64)*62.4/144) ->  | V64: =IF(R64="","",IF(P64<0,$O$316,IF(R64>G65,$O$317,IF(R64>75,$O$318,"")))) ->  | AB64: =IF(K63="","",K63+AB62) ->  | AF64: =IF(OR(A64="",$R$3="",AM63=""),"",C64-$R$3) ->  | AG64: =IF(AF64="","",N64) ->  | AH64: =IF(OR(AF64="",$R$2=""),"",IF(AND($A$311=1,Pump!$F$17="Yes"),IF(AND($C$311=TRUE,$K$5=A64),($M$5*144/62.4+AF64)-((L64*144/62.4)),IF(AND($F$311=TRUE,$K$6=A64),AH62-K63+($M$6*144/62.4)-(O63^2/64.4),AH62-K63-(O63^2/64.4))),AH62-K63-(O63^2/64.4))) -> 
B65: =IF(AND(A66>0,C66>0),SQRT((A66-A64)^2+(C66-C64)^2),"") ->  | G65: =IF(OR(A64="",AI65=0),"",AL65) ->  | H65: =IF(OR($A64="",AI65=0,AJ65=0),"",AM65) ->  | I65: =IF(OR($A64="",AI65=0,AJ65=0),"",AN65) ->  | J65: =IF(AND(A66<>"",OR(AK65<>0,AJ65<>0,AI65<>0)),AO65,"") ->  | K65: =IF(OR(A66="",AR65="",AM65=""),"",(10.44*B65*(AR65^1.85))/((AN65^1.85)*(AM65^4.8655))) ->  | O65: =IF(OR(A66="",AR65="",AM65="",$R$2=""),"",(AR65/7.48/60)/(PI()*((AM65/2)/12)^2)) ->  | AD65: =IF(A66="","",IF(E65="",AD63,IF(ISNUMBER(SEARCH(3408,Main!E65)),'Pipe Tables'!$E$32,IF(ISNUMBER(SEARCH(4710,Main!E65)),'Pipe Tables'!$E$32,IF(ISNUMBER(SEARCH('Pipe Tables'!$E$33,Main!E65)),'Pipe Tables'!$E$33,IF(ISNUMBER(SEARCH('Pipe Tables'!$E$34,Main!E65)),'Pipe Tables'!$E$34,IF(ISNUMBER(SEARCH('Pipe Tables'!$E$35,Main!E65)),'Pipe Tables'!$E$35))))))) ->  | AI65: =D65 -> 0 | AJ65: =E65 -> 0 | AK65: =F65 -> 0 | AL65: =IF(AQ65=0,"",HLOOKUP(AQ65,Pipe_Pressure,MATCH(AP65,Pipe_Press_Size,0),FALSE)) ->  | AM65: =IF(OR(AP65=0,AQ65=0),"",VLOOKUP(AP65,Pipe_Diameter,MATCH(AQ65,Pipe_Diam_Material,0))) ->  | AN65: =IF(A66="","",VLOOKUP(AD65,Hazen_Williams,2)) ->  | AO65: =IF(OR(A66="",AR65="",AM65=""),"",((10.44*(AR65^1.85))/((AN65^1.85)*(AM65^4.8655)))) ->  | AP65: =IF(AND($A66<>"",AI65=0),AP63,IF(AND($A66<>"",AI65<>0),AI65,0)) -> 0 | AQ65: =IF(AND($A66<>"",AJ65=0),AQ63,IF(AND($A66<>"",AJ65<>0),AJ65,0)) -> 0 | AR65: =IF(AND($A66<>"",AK65=0),AR63,IF(AND($A66<>"",AK65<>0),AK65,0)) -> 0 | AS65: =IF(AND($A66<>"",AL65=0),AS63,IF(AND($A66<>"",AL65<>0),AL65,0)) -> 0
M66: =IF(OR(AF66="",$R$2=""),"",IF(AND($C$311=TRUE,$K$5=A66),($M$5*144/62.4+AF66)-((L66*144/62.4)),IF(AND($F$311=TRUE,$K$6=A66),M64-K65+($M$6*144/62.4)-(O65^2/64.4),M64-K65-(O65^2/64.4)-L66*144/62.4))) ->  | N66: =IF(B65="","",IF(AND($K$5=$A66,$C$311=TRUE),$M$5*144/62.4+AF66,IF(AND($K$6=$A66,$F$311=TRUE),$M$6*144/62.4+N64-L66*144/62.4,N64-L66*144/62.4))) ->  | P66: =IF(M66="","",M66-AF66) ->  | Q66: =IF(P66="","",P66*62.4/144) ->  | R66: =IF(N66="","",(N66-AF66)*62.4/144) ->  | V66: =IF(R66="","",IF(P66<0,$O$316,IF(R66>G67,$O$317,IF(R66>75,$O$318,"")))) ->  | AB66: =IF(K65="","",K65+AB64) ->  | AF66: =IF(OR(A66="",$R$3="",AM65=""),"",C66-$R$3) ->  | AG66: =IF(AF66="","",N66) ->  | AH66: =IF(OR(AF66="",$R$2=""),"",IF(AND($A$311=1,Pump!$F$17="Yes"),IF(AND($C$311=TRUE,$K$5=A66),($M$5*144/62.4+AF66)-((L66*144/62.4)),IF(AND($F$311=TRUE,$K$6=A66),AH64-K65+($M$6*144/62.4)-(O65^2/64.4),AH64-K65-(O65^2/64.4))),AH64-K65-(O65^2/64.4))) -> 
B67: =IF(AND(A68>0,C68>0),SQRT((A68-A66)^2+(C68-C66)^2),"") ->  | G67: =IF(OR(A66="",AI67=0),"",AL67) ->  | H67: =IF(OR($A66="",AI67=0,AJ67=0),"",AM67) ->  | I67: =IF(OR($A66="",AI67=0,AJ67=0),"",AN67) ->  | J67: =IF(AND(A68<>"",OR(AK67<>0,AJ67<>0,AI67<>0)),AO67,"") ->  | K67: =IF(OR(A68="",AR67="",AM67=""),"",(10.44*B67*(AR67^1.85))/((AN67^1.85)*(AM67^4.8655))) ->  | O67: =IF(OR(A68="",AR67="",AM67="",$R$2=""),"",(AR67/7.48/60)/(PI()*((AM67/2)/12)^2)) ->  | AD67: =IF(A68="","",IF(E67="",AD65,IF(ISNUMBER(SEARCH(3408,Main!E67)),'Pipe Tables'!$E$32,IF(ISNUMBER(SEARCH(4710,Main!E67)),'Pipe Tables'!$E$32,IF(ISNUMBER(SEARCH('Pipe Tables'!$E$33,Main!E67)),'Pipe Tables'!$E$33,IF(ISNUMBER(SEARCH('Pipe Tables'!$E$34,Main!E67)),'Pipe Tables'!$E$34,IF(ISNUMBER(SEARCH('Pipe Tables'!$E$35,Main!E67)),'Pipe Tables'!$E$35))))))) ->  | AI67: =D67 -> 0 | AJ67: =E67 -> 0 | AK67: =F67 -> 0 | AL67: =IF(AQ67=0,"",HLOOKUP(AQ67,Pipe_Pressure,MATCH(AP67,Pipe_Press_Size,0),FALSE)) ->  | AM67: =IF(OR(AP67=0,AQ67=0),"",VLOOKUP(AP67,Pipe_Diameter,MATCH(AQ67,Pipe_Diam_Material,0))) ->  | AN67: =IF(A68="","",VLOOKUP(AD67,Hazen_Williams,2)) ->  | AO67: =IF(OR(A68="",AR67="",AM67=""),"",((10.44*(AR67^1.85))/((AN67^1.85)*(AM67^4.8655)))) ->  | AP67: =IF(AND($A68<>"",AI67=0),AP65,IF(AND($A68<>"",AI67<>0),AI67,0)) -> 0 | AQ67: =IF(AND($A68<>"",AJ67=0),AQ65,IF(AND($A68<>"",AJ67<>0),AJ67,0)) -> 0 | AR67: =IF(AND($A68<>"",AK67=0),AR65,IF(AND($A68<>"",AK67<>0),AK67,0)) -> 0 | AS67: =IF(AND($A68<>"",AL67=0),AS65,IF(AND($A68<>"",AL67<>0),AL67,0)) -> 0
M68: =IF(OR(AF68="",$R$2=""),"",IF(AND($C$311=TRUE,$K$5=A68),($M$5*144/62.4+AF68)-((L68*144/62.4)),IF(AND($F$311=TRUE,$K$6=A68),M66-K67+($M$6*144/62.4)-(O67^2/64.4),M66-K67-(O67^2/64.4)-L68*144/62.4))) ->  | N68: =IF(B67="","",IF(AND($K$5=$A68,$C$311=TRUE),$M$5*144/62.4+AF68,IF(AND($K$6=$A68,$F$311=TRUE),$M$6*144/62.4+N66-L68*144/62.4,N66-L68*144/62.4))) ->  | P68: =IF(M68="","",M68-AF68) ->  | Q68: =IF(P68="","",P68*62.4/144) ->  | R68: =IF(N68="","",(N68-AF68)*62.4/144) ->  | V68: =IF(R68="","",IF(P68<0,$O$316,IF(R68>G69,$O$317,IF(R68>75,$O$318,"")))) ->  | AB68: =IF(K67="","",K67+AB66) ->  | AF68: =IF(OR(A68="",$R$3="",AM67=""),"",C68-$R$3) ->  | AG68: =IF(AF68="","",N68) ->  | AH68: =IF(OR(AF68="",$R$2=""),"",IF(AND($A$311=1,Pump!$F$17="Yes"),IF(AND($C$311=TRUE,$K$5=A68),($M$5*144/62.4+AF68)-((L68*144/62.4)),IF(AND($F$311=TRUE,$K$6=A68),AH66-K67+($M$6*144/62.4)-(O67^2/64.4),AH66-K67-(O67^2/64.4))),AH66-K67-(O67^2/64.4))) -> 
B69: =IF(AND(A70>0,C70>0),SQRT((A70-A68)^2+(C70-C68)^2),"") ->  | G69: =IF(OR(A68="",AI69=0),"",AL69) ->  | H69: =IF(OR($A68="",AI69=0,AJ69=0),"",AM69) ->  | I69: =IF(OR($A68="",AI69=0,AJ69=0),"",AN69) ->  | J69: =IF(AND(A70<>"",OR(AK69<>0,AJ69<>0,AI69<>0)),AO69,"") ->  | K69: =IF(OR(A70="",AR69="",AM69=""),"",(10.44*B69*(AR69^1.85))/((AN69^1.85)*(AM69^4.8655))) ->  | O69: =IF(OR(A70="",AR69="",AM69="",$R$2=""),"",(AR69/7.48/60)/(PI()*((AM69/2)/12)^2)) ->  | AD69: =IF(A70="","",IF(E69="",AD67,IF(ISNUMBER(SEARCH(3408,Main!E69)),'Pipe Tables'!$E$32,IF(ISNUMBER(SEARCH(4710,Main!E69)),'Pipe Tables'!$E$32,IF(ISNUMBER(SEARCH('Pipe Tables'!$E$33,Main!E69)),'Pipe Tables'!$E$33,IF(ISNUMBER(SEARCH('Pipe Tables'!$E$34,Main!E69)),'Pipe Tables'!$E$34,IF(ISNUMBER(SEARCH('Pipe Tables'!$E$35,Main!E69)),'Pipe Tables'!$E$35))))))) ->  | AI69: =D69 -> 0 | AJ69: =E69 -> 0 | AK69: =F69 -> 0 | AL69: =IF(AQ69=0,"",HLOOKUP(AQ69,Pipe_Pressure,MATCH(AP69,Pipe_Press_Size,0),FALSE)) ->  | AM69: =IF(OR(AP69=0,AQ69=0),"",VLOOKUP(AP69,Pipe_Diameter,MATCH(AQ69,Pipe_Diam_Material,0))) ->  | AN69: =IF(A70="","",VLOOKUP(AD69,Hazen_Williams,2)) ->  | AO69: =IF(OR(A70="",AR69="",AM69=""),"",((10.44*(AR69^1.85))/((AN69^1.85)*(AM69^4.8655)))) ->  | AP69: =IF(AND($A70<>"",AI69=0),AP67,IF(AND($A70<>"",AI69<>0),AI69,0)) -> 0 | AQ69: =IF(AND($A70<>"",AJ69=0),AQ67,IF(AND($A70<>"",AJ69<>0),AJ69,0)) -> 0 | AR69: =IF(AND($A70<>"",AK69=0),AR67,IF(AND($A70<>"",AK69<>0),AK69,0)) -> 0 | AS69: =IF(AND($A70<>"",AL69=0),AS67,IF(AND($A70<>"",AL69<>0),AL69,0)) -> 0
M70: =IF(OR(AF70="",$R$2=""),"",IF(AND($C$311=TRUE,$K$5=A70),($M$5*144/62.4+AF70)-((L70*144/62.4)),IF(AND($F$311=TRUE,$K$6=A70),M68-K69+($M$6*144/62.4)-(O69^2/64.4),M68-K69-(O69^2/64.4)-L70*144/62.4))) ->  | N70: =IF(B69="","",IF(AND($K$5=$A70,$C$311=TRUE),$M$5*144/62.4+AF70,IF(AND($K$6=$A70,$F$311=TRUE),$M$6*144/62.4+N68-L70*144/62.4,N68-L70*144/62.4))) ->  | P70: =IF(M70="","",M70-AF70) ->  | Q70: =IF(P70="","",P70*62.4/144) ->  | R70: =IF(N70="","",(N70-AF70)*62.4/144) ->  | V70: =IF(R70="","",IF(P70<0,$O$316,IF(R70>G71,$O$317,IF(R70>75,$O$318,"")))) ->  | AB70: =IF(K69="","",K69+AB68) ->  | AF70: =IF(OR(A70="",$R$3="",AM69=""),"",C70-$R$3) ->  | AG70: =IF(AF70="","",N70) ->  | AH70: =IF(OR(AF70="",$R$2=""),"",IF(AND($A$311=1,Pump!$F$17="Yes"),IF(AND($C$311=TRUE,$K$5=A70),($M$5*144/62.4+AF70)-((L70*144/62.4)),IF(AND($F$311=TRUE,$K$6=A70),AH68-K69+($M$6*144/62.4)-(O69^2/64.4),AH68-K69-(O69^2/64.4))),AH68-K69-(O69^2/64.4))) -> 
B71: =IF(AND(A72>0,C72>0),SQRT((A72-A70)^2+(C72-C70)^2),"") ->  | G71: =IF(OR(A70="",AI71=0),"",AL71) ->  | H71: =IF(OR($A70="",AI71=0,AJ71=0),"",AM71) ->  | I71: =IF(OR($A70="",AI71=0,AJ71=0),"",AN71) ->  | J71: =IF(AND(A72<>"",OR(AK71<>0,AJ71<>0,AI71<>0)),AO71,"") ->  | K71: =IF(OR(A72="",AR71="",AM71=""),"",(10.44*B71*(AR71^1.85))/((AN71^1.85)*(AM71^4.8655))) ->  | O71: =IF(OR(A72="",AR71="",AM71="",$R$2=""),"",(AR71/7.48/60)/(PI()*((AM71/2)/12)^2)) ->  | AD71: =IF(A72="","",IF(E71="",AD69,IF(ISNUMBER(SEARCH(3408,Main!E71)),'Pipe Tables'!$E$32,IF(ISNUMBER(SEARCH(4710,Main!E71)),'Pipe Tables'!$E$32,IF(ISNUMBER(SEARCH('Pipe Tables'!$E$33,Main!E71)),'Pipe Tables'!$E$33,IF(ISNUMBER(SEARCH('Pipe Tables'!$E$34,Main!E71)),'Pipe Tables'!$E$34,IF(ISNUMBER(SEARCH('Pipe Tables'!$E$35,Main!E71)),'Pipe Tables'!$E$35))))))) ->  | AI71: =D71 -> 0 | AJ71: =E71 -> 0 | AK71: =F71 -> 0 | AL71: =IF(AQ71=0,"",HLOOKUP(AQ71,Pipe_Pressure,MATCH(AP71,Pipe_Press_Size,0),FALSE)) ->  | AM71: =IF(OR(AP71=0,AQ71=0),"",VLOOKUP(AP71,Pipe_Diameter,MATCH(AQ71,Pipe_Diam_Material,0))) ->  | AN71: =IF(A72="","",VLOOKUP(AD71,Hazen_Williams,2)) ->  | AO71: =IF(OR(A72="",AR71="",AM71=""),"",((10.44*(AR71^1.85))/((AN71^1.85)*(AM71^4.8655)))) ->  | AP71: =IF(AND($A72<>"",AI71=0),AP69,IF(AND($A72<>"",AI71<>0),AI71,0)) -> 0 | AQ71: =IF(AND($A72<>"",AJ71=0),AQ69,IF(AND($A72<>"",AJ71<>0),AJ71,0)) -> 0 | AR71: =IF(AND($A72<>"",AK71=0),AR69,IF(AND($A72<>"",AK71<>0),AK71,0)) -> 0 | AS71: =IF(AND($A72<>"",AL71=0),AS69,IF(AND($A72<>"",AL71<>0),AL71,0)) -> 0
M72: =IF(OR(AF72="",$R$2=""),"",IF(AND($C$311=TRUE,$K$5=A72),($M$5*144/62.4+AF72)-((L72*144/62.4)),IF(AND($F$311=TRUE,$K$6=A72),M70-K71+($M$6*144/62.4)-(O71^2/64.4),M70-K71-(O71^2/64.4)-L72*144/62.4))) ->  | N72: =IF(B71="","",IF(AND($K$5=$A72,$C$311=TRUE),$M$5*144/62.4+AF72,IF(AND($K$6=$A72,$F$311=TRUE),$M$6*144/62.4+N70-L72*144/62.4,N70-L72*144/62.4))) ->  | P72: =IF(M72="","",M72-AF72) ->  | Q72: =IF(P72="","",P72*62.4/144) ->  | R72: =IF(N72="","",(N72-AF72)*62.4/144) ->  | V72: =IF(R72="","",IF(P72<0,$O$316,IF(R72>G73,$O$317,IF(R72>75,$O$318,"")))) ->  | AB72: =IF(K71="","",K71+AB70) ->  | AF72: =IF(OR(A72="",$R$3="",AM71=""),"",C72-$R$3) ->  | AG72: =IF(AF72="","",N72) ->  | AH72: =IF(OR(AF72="",$R$2=""),"",IF(AND($A$311=1,Pump!$F$17="Yes"),IF(AND($C$311=TRUE,$K$5=A72),($M$5*144/62.4+AF72)-((L72*144/62.4)),IF(AND($F$311=TRUE,$K$6=A72),AH70-K71+($M$6*144/62.4)-(O71^2/64.4),AH70-K71-(O71^2/64.4))),AH70-K71-(O71^2/64.4))) -> 
B73: =IF(AND(A74>0,C74>0),SQRT((A74-A72)^2+(C74-C72)^2),"") ->  | G73: =IF(OR(A72="",AI73=0),"",AL73) ->  | H73: =IF(OR($A72="",AI73=0,AJ73=0),"",AM73) ->  | I73: =IF(OR($A72="",AI73=0,AJ73=0),"",AN73) ->  | J73: =IF(AND(A74<>"",OR(AK73<>0,AJ73<>0,AI73<>0)),AO73,"") ->  | K73: =IF(OR(A74="",AR73="",AM73=""),"",(10.44*B73*(AR73^1.85))/((AN73^1.85)*(AM73^4.8655))) ->  | O73: =IF(OR(A74="",AR73="",AM73="",$R$2=""),"",(AR73/7.48/60)/(PI()*((AM73/2)/12)^2)) ->  | AD73: =IF(A74="","",IF(E73="",AD71,IF(ISNUMBER(SEARCH(3408,Main!E73)),'Pipe Tables'!$E$32,IF(ISNUMBER(SEARCH(4710,Main!E73)),'Pipe Tables'!$E$32,IF(ISNUMBER(SEARCH('Pipe Tables'!$E$33,Main!E73)),'Pipe Tables'!$E$33,IF(ISNUMBER(SEARCH('Pipe Tables'!$E$34,Main!E73)),'Pipe Tables'!$E$34,IF(ISNUMBER(SEARCH('Pipe Tables'!$E$35,Main!E73)),'Pipe Tables'!$E$35))))))) ->  | AI73: =D73 -> 0 | AJ73: =E73 -> 0 | AK73: =F73 -> 0 | AL73: =IF(AQ73=0,"",HLOOKUP(AQ73,Pipe_Pressure,MATCH(AP73,Pipe_Press_Size,0),FALSE)) ->  | AM73: =IF(OR(AP73=0,AQ73=0),"",VLOOKUP(AP73,Pipe_Diameter,MATCH(AQ73,Pipe_Diam_Material,0))) ->  | AN73: =IF(A74="","",VLOOKUP(AD73,Hazen_Williams,2)) ->  | AO73: =IF(OR(A74="",AR73="",AM73=""),"",((10.44*(AR73^1.85))/((AN73^1.85)*(AM73^4.8655)))) ->  | AP73: =IF(AND($A74<>"",AI73=0),AP71,IF(AND($A74<>"",AI73<>0),AI73,0)) -> 0 | AQ73: =IF(AND($A74<>"",AJ73=0),AQ71,IF(AND($A74<>"",AJ73<>0),AJ73,0)) -> 0 | AR73: =IF(AND($A74<>"",AK73=0),AR71,IF(AND($A74<>"",AK73<>0),AK73,0)) -> 0 | AS73: =IF(AND($A74<>"",AL73=0),AS71,IF(AND($A74<>"",AL73<>0),AL73,0)) -> 0
M74: =IF(OR(AF74="",$R$2=""),"",IF(AND($C$311=TRUE,$K$5=A74),($M$5*144/62.4+AF74)-((L74*144/62.4)),IF(AND($F$311=TRUE,$K$6=A74),M72-K73+($M$6*144/62.4)-(O73^2/64.4),M72-K73-(O73^2/64.4)-L74*144/62.4))) ->  | N74: =IF(B73="","",IF(AND($K$5=$A74,$C$311=TRUE),$M$5*144/62.4+AF74,IF(AND($K$6=$A74,$F$311=TRUE),$M$6*144/62.4+N72-L74*144/62.4,N72-L74*144/62.4))) ->  | P74: =IF(M74="","",M74-AF74) ->  | Q74: =IF(P74="","",P74*62.4/144) ->  | R74: =IF(N74="","",(N74-AF74)*62.4/144) ->  | V74: =IF(R74="","",IF(P74<0,$O$316,IF(R74>G75,$O$317,IF(R74>75,$O$318,"")))) ->  | AB74: =IF(K73="","",K73+AB72) ->  | AF74: =IF(OR(A74="",$R$3="",AM73=""),"",C74-$R$3) ->  | AG74: =IF(AF74="","",N74) ->  | AH74: =IF(OR(AF74="",$R$2=""),"",IF(AND($A$311=1,Pump!$F$17="Yes"),IF(AND($C$311=TRUE,$K$5=A74),($M$5*144/62.4+AF74)-((L74*144/62.4)),IF(AND($F$311=TRUE,$K$6=A74),AH72-K73+($M$6*144/62.4)-(O73^2/64.4),AH72-K73-(O73^2/64.4))),AH72-K73-(O73^2/64.4))) -> 
B75: =IF(AND(A76>0,C76>0),SQRT((A76-A74)^2+(C76-C74)^2),"") ->  | G75: =IF(OR(A74="",AI75=0),"",AL75) ->  | H75: =IF(OR($A74="",AI75=0,AJ75=0),"",AM75) ->  | I75: =IF(OR($A74="",AI75=0,AJ75=0),"",AN75) ->  | J75: =IF(AND(A76<>"",OR(AK75<>0,AJ75<>0,AI75<>0)),AO75,"") ->  | K75: =IF(OR(A76="",AR75="",AM75=""),"",(10.44*B75*(AR75^1.85))/((AN75^1.85)*(AM75^4.8655))) ->  | O75: =IF(OR(A76="",AR75="",AM75="",$R$2=""),"",(AR75/7.48/60)/(PI()*((AM75/2)/12)^2)) ->  | AD75: =IF(A76="","",IF(E75="",AD73,IF(ISNUMBER(SEARCH(3408,Main!E75)),'Pipe Tables'!$E$32,IF(ISNUMBER(SEARCH(4710,Main!E75)),'Pipe Tables'!$E$32,IF(ISNUMBER(SEARCH('Pipe Tables'!$E$33,Main!E75)),'Pipe Tables'!$E$33,IF(ISNUMBER(SEARCH('Pipe Tables'!$E$34,Main!E75)),'Pipe Tables'!$E$34,IF(ISNUMBER(SEARCH('Pipe Tables'!$E$35,Main!E75)),'Pipe Tables'!$E$35))))))) ->  | AI75: =D75 -> 0 | AJ75: =E75 -> 0 | AK75: =F75 -> 0 | AL75: =IF(AQ75=0,"",HLOOKUP(AQ75,Pipe_Pressure,MATCH(AP75,Pipe_Press_Size,0),FALSE)) ->  | AM75: =IF(OR(AP75=0,AQ75=0),"",VLOOKUP(AP75,Pipe_Diameter,MATCH(AQ75,Pipe_Diam_Material,0))) ->  | AN75: =IF(A76="","",VLOOKUP(AD75,Hazen_Williams,2)) ->  | AO75: =IF(OR(A76="",AR75="",AM75=""),"",((10.44*(AR75^1.85))/((AN75^1.85)*(AM75^4.8655)))) ->  | AP75: =IF(AND($A76<>"",AI75=0),AP73,IF(AND($A76<>"",AI75<>0),AI75,0)) -> 0 | AQ75: =IF(AND($A76<>"",AJ75=0),AQ73,IF(AND($A76<>"",AJ75<>0),AJ75,0)) -> 0 | AR75: =IF(AND($A76<>"",AK75=0),AR73,IF(AND($A76<>"",AK75<>0),AK75,0)) -> 0 | AS75: =IF(AND($A76<>"",AL75=0),AS73,IF(AND($A76<>"",AL75<>0),AL75,0)) -> 0
M76: =IF(OR(AF76="",$R$2=""),"",IF(AND($C$311=TRUE,$K$5=A76),($M$5*144/62.4+AF76)-((L76*144/62.4)),IF(AND($F$311=TRUE,$K$6=A76),M74-K75+($M$6*144/62.4)-(O75^2/64.4),M74-K75-(O75^2/64.4)-L76*144/62.4))) ->  | N76: =IF(B75="","",IF(AND($K$5=$A76,$C$311=TRUE),$M$5*144/62.4+AF76,IF(AND($K$6=$A76,$F$311=TRUE),$M$6*144/62.4+N74-L76*144/62.4,N74-L76*144/62.4))) ->  | P76: =IF(M76="","",M76-AF76) ->  | Q76: =IF(P76="","",P76*62.4/144) ->  | R76: =IF(N76="","",(N76-AF76)*62.4/144) ->  | V76: =IF(R76="","",IF(P76<0,$O$316,IF(R76>G77,$O$317,IF(R76>75,$O$318,"")))) ->  | AB76: =IF(K75="","",K75+AB74) ->  | AF76: =IF(OR(A76="",$R$3="",AM75=""),"",C76-$R$3) ->  | AG76: =IF(AF76="","",N76) ->  | AH76: =IF(OR(AF76="",$R$2=""),"",IF(AND($A$311=1,Pump!$F$17="Yes"),IF(AND($C$311=TRUE,$K$5=A76),($M$5*144/62.4+AF76)-((L76*144/62.4)),IF(AND($F$311=TRUE,$K$6=A76),AH74-K75+($M$6*144/62.4)-(O75^2/64.4),AH74-K75-(O75^2/64.4))),AH74-K75-(O75^2/64.4))) -> 
B77: =IF(AND(A78>0,C78>0),SQRT((A78-A76)^2+(C78-C76)^2),"") ->  | G77: =IF(OR(A76="",AI77=0),"",AL77) ->  | H77: =IF(OR($A76="",AI77=0,AJ77=0),"",AM77) ->  | I77: =IF(OR($A76="",AI77=0,AJ77=0),"",AN77) ->  | J77: =IF(AND(A78<>"",OR(AK77<>0,AJ77<>0,AI77<>0)),AO77,"") ->  | K77: =IF(OR(A78="",AR77="",AM77=""),"",(10.44*B77*(AR77^1.85))/((AN77^1.85)*(AM77^4.8655))) ->  | O77: =IF(OR(A78="",AR77="",AM77="",$R$2=""),"",(AR77/7.48/60)/(PI()*((AM77/2)/12)^2)) ->  | AD77: =IF(A78="","",IF(E77="",AD75,IF(ISNUMBER(SEARCH(3408,Main!E77)),'Pipe Tables'!$E$32,IF(ISNUMBER(SEARCH(4710,Main!E77)),'Pipe Tables'!$E$32,IF(ISNUMBER(SEARCH('Pipe Tables'!$E$33,Main!E77)),'Pipe Tables'!$E$33,IF(ISNUMBER(SEARCH('Pipe Tables'!$E$34,Main!E77)),'Pipe Tables'!$E$34,IF(ISNUMBER(SEARCH('Pipe Tables'!$E$35,Main!E77)),'Pipe Tables'!$E$35))))))) ->  | AI77: =D77 -> 0 | AJ77: =E77 -> 0 | AK77: =F77 -> 0 | AL77: =IF(AQ77=0,"",HLOOKUP(AQ77,Pipe_Pressure,MATCH(AP77,Pipe_Press_Size,0),FALSE)) ->  | AM77: =IF(OR(AP77=0,AQ77=0),"",VLOOKUP(AP77,Pipe_Diameter,MATCH(AQ77,Pipe_Diam_Material,0))) ->  | AN77: =IF(A78="","",VLOOKUP(AD77,Hazen_Williams,2)) ->  | AO77: =IF(OR(A78="",AR77="",AM77=""),"",((10.44*(AR77^1.85))/((AN77^1.85)*(AM77^4.8655)))) ->  | AP77: =IF(AND($A78<>"",AI77=0),AP75,IF(AND($A78<>"",AI77<>0),AI77,0)) -> 0 | AQ77: =IF(AND($A78<>"",AJ77=0),AQ75,IF(AND($A78<>"",AJ77<>0),AJ77,0)) -> 0 | AR77: =IF(AND($A78<>"",AK77=0),AR75,IF(AND($A78<>"",AK77<>0),AK77,0)) -> 0 | AS77: =IF(AND($A78<>"",AL77=0),AS75,IF(AND($A78<>"",AL77<>0),AL77,0)) -> 0
M78: =IF(OR(AF78="",$R$2=""),"",IF(AND($C$311=TRUE,$K$5=A78),($M$5*144/62.4+AF78)-((L78*144/62.4)),IF(AND($F$311=TRUE,$K$6=A78),M76-K77+($M$6*144/62.4)-(O77^2/64.4),M76-K77-(O77^2/64.4)-L78*144/62.4))) ->  | N78: =IF(B77="","",IF(AND($K$5=$A78,$C$311=TRUE),$M$5*144/62.4+AF78,IF(AND($K$6=$A78,$F$311=TRUE),$M$6*144/62.4+N76-L78*144/62.4,N76-L78*144/62.4))) ->  | P78: =IF(M78="","",M78-AF78) ->  | Q78: =IF(P78="","",P78*62.4/144) ->  | R78: =IF(N78="","",(N78-AF78)*62.4/144) ->  | V78: =IF(R78="","",IF(P78<0,$O$316,IF(R78>G79,$O$317,IF(R78>75,$O$318,"")))) ->  | AB78: =IF(K77="","",K77+AB76) ->  | AF78: =IF(OR(A78="",$R$3="",AM77=""),"",C78-$R$3) ->  | AG78: =IF(AF78="","",N78) ->  | AH78: =IF(OR(AF78="",$R$2=""),"",IF(AND($A$311=1,Pump!$F$17="Yes"),IF(AND($C$311=TRUE,$K$5=A78),($M$5*144/62.4+AF78)-((L78*144/62.4)),IF(AND($F$311=TRUE,$K$6=A78),AH76-K77+($M$6*144/62.4)-(O77^2/64.4),AH76-K77-(O77^2/64.4))),AH76-K77-(O77^2/64.4))) -> 
B79: =IF(AND(A80>0,C80>0),SQRT((A80-A78)^2+(C80-C78)^2),"") ->  | G79: =IF(OR(A78="",AI79=0),"",AL79) ->  | H79: =IF(OR($A78="",AI79=0,AJ79=0),"",AM79) ->  | I79: =IF(OR($A78="",AI79=0,AJ79=0),"",AN79) ->  | J79: =IF(AND(A80<>"",OR(AK79<>0,AJ79<>0,AI79<>0)),AO79,"") ->  | K79: =IF(OR(A80="",AR79="",AM79=""),"",(10.44*B79*(AR79^1.85))/((AN79^1.85)*(AM79^4.8655))) ->  | O79: =IF(OR(A80="",AR79="",AM79="",$R$2=""),"",(AR79/7.48/60)/(PI()*((AM79/2)/12)^2)) ->  | AD79: =IF(A80="","",IF(E79="",AD77,IF(ISNUMBER(SEARCH(3408,Main!E79)),'Pipe Tables'!$E$32,IF(ISNUMBER(SEARCH(4710,Main!E79)),'Pipe Tables'!$E$32,IF(ISNUMBER(SEARCH('Pipe Tables'!$E$33,Main!E79)),'Pipe Tables'!$E$33,IF(ISNUMBER(SEARCH('Pipe Tables'!$E$34,Main!E79)),'Pipe Tables'!$E$34,IF(ISNUMBER(SEARCH('Pipe Tables'!$E$35,Main!E79)),'Pipe Tables'!$E$35))))))) ->  | AI79: =D79 -> 0 | AJ79: =E79 -> 0 | AK79: =F79 -> 0 | AL79: =IF(AQ79=0,"",HLOOKUP(AQ79,Pipe_Pressure,MATCH(AP79,Pipe_Press_Size,0),FALSE)) ->  | AM79: =IF(OR(AP79=0,AQ79=0),"",VLOOKUP(AP79,Pipe_Diameter,MATCH(AQ79,Pipe_Diam_Material,0))) ->  | AN79: =IF(A80="","",VLOOKUP(AD79,Hazen_Williams,2)) ->  | AO79: =IF(OR(A80="",AR79="",AM79=""),"",((10.44*(AR79^1.85))/((AN79^1.85)*(AM79^4.8655)))) ->  | AP79: =IF(AND($A80<>"",AI79=0),AP77,IF(AND($A80<>"",AI79<>0),AI79,0)) -> 0 | AQ79: =IF(AND($A80<>"",AJ79=0),AQ77,IF(AND($A80<>"",AJ79<>0),AJ79,0)) -> 0 | AR79: =IF(AND($A80<>"",AK79=0),AR77,IF(AND($A80<>"",AK79<>0),AK79,0)) -> 0 | AS79: =IF(AND($A80<>"",AL79=0),AS77,IF(AND($A80<>"",AL79<>0),AL79,0)) -> 0
M80: =IF(OR(AF80="",$R$2=""),"",IF(AND($C$311=TRUE,$K$5=A80),($M$5*144/62.4+AF80)-((L80*144/62.4)),IF(AND($F$311=TRUE,$K$6=A80),M78-K79+($M$6*144/62.4)-(O79^2/64.4),M78-K79-(O79^2/64.4)-L80*144/62.4))) ->  | N80: =IF(B79="","",IF(AND($K$5=$A80,$C$311=TRUE),$M$5*144/62.4+AF80,IF(AND($K$6=$A80,$F$311=TRUE),$M$6*144/62.4+N78-L80*144/62.4,N78-L80*144/62.4))) ->  | P80: =IF(M80="","",M80-AF80) ->  | Q80: =IF(P80="","",P80*62.4/144) ->  | R80: =IF(N80="","",(N80-AF80)*62.4/144) ->  | V80: =IF(R80="","",IF(P80<0,$O$316,IF(R80>G81,$O$317,IF(R80>75,$O$318,"")))) ->  | AB80: =IF(K79="","",K79+AB78) ->  | AF80: =IF(OR(A80="",$R$3="",AM79=""),"",C80-$R$3) ->  | AG80: =IF(AF80="","",N80) ->  | AH80: =IF(OR(AF80="",$R$2=""),"",IF(AND($A$311=1,Pump!$F$17="Yes"),IF(AND($C$311=TRUE,$K$5=A80),($M$5*144/62.4+AF80)-((L80*144/62.4)),IF(AND($F$311=TRUE,$K$6=A80),AH78-K79+($M$6*144/62.4)-(O79^2/64.4),AH78-K79-(O79^2/64.4))),AH78-K79-(O79^2/64.4))) -> 
B81: =IF(AND(A82>0,C82>0),SQRT((A82-A80)^2+(C82-C80)^2),"") ->  | G81: =IF(OR(A80="",AI81=0),"",AL81) ->  | H81: =IF(OR($A80="",AI81=0,AJ81=0),"",AM81) ->  | I81: =IF(OR($A80="",AI81=0,AJ81=0),"",AN81) ->  | J81: =IF(AND(A82<>"",OR(AK81<>0,AJ81<>0,AI81<>0)),AO81,"") ->  | K81: =IF(OR(A82="",AR81="",AM81=""),"",(10.44*B81*(AR81^1.85))/((AN81^1.85)*(AM81^4.8655))) ->  | O81: =IF(OR(A82="",AR81="",AM81="",$R$2=""),"",(AR81/7.48/60)/(PI()*((AM81/2)/12)^2)) ->  | AD81: =IF(A82="","",IF(E81="",AD79,IF(ISNUMBER(SEARCH(3408,Main!E81)),'Pipe Tables'!$E$32,IF(ISNUMBER(SEARCH(4710,Main!E81)),'Pipe Tables'!$E$32,IF(ISNUMBER(SEARCH('Pipe Tables'!$E$33,Main!E81)),'Pipe Tables'!$E$33,IF(ISNUMBER(SEARCH('Pipe Tables'!$E$34,Main!E81)),'Pipe Tables'!$E$34,IF(ISNUMBER(SEARCH('Pipe Tables'!$E$35,Main!E81)),'Pipe Tables'!$E$35))))))) ->  | AI81: =D81 -> 0 | AJ81: =E81 -> 0 | AK81: =F81 -> 0 | AL81: =IF(AQ81=0,"",HLOOKUP(AQ81,Pipe_Pressure,MATCH(AP81,Pipe_Press_Size,0),FALSE)) ->  | AM81: =IF(OR(AP81=0,AQ81=0),"",VLOOKUP(AP81,Pipe_Diameter,MATCH(AQ81,Pipe_Diam_Material,0))) ->  | AN81: =IF(A82="","",VLOOKUP(AD81,Hazen_Williams,2)) ->  | AO81: =IF(OR(A82="",AR81="",AM81=""),"",((10.44*(AR81^1.85))/((AN81^1.85)*(AM81^4.8655)))) ->  | AP81: =IF(AND($A82<>"",AI81=0),AP79,IF(AND($A82<>"",AI81<>0),AI81,0)) -> 0 | AQ81: =IF(AND($A82<>"",AJ81=0),AQ79,IF(AND($A82<>"",AJ81<>0),AJ81,0)) -> 0 | AR81: =IF(AND($A82<>"",AK81=0),AR79,IF(AND($A82<>"",AK81<>0),AK81,0)) -> 0 | AS81: =IF(AND($A82<>"",AL81=0),AS79,IF(AND($A82<>"",AL81<>0),AL81,0)) -> 0
M82: =IF(OR(AF82="",$R$2=""),"",IF(AND($C$311=TRUE,$K$5=A82),($M$5*144/62.4+AF82)-((L82*144/62.4)),IF(AND($F$311=TRUE,$K$6=A82),M80-K81+($M$6*144/62.4)-(O81^2/64.4),M80-K81-(O81^2/64.4)-L82*144/62.4))) ->  | N82: =IF(B81="","",IF(AND($K$5=$A82,$C$311=TRUE),$M$5*144/62.4+AF82,IF(AND($K$6=$A82,$F$311=TRUE),$M$6*144/62.4+N80-L82*144/62.4,N80-L82*144/62.4))) ->  | P82: =IF(M82="","",M82-AF82) ->  | Q82: =IF(P82="","",P82*62.4/144) ->  | R82: =IF(N82="","",(N82-AF82)*62.4/144) ->  | V82: =IF(R82="","",IF(P82<0,$O$316,IF(R82>G83,$O$317,IF(R82>75,$O$318,"")))) ->  | AB82: =IF(K81="","",K81+AB80) ->  | AF82: =IF(OR(A82="",$R$3="",AM81=""),"",C82-$R$3) ->  | AG82: =IF(AF82="","",N82) ->  | AH82: =IF(OR(AF82="",$R$2=""),"",IF(AND($A$311=1,Pump!$F$17="Yes"),IF(AND($C$311=TRUE,$K$5=A82),($M$5*144/62.4+AF82)-((L82*144/62.4)),IF(AND($F$311=TRUE,$K$6=A82),AH80-K81+($M$6*144/62.4)-(O81^2/64.4),AH80-K81-(O81^2/64.4))),AH80-K81-(O81^2/64.4))) -> 
B83: =IF(AND(A84>0,C84>0),SQRT((A84-A82)^2+(C84-C82)^2),"") ->  | G83: =IF(OR(A82="",AI83=0),"",AL83) ->  | H83: =IF(OR($A82="",AI83=0,AJ83=0),"",AM83) ->  | I83: =IF(OR($A82="",AI83=0,AJ83=0),"",AN83) ->  | J83: =IF(AND(A84<>"",OR(AK83<>0,AJ83<>0,AI83<>0)),AO83,"") ->  | K83: =IF(OR(A84="",AR83="",AM83=""),"",(10.44*B83*(AR83^1.85))/((AN83^1.85)*(AM83^4.8655))) ->  | O83: =IF(OR(A84="",AR83="",AM83="",$R$2=""),"",(AR83/7.48/60)/(PI()*((AM83/2)/12)^2)) ->  | AD83: =IF(A84="","",IF(E83="",AD81,IF(ISNUMBER(SEARCH(3408,Main!E83)),'Pipe Tables'!$E$32,IF(ISNUMBER(SEARCH(4710,Main!E83)),'Pipe Tables'!$E$32,IF(ISNUMBER(SEARCH('Pipe Tables'!$E$33,Main!E83)),'Pipe Tables'!$E$33,IF(ISNUMBER(SEARCH('Pipe Tables'!$E$34,Main!E83)),'Pipe Tables'!$E$34,IF(ISNUMBER(SEARCH('Pipe Tables'!$E$35,Main!E83)),'Pipe Tables'!$E$35))))))) ->  | AI83: =D83 -> 0 | AJ83: =E83 -> 0 | AK83: =F83 -> 0 | AL83: =IF(AQ83=0,"",HLOOKUP(AQ83,Pipe_Pressure,MATCH(AP83,Pipe_Press_Size,0),FALSE)) ->  | AM83: =IF(OR(AP83=0,AQ83=0),"",VLOOKUP(AP83,Pipe_Diameter,MATCH(AQ83,Pipe_Diam_Material,0))) ->  | AN83: =IF(A84="","",VLOOKUP(AD83,Hazen_Williams,2)) ->  | AO83: =IF(OR(A84="",AR83="",AM83=""),"",((10.44*(AR83^1.85))/((AN83^1.85)*(AM83^4.8655)))) ->  | AP83: =IF(AND($A84<>"",AI83=0),AP81,IF(AND($A84<>"",AI83<>0),AI83,0)) -> 0 | AQ83: =IF(AND($A84<>"",AJ83=0),AQ81,IF(AND($A84<>"",AJ83<>0),AJ83,0)) -> 0 | AR83: =IF(AND($A84<>"",AK83=0),AR81,IF(AND($A84<>"",AK83<>0),AK83,0)) -> 0 | AS83: =IF(AND($A84<>"",AL83=0),AS81,IF(AND($A84<>"",AL83<>0),AL83,0)) -> 0
M84: =IF(OR(AF84="",$R$2=""),"",IF(AND($C$311=TRUE,$K$5=A84),($M$5*144/62.4+AF84)-((L84*144/62.4)),IF(AND($F$311=TRUE,$K$6=A84),M82-K83+($M$6*144/62.4)-(O83^2/64.4),M82-K83-(O83^2/64.4)-L84*144/62.4))) ->  | N84: =IF(B83="","",IF(AND($K$5=$A84,$C$311=TRUE),$M$5*144/62.4+AF84,IF(AND($K$6=$A84,$F$311=TRUE),$M$6*144/62.4+N82-L84*144/62.4,N82-L84*144/62.4))) ->  | P84: =IF(M84="","",M84-AF84) ->  | Q84: =IF(P84="","",P84*62.4/144) ->  | R84: =IF(N84="","",(N84-AF84)*62.4/144) ->  | V84: =IF(R84="","",IF(P84<0,$O$316,IF(R84>G85,$O$317,IF(R84>75,$O$318,"")))) ->  | AB84: =IF(K83="","",K83+AB82) ->  | AF84: =IF(OR(A84="",$R$3="",AM83=""),"",C84-$R$3) ->  | AG84: =IF(AF84="","",N84) ->  | AH84: =IF(OR(AF84="",$R$2=""),"",IF(AND($A$311=1,Pump!$F$17="Yes"),IF(AND($C$311=TRUE,$K$5=A84),($M$5*144/62.4+AF84)-((L84*144/62.4)),IF(AND($F$311=TRUE,$K$6=A84),AH82-K83+($M$6*144/62.4)-(O83^2/64.4),AH82-K83-(O83^2/64.4))),AH82-K83-(O83^2/64.4))) -> 
B85: =IF(AND(A86>0,C86>0),SQRT((A86-A84)^2+(C86-C84)^2),"") ->  | G85: =IF(OR(A84="",AI85=0),"",AL85) ->  | H85: =IF(OR($A84="",AI85=0,AJ85=0),"",AM85) ->  | I85: =IF(OR($A84="",AI85=0,AJ85=0),"",AN85) ->  | J85: =IF(AND(A86<>"",OR(AK85<>0,AJ85<>0,AI85<>0)),AO85,"") ->  | K85: =IF(OR(A86="",AR85="",AM85=""),"",(10.44*B85*(AR85^1.85))/((AN85^1.85)*(AM85^4.8655))) ->  | O85: =IF(OR(A86="",AR85="",AM85="",$R$2=""),"",(AR85/7.48/60)/(PI()*((AM85/2)/12)^2)) ->  | AD85: =IF(A86="","",IF(E85="",AD83,IF(ISNUMBER(SEARCH(3408,Main!E85)),'Pipe Tables'!$E$32,IF(ISNUMBER(SEARCH(4710,Main!E85)),'Pipe Tables'!$E$32,IF(ISNUMBER(SEARCH('Pipe Tables'!$E$33,Main!E85)),'Pipe Tables'!$E$33,IF(ISNUMBER(SEARCH('Pipe Tables'!$E$34,Main!E85)),'Pipe Tables'!$E$34,IF(ISNUMBER(SEARCH('Pipe Tables'!$E$35,Main!E85)),'Pipe Tables'!$E$35))))))) ->  | AI85: =D85 -> 0 | AJ85: =E85 -> 0 | AK85: =F85 -> 0 | AL85: =IF(AQ85=0,"",HLOOKUP(AQ85,Pipe_Pressure,MATCH(AP85,Pipe_Press_Size,0),FALSE)) ->  | AM85: =IF(OR(AP85=0,AQ85=0),"",VLOOKUP(AP85,Pipe_Diameter,MATCH(AQ85,Pipe_Diam_Material,0))) ->  | AN85: =IF(A86="","",VLOOKUP(AD85,Hazen_Williams,2)) ->  | AO85: =IF(OR(A86="",AR85="",AM85=""),"",((10.44*(AR85^1.85))/((AN85^1.85)*(AM85^4.8655)))) ->  | AP85: =IF(AND($A86<>"",AI85=0),AP83,IF(AND($A86<>"",AI85<>0),AI85,0)) -> 0 | AQ85: =IF(AND($A86<>"",AJ85=0),AQ83,IF(AND($A86<>"",AJ85<>0),AJ85,0)) -> 0 | AR85: =IF(AND($A86<>"",AK85=0),AR83,IF(AND($A86<>"",AK85<>0),AK85,0)) -> 0 | AS85: =IF(AND($A86<>"",AL85=0),AS83,IF(AND($A86<>"",AL85<>0),AL85,0)) -> 0
M86: =IF(OR(AF86="",$R$2=""),"",IF(AND($C$311=TRUE,$K$5=A86),($M$5*144/62.4+AF86)-((L86*144/62.4)),IF(AND($F$311=TRUE,$K$6=A86),M84-K85+($M$6*144/62.4)-(O85^2/64.4),M84-K85-(O85^2/64.4)-L86*144/62.4))) ->  | N86: =IF(B85="","",IF(AND($K$5=$A86,$C$311=TRUE),$M$5*144/62.4+AF86,IF(AND($K$6=$A86,$F$311=TRUE),$M$6*144/62.4+N84-L86*144/62.4,N84-L86*144/62.4))) ->  | P86: =IF(M86="","",M86-AF86) ->  | Q86: =IF(P86="","",P86*62.4/144) ->  | R86: =IF(N86="","",(N86-AF86)*62.4/144) ->  | V86: =IF(R86="","",IF(P86<0,$O$316,IF(R86>G87,$O$317,IF(R86>75,$O$318,"")))) ->  | AB86: =IF(K85="","",K85+AB84) ->  | AF86: =IF(OR(A86="",$R$3="",AM85=""),"",C86-$R$3) ->  | AG86: =IF(AF86="","",N86) ->  | AH86: =IF(OR(AF86="",$R$2=""),"",IF(AND($A$311=1,Pump!$F$17="Yes"),IF(AND($C$311=TRUE,$K$5=A86),($M$5*144/62.4+AF86)-((L86*144/62.4)),IF(AND($F$311=TRUE,$K$6=A86),AH84-K85+($M$6*144/62.4)-(O85^2/64.4),AH84-K85-(O85^2/64.4))),AH84-K85-(O85^2/64.4))) -> 
B87: =IF(AND(A88>0,C88>0),SQRT((A88-A86)^2+(C88-C86)^2),"") ->  | G87: =IF(OR(A86="",AI87=0),"",AL87) ->  | H87: =IF(OR($A86="",AI87=0,AJ87=0),"",AM87) ->  | I87: =IF(OR($A86="",AI87=0,AJ87=0),"",AN87) ->  | J87: =IF(AND(A88<>"",OR(AK87<>0,AJ87<>0,AI87<>0)),AO87,"") ->  | K87: =IF(OR(A88="",AR87="",AM87=""),"",(10.44*B87*(AR87^1.85))/((AN87^1.85)*(AM87^4.8655))) ->  | O87: =IF(OR(A88="",AR87="",AM87="",$R$2=""),"",(AR87/7.48/60)/(PI()*((AM87/2)/12)^2)) ->  | AD87: =IF(A88="","",IF(E87="",AD85,IF(ISNUMBER(SEARCH(3408,Main!E87)),'Pipe Tables'!$E$32,IF(ISNUMBER(SEARCH(4710,Main!E87)),'Pipe Tables'!$E$32,IF(ISNUMBER(SEARCH('Pipe Tables'!$E$33,Main!E87)),'Pipe Tables'!$E$33,IF(ISNUMBER(SEARCH('Pipe Tables'!$E$34,Main!E87)),'Pipe Tables'!$E$34,IF(ISNUMBER(SEARCH('Pipe Tables'!$E$35,Main!E87)),'Pipe Tables'!$E$35))))))) ->  | AI87: =D87 -> 0 | AJ87: =E87 -> 0 | AK87: =F87 -> 0 | AL87: =IF(AQ87=0,"",HLOOKUP(AQ87,Pipe_Pressure,MATCH(AP87,Pipe_Press_Size,0),FALSE)) ->  | AM87: =IF(OR(AP87=0,AQ87=0),"",VLOOKUP(AP87,Pipe_Diameter,MATCH(AQ87,Pipe_Diam_Material,0))) ->  | AN87: =IF(A88="","",VLOOKUP(AD87,Hazen_Williams,2)) ->  | AO87: =IF(OR(A88="",AR87="",AM87=""),"",((10.44*(AR87^1.85))/((AN87^1.85)*(AM87^4.8655)))) ->  | AP87: =IF(AND($A88<>"",AI87=0),AP85,IF(AND($A88<>"",AI87<>0),AI87,0)) -> 0 | AQ87: =IF(AND($A88<>"",AJ87=0),AQ85,IF(AND($A88<>"",AJ87<>0),AJ87,0)) -> 0 | AR87: =IF(AND($A88<>"",AK87=0),AR85,IF(AND($A88<>"",AK87<>0),AK87,0)) -> 0 | AS87: =IF(AND($A88<>"",AL87=0),AS85,IF(AND($A88<>"",AL87<>0),AL87,0)) -> 0
M88: =IF(OR(AF88="",$R$2=""),"",IF(AND($C$311=TRUE,$K$5=A88),($M$5*144/62.4+AF88)-((L88*144/62.4)),IF(AND($F$311=TRUE,$K$6=A88),M86-K87+($M$6*144/62.4)-(O87^2/64.4),M86-K87-(O87^2/64.4)-L88*144/62.4))) ->  | N88: =IF(B87="","",IF(AND($K$5=$A88,$C$311=TRUE),$M$5*144/62.4+AF88,IF(AND($K$6=$A88,$F$311=TRUE),$M$6*144/62.4+N86-L88*144/62.4,N86-L88*144/62.4))) ->  | P88: =IF(M88="","",M88-AF88) ->  | Q88: =IF(P88="","",P88*62.4/144) ->  | R88: =IF(N88="","",(N88-AF88)*62.4/144) ->  | V88: =IF(R88="","",IF(P88<0,$O$316,IF(R88>G89,$O$317,IF(R88>75,$O$318,"")))) ->  | AB88: =IF(K87="","",K87+AB86) ->  | AF88: =IF(OR(A88="",$R$3="",AM87=""),"",C88-$R$3) ->  | AG88: =IF(AF88="","",N88) ->  | AH88: =IF(OR(AF88="",$R$2=""),"",IF(AND($A$311=1,Pump!$F$17="Yes"),IF(AND($C$311=TRUE,$K$5=A88),($M$5*144/62.4+AF88)-((L88*144/62.4)),IF(AND($F$311=TRUE,$K$6=A88),AH86-K87+($M$6*144/62.4)-(O87^2/64.4),AH86-K87-(O87^2/64.4))),AH86-K87-(O87^2/64.4))) -> 
B89: =IF(AND(A90>0,C90>0),SQRT((A90-A88)^2+(C90-C88)^2),"") ->  | G89: =IF(OR(A88="",AI89=0),"",AL89) ->  | H89: =IF(OR($A88="",AI89=0,AJ89=0),"",AM89) ->  | I89: =IF(OR($A88="",AI89=0,AJ89=0),"",AN89) ->  | J89: =IF(AND(A90<>"",OR(AK89<>0,AJ89<>0,AI89<>0)),AO89,"") ->  | K89: =IF(OR(A90="",AR89="",AM89=""),"",(10.44*B89*(AR89^1.85))/((AN89^1.85)*(AM89^4.8655))) ->  | O89: =IF(OR(A90="",AR89="",AM89="",$R$2=""),"",(AR89/7.48/60)/(PI()*((AM89/2)/12)^2)) ->  | AD89: =IF(A90="","",IF(E89="",AD87,IF(ISNUMBER(SEARCH(3408,Main!E89)),'Pipe Tables'!$E$32,IF(ISNUMBER(SEARCH(4710,Main!E89)),'Pipe Tables'!$E$32,IF(ISNUMBER(SEARCH('Pipe Tables'!$E$33,Main!E89)),'Pipe Tables'!$E$33,IF(ISNUMBER(SEARCH('Pipe Tables'!$E$34,Main!E89)),'Pipe Tables'!$E$34,IF(ISNUMBER(SEARCH('Pipe Tables'!$E$35,Main!E89)),'Pipe Tables'!$E$35))))))) ->  | AI89: =D89 -> 0 | AJ89: =E89 -> 0 | AK89: =F89 -> 0 | AL89: =IF(AQ89=0,"",HLOOKUP(AQ89,Pipe_Pressure,MATCH(AP89,Pipe_Press_Size,0),FALSE)) ->  | AM89: =IF(OR(AP89=0,AQ89=0),"",VLOOKUP(AP89,Pipe_Diameter,MATCH(AQ89,Pipe_Diam_Material,0))) ->  | AN89: =IF(A90="","",VLOOKUP(AD89,Hazen_Williams,2)) ->  | AO89: =IF(OR(A90="",AR89="",AM89=""),"",((10.44*(AR89^1.85))/((AN89^1.85)*(AM89^4.8655)))) ->  | AP89: =IF(AND($A90<>"",AI89=0),AP87,IF(AND($A90<>"",AI89<>0),AI89,0)) -> 0 | AQ89: =IF(AND($A90<>"",AJ89=0),AQ87,IF(AND($A90<>"",AJ89<>0),AJ89,0)) -> 0 | AR89: =IF(AND($A90<>"",AK89=0),AR87,IF(AND($A90<>"",AK89<>0),AK89,0)) -> 0 | AS89: =IF(AND($A90<>"",AL89=0),AS87,IF(AND($A90<>"",AL89<>0),AL89,0)) -> 0
M90: =IF(OR(AF90="",$R$2=""),"",IF(AND($C$311=TRUE,$K$5=A90),($M$5*144/62.4+AF90)-((L90*144/62.4)),IF(AND($F$311=TRUE,$K$6=A90),M88-K89+($M$6*144/62.4)-(O89^2/64.4),M88-K89-(O89^2/64.4)-L90*144/62.4))) ->  | N90: =IF(B89="","",IF(AND($K$5=$A90,$C$311=TRUE),$M$5*144/62.4+AF90,IF(AND($K$6=$A90,$F$311=TRUE),$M$6*144/62.4+N88-L90*144/62.4,N88-L90*144/62.4))) ->  | P90: =IF(M90="","",M90-AF90) ->  | Q90: =IF(P90="","",P90*62.4/144) ->  | R90: =IF(N90="","",(N90-AF90)*62.4/144) ->  | V90: =IF(R90="","",IF(P90<0,$O$316,IF(R90>G91,$O$317,IF(R90>75,$O$318,"")))) ->  | AB90: =IF(K89="","",K89+AB88) ->  | AF90: =IF(OR(A90="",$R$3="",AM89=""),"",C90-$R$3) ->  | AG90: =IF(AF90="","",N90) ->  | AH90: =IF(OR(AF90="",$R$2=""),"",IF(AND($A$311=1,Pump!$F$17="Yes"),IF(AND($C$311=TRUE,$K$5=A90),($M$5*144/62.4+AF90)-((L90*144/62.4)),IF(AND($F$311=TRUE,$K$6=A90),AH88-K89+($M$6*144/62.4)-(O89^2/64.4),AH88-K89-(O89^2/64.4))),AH88-K89-(O89^2/64.4))) -> 
B91: =IF(AND(A92>0,C92>0),SQRT((A92-A90)^2+(C92-C90)^2),"") ->  | G91: =IF(OR(A90="",AI91=0),"",AL91) ->  | H91: =IF(OR($A90="",AI91=0,AJ91=0),"",AM91) ->  | I91: =IF(OR($A90="",AI91=0,AJ91=0),"",AN91) ->  | J91: =IF(AND(A92<>"",OR(AK91<>0,AJ91<>0,AI91<>0)),AO91,"") ->  | K91: =IF(OR(A92="",AR91="",AM91=""),"",(10.44*B91*(AR91^1.85))/((AN91^1.85)*(AM91^4.8655))) ->  | O91: =IF(OR(A92="",AR91="",AM91="",$R$2=""),"",(AR91/7.48/60)/(PI()*((AM91/2)/12)^2)) ->  | AD91: =IF(A92="","",IF(E91="",AD89,IF(ISNUMBER(SEARCH(3408,Main!E91)),'Pipe Tables'!$E$32,IF(ISNUMBER(SEARCH(4710,Main!E91)),'Pipe Tables'!$E$32,IF(ISNUMBER(SEARCH('Pipe Tables'!$E$33,Main!E91)),'Pipe Tables'!$E$33,IF(ISNUMBER(SEARCH('Pipe Tables'!$E$34,Main!E91)),'Pipe Tables'!$E$34,IF(ISNUMBER(SEARCH('Pipe Tables'!$E$35,Main!E91)),'Pipe Tables'!$E$35))))))) ->  | AI91: =D91 -> 0 | AJ91: =E91 -> 0 | AK91: =F91 -> 0 | AL91: =IF(AQ91=0,"",HLOOKUP(AQ91,Pipe_Pressure,MATCH(AP91,Pipe_Press_Size,0),FALSE)) ->  | AM91: =IF(OR(AP91=0,AQ91=0),"",VLOOKUP(AP91,Pipe_Diameter,MATCH(AQ91,Pipe_Diam_Material,0))) ->  | AN91: =IF(A92="","",VLOOKUP(AD91,Hazen_Williams,2)) ->  | AO91: =IF(OR(A92="",AR91="",AM91=""),"",((10.44*(AR91^1.85))/((AN91^1.85)*(AM91^4.8655)))) ->  | AP91: =IF(AND($A92<>"",AI91=0),AP89,IF(AND($A92<>"",AI91<>0),AI91,0)) -> 0 | AQ91: =IF(AND($A92<>"",AJ91=0),AQ89,IF(AND($A92<>"",AJ91<>0),AJ91,0)) -> 0 | AR91: =IF(AND($A92<>"",AK91=0),AR89,IF(AND($A92<>"",AK91<>0),AK91,0)) -> 0 | AS91: =IF(AND($A92<>"",AL91=0),AS89,IF(AND($A92<>"",AL91<>0),AL91,0)) -> 0
M92: =IF(OR(AF92="",$R$2=""),"",IF(AND($C$311=TRUE,$K$5=A92),($M$5*144/62.4+AF92)-((L92*144/62.4)),IF(AND($F$311=TRUE,$K$6=A92),M90-K91+($M$6*144/62.4)-(O91^2/64.4),M90-K91-(O91^2/64.4)-L92*144/62.4))) ->  | N92: =IF(B91="","",IF(AND($K$5=$A92,$C$311=TRUE),$M$5*144/62.4+AF92,IF(AND($K$6=$A92,$F$311=TRUE),$M$6*144/62.4+N90-L92*144/62.4,N90-L92*144/62.4))) ->  | P92: =IF(M92="","",M92-AF92) ->  | Q92: =IF(P92="","",P92*62.4/144) ->  | R92: =IF(N92="","",(N92-AF92)*62.4/144) ->  | V92: =IF(R92="","",IF(P92<0,$O$316,IF(R92>G93,$O$317,IF(R92>75,$O$318,"")))) ->  | AB92: =IF(K91="","",K91+AB90) ->  | AF92: =IF(OR(A92="",$R$3="",AM91=""),"",C92-$R$3) ->  | AG92: =IF(AF92="","",N92) ->  | AH92: =IF(OR(AF92="",$R$2=""),"",IF(AND($A$311=1,Pump!$F$17="Yes"),IF(AND($C$311=TRUE,$K$5=A92),($M$5*144/62.4+AF92)-((L92*144/62.4)),IF(AND($F$311=TRUE,$K$6=A92),AH90-K91+($M$6*144/62.4)-(O91^2/64.4),AH90-K91-(O91^2/64.4))),AH90-K91-(O91^2/64.4))) -> 
B93: =IF(AND(A94>0,C94>0),SQRT((A94-A92)^2+(C94-C92)^2),"") ->  | G93: =IF(OR(A92="",AI93=0),"",AL93) ->  | H93: =IF(OR($A92="",AI93=0,AJ93=0),"",AM93) ->  | I93: =IF(OR($A92="",AI93=0,AJ93=0),"",AN93) ->  | J93: =IF(AND(A94<>"",OR(AK93<>0,AJ93<>0,AI93<>0)),AO93,"") ->  | K93: =IF(OR(A94="",AR93="",AM93=""),"",(10.44*B93*(AR93^1.85))/((AN93^1.85)*(AM93^4.8655))) ->  | O93: =IF(OR(A94="",AR93="",AM93="",$R$2=""),"",(AR93/7.48/60)/(PI()*((AM93/2)/12)^2)) ->  | AD93: =IF(A94="","",IF(E93="",AD91,IF(ISNUMBER(SEARCH(3408,Main!E93)),'Pipe Tables'!$E$32,IF(ISNUMBER(SEARCH(4710,Main!E93)),'Pipe Tables'!$E$32,IF(ISNUMBER(SEARCH('Pipe Tables'!$E$33,Main!E93)),'Pipe Tables'!$E$33,IF(ISNUMBER(SEARCH('Pipe Tables'!$E$34,Main!E93)),'Pipe Tables'!$E$34,IF(ISNUMBER(SEARCH('Pipe Tables'!$E$35,Main!E93)),'Pipe Tables'!$E$35))))))) ->  | AI93: =D93 -> 0 | AJ93: =E93 -> 0 | AK93: =F93 -> 0 | AL93: =IF(AQ93=0,"",HLOOKUP(AQ93,Pipe_Pressure,MATCH(AP93,Pipe_Press_Size,0),FALSE)) ->  | AM93: =IF(OR(AP93=0,AQ93=0),"",VLOOKUP(AP93,Pipe_Diameter,MATCH(AQ93,Pipe_Diam_Material,0))) ->  | AN93: =IF(A94="","",VLOOKUP(AD93,Hazen_Williams,2)) ->  | AO93: =IF(OR(A94="",AR93="",AM93=""),"",((10.44*(AR93^1.85))/((AN93^1.85)*(AM93^4.8655)))) ->  | AP93: =IF(AND($A94<>"",AI93=0),AP91,IF(AND($A94<>"",AI93<>0),AI93,0)) -> 0 | AQ93: =IF(AND($A94<>"",AJ93=0),AQ91,IF(AND($A94<>"",AJ93<>0),AJ93,0)) -> 0 | AR93: =IF(AND($A94<>"",AK93=0),AR91,IF(AND($A94<>"",AK93<>0),AK93,0)) -> 0 | AS93: =IF(AND($A94<>"",AL93=0),AS91,IF(AND($A94<>"",AL93<>0),AL93,0)) -> 0
M94: =IF(OR(AF94="",$R$2=""),"",IF(AND($C$311=TRUE,$K$5=A94),($M$5*144/62.4+AF94)-((L94*144/62.4)),IF(AND($F$311=TRUE,$K$6=A94),M92-K93+($M$6*144/62.4)-(O93^2/64.4),M92-K93-(O93^2/64.4)-L94*144/62.4))) ->  | N94: =IF(B93="","",IF(AND($K$5=$A94,$C$311=TRUE),$M$5*144/62.4+AF94,IF(AND($K$6=$A94,$F$311=TRUE),$M$6*144/62.4+N92-L94*144/62.4,N92-L94*144/62.4))) ->  | P94: =IF(M94="","",M94-AF94) ->  | Q94: =IF(P94="","",P94*62.4/144) ->  | R94: =IF(N94="","",(N94-AF94)*62.4/144) ->  | V94: =IF(R94="","",IF(P94<0,$O$316,IF(R94>G95,$O$317,IF(R94>75,$O$318,"")))) ->  | AB94: =IF(K93="","",K93+AB92) ->  | AF94: =IF(OR(A94="",$R$3="",AM93=""),"",C94-$R$3) ->  | AG94: =IF(AF94="","",N94) ->  | AH94: =IF(OR(AF94="",$R$2=""),"",IF(AND($A$311=1,Pump!$F$17="Yes"),IF(AND($C$311=TRUE,$K$5=A94),($M$5*144/62.4+AF94)-((L94*144/62.4)),IF(AND($F$311=TRUE,$K$6=A94),AH92-K93+($M$6*144/62.4)-(O93^2/64.4),AH92-K93-(O93^2/64.4))),AH92-K93-(O93^2/64.4))) -> 
B95: =IF(AND(A96>0,C96>0),SQRT((A96-A94)^2+(C96-C94)^2),"") ->  | G95: =IF(OR(A94="",AI95=0),"",AL95) ->  | H95: =IF(OR($A94="",AI95=0,AJ95=0),"",AM95) ->  | I95: =IF(OR($A94="",AI95=0,AJ95=0),"",AN95) ->  | J95: =IF(AND(A96<>"",OR(AK95<>0,AJ95<>0,AI95<>0)),AO95,"") ->  | K95: =IF(OR(A96="",AR95="",AM95=""),"",(10.44*B95*(AR95^1.85))/((AN95^1.85)*(AM95^4.8655))) ->  | O95: =IF(OR(A96="",AR95="",AM95="",$R$2=""),"",(AR95/7.48/60)/(PI()*((AM95/2)/12)^2)) ->  | AD95: =IF(A96="","",IF(E95="",AD93,IF(ISNUMBER(SEARCH(3408,Main!E95)),'Pipe Tables'!$E$32,IF(ISNUMBER(SEARCH(4710,Main!E95)),'Pipe Tables'!$E$32,IF(ISNUMBER(SEARCH('Pipe Tables'!$E$33,Main!E95)),'Pipe Tables'!$E$33,IF(ISNUMBER(SEARCH('Pipe Tables'!$E$34,Main!E95)),'Pipe Tables'!$E$34,IF(ISNUMBER(SEARCH('Pipe Tables'!$E$35,Main!E95)),'Pipe Tables'!$E$35))))))) ->  | AI95: =D95 -> 0 | AJ95: =E95 -> 0 | AK95: =F95 -> 0 | AL95: =IF(AQ95=0,"",HLOOKUP(AQ95,Pipe_Pressure,MATCH(AP95,Pipe_Press_Size,0),FALSE)) ->  | AM95: =IF(OR(AP95=0,AQ95=0),"",VLOOKUP(AP95,Pipe_Diameter,MATCH(AQ95,Pipe_Diam_Material,0))) ->  | AN95: =IF(A96="","",VLOOKUP(AD95,Hazen_Williams,2)) ->  | AO95: =IF(OR(A96="",AR95="",AM95=""),"",((10.44*(AR95^1.85))/((AN95^1.85)*(AM95^4.8655)))) ->  | AP95: =IF(AND($A96<>"",AI95=0),AP93,IF(AND($A96<>"",AI95<>0),AI95,0)) -> 0 | AQ95: =IF(AND($A96<>"",AJ95=0),AQ93,IF(AND($A96<>"",AJ95<>0),AJ95,0)) -> 0 | AR95: =IF(AND($A96<>"",AK95=0),AR93,IF(AND($A96<>"",AK95<>0),AK95,0)) -> 0 | AS95: =IF(AND($A96<>"",AL95=0),AS93,IF(AND($A96<>"",AL95<>0),AL95,0)) -> 0
M96: =IF(OR(AF96="",$R$2=""),"",IF(AND($C$311=TRUE,$K$5=A96),($M$5*144/62.4+AF96)-((L96*144/62.4)),IF(AND($F$311=TRUE,$K$6=A96),M94-K95+($M$6*144/62.4)-(O95^2/64.4),M94-K95-(O95^2/64.4)-L96*144/62.4))) ->  | N96: =IF(B95="","",IF(AND($K$5=$A96,$C$311=TRUE),$M$5*144/62.4+AF96,IF(AND($K$6=$A96,$F$311=TRUE),$M$6*144/62.4+N94-L96*144/62.4,N94-L96*144/62.4))) ->  | P96: =IF(M96="","",M96-AF96) ->  | Q96: =IF(P96="","",P96*62.4/144) ->  | R96: =IF(N96="","",(N96-AF96)*62.4/144) ->  | V96: =IF(R96="","",IF(P96<0,$O$316,IF(R96>G97,$O$317,IF(R96>75,$O$318,"")))) ->  | AB96: =IF(K95="","",K95+AB94) ->  | AF96: =IF(OR(A96="",$R$3="",AM95=""),"",C96-$R$3) ->  | AG96: =IF(AF96="","",N96) ->  | AH96: =IF(OR(AF96="",$R$2=""),"",IF(AND($A$311=1,Pump!$F$17="Yes"),IF(AND($C$311=TRUE,$K$5=A96),($M$5*144/62.4+AF96)-((L96*144/62.4)),IF(AND($F$311=TRUE,$K$6=A96),AH94-K95+($M$6*144/62.4)-(O95^2/64.4),AH94-K95-(O95^2/64.4))),AH94-K95-(O95^2/64.4))) -> 
B97: =IF(AND(A98>0,C98>0),SQRT((A98-A96)^2+(C98-C96)^2),"") ->  | G97: =IF(OR(A96="",AI97=0),"",AL97) ->  | H97: =IF(OR($A96="",AI97=0,AJ97=0),"",AM97) ->  | I97: =IF(OR($A96="",AI97=0,AJ97=0),"",AN97) ->  | J97: =IF(AND(A98<>"",OR(AK97<>0,AJ97<>0,AI97<>0)),AO97,"") ->  | K97: =IF(OR(A98="",AR97="",AM97=""),"",(10.44*B97*(AR97^1.85))/((AN97^1.85)*(AM97^4.8655))) ->  | O97: =IF(OR(A98="",AR97="",AM97="",$R$2=""),"",(AR97/7.48/60)/(PI()*((AM97/2)/12)^2)) ->  | AD97: =IF(A98="","",IF(E97="",AD95,IF(ISNUMBER(SEARCH(3408,Main!E97)),'Pipe Tables'!$E$32,IF(ISNUMBER(SEARCH(4710,Main!E97)),'Pipe Tables'!$E$32,IF(ISNUMBER(SEARCH('Pipe Tables'!$E$33,Main!E97)),'Pipe Tables'!$E$33,IF(ISNUMBER(SEARCH('Pipe Tables'!$E$34,Main!E97)),'Pipe Tables'!$E$34,IF(ISNUMBER(SEARCH('Pipe Tables'!$E$35,Main!E97)),'Pipe Tables'!$E$35))))))) ->  | AI97: =D97 -> 0 | AJ97: =E97 -> 0 | AK97: =F97 -> 0 | AL97: =IF(AQ97=0,"",HLOOKUP(AQ97,Pipe_Pressure,MATCH(AP97,Pipe_Press_Size,0),FALSE)) ->  | AM97: =IF(OR(AP97=0,AQ97=0),"",VLOOKUP(AP97,Pipe_Diameter,MATCH(AQ97,Pipe_Diam_Material,0))) ->  | AN97: =IF(A98="","",VLOOKUP(AD97,Hazen_Williams,2)) ->  | AO97: =IF(OR(A98="",AR97="",AM97=""),"",((10.44*(AR97^1.85))/((AN97^1.85)*(AM97^4.8655)))) ->  | AP97: =IF(AND($A98<>"",AI97=0),AP95,IF(AND($A98<>"",AI97<>0),AI97,0)) -> 0 | AQ97: =IF(AND($A98<>"",AJ97=0),AQ95,IF(AND($A98<>"",AJ97<>0),AJ97,0)) -> 0 | AR97: =IF(AND($A98<>"",AK97=0),AR95,IF(AND($A98<>"",AK97<>0),AK97,0)) -> 0 | AS97: =IF(AND($A98<>"",AL97=0),AS95,IF(AND($A98<>"",AL97<>0),AL97,0)) -> 0
M98: =IF(OR(AF98="",$R$2=""),"",IF(AND($C$311=TRUE,$K$5=A98),($M$5*144/62.4+AF98)-((L98*144/62.4)),IF(AND($F$311=TRUE,$K$6=A98),M96-K97+($M$6*144/62.4)-(O97^2/64.4),M96-K97-(O97^2/64.4)-L98*144/62.4))) ->  | N98: =IF(B97="","",IF(AND($K$5=$A98,$C$311=TRUE),$M$5*144/62.4+AF98,IF(AND($K$6=$A98,$F$311=TRUE),$M$6*144/62.4+N96-L98*144/62.4,N96-L98*144/62.4))) ->  | P98: =IF(M98="","",M98-AF98) ->  | Q98: =IF(P98="","",P98*62.4/144) ->  | R98: =IF(N98="","",(N98-AF98)*62.4/144) ->  | V98: =IF(R98="","",IF(P98<0,$O$316,IF(R98>G99,$O$317,IF(R98>75,$O$318,"")))) ->  | AB98: =IF(K97="","",K97+AB96) ->  | AF98: =IF(OR(A98="",$R$3="",AM97=""),"",C98-$R$3) ->  | AG98: =IF(AF98="","",N98) ->  | AH98: =IF(OR(AF98="",$R$2=""),"",IF(AND($A$311=1,Pump!$F$17="Yes"),IF(AND($C$311=TRUE,$K$5=A98),($M$5*144/62.4+AF98)-((L98*144/62.4)),IF(AND($F$311=TRUE,$K$6=A98),AH96-K97+($M$6*144/62.4)-(O97^2/64.4),AH96-K97-(O97^2/64.4))),AH96-K97-(O97^2/64.4))) -> 
B99: =IF(AND(A100>0,C100>0),SQRT((A100-A98)^2+(C100-C98)^2),"") ->  | G99: =IF(OR(A98="",AI99=0),"",AL99) ->  | H99: =IF(OR($A98="",AI99=0,AJ99=0),"",AM99) ->  | I99: =IF(OR($A98="",AI99=0,AJ99=0),"",AN99) ->  | J99: =IF(AND(A100<>"",OR(AK99<>0,AJ99<>0,AI99<>0)),AO99,"") ->  | K99: =IF(OR(A100="",AR99="",AM99=""),"",(10.44*B99*(AR99^1.85))/((AN99^1.85)*(AM99^4.8655))) ->  | O99: =IF(OR(A100="",AR99="",AM99="",$R$2=""),"",(AR99/7.48/60)/(PI()*((AM99/2)/12)^2)) ->  | AD99: =IF(A100="","",IF(E99="",AD97,IF(ISNUMBER(SEARCH(3408,Main!E99)),'Pipe Tables'!$E$32,IF(ISNUMBER(SEARCH(4710,Main!E99)),'Pipe Tables'!$E$32,IF(ISNUMBER(SEARCH('Pipe Tables'!$E$33,Main!E99)),'Pipe Tables'!$E$33,IF(ISNUMBER(SEARCH('Pipe Tables'!$E$34,Main!E99)),'Pipe Tables'!$E$34,IF(ISNUMBER(SEARCH('Pipe Tables'!$E$35,Main!E99)),'Pipe Tables'!$E$35))))))) ->  | AI99: =D99 -> 0 | AJ99: =E99 -> 0 | AK99: =F99 -> 0 | AL99: =IF(AQ99=0,"",HLOOKUP(AQ99,Pipe_Pressure,MATCH(AP99,Pipe_Press_Size,0),FALSE)) ->  | AM99: =IF(OR(AP99=0,AQ99=0),"",VLOOKUP(AP99,Pipe_Diameter,MATCH(AQ99,Pipe_Diam_Material,0))) ->  | AN99: =IF(A100="","",VLOOKUP(AD99,Hazen_Williams,2)) ->  | AO99: =IF(OR(A100="",AR99="",AM99=""),"",((10.44*(AR99^1.85))/((AN99^1.85)*(AM99^4.8655)))) ->  | AP99: =IF(AND($A100<>"",AI99=0),AP97,IF(AND($A100<>"",AI99<>0),AI99,0)) -> 0 | AQ99: =IF(AND($A100<>"",AJ99=0),AQ97,IF(AND($A100<>"",AJ99<>0),AJ99,0)) -> 0 | AR99: =IF(AND($A100<>"",AK99=0),AR97,IF(AND($A100<>"",AK99<>0),AK99,0)) -> 0 | AS99: =IF(AND($A100<>"",AL99=0),AS97,IF(AND($A100<>"",AL99<>0),AL99,0)) -> 0
M100: =IF(OR(AF100="",$R$2=""),"",IF(AND($C$311=TRUE,$K$5=A100),($M$5*144/62.4+AF100)-((L100*144/62.4)),IF(AND($F$311=TRUE,$K$6=A100),M98-K99+($M$6*144/62.4)-(O99^2/64.4),M98-K99-(O99^2/64.4)-L100*144/62.4))) ->  | N100: =IF(B99="","",IF(AND($K$5=$A100,$C$311=TRUE),$M$5*144/62.4+AF100,IF(AND($K$6=$A100,$F$311=TRUE),$M$6*144/62.4+N98-L100*144/62.4,N98-L100*144/62.4))) ->  | P100: =IF(M100="","",M100-AF100) ->  | Q100: =IF(P100="","",P100*62.4/144) ->  | R100: =IF(N100="","",(N100-AF100)*62.4/144) ->  | V100: =IF(R100="","",IF(P100<0,$O$316,IF(R100>G101,$O$317,IF(R100>75,$O$318,"")))) ->  | AB100: =IF(K99="","",K99+AB98) ->  | AF100: =IF(OR(A100="",$R$3="",AM99=""),"",C100-$R$3) ->  | AG100: =IF(AF100="","",N100) ->  | AH100: =IF(OR(AF100="",$R$2=""),"",IF(AND($A$311=1,Pump!$F$17="Yes"),IF(AND($C$311=TRUE,$K$5=A100),($M$5*144/62.4+AF100)-((L100*144/62.4)),IF(AND($F$311=TRUE,$K$6=A100),AH98-K99+($M$6*144/62.4)-(O99^2/64.4),AH98-K99-(O99^2/64.4))),AH98-K99-(O99^2/64.4))) -> 
B101: =IF(AND(A102>0,C102>0),SQRT((A102-A100)^2+(C102-C100)^2),"") ->  | G101: =IF(OR(A100="",AI101=0),"",AL101) ->  | H101: =IF(OR($A100="",AI101=0,AJ101=0),"",AM101) ->  | I101: =IF(OR($A100="",AI101=0,AJ101=0),"",AN101) ->  | J101: =IF(AND(A102<>"",OR(AK101<>0,AJ101<>0,AI101<>0)),AO101,"") ->  | K101: =IF(OR(A102="",AR101="",AM101=""),"",(10.44*B101*(AR101^1.85))/((AN101^1.85)*(AM101^4.8655))) ->  | O101: =IF(OR(A102="",AR101="",AM101="",$R$2=""),"",(AR101/7.48/60)/(PI()*((AM101/2)/12)^2)) ->  | AD101: =IF(A102="","",IF(E101="",AD99,IF(ISNUMBER(SEARCH(3408,Main!E101)),'Pipe Tables'!$E$32,IF(ISNUMBER(SEARCH(4710,Main!E101)),'Pipe Tables'!$E$32,IF(ISNUMBER(SEARCH('Pipe Tables'!$E$33,Main!E101)),'Pipe Tables'!$E$33,IF(ISNUMBER(SEARCH('Pipe Tables'!$E$34,Main!E101)),'Pipe Tables'!$E$34,IF(ISNUMBER(SEARCH('Pipe Tables'!$E$35,Main!E101)),'Pipe Tables'!$E$35))))))) ->  | AI101: =D101 -> 0 | AJ101: =E101 -> 0 | AK101: =F101 -> 0 | AL101: =IF(AQ101=0,"",HLOOKUP(AQ101,Pipe_Pressure,MATCH(AP101,Pipe_Press_Size,0),FALSE)) ->  | AM101: =IF(OR(AP101=0,AQ101=0),"",VLOOKUP(AP101,Pipe_Diameter,MATCH(AQ101,Pipe_Diam_Material,0))) ->  | AN101: =IF(A102="","",VLOOKUP(AD101,Hazen_Williams,2)) ->  | AO101: =IF(OR(A102="",AR101="",AM101=""),"",((10.44*(AR101^1.85))/((AN101^1.85)*(AM101^4.8655)))) ->  | AP101: =IF(AND($A102<>"",AI101=0),AP99,IF(AND($A102<>"",AI101<>0),AI101,0)) -> 0 | AQ101: =IF(AND($A102<>"",AJ101=0),AQ99,IF(AND($A102<>"",AJ101<>0),AJ101,0)) -> 0 | AR101: =IF(AND($A102<>"",AK101=0),AR99,IF(AND($A102<>"",AK101<>0),AK101,0)) -> 0 | AS101: =IF(AND($A102<>"",AL101=0),AS99,IF(AND($A102<>"",AL101<>0),AL101,0)) -> 0
M102: =IF(OR(AF102="",$R$2=""),"",IF(AND($C$311=TRUE,$K$5=A102),($M$5*144/62.4+AF102)-((L102*144/62.4)),IF(AND($F$311=TRUE,$K$6=A102),M100-K101+($M$6*144/62.4)-(O101^2/64.4),M100-K101-(O101^2/64.4)-L102*144/62.4))) ->  | N102: =IF(B101="","",IF(AND($K$5=$A102,$C$311=TRUE),$M$5*144/62.4+AF102,IF(AND($K$6=$A102,$F$311=TRUE),$M$6*144/62.4+N100-L102*144/62.4,N100-L102*144/62.4))) ->  | P102: =IF(M102="","",M102-AF102) ->  | Q102: =IF(P102="","",P102*62.4/144) ->  | R102: =IF(N102="","",(N102-AF102)*62.4/144) ->  | V102: =IF(R102="","",IF(P102<0,$O$316,IF(R102>G103,$O$317,IF(R102>75,$O$318,"")))) ->  | AB102: =IF(K101="","",K101+AB100) ->  | AF102: =IF(OR(A102="",$R$3="",AM101=""),"",C102-$R$3) ->  | AG102: =IF(AF102="","",N102) ->  | AH102: =IF(OR(AF102="",$R$2=""),"",IF(AND($A$311=1,Pump!$F$17="Yes"),IF(AND($C$311=TRUE,$K$5=A102),($M$5*144/62.4+AF102)-((L102*144/62.4)),IF(AND($F$311=TRUE,$K$6=A102),AH100-K101+($M$6*144/62.4)-(O101^2/64.4),AH100-K101-(O101^2/64.4))),AH100-K101-(O101^2/64.4))) -> 
B103: =IF(AND(A104>0,C104>0),SQRT((A104-A102)^2+(C104-C102)^2),"") ->  | G103: =IF(OR(A102="",AI103=0),"",AL103) ->  | H103: =IF(OR($A102="",AI103=0,AJ103=0),"",AM103) ->  | I103: =IF(OR($A102="",AI103=0,AJ103=0),"",AN103) ->  | J103: =IF(AND(A104<>"",OR(AK103<>0,AJ103<>0,AI103<>0)),AO103,"") ->  | K103: =IF(OR(A104="",AR103="",AM103=""),"",(10.44*B103*(AR103^1.85))/((AN103^1.85)*(AM103^4.8655))) ->  | O103: =IF(OR(A104="",AR103="",AM103="",$R$2=""),"",(AR103/7.48/60)/(PI()*((AM103/2)/12)^2)) ->  | AD103: =IF(A104="","",IF(E103="",AD101,IF(ISNUMBER(SEARCH(3408,Main!E103)),'Pipe Tables'!$E$32,IF(ISNUMBER(SEARCH(4710,Main!E103)),'Pipe Tables'!$E$32,IF(ISNUMBER(SEARCH('Pipe Tables'!$E$33,Main!E103)),'Pipe Tables'!$E$33,IF(ISNUMBER(SEARCH('Pipe Tables'!$E$34,Main!E103)),'Pipe Tables'!$E$34,IF(ISNUMBER(SEARCH('Pipe Tables'!$E$35,Main!E103)),'Pipe Tables'!$E$35))))))) ->  | AI103: =D103 -> 0 | AJ103: =E103 -> 0 | AK103: =F103 -> 0 | AL103: =IF(AQ103=0,"",HLOOKUP(AQ103,Pipe_Pressure,MATCH(AP103,Pipe_Press_Size,0),FALSE)) ->  | AM103: =IF(OR(AP103=0,AQ103=0),"",VLOOKUP(AP103,Pipe_Diameter,MATCH(AQ103,Pipe_Diam_Material,0))) ->  | AN103: =IF(A104="","",VLOOKUP(AD103,Hazen_Williams,2)) ->  | AO103: =IF(OR(A104="",AR103="",AM103=""),"",((10.44*(AR103^1.85))/((AN103^1.85)*(AM103^4.8655)))) ->  | AP103: =IF(AND($A104<>"",AI103=0),AP101,IF(AND($A104<>"",AI103<>0),AI103,0)) -> 0 | AQ103: =IF(AND($A104<>"",AJ103=0),AQ101,IF(AND($A104<>"",AJ103<>0),AJ103,0)) -> 0 | AR103: =IF(AND($A104<>"",AK103=0),AR101,IF(AND($A104<>"",AK103<>0),AK103,0)) -> 0 | AS103: =IF(AND($A104<>"",AL103=0),AS101,IF(AND($A104<>"",AL103<>0),AL103,0)) -> 0
M104: =IF(OR(AF104="",$R$2=""),"",IF(AND($C$311=TRUE,$K$5=A104),($M$5*144/62.4+AF104)-((L104*144/62.4)),IF(AND($F$311=TRUE,$K$6=A104),M102-K103+($M$6*144/62.4)-(O103^2/64.4),M102-K103-(O103^2/64.4)-L104*144/62.4))) ->  | N104: =IF(B103="","",IF(AND($K$5=$A104,$C$311=TRUE),$M$5*144/62.4+AF104,IF(AND($K$6=$A104,$F$311=TRUE),$M$6*144/62.4+N102-L104*144/62.4,N102-L104*144/62.4))) ->  | P104: =IF(M104="","",M104-AF104) ->  | Q104: =IF(P104="","",P104*62.4/144) ->  | R104: =IF(N104="","",(N104-AF104)*62.4/144) ->  | V104: =IF(R104="","",IF(P104<0,$O$316,IF(R104>G105,$O$317,IF(R104>75,$O$318,"")))) ->  | AB104: =IF(K103="","",K103+AB102) ->  | AF104: =IF(OR(A104="",$R$3="",AM103=""),"",C104-$R$3) ->  | AG104: =IF(AF104="","",N104) ->  | AH104: =IF(OR(AF104="",$R$2=""),"",IF(AND($A$311=1,Pump!$F$17="Yes"),IF(AND($C$311=TRUE,$K$5=A104),($M$5*144/62.4+AF104)-((L104*144/62.4)),IF(AND($F$311=TRUE,$K$6=A104),AH102-K103+($M$6*144/62.4)-(O103^2/64.4),AH102-K103-(O103^2/64.4))),AH102-K103-(O103^2/64.4))) -> 
B105: =IF(AND(A106>0,C106>0),SQRT((A106-A104)^2+(C106-C104)^2),"") ->  | G105: =IF(OR(A104="",AI105=0),"",AL105) ->  | H105: =IF(OR($A104="",AI105=0,AJ105=0),"",AM105) ->  | I105: =IF(OR($A104="",AI105=0,AJ105=0),"",AN105) ->  | J105: =IF(AND(A106<>"",OR(AK105<>0,AJ105<>0,AI105<>0)),AO105,"") ->  | K105: =IF(OR(A106="",AR105="",AM105=""),"",(10.44*B105*(AR105^1.85))/((AN105^1.85)*(AM105^4.8655))) ->  | O105: =IF(OR(A106="",AR105="",AM105="",$R$2=""),"",(AR105/7.48/60)/(PI()*((AM105/2)/12)^2)) ->  | AD105: =IF(A106="","",IF(E105="",AD103,IF(ISNUMBER(SEARCH(3408,Main!E105)),'Pipe Tables'!$E$32,IF(ISNUMBER(SEARCH(4710,Main!E105)),'Pipe Tables'!$E$32,IF(ISNUMBER(SEARCH('Pipe Tables'!$E$33,Main!E105)),'Pipe Tables'!$E$33,IF(ISNUMBER(SEARCH('Pipe Tables'!$E$34,Main!E105)),'Pipe Tables'!$E$34,IF(ISNUMBER(SEARCH('Pipe Tables'!$E$35,Main!E105)),'Pipe Tables'!$E$35))))))) ->  | AI105: =D105 -> 0 | AJ105: =E105 -> 0 | AK105: =F105 -> 0 | AL105: =IF(AQ105=0,"",HLOOKUP(AQ105,Pipe_Pressure,MATCH(AP105,Pipe_Press_Size,0),FALSE)) ->  | AM105: =IF(OR(AP105=0,AQ105=0),"",VLOOKUP(AP105,Pipe_Diameter,MATCH(AQ105,Pipe_Diam_Material,0))) ->  | AN105: =IF(A106="","",VLOOKUP(AD105,Hazen_Williams,2)) ->  | AO105: =IF(OR(A106="",AR105="",AM105=""),"",((10.44*(AR105^1.85))/((AN105^1.85)*(AM105^4.8655)))) ->  | AP105: =IF(AND($A106<>"",AI105=0),AP103,IF(AND($A106<>"",AI105<>0),AI105,0)) -> 0 | AQ105: =IF(AND($A106<>"",AJ105=0),AQ103,IF(AND($A106<>"",AJ105<>0),AJ105,0)) -> 0 | AR105: =IF(AND($A106<>"",AK105=0),AR103,IF(AND($A106<>"",AK105<>0),AK105,0)) -> 0 | AS105: =IF(AND($A106<>"",AL105=0),AS103,IF(AND($A106<>"",AL105<>0),AL105,0)) -> 0
M106: =IF(OR(AF106="",$R$2=""),"",IF(AND($C$311=TRUE,$K$5=A106),($M$5*144/62.4+AF106)-((L106*144/62.4)),IF(AND($F$311=TRUE,$K$6=A106),M104-K105+($M$6*144/62.4)-(O105^2/64.4),M104-K105-(O105^2/64.4)-L106*144/62.4))) ->  | N106: =IF(B105="","",IF(AND($K$5=$A106,$C$311=TRUE),$M$5*144/62.4+AF106,IF(AND($K$6=$A106,$F$311=TRUE),$M$6*144/62.4+N104-L106*144/62.4,N104-L106*144/62.4))) ->  | P106: =IF(M106="","",M106-AF106) ->  | Q106: =IF(P106="","",P106*62.4/144) ->  | R106: =IF(N106="","",(N106-AF106)*62.4/144) ->  | V106: =IF(R106="","",IF(P106<0,$O$316,IF(R106>G107,$O$317,IF(R106>75,$O$318,"")))) ->  | AB106: =IF(K105="","",K105+AB104) ->  | AF106: =IF(OR(A106="",$R$3="",AM105=""),"",C106-$R$3) ->  | AG106: =IF(AF106="","",N106) ->  | AH106: =IF(OR(AF106="",$R$2=""),"",IF(AND($A$311=1,Pump!$F$17="Yes"),IF(AND($C$311=TRUE,$K$5=A106),($M$5*144/62.4+AF106)-((L106*144/62.4)),IF(AND($F$311=TRUE,$K$6=A106),AH104-K105+($M$6*144/62.4)-(O105^2/64.4),AH104-K105-(O105^2/64.4))),AH104-K105-(O105^2/64.4))) -> 
B107: =IF(AND(A108>0,C108>0),SQRT((A108-A106)^2+(C108-C106)^2),"") ->  | G107: =IF(OR(A106="",AI107=0),"",AL107) ->  | H107: =IF(OR($A106="",AI107=0,AJ107=0),"",AM107) ->  | I107: =IF(OR($A106="",AI107=0,AJ107=0),"",AN107) ->  | J107: =IF(AND(A108<>"",OR(AK107<>0,AJ107<>0,AI107<>0)),AO107,"") ->  | K107: =IF(OR(A108="",AR107="",AM107=""),"",(10.44*B107*(AR107^1.85))/((AN107^1.85)*(AM107^4.8655))) ->  | O107: =IF(OR(A108="",AR107="",AM107="",$R$2=""),"",(AR107/7.48/60)/(PI()*((AM107/2)/12)^2)) ->  | AD107: =IF(A108="","",IF(E107="",AD105,IF(ISNUMBER(SEARCH(3408,Main!E107)),'Pipe Tables'!$E$32,IF(ISNUMBER(SEARCH(4710,Main!E107)),'Pipe Tables'!$E$32,IF(ISNUMBER(SEARCH('Pipe Tables'!$E$33,Main!E107)),'Pipe Tables'!$E$33,IF(ISNUMBER(SEARCH('Pipe Tables'!$E$34,Main!E107)),'Pipe Tables'!$E$34,IF(ISNUMBER(SEARCH('Pipe Tables'!$E$35,Main!E107)),'Pipe Tables'!$E$35))))))) ->  | AI107: =D107 -> 0 | AJ107: =E107 -> 0 | AK107: =F107 -> 0 | AL107: =IF(AQ107=0,"",HLOOKUP(AQ107,Pipe_Pressure,MATCH(AP107,Pipe_Press_Size,0),FALSE)) ->  | AM107: =IF(OR(AP107=0,AQ107=0),"",VLOOKUP(AP107,Pipe_Diameter,MATCH(AQ107,Pipe_Diam_Material,0))) ->  | AN107: =IF(A108="","",VLOOKUP(AD107,Hazen_Williams,2)) ->  | AO107: =IF(OR(A108="",AR107="",AM107=""),"",((10.44*(AR107^1.85))/((AN107^1.85)*(AM107^4.8655)))) ->  | AP107: =IF(AND($A108<>"",AI107=0),AP105,IF(AND($A108<>"",AI107<>0),AI107,0)) -> 0 | AQ107: =IF(AND($A108<>"",AJ107=0),AQ105,IF(AND($A108<>"",AJ107<>0),AJ107,0)) -> 0 | AR107: =IF(AND($A108<>"",AK107=0),AR105,IF(AND($A108<>"",AK107<>0),AK107,0)) -> 0 | AS107: =IF(AND($A108<>"",AL107=0),AS105,IF(AND($A108<>"",AL107<>0),AL107,0)) -> 0
M108: =IF(OR(AF108="",$R$2=""),"",IF(AND($C$311=TRUE,$K$5=A108),($M$5*144/62.4+AF108)-((L108*144/62.4)),IF(AND($F$311=TRUE,$K$6=A108),M106-K107+($M$6*144/62.4)-(O107^2/64.4),M106-K107-(O107^2/64.4)-L108*144/62.4))) ->  | N108: =IF(B107="","",IF(AND($K$5=$A108,$C$311=TRUE),$M$5*144/62.4+AF108,IF(AND($K$6=$A108,$F$311=TRUE),$M$6*144/62.4+N106-L108*144/62.4,N106-L108*144/62.4))) ->  | P108: =IF(M108="","",M108-AF108) ->  | Q108: =IF(P108="","",P108*62.4/144) ->  | R108: =IF(N108="","",(N108-AF108)*62.4/144) ->  | V108: =IF(R108="","",IF(P108<0,$O$316,IF(R108>G109,$O$317,IF(R108>75,$O$318,"")))) ->  | AB108: =IF(K107="","",K107+AB106) ->  | AF108: =IF(OR(A108="",$R$3="",AM107=""),"",C108-$R$3) ->  | AG108: =IF(AF108="","",N108) ->  | AH108: =IF(OR(AF108="",$R$2=""),"",IF(AND($A$311=1,Pump!$F$17="Yes"),IF(AND($C$311=TRUE,$K$5=A108),($M$5*144/62.4+AF108)-((L108*144/62.4)),IF(AND($F$311=TRUE,$K$6=A108),AH106-K107+($M$6*144/62.4)-(O107^2/64.4),AH106-K107-(O107^2/64.4))),AH106-K107-(O107^2/64.4))) -> 
B109: =IF(AND(A110>0,C110>0),SQRT((A110-A108)^2+(C110-C108)^2),"") ->  | G109: =IF(OR(A108="",AI109=0),"",AL109) ->  | H109: =IF(OR($A108="",AI109=0,AJ109=0),"",AM109) ->  | I109: =IF(OR($A108="",AI109=0,AJ109=0),"",AN109) ->  | J109: =IF(AND(A110<>"",OR(AK109<>0,AJ109<>0,AI109<>0)),AO109,"") ->  | K109: =IF(OR(A110="",AR109="",AM109=""),"",(10.44*B109*(AR109^1.85))/((AN109^1.85)*(AM109^4.8655))) ->  | O109: =IF(OR(A110="",AR109="",AM109="",$R$2=""),"",(AR109/7.48/60)/(PI()*((AM109/2)/12)^2)) ->  | AD109: =IF(A110="","",IF(E109="",AD107,IF(ISNUMBER(SEARCH(3408,Main!E109)),'Pipe Tables'!$E$32,IF(ISNUMBER(SEARCH(4710,Main!E109)),'Pipe Tables'!$E$32,IF(ISNUMBER(SEARCH('Pipe Tables'!$E$33,Main!E109)),'Pipe Tables'!$E$33,IF(ISNUMBER(SEARCH('Pipe Tables'!$E$34,Main!E109)),'Pipe Tables'!$E$34,IF(ISNUMBER(SEARCH('Pipe Tables'!$E$35,Main!E109)),'Pipe Tables'!$E$35))))))) ->  | AI109: =D109 -> 0 | AJ109: =E109 -> 0 | AK109: =F109 -> 0 | AL109: =IF(AQ109=0,"",HLOOKUP(AQ109,Pipe_Pressure,MATCH(AP109,Pipe_Press_Size,0),FALSE)) ->  | AM109: =IF(OR(AP109=0,AQ109=0),"",VLOOKUP(AP109,Pipe_Diameter,MATCH(AQ109,Pipe_Diam_Material,0))) ->  | AN109: =IF(A110="","",VLOOKUP(AD109,Hazen_Williams,2)) ->  | AO109: =IF(OR(A110="",AR109="",AM109=""),"",((10.44*(AR109^1.85))/((AN109^1.85)*(AM109^4.8655)))) ->  | AP109: =IF(AND($A110<>"",AI109=0),AP107,IF(AND($A110<>"",AI109<>0),AI109,0)) -> 0 | AQ109: =IF(AND($A110<>"",AJ109=0),AQ107,IF(AND($A110<>"",AJ109<>0),AJ109,0)) -> 0 | AR109: =IF(AND($A110<>"",AK109=0),AR107,IF(AND($A110<>"",AK109<>0),AK109,0)) -> 0 | AS109: =IF(AND($A110<>"",AL109=0),AS107,IF(AND($A110<>"",AL109<>0),AL109,0)) -> 0
M110: =IF(OR(AF110="",$R$2=""),"",IF(AND($C$311=TRUE,$K$5=A110),($M$5*144/62.4+AF110)-((L110*144/62.4)),IF(AND($F$311=TRUE,$K$6=A110),M108-K109+($M$6*144/62.4)-(O109^2/64.4),M108-K109-(O109^2/64.4)-L110*144/62.4))) ->  | N110: =IF(B109="","",IF(AND($K$5=$A110,$C$311=TRUE),$M$5*144/62.4+AF110,IF(AND($K$6=$A110,$F$311=TRUE),$M$6*144/62.4+N108-L110*144/62.4,N108-L110*144/62.4))) ->  | P110: =IF(M110="","",M110-AF110) ->  | Q110: =IF(P110="","",P110*62.4/144) ->  | R110: =IF(N110="","",(N110-AF110)*62.4/144) ->  | V110: =IF(R110="","",IF(P110<0,$O$316,IF(R110>G111,$O$317,IF(R110>75,$O$318,"")))) ->  | AB110: =IF(K109="","",K109+AB108) ->  | AF110: =IF(OR(A110="",$R$3="",AM109=""),"",C110-$R$3) ->  | AG110: =IF(AF110="","",N110) ->  | AH110: =IF(OR(AF110="",$R$2=""),"",IF(AND($A$311=1,Pump!$F$17="Yes"),IF(AND($C$311=TRUE,$K$5=A110),($M$5*144/62.4+AF110)-((L110*144/62.4)),IF(AND($F$311=TRUE,$K$6=A110),AH108-K109+($M$6*144/62.4)-(O109^2/64.4),AH108-K109-(O109^2/64.4))),AH108-K109-(O109^2/64.4))) -> 
B111: =IF(AND(A112>0,C112>0),SQRT((A112-A110)^2+(C112-C110)^2),"") ->  | G111: =IF(OR(A110="",AI111=0),"",AL111) ->  | H111: =IF(OR($A110="",AI111=0,AJ111=0),"",AM111) ->  | I111: =IF(OR($A110="",AI111=0,AJ111=0),"",AN111) ->  | J111: =IF(AND(A112<>"",OR(AK111<>0,AJ111<>0,AI111<>0)),AO111,"") ->  | K111: =IF(OR(A112="",AR111="",AM111=""),"",(10.44*B111*(AR111^1.85))/((AN111^1.85)*(AM111^4.8655))) ->  | O111: =IF(OR(A112="",AR111="",AM111="",$R$2=""),"",(AR111/7.48/60)/(PI()*((AM111/2)/12)^2)) ->  | AD111: =IF(A112="","",IF(E111="",AD109,IF(ISNUMBER(SEARCH(3408,Main!E111)),'Pipe Tables'!$E$32,IF(ISNUMBER(SEARCH(4710,Main!E111)),'Pipe Tables'!$E$32,IF(ISNUMBER(SEARCH('Pipe Tables'!$E$33,Main!E111)),'Pipe Tables'!$E$33,IF(ISNUMBER(SEARCH('Pipe Tables'!$E$34,Main!E111)),'Pipe Tables'!$E$34,IF(ISNUMBER(SEARCH('Pipe Tables'!$E$35,Main!E111)),'Pipe Tables'!$E$35))))))) ->  | AI111: =D111 -> 0 | AJ111: =E111 -> 0 | AK111: =F111 -> 0 | AL111: =IF(AQ111=0,"",HLOOKUP(AQ111,Pipe_Pressure,MATCH(AP111,Pipe_Press_Size,0),FALSE)) ->  | AM111: =IF(OR(AP111=0,AQ111=0),"",VLOOKUP(AP111,Pipe_Diameter,MATCH(AQ111,Pipe_Diam_Material,0))) ->  | AN111: =IF(A112="","",VLOOKUP(AD111,Hazen_Williams,2)) ->  | AO111: =IF(OR(A112="",AR111="",AM111=""),"",((10.44*(AR111^1.85))/((AN111^1.85)*(AM111^4.8655)))) ->  | AP111: =IF(AND($A112<>"",AI111=0),AP109,IF(AND($A112<>"",AI111<>0),AI111,0)) -> 0 | AQ111: =IF(AND($A112<>"",AJ111=0),AQ109,IF(AND($A112<>"",AJ111<>0),AJ111,0)) -> 0 | AR111: =IF(AND($A112<>"",AK111=0),AR109,IF(AND($A112<>"",AK111<>0),AK111,0)) -> 0 | AS111: =IF(AND($A112<>"",AL111=0),AS109,IF(AND($A112<>"",AL111<>0),AL111,0)) -> 0
M112: =IF(OR(AF112="",$R$2=""),"",IF(AND($C$311=TRUE,$K$5=A112),($M$5*144/62.4+AF112)-((L112*144/62.4)),IF(AND($F$311=TRUE,$K$6=A112),M110-K111+($M$6*144/62.4)-(O111^2/64.4),M110-K111-(O111^2/64.4)-L112*144/62.4))) ->  | N112: =IF(B111="","",IF(AND($K$5=$A112,$C$311=TRUE),$M$5*144/62.4+AF112,IF(AND($K$6=$A112,$F$311=TRUE),$M$6*144/62.4+N110-L112*144/62.4,N110-L112*144/62.4))) ->  | P112: =IF(M112="","",M112-AF112) ->  | Q112: =IF(P112="","",P112*62.4/144) ->  | R112: =IF(N112="","",(N112-AF112)*62.4/144) ->  | V112: =IF(R112="","",IF(P112<0,$O$316,IF(R112>G113,$O$317,IF(R112>75,$O$318,"")))) ->  | AB112: =IF(K111="","",K111+AB110) ->  | AF112: =IF(OR(A112="",$R$3="",AM111=""),"",C112-$R$3) ->  | AG112: =IF(AF112="","",N112) ->  | AH112: =IF(OR(AF112="",$R$2=""),"",IF(AND($A$311=1,Pump!$F$17="Yes"),IF(AND($C$311=TRUE,$K$5=A112),($M$5*144/62.4+AF112)-((L112*144/62.4)),IF(AND($F$311=TRUE,$K$6=A112),AH110-K111+($M$6*144/62.4)-(O111^2/64.4),AH110-K111-(O111^2/64.4))),AH110-K111-(O111^2/64.4))) -> 
B113: =IF(AND(A114>0,C114>0),SQRT((A114-A112)^2+(C114-C112)^2),"") ->  | G113: =IF(OR(A112="",AI113=0),"",AL113) ->  | H113: =IF(OR($A112="",AI113=0,AJ113=0),"",AM113) ->  | I113: =IF(OR($A112="",AI113=0,AJ113=0),"",AN113) ->  | J113: =IF(AND(A114<>"",OR(AK113<>0,AJ113<>0,AI113<>0)),AO113,"") ->  | K113: =IF(OR(A114="",AR113="",AM113=""),"",(10.44*B113*(AR113^1.85))/((AN113^1.85)*(AM113^4.8655))) ->  | O113: =IF(OR(A114="",AR113="",AM113="",$R$2=""),"",(AR113/7.48/60)/(PI()*((AM113/2)/12)^2)) ->  | AD113: =IF(A114="","",IF(E113="",AD111,IF(ISNUMBER(SEARCH(3408,Main!E113)),'Pipe Tables'!$E$32,IF(ISNUMBER(SEARCH(4710,Main!E113)),'Pipe Tables'!$E$32,IF(ISNUMBER(SEARCH('Pipe Tables'!$E$33,Main!E113)),'Pipe Tables'!$E$33,IF(ISNUMBER(SEARCH('Pipe Tables'!$E$34,Main!E113)),'Pipe Tables'!$E$34,IF(ISNUMBER(SEARCH('Pipe Tables'!$E$35,Main!E113)),'Pipe Tables'!$E$35))))))) ->  | AI113: =D113 -> 0 | AJ113: =E113 -> 0 | AK113: =F113 -> 0 | AL113: =IF(AQ113=0,"",HLOOKUP(AQ113,Pipe_Pressure,MATCH(AP113,Pipe_Press_Size,0),FALSE)) ->  | AM113: =IF(OR(AP113=0,AQ113=0),"",VLOOKUP(AP113,Pipe_Diameter,MATCH(AQ113,Pipe_Diam_Material,0))) ->  | AN113: =IF(A114="","",VLOOKUP(AD113,Hazen_Williams,2)) ->  | AO113: =IF(OR(A114="",AR113="",AM113=""),"",((10.44*(AR113^1.85))/((AN113^1.85)*(AM113^4.8655)))) ->  | AP113: =IF(AND($A114<>"",AI113=0),AP111,IF(AND($A114<>"",AI113<>0),AI113,0)) -> 0 | AQ113: =IF(AND($A114<>"",AJ113=0),AQ111,IF(AND($A114<>"",AJ113<>0),AJ113,0)) -> 0 | AR113: =IF(AND($A114<>"",AK113=0),AR111,IF(AND($A114<>"",AK113<>0),AK113,0)) -> 0 | AS113: =IF(AND($A114<>"",AL113=0),AS111,IF(AND($A114<>"",AL113<>0),AL113,0)) -> 0
M114: =IF(OR(AF114="",$R$2=""),"",IF(AND($C$311=TRUE,$K$5=A114),($M$5*144/62.4+AF114)-((L114*144/62.4)),IF(AND($F$311=TRUE,$K$6=A114),M112-K113+($M$6*144/62.4)-(O113^2/64.4),M112-K113-(O113^2/64.4)-L114*144/62.4))) ->  | N114: =IF(B113="","",IF(AND($K$5=$A114,$C$311=TRUE),$M$5*144/62.4+AF114,IF(AND($K$6=$A114,$F$311=TRUE),$M$6*144/62.4+N112-L114*144/62.4,N112-L114*144/62.4))) ->  | P114: =IF(M114="","",M114-AF114) ->  | Q114: =IF(P114="","",P114*62.4/144) ->  | R114: =IF(N114="","",(N114-AF114)*62.4/144) ->  | V114: =IF(R114="","",IF(P114<0,$O$316,IF(R114>G115,$O$317,IF(R114>75,$O$318,"")))) ->  | AB114: =IF(K113="","",K113+AB112) ->  | AF114: =IF(OR(A114="",$R$3="",AM113=""),"",C114-$R$3) ->  | AG114: =IF(AF114="","",N114) ->  | AH114: =IF(OR(AF114="",$R$2=""),"",IF(AND($A$311=1,Pump!$F$17="Yes"),IF(AND($C$311=TRUE,$K$5=A114),($M$5*144/62.4+AF114)-((L114*144/62.4)),IF(AND($F$311=TRUE,$K$6=A114),AH112-K113+($M$6*144/62.4)-(O113^2/64.4),AH112-K113-(O113^2/64.4))),AH112-K113-(O113^2/64.4))) -> 
B115: =IF(AND(A116>0,C116>0),SQRT((A116-A114)^2+(C116-C114)^2),"") ->  | G115: =IF(OR(A114="",AI115=0),"",AL115) ->  | H115: =IF(OR($A114="",AI115=0,AJ115=0),"",AM115) ->  | I115: =IF(OR($A114="",AI115=0,AJ115=0),"",AN115) ->  | J115: =IF(AND(A116<>"",OR(AK115<>0,AJ115<>0,AI115<>0)),AO115,"") ->  | K115: =IF(OR(A116="",AR115="",AM115=""),"",(10.44*B115*(AR115^1.85))/((AN115^1.85)*(AM115^4.8655))) ->  | O115: =IF(OR(A116="",AR115="",AM115="",$R$2=""),"",(AR115/7.48/60)/(PI()*((AM115/2)/12)^2)) ->  | AD115: =IF(A116="","",IF(E115="",AD113,IF(ISNUMBER(SEARCH(3408,Main!E115)),'Pipe Tables'!$E$32,IF(ISNUMBER(SEARCH(4710,Main!E115)),'Pipe Tables'!$E$32,IF(ISNUMBER(SEARCH('Pipe Tables'!$E$33,Main!E115)),'Pipe Tables'!$E$33,IF(ISNUMBER(SEARCH('Pipe Tables'!$E$34,Main!E115)),'Pipe Tables'!$E$34,IF(ISNUMBER(SEARCH('Pipe Tables'!$E$35,Main!E115)),'Pipe Tables'!$E$35))))))) ->  | AI115: =D115 -> 0 | AJ115: =E115 -> 0 | AK115: =F115 -> 0 | AL115: =IF(AQ115=0,"",HLOOKUP(AQ115,Pipe_Pressure,MATCH(AP115,Pipe_Press_Size,0),FALSE)) ->  | AM115: =IF(OR(AP115=0,AQ115=0),"",VLOOKUP(AP115,Pipe_Diameter,MATCH(AQ115,Pipe_Diam_Material,0))) ->  | AN115: =IF(A116="","",VLOOKUP(AD115,Hazen_Williams,2)) ->  | AO115: =IF(OR(A116="",AR115="",AM115=""),"",((10.44*(AR115^1.85))/((AN115^1.85)*(AM115^4.8655)))) ->  | AP115: =IF(AND($A116<>"",AI115=0),AP113,IF(AND($A116<>"",AI115<>0),AI115,0)) -> 0 | AQ115: =IF(AND($A116<>"",AJ115=0),AQ113,IF(AND($A116<>"",AJ115<>0),AJ115,0)) -> 0 | AR115: =IF(AND($A116<>"",AK115=0),AR113,IF(AND($A116<>"",AK115<>0),AK115,0)) -> 0 | AS115: =IF(AND($A116<>"",AL115=0),AS113,IF(AND($A116<>"",AL115<>0),AL115,0)) -> 0
M116: =IF(OR(AF116="",$R$2=""),"",IF(AND($C$311=TRUE,$K$5=A116),($M$5*144/62.4+AF116)-((L116*144/62.4)),IF(AND($F$311=TRUE,$K$6=A116),M114-K115+($M$6*144/62.4)-(O115^2/64.4),M114-K115-(O115^2/64.4)-L116*144/62.4))) ->  | N116: =IF(B115="","",IF(AND($K$5=$A116,$C$311=TRUE),$M$5*144/62.4+AF116,IF(AND($K$6=$A116,$F$311=TRUE),$M$6*144/62.4+N114-L116*144/62.4,N114-L116*144/62.4))) ->  | P116: =IF(M116="","",M116-AF116) ->  | Q116: =IF(P116="","",P116*62.4/144) ->  | R116: =IF(N116="","",(N116-AF116)*62.4/144) ->  | V116: =IF(R116="","",IF(P116<0,$O$316,IF(R116>G117,$O$317,IF(R116>75,$O$318,"")))) ->  | AB116: =IF(K115="","",K115+AB114) ->  | AF116: =IF(OR(A116="",$R$3="",AM115=""),"",C116-$R$3) ->  | AG116: =IF(AF116="","",N116) ->  | AH116: =IF(OR(AF116="",$R$2=""),"",IF(AND($A$311=1,Pump!$F$17="Yes"),IF(AND($C$311=TRUE,$K$5=A116),($M$5*144/62.4+AF116)-((L116*144/62.4)),IF(AND($F$311=TRUE,$K$6=A116),AH114-K115+($M$6*144/62.4)-(O115^2/64.4),AH114-K115-(O115^2/64.4))),AH114-K115-(O115^2/64.4))) -> 
B117: =IF(AND(A118>0,C118>0),SQRT((A118-A116)^2+(C118-C116)^2),"") ->  | G117: =IF(OR(A116="",AI117=0),"",AL117) ->  | H117: =IF(OR($A116="",AI117=0,AJ117=0),"",AM117) ->  | I117: =IF(OR($A116="",AI117=0,AJ117=0),"",AN117) ->  | J117: =IF(AND(A118<>"",OR(AK117<>0,AJ117<>0,AI117<>0)),AO117,"") ->  | K117: =IF(OR(A118="",AR117="",AM117=""),"",(10.44*B117*(AR117^1.85))/((AN117^1.85)*(AM117^4.8655))) ->  | O117: =IF(OR(A118="",AR117="",AM117="",$R$2=""),"",(AR117/7.48/60)/(PI()*((AM117/2)/12)^2)) ->  | AD117: =IF(A118="","",IF(E117="",AD115,IF(ISNUMBER(SEARCH(3408,Main!E117)),'Pipe Tables'!$E$32,IF(ISNUMBER(SEARCH(4710,Main!E117)),'Pipe Tables'!$E$32,IF(ISNUMBER(SEARCH('Pipe Tables'!$E$33,Main!E117)),'Pipe Tables'!$E$33,IF(ISNUMBER(SEARCH('Pipe Tables'!$E$34,Main!E117)),'Pipe Tables'!$E$34,IF(ISNUMBER(SEARCH('Pipe Tables'!$E$35,Main!E117)),'Pipe Tables'!$E$35))))))) ->  | AI117: =D117 -> 0 | AJ117: =E117 -> 0 | AK117: =F117 -> 0 | AL117: =IF(AQ117=0,"",HLOOKUP(AQ117,Pipe_Pressure,MATCH(AP117,Pipe_Press_Size,0),FALSE)) ->  | AM117: =IF(OR(AP117=0,AQ117=0),"",VLOOKUP(AP117,Pipe_Diameter,MATCH(AQ117,Pipe_Diam_Material,0))) ->  | AN117: =IF(A118="","",VLOOKUP(AD117,Hazen_Williams,2)) ->  | AO117: =IF(OR(A118="",AR117="",AM117=""),"",((10.44*(AR117^1.85))/((AN117^1.85)*(AM117^4.8655)))) ->  | AP117: =IF(AND($A118<>"",AI117=0),AP115,IF(AND($A118<>"",AI117<>0),AI117,0)) -> 0 | AQ117: =IF(AND($A118<>"",AJ117=0),AQ115,IF(AND($A118<>"",AJ117<>0),AJ117,0)) -> 0 | AR117: =IF(AND($A118<>"",AK117=0),AR115,IF(AND($A118<>"",AK117<>0),AK117,0)) -> 0 | AS117: =IF(AND($A118<>"",AL117=0),AS115,IF(AND($A118<>"",AL117<>0),AL117,0)) -> 0
M118: =IF(OR(AF118="",$R$2=""),"",IF(AND($C$311=TRUE,$K$5=A118),($M$5*144/62.4+AF118)-((L118*144/62.4)),IF(AND($F$311=TRUE,$K$6=A118),M116-K117+($M$6*144/62.4)-(O117^2/64.4),M116-K117-(O117^2/64.4)-L118*144/62.4))) ->  | N118: =IF(B117="","",IF(AND($K$5=$A118,$C$311=TRUE),$M$5*144/62.4+AF118,IF(AND($K$6=$A118,$F$311=TRUE),$M$6*144/62.4+N116-L118*144/62.4,N116-L118*144/62.4))) ->  | P118: =IF(M118="","",M118-AF118) ->  | Q118: =IF(P118="","",P118*62.4/144) ->  | R118: =IF(N118="","",(N118-AF118)*62.4/144) ->  | V118: =IF(R118="","",IF(P118<0,$O$316,IF(R118>G119,$O$317,IF(R118>75,$O$318,"")))) ->  | AB118: =IF(K117="","",K117+AB116) ->  | AF118: =IF(OR(A118="",$R$3="",AM117=""),"",C118-$R$3) ->  | AG118: =IF(AF118="","",N118) ->  | AH118: =IF(OR(AF118="",$R$2=""),"",IF(AND($A$311=1,Pump!$F$17="Yes"),IF(AND($C$311=TRUE,$K$5=A118),($M$5*144/62.4+AF118)-((L118*144/62.4)),IF(AND($F$311=TRUE,$K$6=A118),AH116-K117+($M$6*144/62.4)-(O117^2/64.4),AH116-K117-(O117^2/64.4))),AH116-K117-(O117^2/64.4))) -> 
B119: =IF(AND(A120>0,C120>0),SQRT((A120-A118)^2+(C120-C118)^2),"") ->  | G119: =IF(OR(A118="",AI119=0),"",AL119) ->  | H119: =IF(OR($A118="",AI119=0,AJ119=0),"",AM119) ->  | I119: =IF(OR($A118="",AI119=0,AJ119=0),"",AN119) ->  | J119: =IF(AND(A120<>"",OR(AK119<>0,AJ119<>0,AI119<>0)),AO119,"") ->  | K119: =IF(OR(A120="",AR119="",AM119=""),"",(10.44*B119*(AR119^1.85))/((AN119^1.85)*(AM119^4.8655))) ->  | O119: =IF(OR(A120="",AR119="",AM119="",$R$2=""),"",(AR119/7.48/60)/(PI()*((AM119/2)/12)^2)) ->  | AD119: =IF(A120="","",IF(E119="",AD117,IF(ISNUMBER(SEARCH(3408,Main!E119)),'Pipe Tables'!$E$32,IF(ISNUMBER(SEARCH(4710,Main!E119)),'Pipe Tables'!$E$32,IF(ISNUMBER(SEARCH('Pipe Tables'!$E$33,Main!E119)),'Pipe Tables'!$E$33,IF(ISNUMBER(SEARCH('Pipe Tables'!$E$34,Main!E119)),'Pipe Tables'!$E$34,IF(ISNUMBER(SEARCH('Pipe Tables'!$E$35,Main!E119)),'Pipe Tables'!$E$35))))))) ->  | AI119: =D119 -> 0 | AJ119: =E119 -> 0 | AK119: =F119 -> 0 | AL119: =IF(AQ119=0,"",HLOOKUP(AQ119,Pipe_Pressure,MATCH(AP119,Pipe_Press_Size,0),FALSE)) ->  | AM119: =IF(OR(AP119=0,AQ119=0),"",VLOOKUP(AP119,Pipe_Diameter,MATCH(AQ119,Pipe_Diam_Material,0))) ->  | AN119: =IF(A120="","",VLOOKUP(AD119,Hazen_Williams,2)) ->  | AO119: =IF(OR(A120="",AR119="",AM119=""),"",((10.44*(AR119^1.85))/((AN119^1.85)*(AM119^4.8655)))) ->  | AP119: =IF(AND($A120<>"",AI119=0),AP117,IF(AND($A120<>"",AI119<>0),AI119,0)) -> 0 | AQ119: =IF(AND($A120<>"",AJ119=0),AQ117,IF(AND($A120<>"",AJ119<>0),AJ119,0)) -> 0 | AR119: =IF(AND($A120<>"",AK119=0),AR117,IF(AND($A120<>"",AK119<>0),AK119,0)) -> 0 | AS119: =IF(AND($A120<>"",AL119=0),AS117,IF(AND($A120<>"",AL119<>0),AL119,0)) -> 0
M120: =IF(OR(AF120="",$R$2=""),"",IF(AND($C$311=TRUE,$K$5=A120),($M$5*144/62.4+AF120)-((L120*144/62.4)),IF(AND($F$311=TRUE,$K$6=A120),M118-K119+($M$6*144/62.4)-(O119^2/64.4),M118-K119-(O119^2/64.4)-L120*144/62.4))) ->  | N120: =IF(B119="","",IF(AND($K$5=$A120,$C$311=TRUE),$M$5*144/62.4+AF120,IF(AND($K$6=$A120,$F$311=TRUE),$M$6*144/62.4+N118-L120*144/62.4,N118-L120*144/62.4))) ->  | P120: =IF(M120="","",M120-AF120) ->  | Q120: =IF(P120="","",P120*62.4/144) ->  | R120: =IF(N120="","",(N120-AF120)*62.4/144) ->  | V120: =IF(R120="","",IF(P120<0,$O$316,IF(R120>G121,$O$317,IF(R120>75,$O$318,"")))) ->  | AB120: =IF(K119="","",K119+AB118) ->  | AF120: =IF(OR(A120="",$R$3="",AM119=""),"",C120-$R$3) ->  | AG120: =IF(AF120="","",N120) ->  | AH120: =IF(OR(AF120="",$R$2=""),"",IF(AND($A$311=1,Pump!$F$17="Yes"),IF(AND($C$311=TRUE,$K$5=A120),($M$5*144/62.4+AF120)-((L120*144/62.4)),IF(AND($F$311=TRUE,$K$6=A120),AH118-K119+($M$6*144/62.4)-(O119^2/64.4),AH118-K119-(O119^2/64.4))),AH118-K119-(O119^2/64.4))) -> 
B121: =IF(AND(A122>0,C122>0),SQRT((A122-A120)^2+(C122-C120)^2),"") ->  | G121: =IF(OR(A120="",AI121=0),"",AL121) ->  | H121: =IF(OR($A120="",AI121=0,AJ121=0),"",AM121) ->  | I121: =IF(OR($A120="",AI121=0,AJ121=0),"",AN121) ->  | J121: =IF(AND(A122<>"",OR(AK121<>0,AJ121<>0,AI121<>0)),AO121,"") ->  | K121: =IF(OR(A122="",AR121="",AM121=""),"",(10.44*B121*(AR121^1.85))/((AN121^1.85)*(AM121^4.8655))) ->  | O121: =IF(OR(A122="",AR121="",AM121="",$R$2=""),"",(AR121/7.48/60)/(PI()*((AM121/2)/12)^2)) ->  | AD121: =IF(A122="","",IF(E121="",AD119,IF(ISNUMBER(SEARCH(3408,Main!E121)),'Pipe Tables'!$E$32,IF(ISNUMBER(SEARCH(4710,Main!E121)),'Pipe Tables'!$E$32,IF(ISNUMBER(SEARCH('Pipe Tables'!$E$33,Main!E121)),'Pipe Tables'!$E$33,IF(ISNUMBER(SEARCH('Pipe Tables'!$E$34,Main!E121)),'Pipe Tables'!$E$34,IF(ISNUMBER(SEARCH('Pipe Tables'!$E$35,Main!E121)),'Pipe Tables'!$E$35))))))) ->  | AI121: =D121 -> 0 | AJ121: =E121 -> 0 | AK121: =F121 -> 0 | AL121: =IF(AQ121=0,"",HLOOKUP(AQ121,Pipe_Pressure,MATCH(AP121,Pipe_Press_Size,0),FALSE)) ->  | AM121: =IF(OR(AP121=0,AQ121=0),"",VLOOKUP(AP121,Pipe_Diameter,MATCH(AQ121,Pipe_Diam_Material,0))) ->  | AN121: =IF(A122="","",VLOOKUP(AD121,Hazen_Williams,2)) ->  | AO121: =IF(OR(A122="",AR121="",AM121=""),"",((10.44*(AR121^1.85))/((AN121^1.85)*(AM121^4.8655)))) ->  | AP121: =IF(AND($A122<>"",AI121=0),AP119,IF(AND($A122<>"",AI121<>0),AI121,0)) -> 0 | AQ121: =IF(AND($A122<>"",AJ121=0),AQ119,IF(AND($A122<>"",AJ121<>0),AJ121,0)) -> 0 | AR121: =IF(AND($A122<>"",AK121=0),AR119,IF(AND($A122<>"",AK121<>0),AK121,0)) -> 0 | AS121: =IF(AND($A122<>"",AL121=0),AS119,IF(AND($A122<>"",AL121<>0),AL121,0)) -> 0
M122: =IF(OR(AF122="",$R$2=""),"",IF(AND($C$311=TRUE,$K$5=A122),($M$5*144/62.4+AF122)-((L122*144/62.4)),IF(AND($F$311=TRUE,$K$6=A122),M120-K121+($M$6*144/62.4)-(O121^2/64.4),M120-K121-(O121^2/64.4)-L122*144/62.4))) ->  | N122: =IF(B121="","",IF(AND($K$5=$A122,$C$311=TRUE),$M$5*144/62.4+AF122,IF(AND($K$6=$A122,$F$311=TRUE),$M$6*144/62.4+N120-L122*144/62.4,N120-L122*144/62.4))) ->  | P122: =IF(M122="","",M122-AF122) ->  | Q122: =IF(P122="","",P122*62.4/144) ->  | R122: =IF(N122="","",(N122-AF122)*62.4/144) ->  | V122: =IF(R122="","",IF(P122<0,$O$316,IF(R122>G123,$O$317,IF(R122>75,$O$318,"")))) ->  | AB122: =IF(K121="","",K121+AB120) ->  | AF122: =IF(OR(A122="",$R$3="",AM121=""),"",C122-$R$3) ->  | AG122: =IF(AF122="","",N122) ->  | AH122: =IF(OR(AF122="",$R$2=""),"",IF(AND($A$311=1,Pump!$F$17="Yes"),IF(AND($C$311=TRUE,$K$5=A122),($M$5*144/62.4+AF122)-((L122*144/62.4)),IF(AND($F$311=TRUE,$K$6=A122),AH120-K121+($M$6*144/62.4)-(O121^2/64.4),AH120-K121-(O121^2/64.4))),AH120-K121-(O121^2/64.4))) -> 
B123: =IF(AND(A124>0,C124>0),SQRT((A124-A122)^2+(C124-C122)^2),"") ->  | G123: =IF(OR(A122="",AI123=0),"",AL123) ->  | H123: =IF(OR($A122="",AI123=0,AJ123=0),"",AM123) ->  | I123: =IF(OR($A122="",AI123=0,AJ123=0),"",AN123) ->  | J123: =IF(AND(A124<>"",OR(AK123<>0,AJ123<>0,AI123<>0)),AO123,"") ->  | K123: =IF(OR(A124="",AR123="",AM123=""),"",(10.44*B123*(AR123^1.85))/((AN123^1.85)*(AM123^4.8655))) ->  | O123: =IF(OR(A124="",AR123="",AM123="",$R$2=""),"",(AR123/7.48/60)/(PI()*((AM123/2)/12)^2)) ->  | AD123: =IF(A124="","",IF(E123="",AD121,IF(ISNUMBER(SEARCH(3408,Main!E123)),'Pipe Tables'!$E$32,IF(ISNUMBER(SEARCH(4710,Main!E123)),'Pipe Tables'!$E$32,IF(ISNUMBER(SEARCH('Pipe Tables'!$E$33,Main!E123)),'Pipe Tables'!$E$33,IF(ISNUMBER(SEARCH('Pipe Tables'!$E$34,Main!E123)),'Pipe Tables'!$E$34,IF(ISNUMBER(SEARCH('Pipe Tables'!$E$35,Main!E123)),'Pipe Tables'!$E$35))))))) ->  | AI123: =D123 -> 0 | AJ123: =E123 -> 0 | AK123: =F123 -> 0 | AL123: =IF(AQ123=0,"",HLOOKUP(AQ123,Pipe_Pressure,MATCH(AP123,Pipe_Press_Size,0),FALSE)) ->  | AM123: =IF(OR(AP123=0,AQ123=0),"",VLOOKUP(AP123,Pipe_Diameter,MATCH(AQ123,Pipe_Diam_Material,0))) ->  | AN123: =IF(A124="","",VLOOKUP(AD123,Hazen_Williams,2)) ->  | AO123: =IF(OR(A124="",AR123="",AM123=""),"",((10.44*(AR123^1.85))/((AN123^1.85)*(AM123^4.8655)))) ->  | AP123: =IF(AND($A124<>"",AI123=0),AP121,IF(AND($A124<>"",AI123<>0),AI123,0)) -> 0 | AQ123: =IF(AND($A124<>"",AJ123=0),AQ121,IF(AND($A124<>"",AJ123<>0),AJ123,0)) -> 0 | AR123: =IF(AND($A124<>"",AK123=0),AR121,IF(AND($A124<>"",AK123<>0),AK123,0)) -> 0 | AS123: =IF(AND($A124<>"",AL123=0),AS121,IF(AND($A124<>"",AL123<>0),AL123,0)) -> 0
M124: =IF(OR(AF124="",$R$2=""),"",IF(AND($C$311=TRUE,$K$5=A124),($M$5*144/62.4+AF124)-((L124*144/62.4)),IF(AND($F$311=TRUE,$K$6=A124),M122-K123+($M$6*144/62.4)-(O123^2/64.4),M122-K123-(O123^2/64.4)-L124*144/62.4))) ->  | N124: =IF(B123="","",IF(AND($K$5=$A124,$C$311=TRUE),$M$5*144/62.4+AF124,IF(AND($K$6=$A124,$F$311=TRUE),$M$6*144/62.4+N122-L124*144/62.4,N122-L124*144/62.4))) ->  | P124: =IF(M124="","",M124-AF124) ->  | Q124: =IF(P124="","",P124*62.4/144) ->  | R124: =IF(N124="","",(N124-AF124)*62.4/144) ->  | V124: =IF(R124="","",IF(P124<0,$O$316,IF(R124>G125,$O$317,IF(R124>75,$O$318,"")))) ->  | AB124: =IF(K123="","",K123+AB122) ->  | AF124: =IF(OR(A124="",$R$3="",AM123=""),"",C124-$R$3) ->  | AG124: =IF(AF124="","",N124) ->  | AH124: =IF(OR(AF124="",$R$2=""),"",IF(AND($A$311=1,Pump!$F$17="Yes"),IF(AND($C$311=TRUE,$K$5=A124),($M$5*144/62.4+AF124)-((L124*144/62.4)),IF(AND($F$311=TRUE,$K$6=A124),AH122-K123+($M$6*144/62.4)-(O123^2/64.4),AH122-K123-(O123^2/64.4))),AH122-K123-(O123^2/64.4))) -> 
B125: =IF(AND(A126>0,C126>0),SQRT((A126-A124)^2+(C126-C124)^2),"") ->  | G125: =IF(OR(A124="",AI125=0),"",AL125) ->  | H125: =IF(OR($A124="",AI125=0,AJ125=0),"",AM125) ->  | I125: =IF(OR($A124="",AI125=0,AJ125=0),"",AN125) ->  | J125: =IF(AND(A126<>"",OR(AK125<>0,AJ125<>0,AI125<>0)),AO125,"") ->  | K125: =IF(OR(A126="",AR125="",AM125=""),"",(10.44*B125*(AR125^1.85))/((AN125^1.85)*(AM125^4.8655))) ->  | O125: =IF(OR(A126="",AR125="",AM125="",$R$2=""),"",(AR125/7.48/60)/(PI()*((AM125/2)/12)^2)) ->  | AD125: =IF(A126="","",IF(E125="",AD123,IF(ISNUMBER(SEARCH(3408,Main!E125)),'Pipe Tables'!$E$32,IF(ISNUMBER(SEARCH(4710,Main!E125)),'Pipe Tables'!$E$32,IF(ISNUMBER(SEARCH('Pipe Tables'!$E$33,Main!E125)),'Pipe Tables'!$E$33,IF(ISNUMBER(SEARCH('Pipe Tables'!$E$34,Main!E125)),'Pipe Tables'!$E$34,IF(ISNUMBER(SEARCH('Pipe Tables'!$E$35,Main!E125)),'Pipe Tables'!$E$35))))))) ->  | AI125: =D125 -> 0 | AJ125: =E125 -> 0 | AK125: =F125 -> 0 | AL125: =IF(AQ125=0,"",HLOOKUP(AQ125,Pipe_Pressure,MATCH(AP125,Pipe_Press_Size,0),FALSE)) ->  | AM125: =IF(OR(AP125=0,AQ125=0),"",VLOOKUP(AP125,Pipe_Diameter,MATCH(AQ125,Pipe_Diam_Material,0))) ->  | AN125: =IF(A126="","",VLOOKUP(AD125,Hazen_Williams,2)) ->  | AO125: =IF(OR(A126="",AR125="",AM125=""),"",((10.44*(AR125^1.85))/((AN125^1.85)*(AM125^4.8655)))) ->  | AP125: =IF(AND($A126<>"",AI125=0),AP123,IF(AND($A126<>"",AI125<>0),AI125,0)) -> 0 | AQ125: =IF(AND($A126<>"",AJ125=0),AQ123,IF(AND($A126<>"",AJ125<>0),AJ125,0)) -> 0 | AR125: =IF(AND($A126<>"",AK125=0),AR123,IF(AND($A126<>"",AK125<>0),AK125,0)) -> 0 | AS125: =IF(AND($A126<>"",AL125=0),AS123,IF(AND($A126<>"",AL125<>0),AL125,0)) -> 0
M126: =IF(OR(AF126="",$R$2=""),"",IF(AND($C$311=TRUE,$K$5=A126),($M$5*144/62.4+AF126)-((L126*144/62.4)),IF(AND($F$311=TRUE,$K$6=A126),M124-K125+($M$6*144/62.4)-(O125^2/64.4),M124-K125-(O125^2/64.4)-L126*144/62.4))) ->  | N126: =IF(B125="","",IF(AND($K$5=$A126,$C$311=TRUE),$M$5*144/62.4+AF126,IF(AND($K$6=$A126,$F$311=TRUE),$M$6*144/62.4+N124-L126*144/62.4,N124-L126*144/62.4))) ->  | P126: =IF(M126="","",M126-AF126) ->  | Q126: =IF(P126="","",P126*62.4/144) ->  | R126: =IF(N126="","",(N126-AF126)*62.4/144) ->  | V126: =IF(R126="","",IF(P126<0,$O$316,IF(R126>G127,$O$317,IF(R126>75,$O$318,"")))) ->  | AB126: =IF(K125="","",K125+AB124) ->  | AF126: =IF(OR(A126="",$R$3="",AM125=""),"",C126-$R$3) ->  | AG126: =IF(AF126="","",N126) ->  | AH126: =IF(OR(AF126="",$R$2=""),"",IF(AND($A$311=1,Pump!$F$17="Yes"),IF(AND($C$311=TRUE,$K$5=A126),($M$5*144/62.4+AF126)-((L126*144/62.4)),IF(AND($F$311=TRUE,$K$6=A126),AH124-K125+($M$6*144/62.4)-(O125^2/64.4),AH124-K125-(O125^2/64.4))),AH124-K125-(O125^2/64.4))) -> 
B127: =IF(AND(A128>0,C128>0),SQRT((A128-A126)^2+(C128-C126)^2),"") ->  | G127: =IF(OR(A126="",AI127=0),"",AL127) ->  | H127: =IF(OR($A126="",AI127=0,AJ127=0),"",AM127) ->  | I127: =IF(OR($A126="",AI127=0,AJ127=0),"",AN127) ->  | J127: =IF(AND(A128<>"",OR(AK127<>0,AJ127<>0,AI127<>0)),AO127,"") ->  | K127: =IF(OR(A128="",AR127="",AM127=""),"",(10.44*B127*(AR127^1.85))/((AN127^1.85)*(AM127^4.8655))) ->  | O127: =IF(OR(A128="",AR127="",AM127="",$R$2=""),"",(AR127/7.48/60)/(PI()*((AM127/2)/12)^2)) ->  | AD127: =IF(A128="","",IF(E127="",AD125,IF(ISNUMBER(SEARCH(3408,Main!E127)),'Pipe Tables'!$E$32,IF(ISNUMBER(SEARCH(4710,Main!E127)),'Pipe Tables'!$E$32,IF(ISNUMBER(SEARCH('Pipe Tables'!$E$33,Main!E127)),'Pipe Tables'!$E$33,IF(ISNUMBER(SEARCH('Pipe Tables'!$E$34,Main!E127)),'Pipe Tables'!$E$34,IF(ISNUMBER(SEARCH('Pipe Tables'!$E$35,Main!E127)),'Pipe Tables'!$E$35))))))) ->  | AI127: =D127 -> 0 | AJ127: =E127 -> 0 | AK127: =F127 -> 0 | AL127: =IF(AQ127=0,"",HLOOKUP(AQ127,Pipe_Pressure,MATCH(AP127,Pipe_Press_Size,0),FALSE)) ->  | AM127: =IF(OR(AP127=0,AQ127=0),"",VLOOKUP(AP127,Pipe_Diameter,MATCH(AQ127,Pipe_Diam_Material,0))) ->  | AN127: =IF(A128="","",VLOOKUP(AD127,Hazen_Williams,2)) ->  | AO127: =IF(OR(A128="",AR127="",AM127=""),"",((10.44*(AR127^1.85))/((AN127^1.85)*(AM127^4.8655)))) ->  | AP127: =IF(AND($A128<>"",AI127=0),AP125,IF(AND($A128<>"",AI127<>0),AI127,0)) -> 0 | AQ127: =IF(AND($A128<>"",AJ127=0),AQ125,IF(AND($A128<>"",AJ127<>0),AJ127,0)) -> 0 | AR127: =IF(AND($A128<>"",AK127=0),AR125,IF(AND($A128<>"",AK127<>0),AK127,0)) -> 0 | AS127: =IF(AND($A128<>"",AL127=0),AS125,IF(AND($A128<>"",AL127<>0),AL127,0)) -> 0
M128: =IF(OR(AF128="",$R$2=""),"",IF(AND($C$311=TRUE,$K$5=A128),($M$5*144/62.4+AF128)-((L128*144/62.4)),IF(AND($F$311=TRUE,$K$6=A128),M126-K127+($M$6*144/62.4)-(O127^2/64.4),M126-K127-(O127^2/64.4)-L128*144/62.4))) ->  | N128: =IF(B127="","",IF(AND($K$5=$A128,$C$311=TRUE),$M$5*144/62.4+AF128,IF(AND($K$6=$A128,$F$311=TRUE),$M$6*144/62.4+N126-L128*144/62.4,N126-L128*144/62.4))) ->  | P128: =IF(M128="","",M128-AF128) ->  | Q128: =IF(P128="","",P128*62.4/144) ->  | R128: =IF(N128="","",(N128-AF128)*62.4/144) ->  | V128: =IF(R128="","",IF(P128<0,$O$316,IF(R128>G129,$O$317,IF(R128>75,$O$318,"")))) ->  | AB128: =IF(K127="","",K127+AB126) ->  | AF128: =IF(OR(A128="",$R$3="",AM127=""),"",C128-$R$3) ->  | AG128: =IF(AF128="","",N128) ->  | AH128: =IF(OR(AF128="",$R$2=""),"",IF(AND($A$311=1,Pump!$F$17="Yes"),IF(AND($C$311=TRUE,$K$5=A128),($M$5*144/62.4+AF128)-((L128*144/62.4)),IF(AND($F$311=TRUE,$K$6=A128),AH126-K127+($M$6*144/62.4)-(O127^2/64.4),AH126-K127-(O127^2/64.4))),AH126-K127-(O127^2/64.4))) -> 
B129: =IF(AND(A130>0,C130>0),SQRT((A130-A128)^2+(C130-C128)^2),"") ->  | G129: =IF(OR(A128="",AI129=0),"",AL129) ->  | H129: =IF(OR($A128="",AI129=0,AJ129=0),"",AM129) ->  | I129: =IF(OR($A128="",AI129=0,AJ129=0),"",AN129) ->  | J129: =IF(AND(A130<>"",OR(AK129<>0,AJ129<>0,AI129<>0)),AO129,"") ->  | K129: =IF(OR(A130="",AR129="",AM129=""),"",(10.44*B129*(AR129^1.85))/((AN129^1.85)*(AM129^4.8655))) ->  | O129: =IF(OR(A130="",AR129="",AM129="",$R$2=""),"",(AR129/7.48/60)/(PI()*((AM129/2)/12)^2)) ->  | AD129: =IF(A130="","",IF(E129="",AD127,IF(ISNUMBER(SEARCH(3408,Main!E129)),'Pipe Tables'!$E$32,IF(ISNUMBER(SEARCH(4710,Main!E129)),'Pipe Tables'!$E$32,IF(ISNUMBER(SEARCH('Pipe Tables'!$E$33,Main!E129)),'Pipe Tables'!$E$33,IF(ISNUMBER(SEARCH('Pipe Tables'!$E$34,Main!E129)),'Pipe Tables'!$E$34,IF(ISNUMBER(SEARCH('Pipe Tables'!$E$35,Main!E129)),'Pipe Tables'!$E$35))))))) ->  | AI129: =D129 -> 0 | AJ129: =E129 -> 0 | AK129: =F129 -> 0 | AL129: =IF(AQ129=0,"",HLOOKUP(AQ129,Pipe_Pressure,MATCH(AP129,Pipe_Press_Size,0),FALSE)) ->  | AM129: =IF(OR(AP129=0,AQ129=0),"",VLOOKUP(AP129,Pipe_Diameter,MATCH(AQ129,Pipe_Diam_Material,0))) ->  | AN129: =IF(A130="","",VLOOKUP(AD129,Hazen_Williams,2)) ->  | AO129: =IF(OR(A130="",AR129="",AM129=""),"",((10.44*(AR129^1.85))/((AN129^1.85)*(AM129^4.8655)))) ->  | AP129: =IF(AND($A130<>"",AI129=0),AP127,IF(AND($A130<>"",AI129<>0),AI129,0)) -> 0 | AQ129: =IF(AND($A130<>"",AJ129=0),AQ127,IF(AND($A130<>"",AJ129<>0),AJ129,0)) -> 0 | AR129: =IF(AND($A130<>"",AK129=0),AR127,IF(AND($A130<>"",AK129<>0),AK129,0)) -> 0 | AS129: =IF(AND($A130<>"",AL129=0),AS127,IF(AND($A130<>"",AL129<>0),AL129,0)) -> 0
M130: =IF(OR(AF130="",$R$2=""),"",IF(AND($C$311=TRUE,$K$5=A130),($M$5*144/62.4+AF130)-((L130*144/62.4)),IF(AND($F$311=TRUE,$K$6=A130),M128-K129+($M$6*144/62.4)-(O129^2/64.4),M128-K129-(O129^2/64.4)-L130*144/62.4))) ->  | N130: =IF(B129="","",IF(AND($K$5=$A130,$C$311=TRUE),$M$5*144/62.4+AF130,IF(AND($K$6=$A130,$F$311=TRUE),$M$6*144/62.4+N128-L130*144/62.4,N128-L130*144/62.4))) ->  | P130: =IF(M130="","",M130-AF130) ->  | Q130: =IF(P130="","",P130*62.4/144) ->  | R130: =IF(N130="","",(N130-AF130)*62.4/144) ->  | V130: =IF(R130="","",IF(P130<0,$O$316,IF(R130>G131,$O$317,IF(R130>75,$O$318,"")))) ->  | AB130: =IF(K129="","",K129+AB128) ->  | AF130: =IF(OR(A130="",$R$3="",AM129=""),"",C130-$R$3) ->  | AG130: =IF(AF130="","",N130) ->  | AH130: =IF(OR(AF130="",$R$2=""),"",IF(AND($A$311=1,Pump!$F$17="Yes"),IF(AND($C$311=TRUE,$K$5=A130),($M$5*144/62.4+AF130)-((L130*144/62.4)),IF(AND($F$311=TRUE,$K$6=A130),AH128-K129+($M$6*144/62.4)-(O129^2/64.4),AH128-K129-(O129^2/64.4))),AH128-K129-(O129^2/64.4))) -> 
B131: =IF(AND(A132>0,C132>0),SQRT((A132-A130)^2+(C132-C130)^2),"") ->  | G131: =IF(OR(A130="",AI131=0),"",AL131) ->  | H131: =IF(OR($A130="",AI131=0,AJ131=0),"",AM131) ->  | I131: =IF(OR($A130="",AI131=0,AJ131=0),"",AN131) ->  | J131: =IF(AND(A132<>"",OR(AK131<>0,AJ131<>0,AI131<>0)),AO131,"") ->  | K131: =IF(OR(A132="",AR131="",AM131=""),"",(10.44*B131*(AR131^1.85))/((AN131^1.85)*(AM131^4.8655))) ->  | O131: =IF(OR(A132="",AR131="",AM131="",$R$2=""),"",(AR131/7.48/60)/(PI()*((AM131/2)/12)^2)) ->  | AD131: =IF(A132="","",IF(E131="",AD129,IF(ISNUMBER(SEARCH(3408,Main!E131)),'Pipe Tables'!$E$32,IF(ISNUMBER(SEARCH(4710,Main!E131)),'Pipe Tables'!$E$32,IF(ISNUMBER(SEARCH('Pipe Tables'!$E$33,Main!E131)),'Pipe Tables'!$E$33,IF(ISNUMBER(SEARCH('Pipe Tables'!$E$34,Main!E131)),'Pipe Tables'!$E$34,IF(ISNUMBER(SEARCH('Pipe Tables'!$E$35,Main!E131)),'Pipe Tables'!$E$35))))))) ->  | AI131: =D131 -> 0 | AJ131: =E131 -> 0 | AK131: =F131 -> 0 | AL131: =IF(AQ131=0,"",HLOOKUP(AQ131,Pipe_Pressure,MATCH(AP131,Pipe_Press_Size,0),FALSE)) ->  | AM131: =IF(OR(AP131=0,AQ131=0),"",VLOOKUP(AP131,Pipe_Diameter,MATCH(AQ131,Pipe_Diam_Material,0))) ->  | AN131: =IF(A132="","",VLOOKUP(AD131,Hazen_Williams,2)) ->  | AO131: =IF(OR(A132="",AR131="",AM131=""),"",((10.44*(AR131^1.85))/((AN131^1.85)*(AM131^4.8655)))) ->  | AP131: =IF(AND($A132<>"",AI131=0),AP129,IF(AND($A132<>"",AI131<>0),AI131,0)) -> 0 | AQ131: =IF(AND($A132<>"",AJ131=0),AQ129,IF(AND($A132<>"",AJ131<>0),AJ131,0)) -> 0 | AR131: =IF(AND($A132<>"",AK131=0),AR129,IF(AND($A132<>"",AK131<>0),AK131,0)) -> 0 | AS131: =IF(AND($A132<>"",AL131=0),AS129,IF(AND($A132<>"",AL131<>0),AL131,0)) -> 0
M132: =IF(OR(AF132="",$R$2=""),"",IF(AND($C$311=TRUE,$K$5=A132),($M$5*144/62.4+AF132)-((L132*144/62.4)),IF(AND($F$311=TRUE,$K$6=A132),M130-K131+($M$6*144/62.4)-(O131^2/64.4),M130-K131-(O131^2/64.4)-L132*144/62.4))) ->  | N132: =IF(B131="","",IF(AND($K$5=$A132,$C$311=TRUE),$M$5*144/62.4+AF132,IF(AND($K$6=$A132,$F$311=TRUE),$M$6*144/62.4+N130-L132*144/62.4,N130-L132*144/62.4))) ->  | P132: =IF(M132="","",M132-AF132) ->  | Q132: =IF(P132="","",P132*62.4/144) ->  | R132: =IF(N132="","",(N132-AF132)*62.4/144) ->  | V132: =IF(R132="","",IF(P132<0,$O$316,IF(R132>G133,$O$317,IF(R132>75,$O$318,"")))) ->  | AB132: =IF(K131="","",K131+AB130) ->  | AF132: =IF(OR(A132="",$R$3="",AM131=""),"",C132-$R$3) ->  | AG132: =IF(AF132="","",N132) ->  | AH132: =IF(OR(AF132="",$R$2=""),"",IF(AND($A$311=1,Pump!$F$17="Yes"),IF(AND($C$311=TRUE,$K$5=A132),($M$5*144/62.4+AF132)-((L132*144/62.4)),IF(AND($F$311=TRUE,$K$6=A132),AH130-K131+($M$6*144/62.4)-(O131^2/64.4),AH130-K131-(O131^2/64.4))),AH130-K131-(O131^2/64.4))) -> 
B133: =IF(AND(A134>0,C134>0),SQRT((A134-A132)^2+(C134-C132)^2),"") ->  | G133: =IF(OR(A132="",AI133=0),"",AL133) ->  | H133: =IF(OR($A132="",AI133=0,AJ133=0),"",AM133) ->  | I133: =IF(OR($A132="",AI133=0,AJ133=0),"",AN133) ->  | J133: =IF(AND(A134<>"",OR(AK133<>0,AJ133<>0,AI133<>0)),AO133,"") ->  | K133: =IF(OR(A134="",AR133="",AM133=""),"",(10.44*B133*(AR133^1.85))/((AN133^1.85)*(AM133^4.8655))) ->  | O133: =IF(OR(A134="",AR133="",AM133="",$R$2=""),"",(AR133/7.48/60)/(PI()*((AM133/2)/12)^2)) ->  | AD133: =IF(A134="","",IF(E133="",AD131,IF(ISNUMBER(SEARCH(3408,Main!E133)),'Pipe Tables'!$E$32,IF(ISNUMBER(SEARCH(4710,Main!E133)),'Pipe Tables'!$E$32,IF(ISNUMBER(SEARCH('Pipe Tables'!$E$33,Main!E133)),'Pipe Tables'!$E$33,IF(ISNUMBER(SEARCH('Pipe Tables'!$E$34,Main!E133)),'Pipe Tables'!$E$34,IF(ISNUMBER(SEARCH('Pipe Tables'!$E$35,Main!E133)),'Pipe Tables'!$E$35))))))) ->  | AI133: =D133 -> 0 | AJ133: =E133 -> 0 | AK133: =F133 -> 0 | AL133: =IF(AQ133=0,"",HLOOKUP(AQ133,Pipe_Pressure,MATCH(AP133,Pipe_Press_Size,0),FALSE)) ->  | AM133: =IF(OR(AP133=0,AQ133=0),"",VLOOKUP(AP133,Pipe_Diameter,MATCH(AQ133,Pipe_Diam_Material,0))) ->  | AN133: =IF(A134="","",VLOOKUP(AD133,Hazen_Williams,2)) ->  | AO133: =IF(OR(A134="",AR133="",AM133=""),"",((10.44*(AR133^1.85))/((AN133^1.85)*(AM133^4.8655)))) ->  | AP133: =IF(AND($A134<>"",AI133=0),AP131,IF(AND($A134<>"",AI133<>0),AI133,0)) -> 0 | AQ133: =IF(AND($A134<>"",AJ133=0),AQ131,IF(AND($A134<>"",AJ133<>0),AJ133,0)) -> 0 | AR133: =IF(AND($A134<>"",AK133=0),AR131,IF(AND($A134<>"",AK133<>0),AK133,0)) -> 0 | AS133: =IF(AND($A134<>"",AL133=0),AS131,IF(AND($A134<>"",AL133<>0),AL133,0)) -> 0
M134: =IF(OR(AF134="",$R$2=""),"",IF(AND($C$311=TRUE,$K$5=A134),($M$5*144/62.4+AF134)-((L134*144/62.4)),IF(AND($F$311=TRUE,$K$6=A134),M132-K133+($M$6*144/62.4)-(O133^2/64.4),M132-K133-(O133^2/64.4)-L134*144/62.4))) ->  | N134: =IF(B133="","",IF(AND($K$5=$A134,$C$311=TRUE),$M$5*144/62.4+AF134,IF(AND($K$6=$A134,$F$311=TRUE),$M$6*144/62.4+N132-L134*144/62.4,N132-L134*144/62.4))) ->  | P134: =IF(M134="","",M134-AF134) ->  | Q134: =IF(P134="","",P134*62.4/144) ->  | R134: =IF(N134="","",(N134-AF134)*62.4/144) ->  | V134: =IF(R134="","",IF(P134<0,$O$316,IF(R134>G135,$O$317,IF(R134>75,$O$318,"")))) ->  | AB134: =IF(K133="","",K133+AB132) ->  | AF134: =IF(OR(A134="",$R$3="",AM133=""),"",C134-$R$3) ->  | AG134: =IF(AF134="","",N134) ->  | AH134: =IF(OR(AF134="",$R$2=""),"",IF(AND($A$311=1,Pump!$F$17="Yes"),IF(AND($C$311=TRUE,$K$5=A134),($M$5*144/62.4+AF134)-((L134*144/62.4)),IF(AND($F$311=TRUE,$K$6=A134),AH132-K133+($M$6*144/62.4)-(O133^2/64.4),AH132-K133-(O133^2/64.4))),AH132-K133-(O133^2/64.4))) -> 
B135: =IF(AND(A136>0,C136>0),SQRT((A136-A134)^2+(C136-C134)^2),"") ->  | G135: =IF(OR(A134="",AI135=0),"",AL135) ->  | H135: =IF(OR($A134="",AI135=0,AJ135=0),"",AM135) ->  | I135: =IF(OR($A134="",AI135=0,AJ135=0),"",AN135) ->  | J135: =IF(AND(A136<>"",OR(AK135<>0,AJ135<>0,AI135<>0)),AO135,"") ->  | K135: =IF(OR(A136="",AR135="",AM135=""),"",(10.44*B135*(AR135^1.85))/((AN135^1.85)*(AM135^4.8655))) ->  | O135: =IF(OR(A136="",AR135="",AM135="",$R$2=""),"",(AR135/7.48/60)/(PI()*((AM135/2)/12)^2)) ->  | AD135: =IF(A136="","",IF(E135="",AD133,IF(ISNUMBER(SEARCH(3408,Main!E135)),'Pipe Tables'!$E$32,IF(ISNUMBER(SEARCH(4710,Main!E135)),'Pipe Tables'!$E$32,IF(ISNUMBER(SEARCH('Pipe Tables'!$E$33,Main!E135)),'Pipe Tables'!$E$33,IF(ISNUMBER(SEARCH('Pipe Tables'!$E$34,Main!E135)),'Pipe Tables'!$E$34,IF(ISNUMBER(SEARCH('Pipe Tables'!$E$35,Main!E135)),'Pipe Tables'!$E$35))))))) ->  | AI135: =D135 -> 0 | AJ135: =E135 -> 0 | AK135: =F135 -> 0 | AL135: =IF(AQ135=0,"",HLOOKUP(AQ135,Pipe_Pressure,MATCH(AP135,Pipe_Press_Size,0),FALSE)) ->  | AM135: =IF(OR(AP135=0,AQ135=0),"",VLOOKUP(AP135,Pipe_Diameter,MATCH(AQ135,Pipe_Diam_Material,0))) ->  | AN135: =IF(A136="","",VLOOKUP(AD135,Hazen_Williams,2)) ->  | AO135: =IF(OR(A136="",AR135="",AM135=""),"",((10.44*(AR135^1.85))/((AN135^1.85)*(AM135^4.8655)))) ->  | AP135: =IF(AND($A136<>"",AI135=0),AP133,IF(AND($A136<>"",AI135<>0),AI135,0)) -> 0 | AQ135: =IF(AND($A136<>"",AJ135=0),AQ133,IF(AND($A136<>"",AJ135<>0),AJ135,0)) -> 0 | AR135: =IF(AND($A136<>"",AK135=0),AR133,IF(AND($A136<>"",AK135<>0),AK135,0)) -> 0 | AS135: =IF(AND($A136<>"",AL135=0),AS133,IF(AND($A136<>"",AL135<>0),AL135,0)) -> 0
M136: =IF(OR(AF136="",$R$2=""),"",IF(AND($C$311=TRUE,$K$5=A136),($M$5*144/62.4+AF136)-((L136*144/62.4)),IF(AND($F$311=TRUE,$K$6=A136),M134-K135+($M$6*144/62.4)-(O135^2/64.4),M134-K135-(O135^2/64.4)-L136*144/62.4))) ->  | N136: =IF(B135="","",IF(AND($K$5=$A136,$C$311=TRUE),$M$5*144/62.4+AF136,IF(AND($K$6=$A136,$F$311=TRUE),$M$6*144/62.4+N134-L136*144/62.4,N134-L136*144/62.4))) ->  | P136: =IF(M136="","",M136-AF136) ->  | Q136: =IF(P136="","",P136*62.4/144) ->  | R136: =IF(N136="","",(N136-AF136)*62.4/144) ->  | V136: =IF(R136="","",IF(P136<0,$O$316,IF(R136>G137,$O$317,IF(R136>75,$O$318,"")))) ->  | AB136: =IF(K135="","",K135+AB134) ->  | AF136: =IF(OR(A136="",$R$3="",AM135=""),"",C136-$R$3) ->  | AG136: =IF(AF136="","",N136) ->  | AH136: =IF(OR(AF136="",$R$2=""),"",IF(AND($A$311=1,Pump!$F$17="Yes"),IF(AND($C$311=TRUE,$K$5=A136),($M$5*144/62.4+AF136)-((L136*144/62.4)),IF(AND($F$311=TRUE,$K$6=A136),AH134-K135+($M$6*144/62.4)-(O135^2/64.4),AH134-K135-(O135^2/64.4))),AH134-K135-(O135^2/64.4))) -> 
B137: =IF(AND(A138>0,C138>0),SQRT((A138-A136)^2+(C138-C136)^2),"") ->  | G137: =IF(OR(A136="",AI137=0),"",AL137) ->  | H137: =IF(OR($A136="",AI137=0,AJ137=0),"",AM137) ->  | I137: =IF(OR($A136="",AI137=0,AJ137=0),"",AN137) ->  | J137: =IF(AND(A138<>"",OR(AK137<>0,AJ137<>0,AI137<>0)),AO137,"") ->  | K137: =IF(OR(A138="",AR137="",AM137=""),"",(10.44*B137*(AR137^1.85))/((AN137^1.85)*(AM137^4.8655))) ->  | O137: =IF(OR(A138="",AR137="",AM137="",$R$2=""),"",(AR137/7.48/60)/(PI()*((AM137/2)/12)^2)) ->  | AD137: =IF(A138="","",IF(E137="",AD135,IF(ISNUMBER(SEARCH(3408,Main!E137)),'Pipe Tables'!$E$32,IF(ISNUMBER(SEARCH(4710,Main!E137)),'Pipe Tables'!$E$32,IF(ISNUMBER(SEARCH('Pipe Tables'!$E$33,Main!E137)),'Pipe Tables'!$E$33,IF(ISNUMBER(SEARCH('Pipe Tables'!$E$34,Main!E137)),'Pipe Tables'!$E$34,IF(ISNUMBER(SEARCH('Pipe Tables'!$E$35,Main!E137)),'Pipe Tables'!$E$35))))))) ->  | AI137: =D137 -> 0 | AJ137: =E137 -> 0 | AK137: =F137 -> 0 | AL137: =IF(AQ137=0,"",HLOOKUP(AQ137,Pipe_Pressure,MATCH(AP137,Pipe_Press_Size,0),FALSE)) ->  | AM137: =IF(OR(AP137=0,AQ137=0),"",VLOOKUP(AP137,Pipe_Diameter,MATCH(AQ137,Pipe_Diam_Material,0))) ->  | AN137: =IF(A138="","",VLOOKUP(AD137,Hazen_Williams,2)) ->  | AO137: =IF(OR(A138="",AR137="",AM137=""),"",((10.44*(AR137^1.85))/((AN137^1.85)*(AM137^4.8655)))) ->  | AP137: =IF(AND($A138<>"",AI137=0),AP135,IF(AND($A138<>"",AI137<>0),AI137,0)) -> 0 | AQ137: =IF(AND($A138<>"",AJ137=0),AQ135,IF(AND($A138<>"",AJ137<>0),AJ137,0)) -> 0 | AR137: =IF(AND($A138<>"",AK137=0),AR135,IF(AND($A138<>"",AK137<>0),AK137,0)) -> 0 | AS137: =IF(AND($A138<>"",AL137=0),AS135,IF(AND($A138<>"",AL137<>0),AL137,0)) -> 0
M138: =IF(OR(AF138="",$R$2=""),"",IF(AND($C$311=TRUE,$K$5=A138),($M$5*144/62.4+AF138)-((L138*144/62.4)),IF(AND($F$311=TRUE,$K$6=A138),M136-K137+($M$6*144/62.4)-(O137^2/64.4),M136-K137-(O137^2/64.4)-L138*144/62.4))) ->  | N138: =IF(B137="","",IF(AND($K$5=$A138,$C$311=TRUE),$M$5*144/62.4+AF138,IF(AND($K$6=$A138,$F$311=TRUE),$M$6*144/62.4+N136-L138*144/62.4,N136-L138*144/62.4))) ->  | P138: =IF(M138="","",M138-AF138) ->  | Q138: =IF(P138="","",P138*62.4/144) ->  | R138: =IF(N138="","",(N138-AF138)*62.4/144) ->  | V138: =IF(R138="","",IF(P138<0,$O$316,IF(R138>G139,$O$317,IF(R138>75,$O$318,"")))) ->  | AB138: =IF(K137="","",K137+AB136) ->  | AF138: =IF(OR(A138="",$R$3="",AM137=""),"",C138-$R$3) ->  | AG138: =IF(AF138="","",N138) ->  | AH138: =IF(OR(AF138="",$R$2=""),"",IF(AND($A$311=1,Pump!$F$17="Yes"),IF(AND($C$311=TRUE,$K$5=A138),($M$5*144/62.4+AF138)-((L138*144/62.4)),IF(AND($F$311=TRUE,$K$6=A138),AH136-K137+($M$6*144/62.4)-(O137^2/64.4),AH136-K137-(O137^2/64.4))),AH136-K137-(O137^2/64.4))) -> 
B139: =IF(AND(A140>0,C140>0),SQRT((A140-A138)^2+(C140-C138)^2),"") ->  | G139: =IF(OR(A138="",AI139=0),"",AL139) ->  | H139: =IF(OR($A138="",AI139=0,AJ139=0),"",AM139) ->  | I139: =IF(OR($A138="",AI139=0,AJ139=0),"",AN139) ->  | J139: =IF(AND(A140<>"",OR(AK139<>0,AJ139<>0,AI139<>0)),AO139,"") ->  | K139: =IF(OR(A140="",AR139="",AM139=""),"",(10.44*B139*(AR139^1.85))/((AN139^1.85)*(AM139^4.8655))) ->  | O139: =IF(OR(A140="",AR139="",AM139="",$R$2=""),"",(AR139/7.48/60)/(PI()*((AM139/2)/12)^2)) ->  | AD139: =IF(A140="","",IF(E139="",AD137,IF(ISNUMBER(SEARCH(3408,Main!E139)),'Pipe Tables'!$E$32,IF(ISNUMBER(SEARCH(4710,Main!E139)),'Pipe Tables'!$E$32,IF(ISNUMBER(SEARCH('Pipe Tables'!$E$33,Main!E139)),'Pipe Tables'!$E$33,IF(ISNUMBER(SEARCH('Pipe Tables'!$E$34,Main!E139)),'Pipe Tables'!$E$34,IF(ISNUMBER(SEARCH('Pipe Tables'!$E$35,Main!E139)),'Pipe Tables'!$E$35))))))) ->  | AI139: =D139 -> 0 | AJ139: =E139 -> 0 | AK139: =F139 -> 0 | AL139: =IF(AQ139=0,"",HLOOKUP(AQ139,Pipe_Pressure,MATCH(AP139,Pipe_Press_Size,0),FALSE)) ->  | AM139: =IF(OR(AP139=0,AQ139=0),"",VLOOKUP(AP139,Pipe_Diameter,MATCH(AQ139,Pipe_Diam_Material,0))) ->  | AN139: =IF(A140="","",VLOOKUP(AD139,Hazen_Williams,2)) ->  | AO139: =IF(OR(A140="",AR139="",AM139=""),"",((10.44*(AR139^1.85))/((AN139^1.85)*(AM139^4.8655)))) ->  | AP139: =IF(AND($A140<>"",AI139=0),AP137,IF(AND($A140<>"",AI139<>0),AI139,0)) -> 0 | AQ139: =IF(AND($A140<>"",AJ139=0),AQ137,IF(AND($A140<>"",AJ139<>0),AJ139,0)) -> 0 | AR139: =IF(AND($A140<>"",AK139=0),AR137,IF(AND($A140<>"",AK139<>0),AK139,0)) -> 0 | AS139: =IF(AND($A140<>"",AL139=0),AS137,IF(AND($A140<>"",AL139<>0),AL139,0)) -> 0
M140: =IF(OR(AF140="",$R$2=""),"",IF(AND($C$311=TRUE,$K$5=A140),($M$5*144/62.4+AF140)-((L140*144/62.4)),IF(AND($F$311=TRUE,$K$6=A140),M138-K139+($M$6*144/62.4)-(O139^2/64.4),M138-K139-(O139^2/64.4)-L140*144/62.4))) ->  | N140: =IF(B139="","",IF(AND($K$5=$A140,$C$311=TRUE),$M$5*144/62.4+AF140,IF(AND($K$6=$A140,$F$311=TRUE),$M$6*144/62.4+N138-L140*144/62.4,N138-L140*144/62.4))) ->  | P140: =IF(M140="","",M140-AF140) ->  | Q140: =IF(P140="","",P140*62.4/144) ->  | R140: =IF(N140="","",(N140-AF140)*62.4/144) ->  | V140: =IF(R140="","",IF(P140<0,$O$316,IF(R140>G141,$O$317,IF(R140>75,$O$318,"")))) ->  | AB140: =IF(K139="","",K139+AB138) ->  | AF140: =IF(OR(A140="",$R$3="",AM139=""),"",C140-$R$3) ->  | AG140: =IF(AF140="","",N140) ->  | AH140: =IF(OR(AF140="",$R$2=""),"",IF(AND($A$311=1,Pump!$F$17="Yes"),IF(AND($C$311=TRUE,$K$5=A140),($M$5*144/62.4+AF140)-((L140*144/62.4)),IF(AND($F$311=TRUE,$K$6=A140),AH138-K139+($M$6*144/62.4)-(O139^2/64.4),AH138-K139-(O139^2/64.4))),AH138-K139-(O139^2/64.4))) -> 
B141: =IF(AND(A142>0,C142>0),SQRT((A142-A140)^2+(C142-C140)^2),"") ->  | G141: =IF(OR(A140="",AI141=0),"",AL141) ->  | H141: =IF(OR($A140="",AI141=0,AJ141=0),"",AM141) ->  | I141: =IF(OR($A140="",AI141=0,AJ141=0),"",AN141) ->  | J141: =IF(AND(A142<>"",OR(AK141<>0,AJ141<>0,AI141<>0)),AO141,"") ->  | K141: =IF(OR(A142="",AR141="",AM141=""),"",(10.44*B141*(AR141^1.85))/((AN141^1.85)*(AM141^4.8655))) ->  | O141: =IF(OR(A142="",AR141="",AM141="",$R$2=""),"",(AR141/7.48/60)/(PI()*((AM141/2)/12)^2)) ->  | AD141: =IF(A142="","",IF(E141="",AD139,IF(ISNUMBER(SEARCH(3408,Main!E141)),'Pipe Tables'!$E$32,IF(ISNUMBER(SEARCH(4710,Main!E141)),'Pipe Tables'!$E$32,IF(ISNUMBER(SEARCH('Pipe Tables'!$E$33,Main!E141)),'Pipe Tables'!$E$33,IF(ISNUMBER(SEARCH('Pipe Tables'!$E$34,Main!E141)),'Pipe Tables'!$E$34,IF(ISNUMBER(SEARCH('Pipe Tables'!$E$35,Main!E141)),'Pipe Tables'!$E$35))))))) ->  | AI141: =D141 -> 0 | AJ141: =E141 -> 0 | AK141: =F141 -> 0 | AL141: =IF(AQ141=0,"",HLOOKUP(AQ141,Pipe_Pressure,MATCH(AP141,Pipe_Press_Size,0),FALSE)) ->  | AM141: =IF(OR(AP141=0,AQ141=0),"",VLOOKUP(AP141,Pipe_Diameter,MATCH(AQ141,Pipe_Diam_Material,0))) ->  | AN141: =IF(A142="","",VLOOKUP(AD141,Hazen_Williams,2)) ->  | AO141: =IF(OR(A142="",AR141="",AM141=""),"",((10.44*(AR141^1.85))/((AN141^1.85)*(AM141^4.8655)))) ->  | AP141: =IF(AND($A142<>"",AI141=0),AP139,IF(AND($A142<>"",AI141<>0),AI141,0)) -> 0 | AQ141: =IF(AND($A142<>"",AJ141=0),AQ139,IF(AND($A142<>"",AJ141<>0),AJ141,0)) -> 0 | AR141: =IF(AND($A142<>"",AK141=0),AR139,IF(AND($A142<>"",AK141<>0),AK141,0)) -> 0 | AS141: =IF(AND($A142<>"",AL141=0),AS139,IF(AND($A142<>"",AL141<>0),AL141,0)) -> 0
M142: =IF(OR(AF142="",$R$2=""),"",IF(AND($C$311=TRUE,$K$5=A142),($M$5*144/62.4+AF142)-((L142*144/62.4)),IF(AND($F$311=TRUE,$K$6=A142),M140-K141+($M$6*144/62.4)-(O141^2/64.4),M140-K141-(O141^2/64.4)-L142*144/62.4))) ->  | N142: =IF(B141="","",IF(AND($K$5=$A142,$C$311=TRUE),$M$5*144/62.4+AF142,IF(AND($K$6=$A142,$F$311=TRUE),$M$6*144/62.4+N140-L142*144/62.4,N140-L142*144/62.4))) ->  | P142: =IF(M142="","",M142-AF142) ->  | Q142: =IF(P142="","",P142*62.4/144) ->  | R142: =IF(N142="","",(N142-AF142)*62.4/144) ->  | V142: =IF(R142="","",IF(P142<0,$O$316,IF(R142>G143,$O$317,IF(R142>75,$O$318,"")))) ->  | AB142: =IF(K141="","",K141+AB140) ->  | AF142: =IF(OR(A142="",$R$3="",AM141=""),"",C142-$R$3) ->  | AG142: =IF(AF142="","",N142) ->  | AH142: =IF(OR(AF142="",$R$2=""),"",IF(AND($A$311=1,Pump!$F$17="Yes"),IF(AND($C$311=TRUE,$K$5=A142),($M$5*144/62.4+AF142)-((L142*144/62.4)),IF(AND($F$311=TRUE,$K$6=A142),AH140-K141+($M$6*144/62.4)-(O141^2/64.4),AH140-K141-(O141^2/64.4))),AH140-K141-(O141^2/64.4))) -> 
B143: =IF(AND(A144>0,C144>0),SQRT((A144-A142)^2+(C144-C142)^2),"") ->  | G143: =IF(OR(A142="",AI143=0),"",AL143) ->  | H143: =IF(OR($A142="",AI143=0,AJ143=0),"",AM143) ->  | I143: =IF(OR($A142="",AI143=0,AJ143=0),"",AN143) ->  | J143: =IF(AND(A144<>"",OR(AK143<>0,AJ143<>0,AI143<>0)),AO143,"") ->  | K143: =IF(OR(A144="",AR143="",AM143=""),"",(10.44*B143*(AR143^1.85))/((AN143^1.85)*(AM143^4.8655))) ->  | O143: =IF(OR(A144="",AR143="",AM143="",$R$2=""),"",(AR143/7.48/60)/(PI()*((AM143/2)/12)^2)) ->  | AD143: =IF(A144="","",IF(E143="",AD141,IF(ISNUMBER(SEARCH(3408,Main!E143)),'Pipe Tables'!$E$32,IF(ISNUMBER(SEARCH(4710,Main!E143)),'Pipe Tables'!$E$32,IF(ISNUMBER(SEARCH('Pipe Tables'!$E$33,Main!E143)),'Pipe Tables'!$E$33,IF(ISNUMBER(SEARCH('Pipe Tables'!$E$34,Main!E143)),'Pipe Tables'!$E$34,IF(ISNUMBER(SEARCH('Pipe Tables'!$E$35,Main!E143)),'Pipe Tables'!$E$35))))))) ->  | AI143: =D143 -> 0 | AJ143: =E143 -> 0 | AK143: =F143 -> 0 | AL143: =IF(AQ143=0,"",HLOOKUP(AQ143,Pipe_Pressure,MATCH(AP143,Pipe_Press_Size,0),FALSE)) ->  | AM143: =IF(OR(AP143=0,AQ143=0),"",VLOOKUP(AP143,Pipe_Diameter,MATCH(AQ143,Pipe_Diam_Material,0))) ->  | AN143: =IF(A144="","",VLOOKUP(AD143,Hazen_Williams,2)) ->  | AO143: =IF(OR(A144="",AR143="",AM143=""),"",((10.44*(AR143^1.85))/((AN143^1.85)*(AM143^4.8655)))) ->  | AP143: =IF(AND($A144<>"",AI143=0),AP141,IF(AND($A144<>"",AI143<>0),AI143,0)) -> 0 | AQ143: =IF(AND($A144<>"",AJ143=0),AQ141,IF(AND($A144<>"",AJ143<>0),AJ143,0)) -> 0 | AR143: =IF(AND($A144<>"",AK143=0),AR141,IF(AND($A144<>"",AK143<>0),AK143,0)) -> 0 | AS143: =IF(AND($A144<>"",AL143=0),AS141,IF(AND($A144<>"",AL143<>0),AL143,0)) -> 0
M144: =IF(OR(AF144="",$R$2=""),"",IF(AND($C$311=TRUE,$K$5=A144),($M$5*144/62.4+AF144)-((L144*144/62.4)),IF(AND($F$311=TRUE,$K$6=A144),M142-K143+($M$6*144/62.4)-(O143^2/64.4),M142-K143-(O143^2/64.4)-L144*144/62.4))) ->  | N144: =IF(B143="","",IF(AND($K$5=$A144,$C$311=TRUE),$M$5*144/62.4+AF144,IF(AND($K$6=$A144,$F$311=TRUE),$M$6*144/62.4+N142-L144*144/62.4,N142-L144*144/62.4))) ->  | P144: =IF(M144="","",M144-AF144) ->  | Q144: =IF(P144="","",P144*62.4/144) ->  | R144: =IF(N144="","",(N144-AF144)*62.4/144) ->  | V144: =IF(R144="","",IF(P144<0,$O$316,IF(R144>G145,$O$317,IF(R144>75,$O$318,"")))) ->  | AB144: =IF(K143="","",K143+AB142) ->  | AF144: =IF(OR(A144="",$R$3="",AM143=""),"",C144-$R$3) ->  | AG144: =IF(AF144="","",N144) ->  | AH144: =IF(OR(AF144="",$R$2=""),"",IF(AND($A$311=1,Pump!$F$17="Yes"),IF(AND($C$311=TRUE,$K$5=A144),($M$5*144/62.4+AF144)-((L144*144/62.4)),IF(AND($F$311=TRUE,$K$6=A144),AH142-K143+($M$6*144/62.4)-(O143^2/64.4),AH142-K143-(O143^2/64.4))),AH142-K143-(O143^2/64.4))) -> 
B145: =IF(AND(A146>0,C146>0),SQRT((A146-A144)^2+(C146-C144)^2),"") ->  | G145: =IF(OR(A144="",AI145=0),"",AL145) ->  | H145: =IF(OR($A144="",AI145=0,AJ145=0),"",AM145) ->  | I145: =IF(OR($A144="",AI145=0,AJ145=0),"",AN145) ->  | J145: =IF(AND(A146<>"",OR(AK145<>0,AJ145<>0,AI145<>0)),AO145,"") ->  | K145: =IF(OR(A146="",AR145="",AM145=""),"",(10.44*B145*(AR145^1.85))/((AN145^1.85)*(AM145^4.8655))) ->  | O145: =IF(OR(A146="",AR145="",AM145="",$R$2=""),"",(AR145/7.48/60)/(PI()*((AM145/2)/12)^2)) ->  | AD145: =IF(A146="","",IF(E145="",AD143,IF(ISNUMBER(SEARCH(3408,Main!E145)),'Pipe Tables'!$E$32,IF(ISNUMBER(SEARCH(4710,Main!E145)),'Pipe Tables'!$E$32,IF(ISNUMBER(SEARCH('Pipe Tables'!$E$33,Main!E145)),'Pipe Tables'!$E$33,IF(ISNUMBER(SEARCH('Pipe Tables'!$E$34,Main!E145)),'Pipe Tables'!$E$34,IF(ISNUMBER(SEARCH('Pipe Tables'!$E$35,Main!E145)),'Pipe Tables'!$E$35))))))) ->  | AI145: =D145 -> 0 | AJ145: =E145 -> 0 | AK145: =F145 -> 0 | AL145: =IF(AQ145=0,"",HLOOKUP(AQ145,Pipe_Pressure,MATCH(AP145,Pipe_Press_Size,0),FALSE)) ->  | AM145: =IF(OR(AP145=0,AQ145=0),"",VLOOKUP(AP145,Pipe_Diameter,MATCH(AQ145,Pipe_Diam_Material,0))) ->  | AN145: =IF(A146="","",VLOOKUP(AD145,Hazen_Williams,2)) ->  | AO145: =IF(OR(A146="",AR145="",AM145=""),"",((10.44*(AR145^1.85))/((AN145^1.85)*(AM145^4.8655)))) ->  | AP145: =IF(AND($A146<>"",AI145=0),AP143,IF(AND($A146<>"",AI145<>0),AI145,0)) -> 0 | AQ145: =IF(AND($A146<>"",AJ145=0),AQ143,IF(AND($A146<>"",AJ145<>0),AJ145,0)) -> 0 | AR145: =IF(AND($A146<>"",AK145=0),AR143,IF(AND($A146<>"",AK145<>0),AK145,0)) -> 0 | AS145: =IF(AND($A146<>"",AL145=0),AS143,IF(AND($A146<>"",AL145<>0),AL145,0)) -> 0
M146: =IF(OR(AF146="",$R$2=""),"",IF(AND($C$311=TRUE,$K$5=A146),($M$5*144/62.4+AF146)-((L146*144/62.4)),IF(AND($F$311=TRUE,$K$6=A146),M144-K145+($M$6*144/62.4)-(O145^2/64.4),M144-K145-(O145^2/64.4)-L146*144/62.4))) ->  | N146: =IF(B145="","",IF(AND($K$5=$A146,$C$311=TRUE),$M$5*144/62.4+AF146,IF(AND($K$6=$A146,$F$311=TRUE),$M$6*144/62.4+N144-L146*144/62.4,N144-L146*144/62.4))) ->  | P146: =IF(M146="","",M146-AF146) ->  | Q146: =IF(P146="","",P146*62.4/144) ->  | R146: =IF(N146="","",(N146-AF146)*62.4/144) ->  | V146: =IF(R146="","",IF(P146<0,$O$316,IF(R146>G147,$O$317,IF(R146>75,$O$318,"")))) ->  | AB146: =IF(K145="","",K145+AB144) ->  | AF146: =IF(OR(A146="",$R$3="",AM145=""),"",C146-$R$3) ->  | AG146: =IF(AF146="","",N146) ->  | AH146: =IF(OR(AF146="",$R$2=""),"",IF(AND($A$311=1,Pump!$F$17="Yes"),IF(AND($C$311=TRUE,$K$5=A146),($M$5*144/62.4+AF146)-((L146*144/62.4)),IF(AND($F$311=TRUE,$K$6=A146),AH144-K145+($M$6*144/62.4)-(O145^2/64.4),AH144-K145-(O145^2/64.4))),AH144-K145-(O145^2/64.4))) -> 
B147: =IF(AND(A148>0,C148>0),SQRT((A148-A146)^2+(C148-C146)^2),"") ->  | G147: =IF(OR(A146="",AI147=0),"",AL147) ->  | H147: =IF(OR($A146="",AI147=0,AJ147=0),"",AM147) ->  | I147: =IF(OR($A146="",AI147=0,AJ147=0),"",AN147) ->  | J147: =IF(AND(A148<>"",OR(AK147<>0,AJ147<>0,AI147<>0)),AO147,"") ->  | K147: =IF(OR(A148="",AR147="",AM147=""),"",(10.44*B147*(AR147^1.85))/((AN147^1.85)*(AM147^4.8655))) ->  | O147: =IF(OR(A148="",AR147="",AM147="",$R$2=""),"",(AR147/7.48/60)/(PI()*((AM147/2)/12)^2)) ->  | AD147: =IF(A148="","",IF(E147="",AD145,IF(ISNUMBER(SEARCH(3408,Main!E147)),'Pipe Tables'!$E$32,IF(ISNUMBER(SEARCH(4710,Main!E147)),'Pipe Tables'!$E$32,IF(ISNUMBER(SEARCH('Pipe Tables'!$E$33,Main!E147)),'Pipe Tables'!$E$33,IF(ISNUMBER(SEARCH('Pipe Tables'!$E$34,Main!E147)),'Pipe Tables'!$E$34,IF(ISNUMBER(SEARCH('Pipe Tables'!$E$35,Main!E147)),'Pipe Tables'!$E$35))))))) ->  | AI147: =D147 -> 0 | AJ147: =E147 -> 0 | AK147: =F147 -> 0 | AL147: =IF(AQ147=0,"",HLOOKUP(AQ147,Pipe_Pressure,MATCH(AP147,Pipe_Press_Size,0),FALSE)) ->  | AM147: =IF(OR(AP147=0,AQ147=0),"",VLOOKUP(AP147,Pipe_Diameter,MATCH(AQ147,Pipe_Diam_Material,0))) ->  | AN147: =IF(A148="","",VLOOKUP(AD147,Hazen_Williams,2)) ->  | AO147: =IF(OR(A148="",AR147="",AM147=""),"",((10.44*(AR147^1.85))/((AN147^1.85)*(AM147^4.8655)))) ->  | AP147: =IF(AND($A148<>"",AI147=0),AP145,IF(AND($A148<>"",AI147<>0),AI147,0)) -> 0 | AQ147: =IF(AND($A148<>"",AJ147=0),AQ145,IF(AND($A148<>"",AJ147<>0),AJ147,0)) -> 0 | AR147: =IF(AND($A148<>"",AK147=0),AR145,IF(AND($A148<>"",AK147<>0),AK147,0)) -> 0 | AS147: =IF(AND($A148<>"",AL147=0),AS145,IF(AND($A148<>"",AL147<>0),AL147,0)) -> 0
M148: =IF(OR(AF148="",$R$2=""),"",IF(AND($C$311=TRUE,$K$5=A148),($M$5*144/62.4+AF148)-((L148*144/62.4)),IF(AND($F$311=TRUE,$K$6=A148),M146-K147+($M$6*144/62.4)-(O147^2/64.4),M146-K147-(O147^2/64.4)-L148*144/62.4))) ->  | N148: =IF(B147="","",IF(AND($K$5=$A148,$C$311=TRUE),$M$5*144/62.4+AF148,IF(AND($K$6=$A148,$F$311=TRUE),$M$6*144/62.4+N146-L148*144/62.4,N146-L148*144/62.4))) ->  | P148: =IF(M148="","",M148-AF148) ->  | Q148: =IF(P148="","",P148*62.4/144) ->  | R148: =IF(N148="","",(N148-AF148)*62.4/144) ->  | V148: =IF(R148="","",IF(P148<0,$O$316,IF(R148>G149,$O$317,IF(R148>75,$O$318,"")))) ->  | AB148: =IF(K147="","",K147+AB146) ->  | AF148: =IF(OR(A148="",$R$3="",AM147=""),"",C148-$R$3) ->  | AG148: =IF(AF148="","",N148) ->  | AH148: =IF(OR(AF148="",$R$2=""),"",IF(AND($A$311=1,Pump!$F$17="Yes"),IF(AND($C$311=TRUE,$K$5=A148),($M$5*144/62.4+AF148)-((L148*144/62.4)),IF(AND($F$311=TRUE,$K$6=A148),AH146-K147+($M$6*144/62.4)-(O147^2/64.4),AH146-K147-(O147^2/64.4))),AH146-K147-(O147^2/64.4))) -> 
B149: =IF(AND(A150>0,C150>0),SQRT((A150-A148)^2+(C150-C148)^2),"") ->  | G149: =IF(OR(A148="",AI149=0),"",AL149) ->  | H149: =IF(OR($A148="",AI149=0,AJ149=0),"",AM149) ->  | I149: =IF(OR($A148="",AI149=0,AJ149=0),"",AN149) ->  | J149: =IF(AND(A150<>"",OR(AK149<>0,AJ149<>0,AI149<>0)),AO149,"") ->  | K149: =IF(OR(A150="",AR149="",AM149=""),"",(10.44*B149*(AR149^1.85))/((AN149^1.85)*(AM149^4.8655))) ->  | O149: =IF(OR(A150="",AR149="",AM149="",$R$2=""),"",(AR149/7.48/60)/(PI()*((AM149/2)/12)^2)) ->  | AD149: =IF(A150="","",IF(E149="",AD147,IF(ISNUMBER(SEARCH(3408,Main!E149)),'Pipe Tables'!$E$32,IF(ISNUMBER(SEARCH(4710,Main!E149)),'Pipe Tables'!$E$32,IF(ISNUMBER(SEARCH('Pipe Tables'!$E$33,Main!E149)),'Pipe Tables'!$E$33,IF(ISNUMBER(SEARCH('Pipe Tables'!$E$34,Main!E149)),'Pipe Tables'!$E$34,IF(ISNUMBER(SEARCH('Pipe Tables'!$E$35,Main!E149)),'Pipe Tables'!$E$35))))))) ->  | AI149: =D149 -> 0 | AJ149: =E149 -> 0 | AK149: =F149 -> 0 | AL149: =IF(AQ149=0,"",HLOOKUP(AQ149,Pipe_Pressure,MATCH(AP149,Pipe_Press_Size,0),FALSE)) ->  | AM149: =IF(OR(AP149=0,AQ149=0),"",VLOOKUP(AP149,Pipe_Diameter,MATCH(AQ149,Pipe_Diam_Material,0))) ->  | AN149: =IF(A150="","",VLOOKUP(AD149,Hazen_Williams,2)) ->  | AO149: =IF(OR(A150="",AR149="",AM149=""),"",((10.44*(AR149^1.85))/((AN149^1.85)*(AM149^4.8655)))) ->  | AP149: =IF(AND($A150<>"",AI149=0),AP147,IF(AND($A150<>"",AI149<>0),AI149,0)) -> 0 | AQ149: =IF(AND($A150<>"",AJ149=0),AQ147,IF(AND($A150<>"",AJ149<>0),AJ149,0)) -> 0 | AR149: =IF(AND($A150<>"",AK149=0),AR147,IF(AND($A150<>"",AK149<>0),AK149,0)) -> 0 | AS149: =IF(AND($A150<>"",AL149=0),AS147,IF(AND($A150<>"",AL149<>0),AL149,0)) -> 0
M150: =IF(OR(AF150="",$R$2=""),"",IF(AND($C$311=TRUE,$K$5=A150),($M$5*144/62.4+AF150)-((L150*144/62.4)),IF(AND($F$311=TRUE,$K$6=A150),M148-K149+($M$6*144/62.4)-(O149^2/64.4),M148-K149-(O149^2/64.4)-L150*144/62.4))) ->  | N150: =IF(B149="","",IF(AND($K$5=$A150,$C$311=TRUE),$M$5*144/62.4+AF150,IF(AND($K$6=$A150,$F$311=TRUE),$M$6*144/62.4+N148-L150*144/62.4,N148-L150*144/62.4))) ->  | P150: =IF(M150="","",M150-AF150) ->  | Q150: =IF(P150="","",P150*62.4/144) ->  | R150: =IF(N150="","",(N150-AF150)*62.4/144) ->  | V150: =IF(R150="","",IF(P150<0,$O$316,IF(R150>G151,$O$317,IF(R150>75,$O$318,"")))) ->  | AB150: =IF(K149="","",K149+AB148) ->  | AF150: =IF(OR(A150="",$R$3="",AM149=""),"",C150-$R$3) ->  | AG150: =IF(AF150="","",N150) ->  | AH150: =IF(OR(AF150="",$R$2=""),"",IF(AND($A$311=1,Pump!$F$17="Yes"),IF(AND($C$311=TRUE,$K$5=A150),($M$5*144/62.4+AF150)-((L150*144/62.4)),IF(AND($F$311=TRUE,$K$6=A150),AH148-K149+($M$6*144/62.4)-(O149^2/64.4),AH148-K149-(O149^2/64.4))),AH148-K149-(O149^2/64.4))) -> 
B151: =IF(AND(A152>0,C152>0),SQRT((A152-A150)^2+(C152-C150)^2),"") ->  | G151: =IF(OR(A150="",AI151=0),"",AL151) ->  | H151: =IF(OR($A150="",AI151=0,AJ151=0),"",AM151) ->  | I151: =IF(OR($A150="",AI151=0,AJ151=0),"",AN151) ->  | J151: =IF(AND(A152<>"",OR(AK151<>0,AJ151<>0,AI151<>0)),AO151,"") ->  | K151: =IF(OR(A152="",AR151="",AM151=""),"",(10.44*B151*(AR151^1.85))/((AN151^1.85)*(AM151^4.8655))) ->  | O151: =IF(OR(A152="",AR151="",AM151="",$R$2=""),"",(AR151/7.48/60)/(PI()*((AM151/2)/12)^2)) ->  | AD151: =IF(A152="","",IF(E151="",AD149,IF(ISNUMBER(SEARCH(3408,Main!E151)),'Pipe Tables'!$E$32,IF(ISNUMBER(SEARCH(4710,Main!E151)),'Pipe Tables'!$E$32,IF(ISNUMBER(SEARCH('Pipe Tables'!$E$33,Main!E151)),'Pipe Tables'!$E$33,IF(ISNUMBER(SEARCH('Pipe Tables'!$E$34,Main!E151)),'Pipe Tables'!$E$34,IF(ISNUMBER(SEARCH('Pipe Tables'!$E$35,Main!E151)),'Pipe Tables'!$E$35))))))) ->  | AI151: =D151 -> 0 | AJ151: =E151 -> 0 | AK151: =F151 -> 0 | AL151: =IF(AQ151=0,"",HLOOKUP(AQ151,Pipe_Pressure,MATCH(AP151,Pipe_Press_Size,0),FALSE)) ->  | AM151: =IF(OR(AP151=0,AQ151=0),"",VLOOKUP(AP151,Pipe_Diameter,MATCH(AQ151,Pipe_Diam_Material,0))) ->  | AN151: =IF(A152="","",VLOOKUP(AD151,Hazen_Williams,2)) ->  | AO151: =IF(OR(A152="",AR151="",AM151=""),"",((10.44*(AR151^1.85))/((AN151^1.85)*(AM151^4.8655)))) ->  | AP151: =IF(AND($A152<>"",AI151=0),AP149,IF(AND($A152<>"",AI151<>0),AI151,0)) -> 0 | AQ151: =IF(AND($A152<>"",AJ151=0),AQ149,IF(AND($A152<>"",AJ151<>0),AJ151,0)) -> 0 | AR151: =IF(AND($A152<>"",AK151=0),AR149,IF(AND($A152<>"",AK151<>0),AK151,0)) -> 0 | AS151: =IF(AND($A152<>"",AL151=0),AS149,IF(AND($A152<>"",AL151<>0),AL151,0)) -> 0
M152: =IF(OR(AF152="",$R$2=""),"",IF(AND($C$311=TRUE,$K$5=A152),($M$5*144/62.4+AF152)-((L152*144/62.4)),IF(AND($F$311=TRUE,$K$6=A152),M150-K151+($M$6*144/62.4)-(O151^2/64.4),M150-K151-(O151^2/64.4)-L152*144/62.4))) ->  | N152: =IF(B151="","",IF(AND($K$5=$A152,$C$311=TRUE),$M$5*144/62.4+AF152,IF(AND($K$6=$A152,$F$311=TRUE),$M$6*144/62.4+N150-L152*144/62.4,N150-L152*144/62.4))) ->  | P152: =IF(M152="","",M152-AF152) ->  | Q152: =IF(P152="","",P152*62.4/144) ->  | R152: =IF(N152="","",(N152-AF152)*62.4/144) ->  | V152: =IF(R152="","",IF(P152<0,$O$316,IF(R152>G153,$O$317,IF(R152>75,$O$318,"")))) ->  | AB152: =IF(K151="","",K151+AB150) ->  | AF152: =IF(OR(A152="",$R$3="",AM151=""),"",C152-$R$3) ->  | AG152: =IF(AF152="","",N152) ->  | AH152: =IF(OR(AF152="",$R$2=""),"",IF(AND($A$311=1,Pump!$F$17="Yes"),IF(AND($C$311=TRUE,$K$5=A152),($M$5*144/62.4+AF152)-((L152*144/62.4)),IF(AND($F$311=TRUE,$K$6=A152),AH150-K151+($M$6*144/62.4)-(O151^2/64.4),AH150-K151-(O151^2/64.4))),AH150-K151-(O151^2/64.4))) -> 
B153: =IF(AND(A154>0,C154>0),SQRT((A154-A152)^2+(C154-C152)^2),"") ->  | G153: =IF(OR(A152="",AI153=0),"",AL153) ->  | H153: =IF(OR($A152="",AI153=0,AJ153=0),"",AM153) ->  | I153: =IF(OR($A152="",AI153=0,AJ153=0),"",AN153) ->  | J153: =IF(AND(A154<>"",OR(AK153<>0,AJ153<>0,AI153<>0)),AO153,"") ->  | K153: =IF(OR(A154="",AR153="",AM153=""),"",(10.44*B153*(AR153^1.85))/((AN153^1.85)*(AM153^4.8655))) ->  | O153: =IF(OR(A154="",AR153="",AM153="",$R$2=""),"",(AR153/7.48/60)/(PI()*((AM153/2)/12)^2)) ->  | AD153: =IF(A154="","",IF(E153="",AD151,IF(ISNUMBER(SEARCH(3408,Main!E153)),'Pipe Tables'!$E$32,IF(ISNUMBER(SEARCH(4710,Main!E153)),'Pipe Tables'!$E$32,IF(ISNUMBER(SEARCH('Pipe Tables'!$E$33,Main!E153)),'Pipe Tables'!$E$33,IF(ISNUMBER(SEARCH('Pipe Tables'!$E$34,Main!E153)),'Pipe Tables'!$E$34,IF(ISNUMBER(SEARCH('Pipe Tables'!$E$35,Main!E153)),'Pipe Tables'!$E$35))))))) ->  | AI153: =D153 -> 0 | AJ153: =E153 -> 0 | AK153: =F153 -> 0 | AL153: =IF(AQ153=0,"",HLOOKUP(AQ153,Pipe_Pressure,MATCH(AP153,Pipe_Press_Size,0),FALSE)) ->  | AM153: =IF(OR(AP153=0,AQ153=0),"",VLOOKUP(AP153,Pipe_Diameter,MATCH(AQ153,Pipe_Diam_Material,0))) ->  | AN153: =IF(A154="","",VLOOKUP(AD153,Hazen_Williams,2)) ->  | AO153: =IF(OR(A154="",AR153="",AM153=""),"",((10.44*(AR153^1.85))/((AN153^1.85)*(AM153^4.8655)))) ->  | AP153: =IF(AND($A154<>"",AI153=0),AP151,IF(AND($A154<>"",AI153<>0),AI153,0)) -> 0 | AQ153: =IF(AND($A154<>"",AJ153=0),AQ151,IF(AND($A154<>"",AJ153<>0),AJ153,0)) -> 0 | AR153: =IF(AND($A154<>"",AK153=0),AR151,IF(AND($A154<>"",AK153<>0),AK153,0)) -> 0 | AS153: =IF(AND($A154<>"",AL153=0),AS151,IF(AND($A154<>"",AL153<>0),AL153,0)) -> 0
M154: =IF(OR(AF154="",$R$2=""),"",IF(AND($C$311=TRUE,$K$5=A154),($M$5*144/62.4+AF154)-((L154*144/62.4)),IF(AND($F$311=TRUE,$K$6=A154),M152-K153+($M$6*144/62.4)-(O153^2/64.4),M152-K153-(O153^2/64.4)-L154*144/62.4))) ->  | N154: =IF(B153="","",IF(AND($K$5=$A154,$C$311=TRUE),$M$5*144/62.4+AF154,IF(AND($K$6=$A154,$F$311=TRUE),$M$6*144/62.4+N152-L154*144/62.4,N152-L154*144/62.4))) ->  | P154: =IF(M154="","",M154-AF154) ->  | Q154: =IF(P154="","",P154*62.4/144) ->  | R154: =IF(N154="","",(N154-AF154)*62.4/144) ->  | V154: =IF(R154="","",IF(P154<0,$O$316,IF(R154>G155,$O$317,IF(R154>75,$O$318,"")))) ->  | AB154: =IF(K153="","",K153+AB152) ->  | AF154: =IF(OR(A154="",$R$3="",AM153=""),"",C154-$R$3) ->  | AG154: =IF(AF154="","",N154) ->  | AH154: =IF(OR(AF154="",$R$2=""),"",IF(AND($A$311=1,Pump!$F$17="Yes"),IF(AND($C$311=TRUE,$K$5=A154),($M$5*144/62.4+AF154)-((L154*144/62.4)),IF(AND($F$311=TRUE,$K$6=A154),AH152-K153+($M$6*144/62.4)-(O153^2/64.4),AH152-K153-(O153^2/64.4))),AH152-K153-(O153^2/64.4))) -> 
B155: =IF(AND(A156>0,C156>0),SQRT((A156-A154)^2+(C156-C154)^2),"") ->  | G155: =IF(OR(A154="",AI155=0),"",AL155) ->  | H155: =IF(OR($A154="",AI155=0,AJ155=0),"",AM155) ->  | I155: =IF(OR($A154="",AI155=0,AJ155=0),"",AN155) ->  | J155: =IF(AND(A156<>"",OR(AK155<>0,AJ155<>0,AI155<>0)),AO155,"") ->  | K155: =IF(OR(A156="",AR155="",AM155=""),"",(10.44*B155*(AR155^1.85))/((AN155^1.85)*(AM155^4.8655))) ->  | O155: =IF(OR(A156="",AR155="",AM155="",$R$2=""),"",(AR155/7.48/60)/(PI()*((AM155/2)/12)^2)) ->  | AD155: =IF(A156="","",IF(E155="",AD153,IF(ISNUMBER(SEARCH(3408,Main!E155)),'Pipe Tables'!$E$32,IF(ISNUMBER(SEARCH(4710,Main!E155)),'Pipe Tables'!$E$32,IF(ISNUMBER(SEARCH('Pipe Tables'!$E$33,Main!E155)),'Pipe Tables'!$E$33,IF(ISNUMBER(SEARCH('Pipe Tables'!$E$34,Main!E155)),'Pipe Tables'!$E$34,IF(ISNUMBER(SEARCH('Pipe Tables'!$E$35,Main!E155)),'Pipe Tables'!$E$35))))))) ->  | AI155: =D155 -> 0 | AJ155: =E155 -> 0 | AK155: =F155 -> 0 | AL155: =IF(AQ155=0,"",HLOOKUP(AQ155,Pipe_Pressure,MATCH(AP155,Pipe_Press_Size,0),FALSE)) ->  | AM155: =IF(OR(AP155=0,AQ155=0),"",VLOOKUP(AP155,Pipe_Diameter,MATCH(AQ155,Pipe_Diam_Material,0))) ->  | AN155: =IF(A156="","",VLOOKUP(AD155,Hazen_Williams,2)) ->  | AO155: =IF(OR(A156="",AR155="",AM155=""),"",((10.44*(AR155^1.85))/((AN155^1.85)*(AM155^4.8655)))) ->  | AP155: =IF(AND($A156<>"",AI155=0),AP153,IF(AND($A156<>"",AI155<>0),AI155,0)) -> 0 | AQ155: =IF(AND($A156<>"",AJ155=0),AQ153,IF(AND($A156<>"",AJ155<>0),AJ155,0)) -> 0 | AR155: =IF(AND($A156<>"",AK155=0),AR153,IF(AND($A156<>"",AK155<>0),AK155,0)) -> 0 | AS155: =IF(AND($A156<>"",AL155=0),AS153,IF(AND($A156<>"",AL155<>0),AL155,0)) -> 0
M156: =IF(OR(AF156="",$R$2=""),"",IF(AND($C$311=TRUE,$K$5=A156),($M$5*144/62.4+AF156)-((L156*144/62.4)),IF(AND($F$311=TRUE,$K$6=A156),M154-K155+($M$6*144/62.4)-(O155^2/64.4),M154-K155-(O155^2/64.4)-L156*144/62.4))) ->  | N156: =IF(B155="","",IF(AND($K$5=$A156,$C$311=TRUE),$M$5*144/62.4+AF156,IF(AND($K$6=$A156,$F$311=TRUE),$M$6*144/62.4+N154-L156*144/62.4,N154-L156*144/62.4))) ->  | P156: =IF(M156="","",M156-AF156) ->  | Q156: =IF(P156="","",P156*62.4/144) ->  | R156: =IF(N156="","",(N156-AF156)*62.4/144) ->  | V156: =IF(R156="","",IF(P156<0,$O$316,IF(R156>G157,$O$317,IF(R156>75,$O$318,"")))) ->  | AB156: =IF(K155="","",K155+AB154) ->  | AF156: =IF(OR(A156="",$R$3="",AM155=""),"",C156-$R$3) ->  | AG156: =IF(AF156="","",N156) ->  | AH156: =IF(OR(AF156="",$R$2=""),"",IF(AND($A$311=1,Pump!$F$17="Yes"),IF(AND($C$311=TRUE,$K$5=A156),($M$5*144/62.4+AF156)-((L156*144/62.4)),IF(AND($F$311=TRUE,$K$6=A156),AH154-K155+($M$6*144/62.4)-(O155^2/64.4),AH154-K155-(O155^2/64.4))),AH154-K155-(O155^2/64.4))) -> 
B157: =IF(AND(A158>0,C158>0),SQRT((A158-A156)^2+(C158-C156)^2),"") ->  | G157: =IF(OR(A156="",AI157=0),"",AL157) ->  | H157: =IF(OR($A156="",AI157=0,AJ157=0),"",AM157) ->  | I157: =IF(OR($A156="",AI157=0,AJ157=0),"",AN157) ->  | J157: =IF(AND(A158<>"",OR(AK157<>0,AJ157<>0,AI157<>0)),AO157,"") ->  | K157: =IF(OR(A158="",AR157="",AM157=""),"",(10.44*B157*(AR157^1.85))/((AN157^1.85)*(AM157^4.8655))) ->  | O157: =IF(OR(A158="",AR157="",AM157="",$R$2=""),"",(AR157/7.48/60)/(PI()*((AM157/2)/12)^2)) ->  | AD157: =IF(A158="","",IF(E157="",AD155,IF(ISNUMBER(SEARCH(3408,Main!E157)),'Pipe Tables'!$E$32,IF(ISNUMBER(SEARCH(4710,Main!E157)),'Pipe Tables'!$E$32,IF(ISNUMBER(SEARCH('Pipe Tables'!$E$33,Main!E157)),'Pipe Tables'!$E$33,IF(ISNUMBER(SEARCH('Pipe Tables'!$E$34,Main!E157)),'Pipe Tables'!$E$34,IF(ISNUMBER(SEARCH('Pipe Tables'!$E$35,Main!E157)),'Pipe Tables'!$E$35))))))) ->  | AI157: =D157 -> 0 | AJ157: =E157 -> 0 | AK157: =F157 -> 0 | AL157: =IF(AQ157=0,"",HLOOKUP(AQ157,Pipe_Pressure,MATCH(AP157,Pipe_Press_Size,0),FALSE)) ->  | AM157: =IF(OR(AP157=0,AQ157=0),"",VLOOKUP(AP157,Pipe_Diameter,MATCH(AQ157,Pipe_Diam_Material,0))) ->  | AN157: =IF(A158="","",VLOOKUP(AD157,Hazen_Williams,2)) ->  | AO157: =IF(OR(A158="",AR157="",AM157=""),"",((10.44*(AR157^1.85))/((AN157^1.85)*(AM157^4.8655)))) ->  | AP157: =IF(AND($A158<>"",AI157=0),AP155,IF(AND($A158<>"",AI157<>0),AI157,0)) -> 0 | AQ157: =IF(AND($A158<>"",AJ157=0),AQ155,IF(AND($A158<>"",AJ157<>0),AJ157,0)) -> 0 | AR157: =IF(AND($A158<>"",AK157=0),AR155,IF(AND($A158<>"",AK157<>0),AK157,0)) -> 0 | AS157: =IF(AND($A158<>"",AL157=0),AS155,IF(AND($A158<>"",AL157<>0),AL157,0)) -> 0
M158: =IF(OR(AF158="",$R$2=""),"",IF(AND($C$311=TRUE,$K$5=A158),($M$5*144/62.4+AF158)-((L158*144/62.4)),IF(AND($F$311=TRUE,$K$6=A158),M156-K157+($M$6*144/62.4)-(O157^2/64.4),M156-K157-(O157^2/64.4)-L158*144/62.4))) ->  | N158: =IF(B157="","",IF(AND($K$5=$A158,$C$311=TRUE),$M$5*144/62.4+AF158,IF(AND($K$6=$A158,$F$311=TRUE),$M$6*144/62.4+N156-L158*144/62.4,N156-L158*144/62.4))) ->  | P158: =IF(M158="","",M158-AF158) ->  | Q158: =IF(P158="","",P158*62.4/144) ->  | R158: =IF(N158="","",(N158-AF158)*62.4/144) ->  | V158: =IF(R158="","",IF(P158<0,$O$316,IF(R158>G159,$O$317,IF(R158>75,$O$318,"")))) ->  | AB158: =IF(K157="","",K157+AB156) ->  | AF158: =IF(OR(A158="",$R$3="",AM157=""),"",C158-$R$3) ->  | AG158: =IF(AF158="","",N158) ->  | AH158: =IF(OR(AF158="",$R$2=""),"",IF(AND($A$311=1,Pump!$F$17="Yes"),IF(AND($C$311=TRUE,$K$5=A158),($M$5*144/62.4+AF158)-((L158*144/62.4)),IF(AND($F$311=TRUE,$K$6=A158),AH156-K157+($M$6*144/62.4)-(O157^2/64.4),AH156-K157-(O157^2/64.4))),AH156-K157-(O157^2/64.4))) -> 
B159: =IF(AND(A160>0,C160>0),SQRT((A160-A158)^2+(C160-C158)^2),"") ->  | G159: =IF(OR(A158="",AI159=0),"",AL159) ->  | H159: =IF(OR($A158="",AI159=0,AJ159=0),"",AM159) ->  | I159: =IF(OR($A158="",AI159=0,AJ159=0),"",AN159) ->  | J159: =IF(AND(A160<>"",OR(AK159<>0,AJ159<>0,AI159<>0)),AO159,"") ->  | K159: =IF(OR(A160="",AR159="",AM159=""),"",(10.44*B159*(AR159^1.85))/((AN159^1.85)*(AM159^4.8655))) ->  | O159: =IF(OR(A160="",AR159="",AM159="",$R$2=""),"",(AR159/7.48/60)/(PI()*((AM159/2)/12)^2)) ->  | AD159: =IF(A160="","",IF(E159="",AD157,IF(ISNUMBER(SEARCH(3408,Main!E159)),'Pipe Tables'!$E$32,IF(ISNUMBER(SEARCH(4710,Main!E159)),'Pipe Tables'!$E$32,IF(ISNUMBER(SEARCH('Pipe Tables'!$E$33,Main!E159)),'Pipe Tables'!$E$33,IF(ISNUMBER(SEARCH('Pipe Tables'!$E$34,Main!E159)),'Pipe Tables'!$E$34,IF(ISNUMBER(SEARCH('Pipe Tables'!$E$35,Main!E159)),'Pipe Tables'!$E$35))))))) ->  | AI159: =D159 -> 0 | AJ159: =E159 -> 0 | AK159: =F159 -> 0 | AL159: =IF(AQ159=0,"",HLOOKUP(AQ159,Pipe_Pressure,MATCH(AP159,Pipe_Press_Size,0),FALSE)) ->  | AM159: =IF(OR(AP159=0,AQ159=0),"",VLOOKUP(AP159,Pipe_Diameter,MATCH(AQ159,Pipe_Diam_Material,0))) ->  | AN159: =IF(A160="","",VLOOKUP(AD159,Hazen_Williams,2)) ->  | AO159: =IF(OR(A160="",AR159="",AM159=""),"",((10.44*(AR159^1.85))/((AN159^1.85)*(AM159^4.8655)))) ->  | AP159: =IF(AND($A160<>"",AI159=0),AP157,IF(AND($A160<>"",AI159<>0),AI159,0)) -> 0 | AQ159: =IF(AND($A160<>"",AJ159=0),AQ157,IF(AND($A160<>"",AJ159<>0),AJ159,0)) -> 0 | AR159: =IF(AND($A160<>"",AK159=0),AR157,IF(AND($A160<>"",AK159<>0),AK159,0)) -> 0 | AS159: =IF(AND($A160<>"",AL159=0),AS157,IF(AND($A160<>"",AL159<>0),AL159,0)) -> 0
M160: =IF(OR(AF160="",$R$2=""),"",IF(AND($C$311=TRUE,$K$5=A160),($M$5*144/62.4+AF160)-((L160*144/62.4)),IF(AND($F$311=TRUE,$K$6=A160),M158-K159+($M$6*144/62.4)-(O159^2/64.4),M158-K159-(O159^2/64.4)-L160*144/62.4))) ->  | N160: =IF(B159="","",IF(AND($K$5=$A160,$C$311=TRUE),$M$5*144/62.4+AF160,IF(AND($K$6=$A160,$F$311=TRUE),$M$6*144/62.4+N158-L160*144/62.4,N158-L160*144/62.4))) ->  | P160: =IF(M160="","",M160-AF160) ->  | Q160: =IF(P160="","",P160*62.4/144) ->  | R160: =IF(N160="","",(N160-AF160)*62.4/144) ->  | V160: =IF(R160="","",IF(P160<0,$O$316,IF(R160>G161,$O$317,IF(R160>75,$O$318,"")))) ->  | AB160: =IF(K159="","",K159+AB158) ->  | AF160: =IF(OR(A160="",$R$3="",AM159=""),"",C160-$R$3) ->  | AG160: =IF(AF160="","",N160) ->  | AH160: =IF(OR(AF160="",$R$2=""),"",IF(AND($A$311=1,Pump!$F$17="Yes"),IF(AND($C$311=TRUE,$K$5=A160),($M$5*144/62.4+AF160)-((L160*144/62.4)),IF(AND($F$311=TRUE,$K$6=A160),AH158-K159+($M$6*144/62.4)-(O159^2/64.4),AH158-K159-(O159^2/64.4))),AH158-K159-(O159^2/64.4))) -> 
B161: =IF(AND(A162>0,C162>0),SQRT((A162-A160)^2+(C162-C160)^2),"") ->  | G161: =IF(OR(A160="",AI161=0),"",AL161) ->  | H161: =IF(OR($A160="",AI161=0,AJ161=0),"",AM161) ->  | I161: =IF(OR($A160="",AI161=0,AJ161=0),"",AN161) ->  | J161: =IF(AND(A162<>"",OR(AK161<>0,AJ161<>0,AI161<>0)),AO161,"") ->  | K161: =IF(OR(A162="",AR161="",AM161=""),"",(10.44*B161*(AR161^1.85))/((AN161^1.85)*(AM161^4.8655))) ->  | O161: =IF(OR(A162="",AR161="",AM161="",$R$2=""),"",(AR161/7.48/60)/(PI()*((AM161/2)/12)^2)) ->  | AD161: =IF(A162="","",IF(E161="",AD159,IF(ISNUMBER(SEARCH(3408,Main!E161)),'Pipe Tables'!$E$32,IF(ISNUMBER(SEARCH(4710,Main!E161)),'Pipe Tables'!$E$32,IF(ISNUMBER(SEARCH('Pipe Tables'!$E$33,Main!E161)),'Pipe Tables'!$E$33,IF(ISNUMBER(SEARCH('Pipe Tables'!$E$34,Main!E161)),'Pipe Tables'!$E$34,IF(ISNUMBER(SEARCH('Pipe Tables'!$E$35,Main!E161)),'Pipe Tables'!$E$35))))))) ->  | AI161: =D161 -> 0 | AJ161: =E161 -> 0 | AK161: =F161 -> 0 | AL161: =IF(AQ161=0,"",HLOOKUP(AQ161,Pipe_Pressure,MATCH(AP161,Pipe_Press_Size,0),FALSE)) ->  | AM161: =IF(OR(AP161=0,AQ161=0),"",VLOOKUP(AP161,Pipe_Diameter,MATCH(AQ161,Pipe_Diam_Material,0))) ->  | AN161: =IF(A162="","",VLOOKUP(AD161,Hazen_Williams,2)) ->  | AO161: =IF(OR(A162="",AR161="",AM161=""),"",((10.44*(AR161^1.85))/((AN161^1.85)*(AM161^4.8655)))) ->  | AP161: =IF(AND($A162<>"",AI161=0),AP159,IF(AND($A162<>"",AI161<>0),AI161,0)) -> 0 | AQ161: =IF(AND($A162<>"",AJ161=0),AQ159,IF(AND($A162<>"",AJ161<>0),AJ161,0)) -> 0 | AR161: =IF(AND($A162<>"",AK161=0),AR159,IF(AND($A162<>"",AK161<>0),AK161,0)) -> 0 | AS161: =IF(AND($A162<>"",AL161=0),AS159,IF(AND($A162<>"",AL161<>0),AL161,0)) -> 0
M162: =IF(OR(AF162="",$R$2=""),"",IF(AND($C$311=TRUE,$K$5=A162),($M$5*144/62.4+AF162)-((L162*144/62.4)),IF(AND($F$311=TRUE,$K$6=A162),M160-K161+($M$6*144/62.4)-(O161^2/64.4),M160-K161-(O161^2/64.4)-L162*144/62.4))) ->  | N162: =IF(B161="","",IF(AND($K$5=$A162,$C$311=TRUE),$M$5*144/62.4+AF162,IF(AND($K$6=$A162,$F$311=TRUE),$M$6*144/62.4+N160-L162*144/62.4,N160-L162*144/62.4))) ->  | P162: =IF(M162="","",M162-AF162) ->  | Q162: =IF(P162="","",P162*62.4/144) ->  | R162: =IF(N162="","",(N162-AF162)*62.4/144) ->  | V162: =IF(R162="","",IF(P162<0,$O$316,IF(R162>G163,$O$317,IF(R162>75,$O$318,"")))) ->  | AB162: =IF(K161="","",K161+AB160) ->  | AF162: =IF(OR(A162="",$R$3="",AM161=""),"",C162-$R$3) ->  | AG162: =IF(AF162="","",N162) ->  | AH162: =IF(OR(AF162="",$R$2=""),"",IF(AND($A$311=1,Pump!$F$17="Yes"),IF(AND($C$311=TRUE,$K$5=A162),($M$5*144/62.4+AF162)-((L162*144/62.4)),IF(AND($F$311=TRUE,$K$6=A162),AH160-K161+($M$6*144/62.4)-(O161^2/64.4),AH160-K161-(O161^2/64.4))),AH160-K161-(O161^2/64.4))) -> 
B163: =IF(AND(A164>0,C164>0),SQRT((A164-A162)^2+(C164-C162)^2),"") ->  | G163: =IF(OR(A162="",AI163=0),"",AL163) ->  | H163: =IF(OR($A162="",AI163=0,AJ163=0),"",AM163) ->  | I163: =IF(OR($A162="",AI163=0,AJ163=0),"",AN163) ->  | J163: =IF(AND(A164<>"",OR(AK163<>0,AJ163<>0,AI163<>0)),AO163,"") ->  | K163: =IF(OR(A164="",AR163="",AM163=""),"",(10.44*B163*(AR163^1.85))/((AN163^1.85)*(AM163^4.8655))) ->  | O163: =IF(OR(A164="",AR163="",AM163="",$R$2=""),"",(AR163/7.48/60)/(PI()*((AM163/2)/12)^2)) ->  | AD163: =IF(A164="","",IF(E163="",AD161,IF(ISNUMBER(SEARCH(3408,Main!E163)),'Pipe Tables'!$E$32,IF(ISNUMBER(SEARCH(4710,Main!E163)),'Pipe Tables'!$E$32,IF(ISNUMBER(SEARCH('Pipe Tables'!$E$33,Main!E163)),'Pipe Tables'!$E$33,IF(ISNUMBER(SEARCH('Pipe Tables'!$E$34,Main!E163)),'Pipe Tables'!$E$34,IF(ISNUMBER(SEARCH('Pipe Tables'!$E$35,Main!E163)),'Pipe Tables'!$E$35))))))) ->  | AI163: =D163 -> 0 | AJ163: =E163 -> 0 | AK163: =F163 -> 0 | AL163: =IF(AQ163=0,"",HLOOKUP(AQ163,Pipe_Pressure,MATCH(AP163,Pipe_Press_Size,0),FALSE)) ->  | AM163: =IF(OR(AP163=0,AQ163=0),"",VLOOKUP(AP163,Pipe_Diameter,MATCH(AQ163,Pipe_Diam_Material,0))) ->  | AN163: =IF(A164="","",VLOOKUP(AD163,Hazen_Williams,2)) ->  | AO163: =IF(OR(A164="",AR163="",AM163=""),"",((10.44*(AR163^1.85))/((AN163^1.85)*(AM163^4.8655)))) ->  | AP163: =IF(AND($A164<>"",AI163=0),AP161,IF(AND($A164<>"",AI163<>0),AI163,0)) -> 0 | AQ163: =IF(AND($A164<>"",AJ163=0),AQ161,IF(AND($A164<>"",AJ163<>0),AJ163,0)) -> 0 | AR163: =IF(AND($A164<>"",AK163=0),AR161,IF(AND($A164<>"",AK163<>0),AK163,0)) -> 0 | AS163: =IF(AND($A164<>"",AL163=0),AS161,IF(AND($A164<>"",AL163<>0),AL163,0)) -> 0
M164: =IF(OR(AF164="",$R$2=""),"",IF(AND($C$311=TRUE,$K$5=A164),($M$5*144/62.4+AF164)-((L164*144/62.4)),IF(AND($F$311=TRUE,$K$6=A164),M162-K163+($M$6*144/62.4)-(O163^2/64.4),M162-K163-(O163^2/64.4)-L164*144/62.4))) ->  | N164: =IF(B163="","",IF(AND($K$5=$A164,$C$311=TRUE),$M$5*144/62.4+AF164,IF(AND($K$6=$A164,$F$311=TRUE),$M$6*144/62.4+N162-L164*144/62.4,N162-L164*144/62.4))) ->  | P164: =IF(M164="","",M164-AF164) ->  | Q164: =IF(P164="","",P164*62.4/144) ->  | R164: =IF(N164="","",(N164-AF164)*62.4/144) ->  | V164: =IF(R164="","",IF(P164<0,$O$316,IF(R164>G165,$O$317,IF(R164>75,$O$318,"")))) ->  | AB164: =IF(K163="","",K163+AB162) ->  | AF164: =IF(OR(A164="",$R$3="",AM163=""),"",C164-$R$3) ->  | AG164: =IF(AF164="","",N164) ->  | AH164: =IF(OR(AF164="",$R$2=""),"",IF(AND($A$311=1,Pump!$F$17="Yes"),IF(AND($C$311=TRUE,$K$5=A164),($M$5*144/62.4+AF164)-((L164*144/62.4)),IF(AND($F$311=TRUE,$K$6=A164),AH162-K163+($M$6*144/62.4)-(O163^2/64.4),AH162-K163-(O163^2/64.4))),AH162-K163-(O163^2/64.4))) -> 
B165: =IF(AND(A166>0,C166>0),SQRT((A166-A164)^2+(C166-C164)^2),"") ->  | G165: =IF(OR(A164="",AI165=0),"",AL165) ->  | H165: =IF(OR($A164="",AI165=0,AJ165=0),"",AM165) ->  | I165: =IF(OR($A164="",AI165=0,AJ165=0),"",AN165) ->  | J165: =IF(AND(A166<>"",OR(AK165<>0,AJ165<>0,AI165<>0)),AO165,"") ->  | K165: =IF(OR(A166="",AR165="",AM165=""),"",(10.44*B165*(AR165^1.85))/((AN165^1.85)*(AM165^4.8655))) ->  | O165: =IF(OR(A166="",AR165="",AM165="",$R$2=""),"",(AR165/7.48/60)/(PI()*((AM165/2)/12)^2)) ->  | AD165: =IF(A166="","",IF(E165="",AD163,IF(ISNUMBER(SEARCH(3408,Main!E165)),'Pipe Tables'!$E$32,IF(ISNUMBER(SEARCH(4710,Main!E165)),'Pipe Tables'!$E$32,IF(ISNUMBER(SEARCH('Pipe Tables'!$E$33,Main!E165)),'Pipe Tables'!$E$33,IF(ISNUMBER(SEARCH('Pipe Tables'!$E$34,Main!E165)),'Pipe Tables'!$E$34,IF(ISNUMBER(SEARCH('Pipe Tables'!$E$35,Main!E165)),'Pipe Tables'!$E$35))))))) ->  | AI165: =D165 -> 0 | AJ165: =E165 -> 0 | AK165: =F165 -> 0 | AL165: =IF(AQ165=0,"",HLOOKUP(AQ165,Pipe_Pressure,MATCH(AP165,Pipe_Press_Size,0),FALSE)) ->  | AM165: =IF(OR(AP165=0,AQ165=0),"",VLOOKUP(AP165,Pipe_Diameter,MATCH(AQ165,Pipe_Diam_Material,0))) ->  | AN165: =IF(A166="","",VLOOKUP(AD165,Hazen_Williams,2)) ->  | AO165: =IF(OR(A166="",AR165="",AM165=""),"",((10.44*(AR165^1.85))/((AN165^1.85)*(AM165^4.8655)))) ->  | AP165: =IF(AND($A166<>"",AI165=0),AP163,IF(AND($A166<>"",AI165<>0),AI165,0)) -> 0 | AQ165: =IF(AND($A166<>"",AJ165=0),AQ163,IF(AND($A166<>"",AJ165<>0),AJ165,0)) -> 0 | AR165: =IF(AND($A166<>"",AK165=0),AR163,IF(AND($A166<>"",AK165<>0),AK165,0)) -> 0 | AS165: =IF(AND($A166<>"",AL165=0),AS163,IF(AND($A166<>"",AL165<>0),AL165,0)) -> 0
M166: =IF(OR(AF166="",$R$2=""),"",IF(AND($C$311=TRUE,$K$5=A166),($M$5*144/62.4+AF166)-((L166*144/62.4)),IF(AND($F$311=TRUE,$K$6=A166),M164-K165+($M$6*144/62.4)-(O165^2/64.4),M164-K165-(O165^2/64.4)-L166*144/62.4))) ->  | N166: =IF(B165="","",IF(AND($K$5=$A166,$C$311=TRUE),$M$5*144/62.4+AF166,IF(AND($K$6=$A166,$F$311=TRUE),$M$6*144/62.4+N164-L166*144/62.4,N164-L166*144/62.4))) ->  | P166: =IF(M166="","",M166-AF166) ->  | Q166: =IF(P166="","",P166*62.4/144) ->  | R166: =IF(N166="","",(N166-AF166)*62.4/144) ->  | V166: =IF(R166="","",IF(P166<0,$O$316,IF(R166>G167,$O$317,IF(R166>75,$O$318,"")))) ->  | AB166: =IF(K165="","",K165+AB164) ->  | AF166: =IF(OR(A166="",$R$3="",AM165=""),"",C166-$R$3) ->  | AG166: =IF(AF166="","",N166) ->  | AH166: =IF(OR(AF166="",$R$2=""),"",IF(AND($A$311=1,Pump!$F$17="Yes"),IF(AND($C$311=TRUE,$K$5=A166),($M$5*144/62.4+AF166)-((L166*144/62.4)),IF(AND($F$311=TRUE,$K$6=A166),AH164-K165+($M$6*144/62.4)-(O165^2/64.4),AH164-K165-(O165^2/64.4))),AH164-K165-(O165^2/64.4))) -> 
B167: =IF(AND(A168>0,C168>0),SQRT((A168-A166)^2+(C168-C166)^2),"") ->  | G167: =IF(OR(A166="",AI167=0),"",AL167) ->  | H167: =IF(OR($A166="",AI167=0,AJ167=0),"",AM167) ->  | I167: =IF(OR($A166="",AI167=0,AJ167=0),"",AN167) ->  | J167: =IF(AND(A168<>"",OR(AK167<>0,AJ167<>0,AI167<>0)),AO167,"") ->  | K167: =IF(OR(A168="",AR167="",AM167=""),"",(10.44*B167*(AR167^1.85))/((AN167^1.85)*(AM167^4.8655))) ->  | O167: =IF(OR(A168="",AR167="",AM167="",$R$2=""),"",(AR167/7.48/60)/(PI()*((AM167/2)/12)^2)) ->  | AD167: =IF(A168="","",IF(E167="",AD165,IF(ISNUMBER(SEARCH(3408,Main!E167)),'Pipe Tables'!$E$32,IF(ISNUMBER(SEARCH(4710,Main!E167)),'Pipe Tables'!$E$32,IF(ISNUMBER(SEARCH('Pipe Tables'!$E$33,Main!E167)),'Pipe Tables'!$E$33,IF(ISNUMBER(SEARCH('Pipe Tables'!$E$34,Main!E167)),'Pipe Tables'!$E$34,IF(ISNUMBER(SEARCH('Pipe Tables'!$E$35,Main!E167)),'Pipe Tables'!$E$35))))))) ->  | AI167: =D167 -> 0 | AJ167: =E167 -> 0 | AK167: =F167 -> 0 | AL167: =IF(AQ167=0,"",HLOOKUP(AQ167,Pipe_Pressure,MATCH(AP167,Pipe_Press_Size,0),FALSE)) ->  | AM167: =IF(OR(AP167=0,AQ167=0),"",VLOOKUP(AP167,Pipe_Diameter,MATCH(AQ167,Pipe_Diam_Material,0))) ->  | AN167: =IF(A168="","",VLOOKUP(AD167,Hazen_Williams,2)) ->  | AO167: =IF(OR(A168="",AR167="",AM167=""),"",((10.44*(AR167^1.85))/((AN167^1.85)*(AM167^4.8655)))) ->  | AP167: =IF(AND($A168<>"",AI167=0),AP165,IF(AND($A168<>"",AI167<>0),AI167,0)) -> 0 | AQ167: =IF(AND($A168<>"",AJ167=0),AQ165,IF(AND($A168<>"",AJ167<>0),AJ167,0)) -> 0 | AR167: =IF(AND($A168<>"",AK167=0),AR165,IF(AND($A168<>"",AK167<>0),AK167,0)) -> 0 | AS167: =IF(AND($A168<>"",AL167=0),AS165,IF(AND($A168<>"",AL167<>0),AL167,0)) -> 0
M168: =IF(OR(AF168="",$R$2=""),"",IF(AND($C$311=TRUE,$K$5=A168),($M$5*144/62.4+AF168)-((L168*144/62.4)),IF(AND($F$311=TRUE,$K$6=A168),M166-K167+($M$6*144/62.4)-(O167^2/64.4),M166-K167-(O167^2/64.4)-L168*144/62.4))) ->  | N168: =IF(B167="","",IF(AND($K$5=$A168,$C$311=TRUE),$M$5*144/62.4+AF168,IF(AND($K$6=$A168,$F$311=TRUE),$M$6*144/62.4+N166-L168*144/62.4,N166-L168*144/62.4))) ->  | P168: =IF(M168="","",M168-AF168) ->  | Q168: =IF(P168="","",P168*62.4/144) ->  | R168: =IF(N168="","",(N168-AF168)*62.4/144) ->  | V168: =IF(R168="","",IF(P168<0,$O$316,IF(R168>G169,$O$317,IF(R168>75,$O$318,"")))) ->  | AB168: =IF(K167="","",K167+AB166) ->  | AF168: =IF(OR(A168="",$R$3="",AM167=""),"",C168-$R$3) ->  | AG168: =IF(AF168="","",N168) ->  | AH168: =IF(OR(AF168="",$R$2=""),"",IF(AND($A$311=1,Pump!$F$17="Yes"),IF(AND($C$311=TRUE,$K$5=A168),($M$5*144/62.4+AF168)-((L168*144/62.4)),IF(AND($F$311=TRUE,$K$6=A168),AH166-K167+($M$6*144/62.4)-(O167^2/64.4),AH166-K167-(O167^2/64.4))),AH166-K167-(O167^2/64.4))) -> 
B169: =IF(AND(A170>0,C170>0),SQRT((A170-A168)^2+(C170-C168)^2),"") ->  | G169: =IF(OR(A168="",AI169=0),"",AL169) ->  | H169: =IF(OR($A168="",AI169=0,AJ169=0),"",AM169) ->  | I169: =IF(OR($A168="",AI169=0,AJ169=0),"",AN169) ->  | J169: =IF(AND(A170<>"",OR(AK169<>0,AJ169<>0,AI169<>0)),AO169,"") ->  | K169: =IF(OR(A170="",AR169="",AM169=""),"",(10.44*B169*(AR169^1.85))/((AN169^1.85)*(AM169^4.8655))) ->  | O169: =IF(OR(A170="",AR169="",AM169="",$R$2=""),"",(AR169/7.48/60)/(PI()*((AM169/2)/12)^2)) ->  | AD169: =IF(A170="","",IF(E169="",AD167,IF(ISNUMBER(SEARCH(3408,Main!E169)),'Pipe Tables'!$E$32,IF(ISNUMBER(SEARCH(4710,Main!E169)),'Pipe Tables'!$E$32,IF(ISNUMBER(SEARCH('Pipe Tables'!$E$33,Main!E169)),'Pipe Tables'!$E$33,IF(ISNUMBER(SEARCH('Pipe Tables'!$E$34,Main!E169)),'Pipe Tables'!$E$34,IF(ISNUMBER(SEARCH('Pipe Tables'!$E$35,Main!E169)),'Pipe Tables'!$E$35))))))) ->  | AI169: =D169 -> 0 | AJ169: =E169 -> 0 | AK169: =F169 -> 0 | AL169: =IF(AQ169=0,"",HLOOKUP(AQ169,Pipe_Pressure,MATCH(AP169,Pipe_Press_Size,0),FALSE)) ->  | AM169: =IF(OR(AP169=0,AQ169=0),"",VLOOKUP(AP169,Pipe_Diameter,MATCH(AQ169,Pipe_Diam_Material,0))) ->  | AN169: =IF(A170="","",VLOOKUP(AD169,Hazen_Williams,2)) ->  | AO169: =IF(OR(A170="",AR169="",AM169=""),"",((10.44*(AR169^1.85))/((AN169^1.85)*(AM169^4.8655)))) ->  | AP169: =IF(AND($A170<>"",AI169=0),AP167,IF(AND($A170<>"",AI169<>0),AI169,0)) -> 0 | AQ169: =IF(AND($A170<>"",AJ169=0),AQ167,IF(AND($A170<>"",AJ169<>0),AJ169,0)) -> 0 | AR169: =IF(AND($A170<>"",AK169=0),AR167,IF(AND($A170<>"",AK169<>0),AK169,0)) -> 0 | AS169: =IF(AND($A170<>"",AL169=0),AS167,IF(AND($A170<>"",AL169<>0),AL169,0)) -> 0
M170: =IF(OR(AF170="",$R$2=""),"",IF(AND($C$311=TRUE,$K$5=A170),($M$5*144/62.4+AF170)-((L170*144/62.4)),IF(AND($F$311=TRUE,$K$6=A170),M168-K169+($M$6*144/62.4)-(O169^2/64.4),M168-K169-(O169^2/64.4)-L170*144/62.4))) ->  | N170: =IF(B169="","",IF(AND($K$5=$A170,$C$311=TRUE),$M$5*144/62.4+AF170,IF(AND($K$6=$A170,$F$311=TRUE),$M$6*144/62.4+N168-L170*144/62.4,N168-L170*144/62.4))) ->  | P170: =IF(M170="","",M170-AF170) ->  | Q170: =IF(P170="","",P170*62.4/144) ->  | R170: =IF(N170="","",(N170-AF170)*62.4/144) ->  | V170: =IF(R170="","",IF(P170<0,$O$316,IF(R170>G171,$O$317,IF(R170>75,$O$318,"")))) ->  | AB170: =IF(K169="","",K169+AB168) ->  | AF170: =IF(OR(A170="",$R$3="",AM169=""),"",C170-$R$3) ->  | AG170: =IF(AF170="","",N170) ->  | AH170: =IF(OR(AF170="",$R$2=""),"",IF(AND($A$311=1,Pump!$F$17="Yes"),IF(AND($C$311=TRUE,$K$5=A170),($M$5*144/62.4+AF170)-((L170*144/62.4)),IF(AND($F$311=TRUE,$K$6=A170),AH168-K169+($M$6*144/62.4)-(O169^2/64.4),AH168-K169-(O169^2/64.4))),AH168-K169-(O169^2/64.4))) -> 
B171: =IF(AND(A172>0,C172>0),SQRT((A172-A170)^2+(C172-C170)^2),"") ->  | G171: =IF(OR(A170="",AI171=0),"",AL171) ->  | H171: =IF(OR($A170="",AI171=0,AJ171=0),"",AM171) ->  | I171: =IF(OR($A170="",AI171=0,AJ171=0),"",AN171) ->  | J171: =IF(AND(A172<>"",OR(AK171<>0,AJ171<>0,AI171<>0)),AO171,"") ->  | K171: =IF(OR(A172="",AR171="",AM171=""),"",(10.44*B171*(AR171^1.85))/((AN171^1.85)*(AM171^4.8655))) ->  | O171: =IF(OR(A172="",AR171="",AM171="",$R$2=""),"",(AR171/7.48/60)/(PI()*((AM171/2)/12)^2)) ->  | AD171: =IF(A172="","",IF(E171="",AD169,IF(ISNUMBER(SEARCH(3408,Main!E171)),'Pipe Tables'!$E$32,IF(ISNUMBER(SEARCH(4710,Main!E171)),'Pipe Tables'!$E$32,IF(ISNUMBER(SEARCH('Pipe Tables'!$E$33,Main!E171)),'Pipe Tables'!$E$33,IF(ISNUMBER(SEARCH('Pipe Tables'!$E$34,Main!E171)),'Pipe Tables'!$E$34,IF(ISNUMBER(SEARCH('Pipe Tables'!$E$35,Main!E171)),'Pipe Tables'!$E$35))))))) ->  | AI171: =D171 -> 0 | AJ171: =E171 -> 0 | AK171: =F171 -> 0 | AL171: =IF(AQ171=0,"",HLOOKUP(AQ171,Pipe_Pressure,MATCH(AP171,Pipe_Press_Size,0),FALSE)) ->  | AM171: =IF(OR(AP171=0,AQ171=0),"",VLOOKUP(AP171,Pipe_Diameter,MATCH(AQ171,Pipe_Diam_Material,0))) ->  | AN171: =IF(A172="","",VLOOKUP(AD171,Hazen_Williams,2)) ->  | AO171: =IF(OR(A172="",AR171="",AM171=""),"",((10.44*(AR171^1.85))/((AN171^1.85)*(AM171^4.8655)))) ->  | AP171: =IF(AND($A172<>"",AI171=0),AP169,IF(AND($A172<>"",AI171<>0),AI171,0)) -> 0 | AQ171: =IF(AND($A172<>"",AJ171=0),AQ169,IF(AND($A172<>"",AJ171<>0),AJ171,0)) -> 0 | AR171: =IF(AND($A172<>"",AK171=0),AR169,IF(AND($A172<>"",AK171<>0),AK171,0)) -> 0 | AS171: =IF(AND($A172<>"",AL171=0),AS169,IF(AND($A172<>"",AL171<>0),AL171,0)) -> 0
M172: =IF(OR(AF172="",$R$2=""),"",IF(AND($C$311=TRUE,$K$5=A172),($M$5*144/62.4+AF172)-((L172*144/62.4)),IF(AND($F$311=TRUE,$K$6=A172),M170-K171+($M$6*144/62.4)-(O171^2/64.4),M170-K171-(O171^2/64.4)-L172*144/62.4))) ->  | N172: =IF(B171="","",IF(AND($K$5=$A172,$C$311=TRUE),$M$5*144/62.4+AF172,IF(AND($K$6=$A172,$F$311=TRUE),$M$6*144/62.4+N170-L172*144/62.4,N170-L172*144/62.4))) ->  | P172: =IF(M172="","",M172-AF172) ->  | Q172: =IF(P172="","",P172*62.4/144) ->  | R172: =IF(N172="","",(N172-AF172)*62.4/144) ->  | V172: =IF(R172="","",IF(P172<0,$O$316,IF(R172>G173,$O$317,IF(R172>75,$O$318,"")))) ->  | AB172: =IF(K171="","",K171+AB170) ->  | AF172: =IF(OR(A172="",$R$3="",AM171=""),"",C172-$R$3) ->  | AG172: =IF(AF172="","",N172) ->  | AH172: =IF(OR(AF172="",$R$2=""),"",IF(AND($A$311=1,Pump!$F$17="Yes"),IF(AND($C$311=TRUE,$K$5=A172),($M$5*144/62.4+AF172)-((L172*144/62.4)),IF(AND($F$311=TRUE,$K$6=A172),AH170-K171+($M$6*144/62.4)-(O171^2/64.4),AH170-K171-(O171^2/64.4))),AH170-K171-(O171^2/64.4))) -> 
B173: =IF(AND(A174>0,C174>0),SQRT((A174-A172)^2+(C174-C172)^2),"") ->  | G173: =IF(OR(A172="",AI173=0),"",AL173) ->  | H173: =IF(OR($A172="",AI173=0,AJ173=0),"",AM173) ->  | I173: =IF(OR($A172="",AI173=0,AJ173=0),"",AN173) ->  | J173: =IF(AND(A174<>"",OR(AK173<>0,AJ173<>0,AI173<>0)),AO173,"") ->  | K173: =IF(OR(A174="",AR173="",AM173=""),"",(10.44*B173*(AR173^1.85))/((AN173^1.85)*(AM173^4.8655))) ->  | O173: =IF(OR(A174="",AR173="",AM173="",$R$2=""),"",(AR173/7.48/60)/(PI()*((AM173/2)/12)^2)) ->  | AD173: =IF(A174="","",IF(E173="",AD171,IF(ISNUMBER(SEARCH(3408,Main!E173)),'Pipe Tables'!$E$32,IF(ISNUMBER(SEARCH(4710,Main!E173)),'Pipe Tables'!$E$32,IF(ISNUMBER(SEARCH('Pipe Tables'!$E$33,Main!E173)),'Pipe Tables'!$E$33,IF(ISNUMBER(SEARCH('Pipe Tables'!$E$34,Main!E173)),'Pipe Tables'!$E$34,IF(ISNUMBER(SEARCH('Pipe Tables'!$E$35,Main!E173)),'Pipe Tables'!$E$35))))))) ->  | AI173: =D173 -> 0 | AJ173: =E173 -> 0 | AK173: =F173 -> 0 | AL173: =IF(AQ173=0,"",HLOOKUP(AQ173,Pipe_Pressure,MATCH(AP173,Pipe_Press_Size,0),FALSE)) ->  | AM173: =IF(OR(AP173=0,AQ173=0),"",VLOOKUP(AP173,Pipe_Diameter,MATCH(AQ173,Pipe_Diam_Material,0))) ->  | AN173: =IF(A174="","",VLOOKUP(AD173,Hazen_Williams,2)) ->  | AO173: =IF(OR(A174="",AR173="",AM173=""),"",((10.44*(AR173^1.85))/((AN173^1.85)*(AM173^4.8655)))) ->  | AP173: =IF(AND($A174<>"",AI173=0),AP171,IF(AND($A174<>"",AI173<>0),AI173,0)) -> 0 | AQ173: =IF(AND($A174<>"",AJ173=0),AQ171,IF(AND($A174<>"",AJ173<>0),AJ173,0)) -> 0 | AR173: =IF(AND($A174<>"",AK173=0),AR171,IF(AND($A174<>"",AK173<>0),AK173,0)) -> 0 | AS173: =IF(AND($A174<>"",AL173=0),AS171,IF(AND($A174<>"",AL173<>0),AL173,0)) -> 0
M174: =IF(OR(AF174="",$R$2=""),"",IF(AND($C$311=TRUE,$K$5=A174),($M$5*144/62.4+AF174)-((L174*144/62.4)),IF(AND($F$311=TRUE,$K$6=A174),M172-K173+($M$6*144/62.4)-(O173^2/64.4),M172-K173-(O173^2/64.4)-L174*144/62.4))) ->  | N174: =IF(B173="","",IF(AND($K$5=$A174,$C$311=TRUE),$M$5*144/62.4+AF174,IF(AND($K$6=$A174,$F$311=TRUE),$M$6*144/62.4+N172-L174*144/62.4,N172-L174*144/62.4))) ->  | P174: =IF(M174="","",M174-AF174) ->  | Q174: =IF(P174="","",P174*62.4/144) ->  | R174: =IF(N174="","",(N174-AF174)*62.4/144) ->  | V174: =IF(R174="","",IF(P174<0,$O$316,IF(R174>G175,$O$317,IF(R174>75,$O$318,"")))) ->  | AB174: =IF(K173="","",K173+AB172) ->  | AF174: =IF(OR(A174="",$R$3="",AM173=""),"",C174-$R$3) ->  | AG174: =IF(AF174="","",N174) ->  | AH174: =IF(OR(AF174="",$R$2=""),"",IF(AND($A$311=1,Pump!$F$17="Yes"),IF(AND($C$311=TRUE,$K$5=A174),($M$5*144/62.4+AF174)-((L174*144/62.4)),IF(AND($F$311=TRUE,$K$6=A174),AH172-K173+($M$6*144/62.4)-(O173^2/64.4),AH172-K173-(O173^2/64.4))),AH172-K173-(O173^2/64.4))) -> 
B175: =IF(AND(A176>0,C176>0),SQRT((A176-A174)^2+(C176-C174)^2),"") ->  | G175: =IF(OR(A174="",AI175=0),"",AL175) ->  | H175: =IF(OR($A174="",AI175=0,AJ175=0),"",AM175) ->  | I175: =IF(OR($A174="",AI175=0,AJ175=0),"",AN175) ->  | J175: =IF(AND(A176<>"",OR(AK175<>0,AJ175<>0,AI175<>0)),AO175,"") ->  | K175: =IF(OR(A176="",AR175="",AM175=""),"",(10.44*B175*(AR175^1.85))/((AN175^1.85)*(AM175^4.8655))) ->  | O175: =IF(OR(A176="",AR175="",AM175="",$R$2=""),"",(AR175/7.48/60)/(PI()*((AM175/2)/12)^2)) ->  | AD175: =IF(A176="","",IF(E175="",AD173,IF(ISNUMBER(SEARCH(3408,Main!E175)),'Pipe Tables'!$E$32,IF(ISNUMBER(SEARCH(4710,Main!E175)),'Pipe Tables'!$E$32,IF(ISNUMBER(SEARCH('Pipe Tables'!$E$33,Main!E175)),'Pipe Tables'!$E$33,IF(ISNUMBER(SEARCH('Pipe Tables'!$E$34,Main!E175)),'Pipe Tables'!$E$34,IF(ISNUMBER(SEARCH('Pipe Tables'!$E$35,Main!E175)),'Pipe Tables'!$E$35))))))) ->  | AI175: =D175 -> 0 | AJ175: =E175 -> 0 | AK175: =F175 -> 0 | AL175: =IF(AQ175=0,"",HLOOKUP(AQ175,Pipe_Pressure,MATCH(AP175,Pipe_Press_Size,0),FALSE)) ->  | AM175: =IF(OR(AP175=0,AQ175=0),"",VLOOKUP(AP175,Pipe_Diameter,MATCH(AQ175,Pipe_Diam_Material,0))) ->  | AN175: =IF(A176="","",VLOOKUP(AD175,Hazen_Williams,2)) ->  | AO175: =IF(OR(A176="",AR175="",AM175=""),"",((10.44*(AR175^1.85))/((AN175^1.85)*(AM175^4.8655)))) ->  | AP175: =IF(AND($A176<>"",AI175=0),AP173,IF(AND($A176<>"",AI175<>0),AI175,0)) -> 0 | AQ175: =IF(AND($A176<>"",AJ175=0),AQ173,IF(AND($A176<>"",AJ175<>0),AJ175,0)) -> 0 | AR175: =IF(AND($A176<>"",AK175=0),AR173,IF(AND($A176<>"",AK175<>0),AK175,0)) -> 0 | AS175: =IF(AND($A176<>"",AL175=0),AS173,IF(AND($A176<>"",AL175<>0),AL175,0)) -> 0
M176: =IF(OR(AF176="",$R$2=""),"",IF(AND($C$311=TRUE,$K$5=A176),($M$5*144/62.4+AF176)-((L176*144/62.4)),IF(AND($F$311=TRUE,$K$6=A176),M174-K175+($M$6*144/62.4)-(O175^2/64.4),M174-K175-(O175^2/64.4)-L176*144/62.4))) ->  | N176: =IF(B175="","",IF(AND($K$5=$A176,$C$311=TRUE),$M$5*144/62.4+AF176,IF(AND($K$6=$A176,$F$311=TRUE),$M$6*144/62.4+N174-L176*144/62.4,N174-L176*144/62.4))) ->  | P176: =IF(M176="","",M176-AF176) ->  | Q176: =IF(P176="","",P176*62.4/144) ->  | R176: =IF(N176="","",(N176-AF176)*62.4/144) ->  | V176: =IF(R176="","",IF(P176<0,$O$316,IF(R176>G177,$O$317,IF(R176>75,$O$318,"")))) ->  | AB176: =IF(K175="","",K175+AB174) ->  | AF176: =IF(OR(A176="",$R$3="",AM175=""),"",C176-$R$3) ->  | AG176: =IF(AF176="","",N176) ->  | AH176: =IF(OR(AF176="",$R$2=""),"",IF(AND($A$311=1,Pump!$F$17="Yes"),IF(AND($C$311=TRUE,$K$5=A176),($M$5*144/62.4+AF176)-((L176*144/62.4)),IF(AND($F$311=TRUE,$K$6=A176),AH174-K175+($M$6*144/62.4)-(O175^2/64.4),AH174-K175-(O175^2/64.4))),AH174-K175-(O175^2/64.4))) -> 
B177: =IF(AND(A178>0,C178>0),SQRT((A178-A176)^2+(C178-C176)^2),"") ->  | G177: =IF(OR(A176="",AI177=0),"",AL177) ->  | H177: =IF(OR($A176="",AI177=0,AJ177=0),"",AM177) ->  | I177: =IF(OR($A176="",AI177=0,AJ177=0),"",AN177) ->  | J177: =IF(AND(A178<>"",OR(AK177<>0,AJ177<>0,AI177<>0)),AO177,"") ->  | K177: =IF(OR(A178="",AR177="",AM177=""),"",(10.44*B177*(AR177^1.85))/((AN177^1.85)*(AM177^4.8655))) ->  | O177: =IF(OR(A178="",AR177="",AM177="",$R$2=""),"",(AR177/7.48/60)/(PI()*((AM177/2)/12)^2)) ->  | AD177: =IF(A178="","",IF(E177="",AD175,IF(ISNUMBER(SEARCH(3408,Main!E177)),'Pipe Tables'!$E$32,IF(ISNUMBER(SEARCH(4710,Main!E177)),'Pipe Tables'!$E$32,IF(ISNUMBER(SEARCH('Pipe Tables'!$E$33,Main!E177)),'Pipe Tables'!$E$33,IF(ISNUMBER(SEARCH('Pipe Tables'!$E$34,Main!E177)),'Pipe Tables'!$E$34,IF(ISNUMBER(SEARCH('Pipe Tables'!$E$35,Main!E177)),'Pipe Tables'!$E$35))))))) ->  | AI177: =D177 -> 0 | AJ177: =E177 -> 0 | AK177: =F177 -> 0 | AL177: =IF(AQ177=0,"",HLOOKUP(AQ177,Pipe_Pressure,MATCH(AP177,Pipe_Press_Size,0),FALSE)) ->  | AM177: =IF(OR(AP177=0,AQ177=0),"",VLOOKUP(AP177,Pipe_Diameter,MATCH(AQ177,Pipe_Diam_Material,0))) ->  | AN177: =IF(A178="","",VLOOKUP(AD177,Hazen_Williams,2)) ->  | AO177: =IF(OR(A178="",AR177="",AM177=""),"",((10.44*(AR177^1.85))/((AN177^1.85)*(AM177^4.8655)))) ->  | AP177: =IF(AND($A178<>"",AI177=0),AP175,IF(AND($A178<>"",AI177<>0),AI177,0)) -> 0 | AQ177: =IF(AND($A178<>"",AJ177=0),AQ175,IF(AND($A178<>"",AJ177<>0),AJ177,0)) -> 0 | AR177: =IF(AND($A178<>"",AK177=0),AR175,IF(AND($A178<>"",AK177<>0),AK177,0)) -> 0 | AS177: =IF(AND($A178<>"",AL177=0),AS175,IF(AND($A178<>"",AL177<>0),AL177,0)) -> 0
M178: =IF(OR(AF178="",$R$2=""),"",IF(AND($C$311=TRUE,$K$5=A178),($M$5*144/62.4+AF178)-((L178*144/62.4)),IF(AND($F$311=TRUE,$K$6=A178),M176-K177+($M$6*144/62.4)-(O177^2/64.4),M176-K177-(O177^2/64.4)-L178*144/62.4))) ->  | N178: =IF(B177="","",IF(AND($K$5=$A178,$C$311=TRUE),$M$5*144/62.4+AF178,IF(AND($K$6=$A178,$F$311=TRUE),$M$6*144/62.4+N176-L178*144/62.4,N176-L178*144/62.4))) ->  | P178: =IF(M178="","",M178-AF178) ->  | Q178: =IF(P178="","",P178*62.4/144) ->  | R178: =IF(N178="","",(N178-AF178)*62.4/144) ->  | V178: =IF(R178="","",IF(P178<0,$O$316,IF(R178>G179,$O$317,IF(R178>75,$O$318,"")))) ->  | AB178: =IF(K177="","",K177+AB176) ->  | AF178: =IF(OR(A178="",$R$3="",AM177=""),"",C178-$R$3) ->  | AG178: =IF(AF178="","",N178) ->  | AH178: =IF(OR(AF178="",$R$2=""),"",IF(AND($A$311=1,Pump!$F$17="Yes"),IF(AND($C$311=TRUE,$K$5=A178),($M$5*144/62.4+AF178)-((L178*144/62.4)),IF(AND($F$311=TRUE,$K$6=A178),AH176-K177+($M$6*144/62.4)-(O177^2/64.4),AH176-K177-(O177^2/64.4))),AH176-K177-(O177^2/64.4))) -> 
B179: =IF(AND(A180>0,C180>0),SQRT((A180-A178)^2+(C180-C178)^2),"") ->  | G179: =IF(OR(A178="",AI179=0),"",AL179) ->  | H179: =IF(OR($A178="",AI179=0,AJ179=0),"",AM179) ->  | I179: =IF(OR($A178="",AI179=0,AJ179=0),"",AN179) ->  | J179: =IF(AND(A180<>"",OR(AK179<>0,AJ179<>0,AI179<>0)),AO179,"") ->  | K179: =IF(OR(A180="",AR179="",AM179=""),"",(10.44*B179*(AR179^1.85))/((AN179^1.85)*(AM179^4.8655))) ->  | O179: =IF(OR(A180="",AR179="",AM179="",$R$2=""),"",(AR179/7.48/60)/(PI()*((AM179/2)/12)^2)) ->  | AD179: =IF(A180="","",IF(E179="",AD177,IF(ISNUMBER(SEARCH(3408,Main!E179)),'Pipe Tables'!$E$32,IF(ISNUMBER(SEARCH(4710,Main!E179)),'Pipe Tables'!$E$32,IF(ISNUMBER(SEARCH('Pipe Tables'!$E$33,Main!E179)),'Pipe Tables'!$E$33,IF(ISNUMBER(SEARCH('Pipe Tables'!$E$34,Main!E179)),'Pipe Tables'!$E$34,IF(ISNUMBER(SEARCH('Pipe Tables'!$E$35,Main!E179)),'Pipe Tables'!$E$35))))))) ->  | AI179: =D179 -> 0 | AJ179: =E179 -> 0 | AK179: =F179 -> 0 | AL179: =IF(AQ179=0,"",HLOOKUP(AQ179,Pipe_Pressure,MATCH(AP179,Pipe_Press_Size,0),FALSE)) ->  | AM179: =IF(OR(AP179=0,AQ179=0),"",VLOOKUP(AP179,Pipe_Diameter,MATCH(AQ179,Pipe_Diam_Material,0))) ->  | AN179: =IF(A180="","",VLOOKUP(AD179,Hazen_Williams,2)) ->  | AO179: =IF(OR(A180="",AR179="",AM179=""),"",((10.44*(AR179^1.85))/((AN179^1.85)*(AM179^4.8655)))) ->  | AP179: =IF(AND($A180<>"",AI179=0),AP177,IF(AND($A180<>"",AI179<>0),AI179,0)) -> 0 | AQ179: =IF(AND($A180<>"",AJ179=0),AQ177,IF(AND($A180<>"",AJ179<>0),AJ179,0)) -> 0 | AR179: =IF(AND($A180<>"",AK179=0),AR177,IF(AND($A180<>"",AK179<>0),AK179,0)) -> 0 | AS179: =IF(AND($A180<>"",AL179=0),AS177,IF(AND($A180<>"",AL179<>0),AL179,0)) -> 0
M180: =IF(OR(AF180="",$R$2=""),"",IF(AND($C$311=TRUE,$K$5=A180),($M$5*144/62.4+AF180)-((L180*144/62.4)),IF(AND($F$311=TRUE,$K$6=A180),M178-K179+($M$6*144/62.4)-(O179^2/64.4),M178-K179-(O179^2/64.4)-L180*144/62.4))) ->  | N180: =IF(B179="","",IF(AND($K$5=$A180,$C$311=TRUE),$M$5*144/62.4+AF180,IF(AND($K$6=$A180,$F$311=TRUE),$M$6*144/62.4+N178-L180*144/62.4,N178-L180*144/62.4))) ->  | P180: =IF(M180="","",M180-AF180) ->  | Q180: =IF(P180="","",P180*62.4/144) ->  | R180: =IF(N180="","",(N180-AF180)*62.4/144) ->  | V180: =IF(R180="","",IF(P180<0,$O$316,IF(R180>G181,$O$317,IF(R180>75,$O$318,"")))) ->  | AB180: =IF(K179="","",K179+AB178) ->  | AF180: =IF(OR(A180="",$R$3="",AM179=""),"",C180-$R$3) ->  | AG180: =IF(AF180="","",N180) ->  | AH180: =IF(OR(AF180="",$R$2=""),"",IF(AND($A$311=1,Pump!$F$17="Yes"),IF(AND($C$311=TRUE,$K$5=A180),($M$5*144/62.4+AF180)-((L180*144/62.4)),IF(AND($F$311=TRUE,$K$6=A180),AH178-K179+($M$6*144/62.4)-(O179^2/64.4),AH178-K179-(O179^2/64.4))),AH178-K179-(O179^2/64.4))) -> 
B181: =IF(AND(A182>0,C182>0),SQRT((A182-A180)^2+(C182-C180)^2),"") ->  | G181: =IF(OR(A180="",AI181=0),"",AL181) ->  | H181: =IF(OR($A180="",AI181=0,AJ181=0),"",AM181) ->  | I181: =IF(OR($A180="",AI181=0,AJ181=0),"",AN181) ->  | J181: =IF(AND(A182<>"",OR(AK181<>0,AJ181<>0,AI181<>0)),AO181,"") ->  | K181: =IF(OR(A182="",AR181="",AM181=""),"",(10.44*B181*(AR181^1.85))/((AN181^1.85)*(AM181^4.8655))) ->  | O181: =IF(OR(A182="",AR181="",AM181="",$R$2=""),"",(AR181/7.48/60)/(PI()*((AM181/2)/12)^2)) ->  | AD181: =IF(A182="","",IF(E181="",AD179,IF(ISNUMBER(SEARCH(3408,Main!E181)),'Pipe Tables'!$E$32,IF(ISNUMBER(SEARCH(4710,Main!E181)),'Pipe Tables'!$E$32,IF(ISNUMBER(SEARCH('Pipe Tables'!$E$33,Main!E181)),'Pipe Tables'!$E$33,IF(ISNUMBER(SEARCH('Pipe Tables'!$E$34,Main!E181)),'Pipe Tables'!$E$34,IF(ISNUMBER(SEARCH('Pipe Tables'!$E$35,Main!E181)),'Pipe Tables'!$E$35))))))) ->  | AI181: =D181 -> 0 | AJ181: =E181 -> 0 | AK181: =F181 -> 0 | AL181: =IF(AQ181=0,"",HLOOKUP(AQ181,Pipe_Pressure,MATCH(AP181,Pipe_Press_Size,0),FALSE)) ->  | AM181: =IF(OR(AP181=0,AQ181=0),"",VLOOKUP(AP181,Pipe_Diameter,MATCH(AQ181,Pipe_Diam_Material,0))) ->  | AN181: =IF(A182="","",VLOOKUP(AD181,Hazen_Williams,2)) ->  | AO181: =IF(OR(A182="",AR181="",AM181=""),"",((10.44*(AR181^1.85))/((AN181^1.85)*(AM181^4.8655)))) ->  | AP181: =IF(AND($A182<>"",AI181=0),AP179,IF(AND($A182<>"",AI181<>0),AI181,0)) -> 0 | AQ181: =IF(AND($A182<>"",AJ181=0),AQ179,IF(AND($A182<>"",AJ181<>0),AJ181,0)) -> 0 | AR181: =IF(AND($A182<>"",AK181=0),AR179,IF(AND($A182<>"",AK181<>0),AK181,0)) -> 0 | AS181: =IF(AND($A182<>"",AL181=0),AS179,IF(AND($A182<>"",AL181<>0),AL181,0)) -> 0
M182: =IF(OR(AF182="",$R$2=""),"",IF(AND($C$311=TRUE,$K$5=A182),($M$5*144/62.4+AF182)-((L182*144/62.4)),IF(AND($F$311=TRUE,$K$6=A182),M180-K181+($M$6*144/62.4)-(O181^2/64.4),M180-K181-(O181^2/64.4)-L182*144/62.4))) ->  | N182: =IF(B181="","",IF(AND($K$5=$A182,$C$311=TRUE),$M$5*144/62.4+AF182,IF(AND($K$6=$A182,$F$311=TRUE),$M$6*144/62.4+N180-L182*144/62.4,N180-L182*144/62.4))) ->  | P182: =IF(M182="","",M182-AF182) ->  | Q182: =IF(P182="","",P182*62.4/144) ->  | R182: =IF(N182="","",(N182-AF182)*62.4/144) ->  | V182: =IF(R182="","",IF(P182<0,$O$316,IF(R182>G183,$O$317,IF(R182>75,$O$318,"")))) ->  | AB182: =IF(K181="","",K181+AB180) ->  | AF182: =IF(OR(A182="",$R$3="",AM181=""),"",C182-$R$3) ->  | AG182: =IF(AF182="","",N182) ->  | AH182: =IF(OR(AF182="",$R$2=""),"",IF(AND($A$311=1,Pump!$F$17="Yes"),IF(AND($C$311=TRUE,$K$5=A182),($M$5*144/62.4+AF182)-((L182*144/62.4)),IF(AND($F$311=TRUE,$K$6=A182),AH180-K181+($M$6*144/62.4)-(O181^2/64.4),AH180-K181-(O181^2/64.4))),AH180-K181-(O181^2/64.4))) -> 
B183: =IF(AND(A184>0,C184>0),SQRT((A184-A182)^2+(C184-C182)^2),"") ->  | G183: =IF(OR(A182="",AI183=0),"",AL183) ->  | H183: =IF(OR($A182="",AI183=0,AJ183=0),"",AM183) ->  | I183: =IF(OR($A182="",AI183=0,AJ183=0),"",AN183) ->  | J183: =IF(AND(A184<>"",OR(AK183<>0,AJ183<>0,AI183<>0)),AO183,"") ->  | K183: =IF(OR(A184="",AR183="",AM183=""),"",(10.44*B183*(AR183^1.85))/((AN183^1.85)*(AM183^4.8655))) ->  | O183: =IF(OR(A184="",AR183="",AM183="",$R$2=""),"",(AR183/7.48/60)/(PI()*((AM183/2)/12)^2)) ->  | AD183: =IF(A184="","",IF(E183="",AD181,IF(ISNUMBER(SEARCH(3408,Main!E183)),'Pipe Tables'!$E$32,IF(ISNUMBER(SEARCH(4710,Main!E183)),'Pipe Tables'!$E$32,IF(ISNUMBER(SEARCH('Pipe Tables'!$E$33,Main!E183)),'Pipe Tables'!$E$33,IF(ISNUMBER(SEARCH('Pipe Tables'!$E$34,Main!E183)),'Pipe Tables'!$E$34,IF(ISNUMBER(SEARCH('Pipe Tables'!$E$35,Main!E183)),'Pipe Tables'!$E$35))))))) ->  | AI183: =D183 -> 0 | AJ183: =E183 -> 0 | AK183: =F183 -> 0 | AL183: =IF(AQ183=0,"",HLOOKUP(AQ183,Pipe_Pressure,MATCH(AP183,Pipe_Press_Size,0),FALSE)) ->  | AM183: =IF(OR(AP183=0,AQ183=0),"",VLOOKUP(AP183,Pipe_Diameter,MATCH(AQ183,Pipe_Diam_Material,0))) ->  | AN183: =IF(A184="","",VLOOKUP(AD183,Hazen_Williams,2)) ->  | AO183: =IF(OR(A184="",AR183="",AM183=""),"",((10.44*(AR183^1.85))/((AN183^1.85)*(AM183^4.8655)))) ->  | AP183: =IF(AND($A184<>"",AI183=0),AP181,IF(AND($A184<>"",AI183<>0),AI183,0)) -> 0 | AQ183: =IF(AND($A184<>"",AJ183=0),AQ181,IF(AND($A184<>"",AJ183<>0),AJ183,0)) -> 0 | AR183: =IF(AND($A184<>"",AK183=0),AR181,IF(AND($A184<>"",AK183<>0),AK183,0)) -> 0 | AS183: =IF(AND($A184<>"",AL183=0),AS181,IF(AND($A184<>"",AL183<>0),AL183,0)) -> 0
M184: =IF(OR(AF184="",$R$2=""),"",IF(AND($C$311=TRUE,$K$5=A184),($M$5*144/62.4+AF184)-((L184*144/62.4)),IF(AND($F$311=TRUE,$K$6=A184),M182-K183+($M$6*144/62.4)-(O183^2/64.4),M182-K183-(O183^2/64.4)-L184*144/62.4))) ->  | N184: =IF(B183="","",IF(AND($K$5=$A184,$C$311=TRUE),$M$5*144/62.4+AF184,IF(AND($K$6=$A184,$F$311=TRUE),$M$6*144/62.4+N182-L184*144/62.4,N182-L184*144/62.4))) ->  | P184: =IF(M184="","",M184-AF184) ->  | Q184: =IF(P184="","",P184*62.4/144) ->  | R184: =IF(N184="","",(N184-AF184)*62.4/144) ->  | V184: =IF(R184="","",IF(P184<0,$O$316,IF(R184>G185,$O$317,IF(R184>75,$O$318,"")))) ->  | AB184: =IF(K183="","",K183+AB182) ->  | AF184: =IF(OR(A184="",$R$3="",AM183=""),"",C184-$R$3) ->  | AG184: =IF(AF184="","",N184) ->  | AH184: =IF(OR(AF184="",$R$2=""),"",IF(AND($A$311=1,Pump!$F$17="Yes"),IF(AND($C$311=TRUE,$K$5=A184),($M$5*144/62.4+AF184)-((L184*144/62.4)),IF(AND($F$311=TRUE,$K$6=A184),AH182-K183+($M$6*144/62.4)-(O183^2/64.4),AH182-K183-(O183^2/64.4))),AH182-K183-(O183^2/64.4))) -> 
B185: =IF(AND(A186>0,C186>0),SQRT((A186-A184)^2+(C186-C184)^2),"") ->  | G185: =IF(OR(A184="",AI185=0),"",AL185) ->  | H185: =IF(OR($A184="",AI185=0,AJ185=0),"",AM185) ->  | I185: =IF(OR($A184="",AI185=0,AJ185=0),"",AN185) ->  | J185: =IF(AND(A186<>"",OR(AK185<>0,AJ185<>0,AI185<>0)),AO185,"") ->  | K185: =IF(OR(A186="",AR185="",AM185=""),"",(10.44*B185*(AR185^1.85))/((AN185^1.85)*(AM185^4.8655))) ->  | O185: =IF(OR(A186="",AR185="",AM185="",$R$2=""),"",(AR185/7.48/60)/(PI()*((AM185/2)/12)^2)) ->  | AD185: =IF(A186="","",IF(E185="",AD183,IF(ISNUMBER(SEARCH(3408,Main!E185)),'Pipe Tables'!$E$32,IF(ISNUMBER(SEARCH(4710,Main!E185)),'Pipe Tables'!$E$32,IF(ISNUMBER(SEARCH('Pipe Tables'!$E$33,Main!E185)),'Pipe Tables'!$E$33,IF(ISNUMBER(SEARCH('Pipe Tables'!$E$34,Main!E185)),'Pipe Tables'!$E$34,IF(ISNUMBER(SEARCH('Pipe Tables'!$E$35,Main!E185)),'Pipe Tables'!$E$35))))))) ->  | AI185: =D185 -> 0 | AJ185: =E185 -> 0 | AK185: =F185 -> 0 | AL185: =IF(AQ185=0,"",HLOOKUP(AQ185,Pipe_Pressure,MATCH(AP185,Pipe_Press_Size,0),FALSE)) ->  | AM185: =IF(OR(AP185=0,AQ185=0),"",VLOOKUP(AP185,Pipe_Diameter,MATCH(AQ185,Pipe_Diam_Material,0))) ->  | AN185: =IF(A186="","",VLOOKUP(AD185,Hazen_Williams,2)) ->  | AO185: =IF(OR(A186="",AR185="",AM185=""),"",((10.44*(AR185^1.85))/((AN185^1.85)*(AM185^4.8655)))) ->  | AP185: =IF(AND($A186<>"",AI185=0),AP183,IF(AND($A186<>"",AI185<>0),AI185,0)) -> 0 | AQ185: =IF(AND($A186<>"",AJ185=0),AQ183,IF(AND($A186<>"",AJ185<>0),AJ185,0)) -> 0 | AR185: =IF(AND($A186<>"",AK185=0),AR183,IF(AND($A186<>"",AK185<>0),AK185,0)) -> 0 | AS185: =IF(AND($A186<>"",AL185=0),AS183,IF(AND($A186<>"",AL185<>0),AL185,0)) -> 0
M186: =IF(OR(AF186="",$R$2=""),"",IF(AND($C$311=TRUE,$K$5=A186),($M$5*144/62.4+AF186)-((L186*144/62.4)),IF(AND($F$311=TRUE,$K$6=A186),M184-K185+($M$6*144/62.4)-(O185^2/64.4),M184-K185-(O185^2/64.4)-L186*144/62.4))) ->  | N186: =IF(B185="","",IF(AND($K$5=$A186,$C$311=TRUE),$M$5*144/62.4+AF186,IF(AND($K$6=$A186,$F$311=TRUE),$M$6*144/62.4+N184-L186*144/62.4,N184-L186*144/62.4))) ->  | P186: =IF(M186="","",M186-AF186) ->  | Q186: =IF(P186="","",P186*62.4/144) ->  | R186: =IF(N186="","",(N186-AF186)*62.4/144) ->  | V186: =IF(R186="","",IF(P186<0,$O$316,IF(R186>G187,$O$317,IF(R186>75,$O$318,"")))) ->  | AB186: =IF(K185="","",K185+AB184) ->  | AF186: =IF(OR(A186="",$R$3="",AM185=""),"",C186-$R$3) ->  | AG186: =IF(AF186="","",N186) ->  | AH186: =IF(OR(AF186="",$R$2=""),"",IF(AND($A$311=1,Pump!$F$17="Yes"),IF(AND($C$311=TRUE,$K$5=A186),($M$5*144/62.4+AF186)-((L186*144/62.4)),IF(AND($F$311=TRUE,$K$6=A186),AH184-K185+($M$6*144/62.4)-(O185^2/64.4),AH184-K185-(O185^2/64.4))),AH184-K185-(O185^2/64.4))) -> 
B187: =IF(AND(A188>0,C188>0),SQRT((A188-A186)^2+(C188-C186)^2),"") ->  | G187: =IF(OR(A186="",AI187=0),"",AL187) ->  | H187: =IF(OR($A186="",AI187=0,AJ187=0),"",AM187) ->  | I187: =IF(OR($A186="",AI187=0,AJ187=0),"",AN187) ->  | J187: =IF(AND(A188<>"",OR(AK187<>0,AJ187<>0,AI187<>0)),AO187,"") ->  | K187: =IF(OR(A188="",AR187="",AM187=""),"",(10.44*B187*(AR187^1.85))/((AN187^1.85)*(AM187^4.8655))) ->  | O187: =IF(OR(A188="",AR187="",AM187="",$R$2=""),"",(AR187/7.48/60)/(PI()*((AM187/2)/12)^2)) ->  | AD187: =IF(A188="","",IF(E187="",AD185,IF(ISNUMBER(SEARCH(3408,Main!E187)),'Pipe Tables'!$E$32,IF(ISNUMBER(SEARCH(4710,Main!E187)),'Pipe Tables'!$E$32,IF(ISNUMBER(SEARCH('Pipe Tables'!$E$33,Main!E187)),'Pipe Tables'!$E$33,IF(ISNUMBER(SEARCH('Pipe Tables'!$E$34,Main!E187)),'Pipe Tables'!$E$34,IF(ISNUMBER(SEARCH('Pipe Tables'!$E$35,Main!E187)),'Pipe Tables'!$E$35))))))) ->  | AI187: =D187 -> 0 | AJ187: =E187 -> 0 | AK187: =F187 -> 0 | AL187: =IF(AQ187=0,"",HLOOKUP(AQ187,Pipe_Pressure,MATCH(AP187,Pipe_Press_Size,0),FALSE)) ->  | AM187: =IF(OR(AP187=0,AQ187=0),"",VLOOKUP(AP187,Pipe_Diameter,MATCH(AQ187,Pipe_Diam_Material,0))) ->  | AN187: =IF(A188="","",VLOOKUP(AD187,Hazen_Williams,2)) ->  | AO187: =IF(OR(A188="",AR187="",AM187=""),"",((10.44*(AR187^1.85))/((AN187^1.85)*(AM187^4.8655)))) ->  | AP187: =IF(AND($A188<>"",AI187=0),AP185,IF(AND($A188<>"",AI187<>0),AI187,0)) -> 0 | AQ187: =IF(AND($A188<>"",AJ187=0),AQ185,IF(AND($A188<>"",AJ187<>0),AJ187,0)) -> 0 | AR187: =IF(AND($A188<>"",AK187=0),AR185,IF(AND($A188<>"",AK187<>0),AK187,0)) -> 0 | AS187: =IF(AND($A188<>"",AL187=0),AS185,IF(AND($A188<>"",AL187<>0),AL187,0)) -> 0
